Workbook

Sheet Info
C1: Information
C2: Outil de Calcul de Rentabilité des Projets Autoproduction en Tunisie en Moyenne et Haute Tension (Version avril 2021)
C5: A propos de l'outil
C7: A quoi sert l’outil?
C8: Permet de calculer la rentabilité des projets PV pour tous les segments de marché PV en Tunisie
C9: Les résultats présentés sous forme de graphiques donnent un aperçu des flux de trésorerie du projet et les paramètres financiers indiquent la rentabilité et les risques des investissements
C10: Permet de tester la sensibilité d’un projet aux changements des conditions-cadres (tarifs d’électricité, coût du système etc.)
C11: Permet de confirmer les résultats et les prévisions de rentabilité d’un projet tels que présentés par des tierces personnes
C13: Pourquoi l'utiliser?
C14: Afin d’optimiser les projets en déterminant la taille de l’installation, le montant de la dette, la durée du crédit ou encore le TRI des capitaux propres
C15: Afin de comprendre les rouages du projet et le modèle commercial utilisé, pour ensuite comprendre les risques éventuels associés au projet (analyse des scénarios)
C16: Pour découvrir des segments de marché réellement attractifs et pouvoir associer des chiffres concrets aux discussions avec les banques et développeurs de projets
C17: Pour bénéficier de la transparence qu’offre l’outil concernant les méthodes de calcul (contrairement aux calculs opaques des outils de planification technique standards)
C19: Guide pour la modélisation des flux de trésorerie
C20: Vous trouverez une vidéo sur le site du projet, avec une introduction aux notions fondamentales de la modélisation des flux de trésorerie pour les projets PV
C21: Le projet "Enabling PV dans la région MENA" décrit et analyse de manière détaillée les modèles commerciaux les plus appliqués pour le PV en Tunisie. De plus, il établit des calculs de rentabilité pour plusieurs projets-type du secteur résidentiel, commercial et industriel.
C23: Sites internet
C24: https://energypedia.info/wiki/Developing_the_Solar_Energy_Market_in_Tunisia_(Project_DMS)
C25: https://energypedia.info/wiki/Projet_Renforcement_du_Marché_Solaire_en_Tunisie_(RMS)
C26: https://energypedia.info/wiki/Enabling_PV_in_the_MENA_Region
C29: Soutiens et partenaires
C37: Auteurs de l'outil
C45: Christian Grundner | H45: Amin Chtioui | N45: Nafaa Baccari
C46: Chef de projet (ingénieur industriel) | H46: Renforcement du Marché Solaire en Tunisie | N46: Directeur des Energies Renouvelables
C47: Spécialiste du financement des énergies renouvelables | H47: Chef de Projet
C49: eclareon GmbH | H49: Deutsche Gesellschaft für Internationale Zusammenarbeit (GIZ) GmbH | N49: Agence Nationale pour la Maîtrise de l'Energie
C50: Giesebrechtstraße 20 | H50: B.P. 753 | N50: Cité Administrative, Av. Japan B.P. 213 Montplaisir, Tunis
C51: D-10629 Berlin | H51: 1080 Tunis-Cedex, Tunisie
C52: Email: cg@eclareon.com | H52: Email: amin.chtioui@giz.de | N52: Email: baccarin@anme.nat.tn
C53: URL: www.eclareon.com | H53: URL: www.giz.de | N53: Web: www.anme.nat.tn
C55: (auteur de la version originale de l'outil 2015)
C59: Clause de non-responsabilité
C61: Le contenu de ce document a été soigneusement préparé et révisé. Cependant, eclareon ne garantit pas l'exactitude, l'exhaustivité ou la qualité des informations fournies, ni que celles-ci soient à jour.
C62: Les actions en responsabilité contre eclareon au titre du dommage matériel ou immatériel causé par l'utilisation ou la non-utilisation des informations fournies ou par l’utilisation d’informations inexactes ou incomplètes,
C63: sont en principe exclues à moins qu'on ne puisse apporter la preuve d'une faute intentionnelle ou d'une négligence grave de la part de la société.

Sheet Cadre Autoproduction
A2: Le cadre du régime d’autoproduction (clients MT et HT)

Sheet entrées par défault (hidden)
A1: Hypothèses détaillées DEFAUT
A2: Changer les hypothèses si nécessaire. Les valeurs par défault sont appropriées pour des utilisateurs typiques.
A7: Délais
A8: Départ
A9: Date de début de la modélisation | B9: 2019
A14: Exploitation
A15: Durée de l'hypothèse de référence | B15: 20
A30: Exploitation
A31: Production
A32: Dégradation des performances | B32: 0.007 | C32: % p.a. | E32: Rendement spécifique | G32: Calcul Automatique
A33: Rendement global | B33: 1 | C33: x
A35: Economies d'électricité
A36: Net-metering
A38: Choix du Tarif Souscrit STEG
A39: Les tarifs par défault sont applicables pour novembre 2018.
A41: Tarif Uniforme | B41: 0.251 | C41: DT/kWh
A43: Tarif jour | B43: 0.24 | C43: DT/kWh
A44: Tarif pointe matin été | B44: 0.366 | C44: DT/kWh
A45: Tarif pointe soir | B45: 0.329 | C45: DT/kWh
A46: Tarif nuit | B46: 0.188 | C46: DT/kWh
A48: TVA payé par le client pour consommation | B48: 0 | C48: =HYPERLINK("#"&ADDRESS(ROW(),COLUMN()-1),CHAR(128)) -> €
A49: surtaxe municipale | B49: 0.005 | C49: DT/kWh
A51: Tarifs d'Achat de l'Excèdent
A52: Tarif jour | B52: 0.073 | C52: DT/kWh
A53: Tarif pointe matin été | B53: 0.087 | C53: DT/kWh
A54: Tarif pointe soir | B54: 0.077 | C54: DT/kWh
A55: Tarif nuit | B55: 0.069 | C55: DT/kWh
A57: Net-metering | B57: La limite annuelle de l'excédent est fixé à 30% (en janvier 2017).
A58: Limite annuelle de l'excedent | B58: 0.3 | C58: %
X59: 2037
A60: Projections de prix | C60: =YEAR(Model_Start) -> 2018 | D60: =C60+1 -> 2019 | F60: =D60+1 -> 2020 | G60: =F60+1 -> 2021 | H60: =G60+1 -> 2022 | I60: =H60+1 -> 2023
A61: Augmentation du tarif de vente | B61: % | C61: 0 | D61: 0.05 | F61: 0.05 | G61: 0.05 | H61: 0.05 | I61: 0.05
A62: Augmentation du tarif d'achat de l'excédent | B62: % | C62: 0 | D62: 0.05 | F62: 0.05 | G62: 0.05 | H62: 0.05 | I62: 0
A64: Coûts d’exploitation
A65: Exploitation & Maintenance
A66: Coûts fixes d'exploitation | B66: 0.015 | C66: % de l'investissement
A68: Catégories de coûts
A69: Coûts fixes
A70: Autre | B70: 0 | C70: DT p.a.
A71: Autre | B71: 0 | C71: DT p.a.
A72: Autre | B72: 0 | C72: DT p.a.
A73: Autre | B73: 0 | C73: DT p.a.
A75: Coûts variables
A76: Bail Foncier | B76: 0 | C76: DT/kWh
A77: Autre | B77: 0 | C77: DT/kWh
A78: Autre | B78: 0 | C78: DT/kWh
A79: Autre | B79: 0 | C79: DT/kWh
A81: Dépenses en immobilisations permanentes (valeure nominale)
C82: =YEAR(Model_Start) -> 2018 | D82: =C82+1 -> 2019 | F82: =D82+1 -> 2020 | G82: =F82+1 -> 2021 | H82: =G82+1 -> 2022 | I82: =H82+1 -> 2023 | J82: 2024 | K82: 2025 | L82: 2026 | M82: 2027 | N82: 2028 | O82: 2029 | P82: 2030 | Q82: 2031 | R82: 2032 | S82: 2033 | T82: 2034 | U82: 2035 | V82: 2036 | W82: 2037
A83: Autre | B83: DT | C83: 0 | D83: 0 | F83: 0 | G83: 0 | H83: 0 | I83: 0 | J83: 0 | K83: 0 | L83: 0 | M83: 0 | N83: 0 | O83: 0 | P83: 0 | Q83: 0 | R83: 0 | S83: 0 | T83: 0 | U83: 0 | V83: 0 | W83: 0
A84: Autre | B84: DT | C84: 0 | D84: 0 | F84: 0 | G84: 0 | H84: 0 | I84: 0 | J84: 0 | K84: 0 | L84: 0 | M84: 0 | N84: 0 | O84: 0 | P84: 0 | Q84: 0 | R84: 0 | S84: 0 | T84: 0 | U84: 0 | V84: 0 | W84: 0
A85: Autre | B85: DT | C85: 0 | D85: 0 | F85: 0 | G85: 0 | H85: 0 | I85: 0 | J85: 0 | K85: 0 | L85: 0 | M85: 0 | N85: 0 | O85: 0 | P85: 0 | Q85: 0 | R85: 0 | S85: 0 | T85: 0 | U85: 0 | V85: 0 | W85: 0
A87: Financement
A88: Dette de premier rang
A89: Limite | B89: 200000 | C89: DT
A90: Montant de la dette | B90: 0.7 | C90: % | D90: =HYPERLINK("#"&ADDRESS(ROW(),COLUMN()-1),CHAR(128)) -> €
B91: =IF(C90="%",IF('Entrées Utilisateur'!D10="DT",MIN(B89,'Entrées Utilisateur'!C10*B90),MIN(B89,'Entrées Utilisateur'!C14*B90)),IF('Entrées Utilisateur'!D10="DT",B90/'Entrées Utilisateur'!C10,B90/'Entrées Utilisateur'!C14)) -> 70000 | C91: =IF(C90="DT/kW","DT","DT/kW") -> DT/kW
A93: Période | C93: Cons | D93: 1 | F93: 2 | G93: 3 | H93: 4
A94: Marge | B94: % p.a. | C94: 0.0125 | D94: 0.0125 | F94: 0.0125 | G94: 0.0125 | H94: 0.0125
A96: Frais de financement
A97: Commission initiale | B97: 0.01 | C97: % crédit
A98: Commission d'engagement | B98: 0.25 | C98: % marge
A100: Modalités de remboursement
A101: Durée du crédit | B101: 10
A102: Délai de grâce | B102: 0
A104: Capitaux propres
A106: Taux d'actualisation | B106: 0.08
A108: Elements macroéconomiques
A109: Taux d'intérêt
A110: Année civile | C110: =YEAR(Model_Start) -> 2018 | D110: =C110+1 -> 2019 | F110: =D110+1 -> 2020 | G110: =F110+1 -> 2021
A111: Taux de référence | B111: % p.a. | C111: 0.0775 | D111: 0.0775 | F111: 0.0775 | G111: 0.0425
A113: Inflation
A114: Année civile | C114: =YEAR(Model_Start) -> 2018 | D114: =C114+1 -> 2019 | F114: =D114+1 -> 2020 | G114: =F114+1 -> 2021
A115: Taux d'augmentation | B115: % p.a. | C115: 0.075 | D115: 0.075 | F115: 0.075 | G115: 0.04

Sheet Entrées Utilisateur
B2: Veuillez indiquer vos hypothèses et entrées pour les analyses
A4: =CHAR(128) -> € | B4: Cliquer sur les flèches pour voir les choix possible.
B6: Hypothèses de base
B8: Construction
B10: Coût de l'installation Hors Taxes | C10: 100000 | D10: DT
B11: Subvention FTE | C11: 0.2 | D11: % | E11: =HYPERLINK("#"&ADDRESS(ROW(),COLUMN()-1),CHAR(128)) -> €
C12: =IF(D11="DT",C11/C10,MIN(C11*C10,200000)) -> 20000 | D12: =IF(D11="%","DT","%") -> DT
B13: TVA | C13: 5000 | D13: DT
B14: Coût net total de l'installation TTC | C14: =C10-IF(D11="DT",C11,C12)+C13 -> 85000 | D14: DT
B15: Exploitation
B17: Taille de l'installation | C17: 40 | D17: kWc
B19: Courbes de Charges: -Sélectionner la courbe de charge voulue ou "Aucun" si il n'y a pas de point de consommation sur le site. - Pour le cas sans transport, entrer "Aucun" pour le site de consommation no. 2, 3 et 4. - Si "saisie manuelle" est choisi, entrer les courbes (ou la consommation par poste horaire, le cas échéant) manuellement dans l'onglet "Saisie manuelle". -Si il y a plus de 4 courbes de charges, grouper plusieurs sites qui ont le même tarif souscrit et choisir "Saisie Manuelle". Entrer la somme des courbes de charges dans l'onglet "Courbes de Charge".
B20: Site de Consommation no. 1 (sur le même compteur que le système PV) | H20: Site de Consommation no. 2 (à distance du système PV)
B21: Type de client | C21: Hôtellerie | E21: =HYPERLINK("#"&ADDRESS(ROW(),COLUMN()-1),CHAR(128)) -> € | G21: =IF(C21="saisie manuelle","Coller la courbe de charge dans l'onglet 'Courbe de Charge'.","") ->  | H21: Type de client | I21: Industrie Plastique | K21: =HYPERLINK("#"&ADDRESS(ROW(),COLUMN()-1),CHAR(128)) -> €
B22: Consommation annuelle moyenne | C22: 150000 | E22: kWh/an | H22: Consommation annuelle moyenne | I22: 150000 | K22: kWh/an
B23: Tarif Souscrit STEG | C23: Tarif Uniforme | E23: =HYPERLINK("#"&ADDRESS(ROW(),COLUMN()-1),CHAR(128)) -> € | H23: Tarif Souscrit STEG | I23: Tarif à Poste Horaire | K23: =HYPERLINK("#"&ADDRESS(ROW(),COLUMN()-1),CHAR(128)) -> €
B25: Site de Consommation no. 3 (à distance du système PV) | H25: Site de Consommation no. 4 (à distance du système PV)
B27: Type de client | C27: Aucun | E27: =HYPERLINK("#"&ADDRESS(ROW(),COLUMN()-1),CHAR(128)) -> € | G27: =IF(C27="saisie manuelle","Coller la courbe de charge dans l'onglet 'Courbe de Charge'.","") ->  | H27: Type de client | I27: Aucun | K27: =HYPERLINK("#"&ADDRESS(ROW(),COLUMN()-1),CHAR(128)) -> €
B28: Consommation annuelle moyenne | C28: 200000 | E28: kWh/an | H28: Consommation annuelle moyenne | I28: 150000 | K28: kWh/an
B29: Tarif Souscrit STEG | C29: Tarif à Poste Horaire | E29: =HYPERLINK("#"&ADDRESS(ROW(),COLUMN()-1),CHAR(128)) -> € | H29: Tarif Souscrit STEG | I29: Tarif à Poste Horaire | K29: =HYPERLINK("#"&ADDRESS(ROW(),COLUMN()-1),CHAR(128)) -> €
B32: Site et Caractéristiques des Panneaux PV | H32: Système de Compensation
B34: Région | C34: Tunis | E34: =HYPERLINK("#"&ADDRESS(ROW(),COLUMN()-1),CHAR(128)) -> € | G34: =IF(C34="saisie manuelle","Coller la courbe de production PV dans l'onglet 'Courbe de Production PV'.","") ->  | H34: =IF( AND( AND(OR(I23="Tarif à Poste Horaire",I21="Aucun"),OR(C29="Tarif à Poste Horaire",C27="Aucun"),OR(I29="Tarif à Poste Horaire",I27="Aucun")), NOT(AND(C23="Tarif Uniforme",I21="Aucun",C27="Aucun",I27="Aucun"))), "Net Metering par Poste Horaire", "Bilan Instantané") -> Net Metering par Poste Horaire
B35: Orientation des panneaux | C35: Sud | E35: =HYPERLINK("#"&ADDRESS(ROW(),COLUMN()-1),CHAR(128)) -> €
B40: Hypothèses détaillées
B41: Changer les hypothèses si nécessaire. Les valeurs par défault sont appropriées pour des utilisateurs typiques.
B46: Délais | G46: Coûts initiaux supplémentaires
B47: Départ
B48: Date de début de la modélisation | C48: 2019 | G48: Coût de l'étude de faisabilité | I48: 0 | J48: DT
B50: Exploitation
B51: Durée de l'hypothèse de référence | C51: 20
B53: Exploitation
B54: Production
B55: Dégradation des performances | C55: 0.007 | D55: % p.a. | F55: Rendement spécifique | H55: Calcul Automatique | I55: =HYPERLINK("#"&ADDRESS(ROW(),COLUMN()-1),CHAR(128)) -> €
B56: Rendement global | C56: 1 | D56: x | H56: 0 | I56: kWh/kW
B58: Economies d'électricité
B59: Net-metering
B61: Choix du Tarif Souscrit STEG
B62: Les tarifs par défault sont applicables pour juin 2020.
B63: Tarif Uniforme | C63: 0.251 | D63: DT/kWh
B65: Tarif par Postes Horaires
B66: Tarif jour | C66: 0.24 | D66: DT/kWh
B67: Tarif pointe matin été | C67: 0.366 | D67: DT/kWh
B68: Tarif pointe soir | C68: 0.329 | D68: DT/kWh
B69: Tarif nuit / dim | C69: 0.188 | D69: DT/kWh
B71: TVA payé par le client pour consommation | C71: 0 | D71: =HYPERLINK("#"&ADDRESS(ROW(),COLUMN()-1),CHAR(128)) -> €
B72: surtaxe municipale | C72: 0.005 | D72: DT/kWh
B74: Tarifs d'Achat de l'Excédent | G74: Tarif de Transport
B75: Tarif jour | C75: 0.115 | D75: DT/kWh | G75: Tarif | H75: 0.007 | I75: DT/kWh
B76: Tarif pointe matin été | C76: 0.182 | D76: DT/kWh
B77: Tarif pointe soir | C77: 0.168 | D77: DT/kWh
B78: Tarif nuit / dim | C78: 0.087 | D78: DT/kWh
B80: Net-metering
B81: Limite annuelle de l'excédent | C81: 0.3 | D81: %
B83: Projections de prix | C83: année | D83: 1 | E83: =D83+1 -> 2 | G83: =E83+1 -> 3 | H83: =G83+1 -> 4 | I83: =H83+1 -> 5 | J83: =I83+1 -> 6
B84: Augmentation du tarif de vente et de transport | C84: % | D84: 0 | E84: 0.05 | G84: 0.05 | H84: 0.05 | I84: 0.05 | J84: 0.05
B85: Augmentation du tarif d'achat de l'excédent | C85: % | D85: 0 | E85: 0.05 | G85: 0.05 | H85: 0.05 | I85: 0.05 | J85: 0
B87: Coûts d’exploitation
B88: Exploitation & Maintenance
B89: Coûts fixes d'exploitation | C89: 0.015 | D89: % de l'investissement par an
B91: Catégories de coûts
B92: Coûts fixes
B93: Autre | C93: 0 | D93: DT p.a.
B94: Autre | C94: 0 | D94: DT p.a.
B95: Autre | C95: 0 | D95: DT p.a.
B96: Autre | C96: 0 | D96: DT p.a.
B98: Coûts variables
B99: Bail Foncier | C99: 0 | D99: DT/kWh
B100: Autre | C100: 0 | D100: DT/kWh
B101: Autre | C101: 0 | D101: DT/kWh
B102: Autre | C102: 0 | D102: DT/kWh
B104: Dépenses en immobilisations permanentes (valeure nominale)
C105: année | D105: 1 | E105: =D105+1 -> 2 | G105: =E105+1 -> 3 | H105: =G105+1 -> 4 | I105: =H105+1 -> 5 | J105: =I105+1 -> 6 | K105: 7 | L105: 8 | M105: 9 | N105: 10 | O105: 11 | P105: 12 | Q105: 13 | R105: 14 | S105: 15 | T105: 16 | U105: 17 | V105: 18 | W105: 19 | X105: 20
B106: Autre | C106: DT | D106: 0 | E106: 0 | G106: 0 | H106: 0 | I106: 0 | J106: 0 | K106: 0 | L106: 0 | M106: 0 | N106: 0 | O106: 0 | P106: 0 | Q106: 0 | R106: 0 | S106: 0 | T106: 0 | U106: 0 | V106: 0 | W106: 0 | X106: 0
B107: Autre | C107: DT | D107: 0 | E107: 0 | G107: 0 | H107: 0 | I107: 0 | J107: 0 | K107: 0 | L107: 0 | M107: 0 | N107: 0 | O107: 0 | P107: 0 | Q107: 0 | R107: 0 | S107: 0 | T107: 0 | U107: 0 | V107: 0 | W107: 0 | X107: 0
B108: Autre | C108: DT | D108: 0 | E108: 0 | G108: 0 | H108: 0 | I108: 0 | J108: 0 | K108: 0 | L108: 0 | M108: 0 | N108: 0 | O108: 0 | P108: 0 | Q108: 0 | R108: 0 | S108: 0 | T108: 0 | U108: 0 | V108: 0 | W108: 0 | X108: 0
B110: Financement
B111: Dette de premier rang
B112: Limite | C112: 200000 | D112: DT
B113: Montant de la dette | C113: 0.7 | D113: % | E113: =HYPERLINK("#"&ADDRESS(ROW(),COLUMN()-1),CHAR(128)) -> € | G113: correspond à | H113: =IF(D113="%",IF(D10="DT",MIN(C112,C10*C113),MIN(C112,C14*C113)),IF(D10="DT",C113/C10,C113/C14)) -> 70000 | I113: =IF(D113="%","DT","%") -> DT
B116: Période | D116: Cons | E116: 1 | G116: 2 | H116: 3 | I116: 4
B117: Marge | C117: % p.a. | D117: 0.0125 | E117: 0.0125 | G117: 0.0125 | H117: 0.0125 | I117: 0.0125
B119: Frais de financement
B120: Commission initiale | C120: 0.01 | D120: % crédit
B121: Commission d'engagement | C121: 0.25 | D121: % marge
B123: Modalités de remboursement
B124: Durée du crédit | C124: 10
B125: Délai de grâce | C125: 0
B127: Capitaux propres
B129: Taux d'actualisation | C129: 0.08
B131: Elements macroéconomiques
B132: Taux d'intérêt
B133: Année civile | D133: =C48 -> 2019 | E133: =D133+1 -> 2020 | G133: =E133+1 -> 2021 | H133: =G133+1 -> 2022
B134: Taux de référence (Banque Centrale) | C134: % p.a. | D134: 0.0775 | E134: 0.0775 | G134: 0.0775 | H134: 0.0425
B136: Inflation
B137: Année civile | D137: =C48 -> 2019 | E137: =D137+1 -> 2020 | G137: =E137+1 -> 2021 | H137: =G137+1 -> 2022
B138: Taux d'augmentation | C138: % p.a. | D138: 0.075 | E138: 0.075 | G138: 0.075 | H138: 0.04

Sheet Résultats
B2: ="Résultats" -> Résultats
B4: variable | C4: valeur | D4: unité | E4: Description
B5: Consommation brute annuelle, tous sites | C5: ='Compensation PV'!G17 -> 300000 | D5: kWh | E5: La consommation électrique du client sur l'année
B6: Production PV annuelle | C6: ='Compensation PV'!L17 -> 66000 | D6: kWh | E6: L'électricité générée par le système PV la première année
B7: Energie autoconsommée annuelle, tous sites | C7: =C6-C9 -> 66000 | D7: kWh | E7: Énergie produite PV qui est consommé ou sur place sur le même site que le système PV ou par un des sites de consommation à distance.
B8: Transport d'énergie PV annuelle | C8: ='Compensation PV'!M34 -> 18747.80143 | D8: kWh | E8: Énergie injectée sur le réseau et autoconsommé par un des sites de consommation à distance.
B9: Energie cédée annuellle (excédent) | C9: ='Compensation PV'!S34 -> 0 | D9: kWh | E9: Énergie injectée sur le réseau qui n'est pas autoconsommée par un des site de consommation à distance.
B10: Taux de couverture totale | C10: =C6/C5 -> 0.22 | D10: - | E10: Pourcentage de la consommation brute annuelle produite par le système PV
B11: Pourcentage de la production cédée (excédent) | C11: ='Compensation PV'!C40 -> 0 | D11: - | E11: Pourcentage de la production PV annuelle qui est cédée à la STEG (ni autoconsommée, ni transportée)
B12: Pourcentage de la production transportée | C12: =C8/C6 -> 0.2840575974 | D12: - | E12: Pourcentage de la production PV annuelle qui est transportée pour être autoconsommée par les sites de consommation à distance du point de livraison PV
B13: Montant à rembourser à la fin de l'année | C13: ='Compensation PV'!C41 -> 0 | D13: DT/an | E13: Remboursement à la STEG en raison de dépassement de la limite de l'excédent (première année)
B14: Coût Moyen Actualisé de l'Énergie (LCOE) avec subvention | C14: ='Flux de trésorerie'!I74 -> 0.1271821483 | D14: DT/kWh | E14: Le coût actualisé de l'énergie, qui correspond au prix moyen de l'électricité généré par le système sur la vie du projet prenant en compte la subvention | H14: Site no. 1 | I14: =HYPERLINK("#"&ADDRESS(ROW(),COLUMN()-1),CHAR(128)) -> €
B15: Facture annuelle sans PV (tous les sites de consommation) | C15: =SUM('Compensation PV'!AI53:AI8812) -> 73302.08865 | D15: DT/an | E15: La facture d'électricité totale sur la première année sans système PV | J15: Facture annuelle sans PV | K15: =IF($H$14="Site no. 1",SUM('Compensation PV'!P53:P8812),IF($H$14="Site no. 2",SUM('Compensation PV'!T53:T8812),IF($H$14="Site no. 3",SUM('Compensation PV'!Y53:Y8812),IF($H$14="Site no. 4",SUM('Compensation PV'!AD53:AD8812))))) -> 38400 | L15: DT/an
B16: Facture annuelle avec PV (tous les sites de consommation) | C16: ='Compensation PV'!C48 -> 54049.86433 | D16: DT/an | E16: La facture d'électricité totale sur la première année avec système PV | J16: Facture annuelle avec PV | K16: =IF($H$14="Site no. 1",SUM('Compensation PV'!R53:R8812),IF($H$14="Site no. 2",SUM('Compensation PV'!W53:W8812),IF($H$14="Site no. 3",SUM('Compensation PV'!AB53:AB8812),IF($H$14="Site no. 4",SUM('Compensation PV'!AG53:AG8812))))) -> 26303.43717 | L16: DT/an
B17: Facture annuelle pour transport d'énergie PV | C17: ='Compensation PV'!N34 -> 131.23461 | D17: DT/an | E17: Facture pour l'électricité autoconsommée par les sites de consommation à distance du point de livraison PV
B18: Vente annuelle de l'excédent à la STEG | C18: ='Compensation PV'!W34 -> 0 | D18: DT/an | E18: Le montant facturé à la STEG pour l'électricité en excédent, prenant en compte la limite de l'excédent.
B19: Temps de retour sur investissement | C19: ='Capitaux propres'!F45 -> 2.081716963 | D19: années | E19: Le nombre d'années nécessaire pour que le client rembourse sont investissement initial
B20: Taux de rentabilité interne du projet | C20: ='Flux de trésorerie'!I60 -> 0.2565719068 | D20: - | E20: Le taux d'actualisation nécessaire pour que la valeur actuelle nette du projet soit égale à zero. Le TRI est utilisé pour comparer l'investissement à d'autres investissement de risques similaires.
B21: Réduction d'émissions de gaz à effet de serre sur la vie du système PV | C21: =SUM('Courbes de Production PV'!AD10:AD8767)*Données!G15*0.57/1000 -> 752.4 | D21: tonnes équivalent CO2 | E21: En produisant de l'électricité à partir du solaire, la production d'électricité de sources conventionnelles est évitée ainsi que ses émissions CO2. La production de 1 MWh d'électricité solaire en Tunisie déplace en moyenne 0,57 tonnes équivalent de CO2.
B27: Installation PV | F27: Investissement
B28: Taille de l’installation | C28: kWc | D28: =Données!G35 -> 40 | F28: Durée du projet | H28: =Données!G16 -> 20
B29: Coût d’investissement spécifique | C29: DT/kWc | D29: =Données!G21/Données!G35 -> 2125 | F29: Subventions | H29: =Données!G30 -> 20000
B30: Coût d’investissement total | C30: DT | D30: =Données!G22 -> 85000 | F30: Capitaux propres | H30: =Données!G131 -> 26110.79195
B31: Coût d’investissement sans subvention | C31: DT | D31: =Données!G22-Données!G30 -> 65000 | F31: Montant de la dette | G31: =H31/D30 -> 0.7 | H31: =Données!G110 -> 59500
F32: Coût total du projet | H32: =H31+H30 -> 85610.79195
B33: Rendement spécifique | C33: kWh/kWc/a | D33: ='Courbes de Production PV'!C6 -> 1650 | F33: Durée du crédit | H33: =Données!G124 -> 10
B34: Dégradation des performances | C34: % p.a. | D34: =Données!G37 -> 0.007 | F34: Taux d’intérêt | H34: =Données!H115+Données!H142 -> 0.09
B35: Coûts fixes | C35: DT/a | D35: =Données!G90 -> 1275 | F35: Taux d'actualisation | H35: =Données!G134 -> 0.08
B36: Coûts variables | C36: DT/kWh | D36: =Données!G97 -> 0
B38: Paramètres de prix | F38: Autres indicateurs de rentabilité et financiers
B39: Économies facturation* | C39: DT/kWh | D39: =Données!G76 -> 0.2897119652 | F39: Coût Moyen Actualisé de l'Énergie (LCOE) sans subvention | H39: ='Flux de trésorerie'!I73 -> 0.1573515425
B40: Limite facturation annuelle par poste horaire | C40: % | D40: =Données!G68 -> 0.3 | F40: Valeur Actualisée Nette | H40: ='Capitaux propres'!F31 -> 189309.8011
B41: TVA | C41: % | D41: =Données!G55 -> 0 | F41: TRI des capitaux propres | H41: ='Capitaux propres'!F28 -> 0.5570028245
B42: Taxe vente du surplus | C42: DT/kWh | D42: =Données!G56 -> 0.005 | F42: Min DSCR* | H42: =Financement!F48 -> 3.054811433
B43: Augmentation du prix de l’électricité** | C43: % p.a. | D43: =Données!L72 -> 0.05 | F43: Min LLCR** | H43: =Financement!F61 -> 4.019643292
B44: Inflation | C44: % p.a. | D44: =Données!G146 -> 0.075
B45: * avec TVA (si applicable), tarif STEG de l'année de construction | F45: * DSCR: Ratio de couverture du service de la dette
B46: ** après 5 ans | F46: ** LLCR: Ratio de couverture de la durée du prêt

Sheet worksheet (hidden)
C5: énergie auto-consommée (kWh) | G5: énergie auto-consommée (DT) | K5: énergie cédée (kWh) | O5: énergie cédée (DT)
B6: Mois | C6: Tarif jour | D6: Tarif pointe matin été | E6: Tarif pointe soir | F6: Tarif nuit / dimanche | G6: Tarif jour | H6: Tarif pointe matin été | I6: Tarif pointe soir | J6: Tarif nuit / dimanche | K6: Tarif jour | L6: Tarif pointe matin été | M6: Tarif pointe soir | N6: Tarif nuit / dimanche | O6: Tarif jour | P6: Tarif pointe matin été | Q6: Tarif pointe soir | R6: Tarif nuit / dimanche | S6: remboursement fin d'année
B7: JAN | C7: ='Compensation PV'!H5-'Compensation PV'!O22 -> 3260.165755 | D7: ='Compensation PV'!I5-'Compensation PV'!P22 -> 0 | E7: ='Compensation PV'!J5-'Compensation PV'!Q22 -> 0 | F7: ='Compensation PV'!K5-'Compensation PV'!R22 -> 431.0015514 | G7: =C7*('Compensation PV'!$C$8820*(1+Données!$G$55)+Données!$G$56) -> 834.6024334 | H7: =D7*('Compensation PV'!$C$8821*(1+Données!$G$55)+Données!$G$56) -> 0 | I7: =E7*('Compensation PV'!$C$8822*(1+Données!$G$55)+Données!$G$56) -> 0 | J7: =F7*('Compensation PV'!$C$8823*(1+Données!$G$55)+Données!$G$56) -> 110.3363972 | K7: ='Compensation PV'!O22 -> 0 | L7: ='Compensation PV'!P22 -> 0 | M7: ='Compensation PV'!Q22 -> 0 | N7: ='Compensation PV'!R22 -> 0 | O7: =K7*'Entrées Utilisateur'!$C$75 -> 0 | P7: =L7*'Entrées Utilisateur'!$C$76 -> 0 | Q7: =M7*'Entrées Utilisateur'!$C$77 -> 0 | R7: =N7*'Entrées Utilisateur'!$C$78 -> 0
B8: FÉV | C8: ='Compensation PV'!H6-'Compensation PV'!O23 -> 3524.20517 | D8: ='Compensation PV'!I6-'Compensation PV'!P23 -> 0 | E8: ='Compensation PV'!J6-'Compensation PV'!Q23 -> 0 | F8: ='Compensation PV'!K6-'Compensation PV'!R23 -> 744.4744025 | G8: =C8*('Compensation PV'!$C$8820*(1+Données!$G$55)+Données!$G$56) -> 902.1965235 | H8: =D8*('Compensation PV'!$C$8821*(1+Données!$G$55)+Données!$G$56) -> 0 | I8: =E8*('Compensation PV'!$C$8822*(1+Données!$G$55)+Données!$G$56) -> 0 | J8: =F8*('Compensation PV'!$C$8823*(1+Données!$G$55)+Données!$G$56) -> 190.585447 | K8: ='Compensation PV'!O23 -> 0 | L8: ='Compensation PV'!P23 -> 0 | M8: ='Compensation PV'!Q23 -> 0 | N8: ='Compensation PV'!R23 -> 0 | O8: =K8*'Entrées Utilisateur'!$C$75 -> 0 | P8: =L8*'Entrées Utilisateur'!$C$76 -> 0 | Q8: =M8*'Entrées Utilisateur'!$C$77 -> 0 | R8: =N8*'Entrées Utilisateur'!$C$78 -> 0
B9: MAR | C9: ='Compensation PV'!H7-'Compensation PV'!O24 -> 4623.396911 | D9: ='Compensation PV'!I7-'Compensation PV'!P24 -> 0 | E9: ='Compensation PV'!J7-'Compensation PV'!Q24 -> 0 | F9: ='Compensation PV'!K7-'Compensation PV'!R24 -> 1055.69636 | G9: =C9*('Compensation PV'!$C$8820*(1+Données!$G$55)+Données!$G$56) -> 1183.589609 | H9: =D9*('Compensation PV'!$C$8821*(1+Données!$G$55)+Données!$G$56) -> 0 | I9: =E9*('Compensation PV'!$C$8822*(1+Données!$G$55)+Données!$G$56) -> 0 | J9: =F9*('Compensation PV'!$C$8823*(1+Données!$G$55)+Données!$G$56) -> 270.2582682 | K9: ='Compensation PV'!O24 -> 0 | L9: ='Compensation PV'!P24 -> 0 | M9: ='Compensation PV'!Q24 -> 0 | N9: ='Compensation PV'!R24 -> 0 | O9: =K9*'Entrées Utilisateur'!$C$75 -> 0 | P9: =L9*'Entrées Utilisateur'!$C$76 -> 0 | Q9: =M9*'Entrées Utilisateur'!$C$77 -> 0 | R9: =N9*'Entrées Utilisateur'!$C$78 -> 0
B10: AVR | C10: ='Compensation PV'!H8-'Compensation PV'!O25 -> 5249.018345 | D10: ='Compensation PV'!I8-'Compensation PV'!P25 -> 0 | E10: ='Compensation PV'!J8-'Compensation PV'!Q25 -> 1.459636026 | F10: ='Compensation PV'!K8-'Compensation PV'!R25 -> 883.0971196 | G10: =C10*('Compensation PV'!$C$8820*(1+Données!$G$55)+Données!$G$56) -> 1343.748696 | H10: =D10*('Compensation PV'!$C$8821*(1+Données!$G$55)+Données!$G$56) -> 0 | I10: =E10*('Compensation PV'!$C$8822*(1+Données!$G$55)+Données!$G$56) -> 0.3736668227 | J10: =F10*('Compensation PV'!$C$8823*(1+Données!$G$55)+Données!$G$56) -> 226.0728626 | K10: ='Compensation PV'!O25 -> 0 | L10: ='Compensation PV'!P25 -> 0 | M10: ='Compensation PV'!Q25 -> 0 | N10: ='Compensation PV'!R25 -> 0 | O10: =K10*'Entrées Utilisateur'!$C$75 -> 0 | P10: =L10*'Entrées Utilisateur'!$C$76 -> 0 | Q10: =M10*'Entrées Utilisateur'!$C$77 -> 0 | R10: =N10*'Entrées Utilisateur'!$C$78 -> 0
B11: MAI | C11: ='Compensation PV'!H9-'Compensation PV'!O26 -> 5425.660491 | D11: ='Compensation PV'!I9-'Compensation PV'!P26 -> 0 | E11: ='Compensation PV'!J9-'Compensation PV'!Q26 -> 5.419951272 | F11: ='Compensation PV'!K9-'Compensation PV'!R26 -> 1090.471393 | G11: =C11*('Compensation PV'!$C$8820*(1+Données!$G$55)+Données!$G$56) -> 1388.969086 | H11: =D11*('Compensation PV'!$C$8821*(1+Données!$G$55)+Données!$G$56) -> 0 | I11: =E11*('Compensation PV'!$C$8822*(1+Données!$G$55)+Données!$G$56) -> 1.387507526 | J11: =F11*('Compensation PV'!$C$8823*(1+Données!$G$55)+Données!$G$56) -> 279.1606766 | K11: ='Compensation PV'!O26 -> 0 | L11: ='Compensation PV'!P26 -> 0 | M11: ='Compensation PV'!Q26 -> 0 | N11: ='Compensation PV'!R26 -> 0 | O11: =K11*'Entrées Utilisateur'!$C$75 -> 0 | P11: =L11*'Entrées Utilisateur'!$C$76 -> 0 | Q11: =M11*'Entrées Utilisateur'!$C$77 -> 0 | R11: =N11*'Entrées Utilisateur'!$C$78 -> 0
B12: JUN | C12: ='Compensation PV'!H10-'Compensation PV'!O27 -> 2155.23901 | D12: ='Compensation PV'!I10-'Compensation PV'!P27 -> 3504.991799 | E12: ='Compensation PV'!J10-'Compensation PV'!Q27 -> 0 | F12: ='Compensation PV'!K10-'Compensation PV'!R27 -> 1281.826735 | G12: =C12*('Compensation PV'!$C$8820*(1+Données!$G$55)+Données!$G$56) -> 551.7411866 | H12: =D12*('Compensation PV'!$C$8821*(1+Données!$G$55)+Données!$G$56) -> 897.2779006 | I12: =E12*('Compensation PV'!$C$8822*(1+Données!$G$55)+Données!$G$56) -> 0 | J12: =F12*('Compensation PV'!$C$8823*(1+Données!$G$55)+Données!$G$56) -> 328.1476441 | K12: ='Compensation PV'!O27 -> 0 | L12: ='Compensation PV'!P27 -> 0 | M12: ='Compensation PV'!Q27 -> 0 | N12: ='Compensation PV'!R27 -> 0 | O12: =K12*'Entrées Utilisateur'!$C$75 -> 0 | P12: =L12*'Entrées Utilisateur'!$C$76 -> 0 | Q12: =M12*'Entrées Utilisateur'!$C$77 -> 0 | R12: =N12*'Entrées Utilisateur'!$C$78 -> 0
B13: JUL | C13: ='Compensation PV'!H11-'Compensation PV'!O28 -> 2323.249039 | D13: ='Compensation PV'!I11-'Compensation PV'!P28 -> 3686.24451 | E13: ='Compensation PV'!J11-'Compensation PV'!Q28 -> 0 | F13: ='Compensation PV'!K11-'Compensation PV'!R28 -> 1015.847048 | G13: =C13*('Compensation PV'!$C$8820*(1+Données!$G$55)+Données!$G$56) -> 594.7517541 | H13: =D13*('Compensation PV'!$C$8821*(1+Données!$G$55)+Données!$G$56) -> 943.6785945 | I13: =E13*('Compensation PV'!$C$8822*(1+Données!$G$55)+Données!$G$56) -> 0 | J13: =F13*('Compensation PV'!$C$8823*(1+Données!$G$55)+Données!$G$56) -> 260.0568442 | K13: ='Compensation PV'!O28 -> 0 | L13: ='Compensation PV'!P28 -> 0 | M13: ='Compensation PV'!Q28 -> 0 | N13: ='Compensation PV'!R28 -> 0 | O13: =K13*'Entrées Utilisateur'!$C$75 -> 0 | P13: =L13*'Entrées Utilisateur'!$C$76 -> 0 | Q13: =M13*'Entrées Utilisateur'!$C$77 -> 0 | R13: =N13*'Entrées Utilisateur'!$C$78 -> 0
B14: AOÛ | C14: ='Compensation PV'!H12-'Compensation PV'!O29 -> 2196.274403 | D14: ='Compensation PV'!I12-'Compensation PV'!P29 -> 3608.686792 | E14: ='Compensation PV'!J12-'Compensation PV'!Q29 -> 0 | F14: ='Compensation PV'!K12-'Compensation PV'!R29 -> 1003.763856 | G14: =C14*('Compensation PV'!$C$8820*(1+Données!$G$55)+Données!$G$56) -> 562.2462471 | H14: =D14*('Compensation PV'!$C$8821*(1+Données!$G$55)+Données!$G$56) -> 923.8238187 | I14: =E14*('Compensation PV'!$C$8822*(1+Données!$G$55)+Données!$G$56) -> 0 | J14: =F14*('Compensation PV'!$C$8823*(1+Données!$G$55)+Données!$G$56) -> 256.9635472 | K14: ='Compensation PV'!O29 -> 0 | L14: ='Compensation PV'!P29 -> 0 | M14: ='Compensation PV'!Q29 -> 0 | N14: ='Compensation PV'!R29 -> 0 | O14: =K14*'Entrées Utilisateur'!$C$75 -> 0 | P14: =L14*'Entrées Utilisateur'!$C$76 -> 0 | Q14: =M14*'Entrées Utilisateur'!$C$77 -> 0 | R14: =N14*'Entrées Utilisateur'!$C$78 -> 0
B15: SEP | C15: ='Compensation PV'!H13-'Compensation PV'!O30 -> 4680.1527 | D15: ='Compensation PV'!I13-'Compensation PV'!P30 -> 0 | E15: ='Compensation PV'!J13-'Compensation PV'!Q30 -> 0 | F15: ='Compensation PV'!K13-'Compensation PV'!R30 -> 1021.938601 | G15: =C15*('Compensation PV'!$C$8820*(1+Données!$G$55)+Données!$G$56) -> 1198.119091 | H15: =D15*('Compensation PV'!$C$8821*(1+Données!$G$55)+Données!$G$56) -> 0 | I15: =E15*('Compensation PV'!$C$8822*(1+Données!$G$55)+Données!$G$56) -> 0 | J15: =F15*('Compensation PV'!$C$8823*(1+Données!$G$55)+Données!$G$56) -> 261.6162818 | K15: ='Compensation PV'!O30 -> 0 | L15: ='Compensation PV'!P30 -> 0 | M15: ='Compensation PV'!Q30 -> 0 | N15: ='Compensation PV'!R30 -> 0 | O15: =K15*'Entrées Utilisateur'!$C$75 -> 0 | P15: =L15*'Entrées Utilisateur'!$C$76 -> 0 | Q15: =M15*'Entrées Utilisateur'!$C$77 -> 0 | R15: =N15*'Entrées Utilisateur'!$C$78 -> 0
B16: OCT | C16: ='Compensation PV'!H14-'Compensation PV'!O31 -> 4296.266008 | D16: ='Compensation PV'!I14-'Compensation PV'!P31 -> 0 | E16: ='Compensation PV'!J14-'Compensation PV'!Q31 -> 0 | F16: ='Compensation PV'!K14-'Compensation PV'!R31 -> 772.1949977 | G16: =C16*('Compensation PV'!$C$8820*(1+Données!$G$55)+Données!$G$56) -> 1099.844098 | H16: =D16*('Compensation PV'!$C$8821*(1+Données!$G$55)+Données!$G$56) -> 0 | I16: =E16*('Compensation PV'!$C$8822*(1+Données!$G$55)+Données!$G$56) -> 0 | J16: =F16*('Compensation PV'!$C$8823*(1+Données!$G$55)+Données!$G$56) -> 197.6819194 | K16: ='Compensation PV'!O31 -> 0 | L16: ='Compensation PV'!P31 -> 0 | M16: ='Compensation PV'!Q31 -> 0 | N16: ='Compensation PV'!R31 -> 0 | O16: =K16*'Entrées Utilisateur'!$C$75 -> 0 | P16: =L16*'Entrées Utilisateur'!$C$76 -> 0 | Q16: =M16*'Entrées Utilisateur'!$C$77 -> 0 | R16: =N16*'Entrées Utilisateur'!$C$78 -> 0
B17: NOV | C17: ='Compensation PV'!H15-'Compensation PV'!O32 -> 3782.285176 | D17: ='Compensation PV'!I15-'Compensation PV'!P32 -> 0 | E17: ='Compensation PV'!J15-'Compensation PV'!Q32 -> 0 | F17: ='Compensation PV'!K15-'Compensation PV'!R32 -> 331.2954783 | G17: =C17*('Compensation PV'!$C$8820*(1+Données!$G$55)+Données!$G$56) -> 968.2650051 | H17: =D17*('Compensation PV'!$C$8821*(1+Données!$G$55)+Données!$G$56) -> 0 | I17: =E17*('Compensation PV'!$C$8822*(1+Données!$G$55)+Données!$G$56) -> 0 | J17: =F17*('Compensation PV'!$C$8823*(1+Données!$G$55)+Données!$G$56) -> 84.81164246 | K17: ='Compensation PV'!O32 -> 0 | L17: ='Compensation PV'!P32 -> 0 | M17: ='Compensation PV'!Q32 -> 0 | N17: ='Compensation PV'!R32 -> 0 | O17: =K17*'Entrées Utilisateur'!$C$75 -> 0 | P17: =L17*'Entrées Utilisateur'!$C$76 -> 0 | Q17: =M17*'Entrées Utilisateur'!$C$77 -> 0 | R17: =N17*'Entrées Utilisateur'!$C$78 -> 0
B18: DÉC | C18: ='Compensation PV'!H16-'Compensation PV'!O33 -> 3609.790685 | D18: ='Compensation PV'!I16-'Compensation PV'!P33 -> 0 | E18: ='Compensation PV'!J16-'Compensation PV'!Q33 -> 0 | F18: ='Compensation PV'!K16-'Compensation PV'!R33 -> 435.8860745 | G18: =C18*('Compensation PV'!$C$8820*(1+Données!$G$55)+Données!$G$56) -> 924.1064152 | H18: =D18*('Compensation PV'!$C$8821*(1+Données!$G$55)+Données!$G$56) -> 0 | I18: =E18*('Compensation PV'!$C$8822*(1+Données!$G$55)+Données!$G$56) -> 0 | J18: =F18*('Compensation PV'!$C$8823*(1+Données!$G$55)+Données!$G$56) -> 111.5868351 | K18: ='Compensation PV'!O33 -> 0 | L18: ='Compensation PV'!P33 -> 0 | M18: ='Compensation PV'!Q33 -> 0 | N18: ='Compensation PV'!R33 -> 0 | O18: =K18*'Entrées Utilisateur'!$C$75 -> 0 | P18: =L18*'Entrées Utilisateur'!$C$76 -> 0 | Q18: =M18*'Entrées Utilisateur'!$C$77 -> 0 | R18: =N18*'Entrées Utilisateur'!$C$78 -> 0
S19: =-'Compensation PV'!C41 -> 0
B20: ="Répartition de l'énergie PV, "&B39 -> Répartition de l'énergie PV, année
E21: Energie cédée
B22: Mois | C22: Production PV | D22: Energie transportée | E22: Tarif jour | F22: Tarif pointe matin été | G22: Tarif pointe soir | H22: Tarif nuit / dimanche
B23: janvier | C23: ='Compensation PV'!L5 -> 3691.167307 | D23: ='Compensation PV'!M22 -> 1023.69634 | E23: ='Compensation PV'!O22 -> 0 | F23: ='Compensation PV'!P22 -> 0 | G23: ='Compensation PV'!Q22 -> 0 | H23: ='Compensation PV'!R22 -> 0
B24: février | C24: ='Compensation PV'!L6 -> 4268.679572 | D24: ='Compensation PV'!M23 -> 1611.927508 | E24: ='Compensation PV'!O23 -> 0 | F24: ='Compensation PV'!P23 -> 0 | G24: ='Compensation PV'!Q23 -> 0 | H24: ='Compensation PV'!R23 -> 0
B25: mars | C25: ='Compensation PV'!L7 -> 5679.093271 | D25: ='Compensation PV'!M24 -> 2043.729083 | E25: ='Compensation PV'!O24 -> 0 | F25: ='Compensation PV'!P24 -> 0 | G25: ='Compensation PV'!Q24 -> 0 | H25: ='Compensation PV'!R24 -> 0
B26: avril | C26: ='Compensation PV'!L8 -> 6133.575101 | D26: ='Compensation PV'!M25 -> 2594.31803 | E26: ='Compensation PV'!O25 -> 0 | F26: ='Compensation PV'!P25 -> 0 | G26: ='Compensation PV'!Q25 -> 0 | H26: ='Compensation PV'!R25 -> 0
B27: mai | C27: ='Compensation PV'!L9 -> 6521.551836 | D27: ='Compensation PV'!M26 -> 2557.226264 | E27: ='Compensation PV'!O26 -> 0 | F27: ='Compensation PV'!P26 -> 0 | G27: ='Compensation PV'!Q26 -> 0 | H27: ='Compensation PV'!R26 -> 0
B28: juin | C28: ='Compensation PV'!L10 -> 6942.057544 | D28: ='Compensation PV'!M27 -> 1960.927803 | E28: ='Compensation PV'!O27 -> 0 | F28: ='Compensation PV'!P27 -> 0 | G28: ='Compensation PV'!Q27 -> 0 | H28: ='Compensation PV'!R27 -> 0
B29: juillet | C29: ='Compensation PV'!L11 -> 7025.340597 | D29: ='Compensation PV'!M28 -> 575.7818725 | E29: ='Compensation PV'!O28 -> 0 | F29: ='Compensation PV'!P28 -> 0 | G29: ='Compensation PV'!Q28 -> 0 | H29: ='Compensation PV'!R28 -> 0
B30: août | C30: ='Compensation PV'!L12 -> 6808.725051 | D30: ='Compensation PV'!M29 -> 569.9956684 | E30: ='Compensation PV'!O29 -> 0 | F30: ='Compensation PV'!P29 -> 0 | G30: ='Compensation PV'!Q29 -> 0 | H30: ='Compensation PV'!R29 -> 0
B31: Septembre | C31: ='Compensation PV'!L13 -> 5702.091301 | D31: ='Compensation PV'!M30 -> 1362.210276 | E31: ='Compensation PV'!O30 -> 0 | F31: ='Compensation PV'!P30 -> 0 | G31: ='Compensation PV'!Q30 -> 0 | H31: ='Compensation PV'!R30 -> 0
B32: Octobre | C32: ='Compensation PV'!L14 -> 5068.461006 | D32: ='Compensation PV'!M31 -> 1696.671776 | E32: ='Compensation PV'!O31 -> 0 | F32: ='Compensation PV'!P31 -> 0 | G32: ='Compensation PV'!Q31 -> 0 | H32: ='Compensation PV'!R31 -> 0
B33: Novembre | C33: ='Compensation PV'!L15 -> 4113.580655 | D33: ='Compensation PV'!M32 -> 1606.895823 | E33: ='Compensation PV'!O32 -> 0 | F33: ='Compensation PV'!P32 -> 0 | G33: ='Compensation PV'!Q32 -> 0 | H33: ='Compensation PV'!R32 -> 0
B34: Décembre | C34: ='Compensation PV'!L16 -> 4045.676759 | D34: ='Compensation PV'!M33 -> 1144.420987 | E34: ='Compensation PV'!O33 -> 0 | F34: ='Compensation PV'!P33 -> 0 | G34: ='Compensation PV'!Q33 -> 0 | H34: ='Compensation PV'!R33 -> 0
B35: année | C35: =SUM(C23:C34) -> 66000 | D35: =SUM(D23:D34) -> 18747.80143 | E35: 0 | F35: 0 | G35: 0 | H35: 0
C38: 2 | D38: 3 | E38: 4 | F38: 5 | G38: 6 | H38: 7
A39: =C22 -> Production PV | B39: =Graphiques!P3 -> année | C39: =VLOOKUP($B$39,$B$23:$H$35,C38,FALSE) -> 66000
A40: =D22 -> Energie transportée | D40: =VLOOKUP($B$39,$B$23:$H$35,D38,FALSE) -> 18747.80143
A41: =E21 -> Energie cédée | E41: =VLOOKUP($B$39,$B$23:$H$35,E38,FALSE) -> 0 | F41: =VLOOKUP($B$39,$B$23:$H$35,F38,FALSE) -> 0 | G41: =VLOOKUP($B$39,$B$23:$H$35,G38,FALSE) -> 0 | H41: =VLOOKUP($B$39,$B$23:$H$35,H38,FALSE) -> 0

Sheet Résultats version imprimable (hidden)

Sheet Graphiques
B2: Production du système PV | O2: Sélectionner année ou le mois
O3: Mois | P3: année | Q3: =HYPERLINK("#"&ADDRESS(ROW(),COLUMN()-1),CHAR(128)) -> €
B34: Flux de trésorerie

Sheet Scénarios
B1: Sensibilités
C2: Cliquer ou sur le bouton "recalculer tous scénarios" ou sur le bouton du scénario voulu
B4: Dimensionnement du système PV
B5: Tableaux Scenario
D7: Scénario | F7: Taille Système PV | G7: % de la consommation annuelle généré par le system PV | H7: ='Compensation PV'!B40 -> pourcentage de la génération en excédent | I7: Facture d'énergie transportée (DT) | J7: Moyenne pondérée du tarif d'achat de l'excédent, prenant compte de la limite de facturation annuelle (DT/kWh) | K7: montant à rembourser à la fin de l'année (DT) | L7: valeur de la kWh solaire pour le consommateur | M7: TRI des capitaux propres | N7: TRI du projet | O7: Temps de retour
D8: changement | E8: # | F8: =Données!G35 -> 40 | G8: =SUM('Compensation PV'!L5:L16)/SUM('Compensation PV'!G5:G16) -> 0.22 | H8: ='Compensation PV'!C40 -> 0 | I8: =Résultats!C17 -> 131.23461 | J8: =IF('Compensation PV'!C42<>0,'Compensation PV'!C42,"") ->  | K8: ='Compensation PV'!C41 -> 0 | L8: ='Compensation PV'!C46 -> 0.2897119652 | M8: =IF(OR('Capitaux propres'!$F$28<0.001,'Capitaux propres'!$F$28>1,ISERROR('Capitaux propres'!$F$28)=TRUE),#N/A,'Capitaux propres'!$F$28) -> 0.5570028245 | N8: =IF(OR('Flux de trésorerie'!$I$60<0.001,'Flux de trésorerie'!$I$60>1,ISERROR('Flux de trésorerie'!$I$60)),#N/A,'Flux de trésorerie'!$I$60) -> 0.2565719068 | O8: =IF('Capitaux propres'!$F$45=-1,'Entrées Utilisateur'!C51&"+",'Capitaux propres'!$F$45) -> 2.081716963
D9: =D10-0.1 -> -0.7 | E9: 1 | F9: 12 | G9: 0.066 | H9: 0 | I9: 0.01147401548 | K9: 0 | L9: 0.371044838 | M9: 0.1378286183 | N9: 0.0817255646 | O9: 12.631628 | Q9: =IF(O9='Entrées Utilisateur'!$C$51&"+",#N/A,O9) -> 12.631628
D10: -0.6 | E10: =E9+1 -> 2 | F10: 16 | G10: 0.088 | H10: 0 | I10: 0.3578388107 | K10: 0 | L10: 0.3426943455 | M10: 0.1953310788 | N10: 0.1120774567 | O10: 8.85580803 | Q10: =IF(O10='Entrées Utilisateur'!$C$51&"+",#N/A,O10) -> 8.85580803
D11: -0.5 | E11: 3 | F11: 20 | G11: 0.11 | H11: 0 | I11: 5.76114461 | K11: 0 | L11: 0.3255308093 | M11: 0.2528088748 | N11: 0.1394943416 | O11: 5.902631695 | Q11: =IF(O11='Entrées Utilisateur'!$C$51&"+",#N/A,O11) -> 5.902631695
D12: -0.4 | E12: 4 | F12: 24 | G12: 0.132 | H12: 0 | I12: 20.58679458 | K12: 0 | L12: 0.3138505139 | M12: 0.3111942947 | N12: 0.1649297893 | O12: 4.357952256 | Q12: =IF(O12='Entrées Utilisateur'!$C$51&"+",#N/A,O12) -> 4.357952256
D13: -0.3 | E13: 5 | F13: 28 | G13: 0.154 | H13: 0 | I13: 42.12268153 | K13: 0 | L13: 0.3053622025 | M13: 0.3708898604 | N13: 0.1890208662 | O13: 3.434452808 | Q13: =IF(O13='Entrées Utilisateur'!$C$51&"+",#N/A,O13) -> 3.434452808
D14: -0.2 | E14: 6 | F14: 32 | G14: 0.176 | H14: 0 | I14: 68.86630866 | K14: 0 | L14: 0.2988973375 | M14: 0.4318737924 | N14: 0.2121594965 | O14: 2.826438189 | Q14: =IF(O14='Entrées Utilisateur'!$C$51&"+",#N/A,O14) -> 2.826438189
D15: =D16-0.1 -> -0.1 | E15: 7 | F15: 36 | G15: 0.198 | H15: 0 | I15: 98.93440939 | K15: 0 | L15: 0.2938131416 | M15: 0.4939840019 | N15: 0.234615773 | O15: 2.399732597 | Q15: =IF(O15='Entrées Utilisateur'!$C$51&"+",#N/A,O15) -> 2.399732597
D16: 0 | E16: 8 | F16: 40 | G16: 0.22 | H16: 0 | I16: 131.23461 | K16: 0 | L16: 0.2897119652 | M16: 0.5570028245 | N16: 0.2565719068 | O16: 2.081716963 | Q16: =IF(O16='Entrées Utilisateur'!$C$51&"+",#N/A,O16) -> 2.081716963
D17: =D16+0.1 -> 0.1 | E17: 9 | F17: 44 | G17: 0.242 | H17: 0 | I17: 165.2434249 | K17: 0 | L17: 0.2863329226 | M17: 0.6207213938 | N17: 0.2781536758 | O17: 1.830702215 | Q17: =IF(O17='Entrées Utilisateur'!$C$51&"+",#N/A,O17) -> 1.830702215
D18: =D17+0.1 -> 0.2 | E18: 10 | F18: 48 | G18: 0.264 | H18: 0 | I18: 200.3339549 | K18: 0 | L18: 0.2835033958 | M18: 0.684981519 | N18: 0.2994554818 | O18: 1.631096627 | Q18: =IF(O18='Entrées Utilisateur'!$C$51&"+",#N/A,O18) -> 1.631096627
D19: 0.3 | E19: 11 | F19: 52 | G19: 0.286 | H19: 0.000477496363 | I19: 236.2288113 | J19: 0.182 | K19: 0 | L19: 0.2810201885 | M19: 0.7493860126 | N19: 0.3204518139 | O19: 1.470725384 | Q19: =IF(O19='Entrées Utilisateur'!$C$51&"+",#N/A,O19) -> 1.470725384
D20: 0.4 | E20: 12 | F20: 56 | G20: 0.308 | H20: 0.005294159656 | I20: 270.6244478 | J20: 0.182 | K20: 0 | L20: 0.2784176409 | M20: 0.8123856902 | N20: 0.3406873882 | O20: 1.341698015 | Q20: =IF(O20='Entrées Utilisateur'!$C$51&"+",#N/A,O20) -> 1.341698015
D21: 0.5 | E21: 13 | F21: 60 | G21: 0.33 | H21: 0.01185438851 | I21: 304.8591279 | J21: 0.182 | K21: 0 | L21: 0.2752536496 | M21: 0.8721032262 | N21: 0.3596676409 | O21: 1.238629508 | Q21: =IF(O21='Entrées Utilisateur'!$C$51&"+",#N/A,O21) -> 1.238629508
D22: 0.6 | E22: 14 | F22: 64 | G22: 0.352 | H22: 0.01888499999 | I22: 339.4392054 | J22: 0.182 | K22: 0 | L22: 0.2727167413 | M22: 0.9329729915 | N22: 0.378870815 | O22: 1.148588071 | Q22: =IF(O22='Entrées Utilisateur'!$C$51&"+",#N/A,O22) -> 1.148588071
D23: 0.7 | E23: 15 | F23: 68 | G23: 0.374 | H23: 0.02925156197 | I23: 371.5360669 | J23: 0.1773798817 | K23: 0 | L23: 0.2700111977 | M23: 0.9919213176 | N23: 0.3973310649 | O23: 1.072905852 | Q23: =IF(O23='Entrées Utilisateur'!$C$51&"+",#N/A,O23) -> 1.072905852
B26: Coût de l'installation
B27: Tableaux Scenario
D29: Scénario | F29: Coût de l'installation | G29: TRI des capitaux propres | H29: TRI du projet | I29: Temps de retour | J29: Valeur actualisée nette | K29: Coût moyen actualisé de l'énergie (sans subvention) | L29: Coût moyen actualisé de l'énergie (avec subvention) | M29: Ratio de couverture du service de la dette | N29: Ratio de couverture la durée du prêt
D30: changement | E30: # | F30: =Données!$G$22/Données!$G$34 -> 2125 | G30: =IF(OR('Capitaux propres'!$F$28<0.001,'Capitaux propres'!$F$28>1,ISERROR('Capitaux propres'!$F$28)=TRUE),#N/A,'Capitaux propres'!$F$28) -> 0.5570028245 | H30: =IF(OR('Flux de trésorerie'!$I$60<0.001,'Flux de trésorerie'!$I$60>1,ISERROR('Flux de trésorerie'!$I$60)),#N/A,'Flux de trésorerie'!$I$60) -> 0.2565719068 | I30: =IF('Capitaux propres'!$F$45=-1,'Entrées Utilisateur'!C51&"+",'Capitaux propres'!$F$45) -> 2.081716963 | J30: =IF(ISERROR('Capitaux propres'!$F$31)=TRUE,#N/A,'Capitaux propres'!$F$31) -> 189309.8011 | K30: =IF(ISERROR('Flux de trésorerie'!$I$73)=TRUE,#N/A,'Flux de trésorerie'!$I$73) -> 0.1573515425 | L30: =IF(ISERROR('Flux de trésorerie'!$I$74)=TRUE,#N/A,'Flux de trésorerie'!$I$74) -> 0.1271821483 | M30: =IF(ISERROR(Financement!$F$48)=TRUE,#N/A,Financement!$F$48) -> 3.054811433 | N30: =IF(ISERROR(Financement!$H$61)=TRUE,#N/A,Financement!$H$61) -> 4.019643292
D31: -0.35 | E31: 1 | F31: 1381.25 | H31: 0.3867902219 | I31: 1.039950818 | J31: 224075.8651 | K31: 0.1022785027 | L31: 0.07210910839 | M31: 6.614668346 | N31: 8.708027921 | P31: =IF(I31='Entrées Utilisateur'!$C$51&"+",#N/A,I31) -> 1.039950818
D32: -0.3 | E32: =E31+1 -> 2 | F32: 1487.5 | G32: 0.9207669854 | H32: 0.3606411517 | I32: 1.16049411 | J32: 219109.2845 | K32: 0.1101460798 | L32: 0.07997668551 | M32: 5.686827052 | N32: 7.486047104 | P32: =IF(I32='Entrées Utilisateur'!$C$51&"+",#N/A,I32) -> 1.16049411
D33: -0.25 | E33: 3 | F33: 1593.75 | G33: 0.8387090325 | H33: 0.3378591478 | I33: 1.289025122 | J33: 214142.7039 | K33: 0.1180136569 | L33: 0.08784426264 | M33: 4.983174822 | N33: 6.559326626 | P33: =IF(I33='Entrées Utilisateur'!$C$51&"+",#N/A,I33) -> 1.289025122
D34: -0.2 | E34: 4 | F34: 1700 | G34: 0.7673298478 | H34: 0.3178039014 | I34: 1.426365011 | J34: 209176.1234 | K34: 0.125881234 | L34: 0.09571183977 | M34: 4.431215736 | N34: 5.832388281 | P34: =IF(I34='Entrées Utilisateur'!$C$51&"+",#N/A,I34) -> 1.426365011
D35: -0.15 | E35: 5 | F35: 1806.25 | G35: 0.7047709107 | H35: 0.2999873698 | I35: 1.573451487 | J35: 204209.5428 | K35: 0.1337488112 | L35: 0.1035794169 | M35: 3.986669784 | N35: 5.246914634 | P35: =IF(I35='Entrées Utilisateur'!$C$51&"+",#N/A,I35) -> 1.573451487
D36: -0.1 | E36: 6 | F36: 1912.5 | G36: 0.6495871127 | H36: 0.2840313852 | I36: 1.731360246 | J36: 199242.9622 | K36: 0.1416163883 | L36: 0.111446994 | M36: 3.62096283 | N36: 4.765273124 | P36: =IF(I36='Entrées Utilisateur'!$C$51&"+",#N/A,I36) -> 1.731360246
D37: -0.05 | E37: 7 | F37: 2018.75 | G37: 0.6006364405 | H37: 0.2696385562 | I37: 1.901331326 | J37: 194276.3817 | K37: 0.1494839654 | L37: 0.1193145711 | M37: 3.314830316 | N37: 4.362092037 | P37: =IF(I37='Entrées Utilisateur'!$C$51&"+",#N/A,I37) -> 1.901331326
D38: 0 | E38: 8 | F38: 2125 | G38: 0.5570028245 | H38: 0.2565719068 | I38: 2.081716963 | J38: 189309.8011 | K38: 0.1573515425 | L38: 0.1271821483 | M38: 3.054811433 | N38: 4.019643292 | P38: =IF(I38='Entrées Utilisateur'!$C$51&"+",#N/A,I38) -> 2.081716963
D39: 0.05 | E39: 9 | F39: 2231.25 | G39: 0.5179410875 | H39: 0.2446403682 | I39: 2.27087746 | J39: 184343.2205 | K39: 0.1652191197 | L39: 0.1350497254 | M39: 2.83121662 | N39: 3.72516559 | P39: =IF(I39='Entrées Utilisateur'!$C$51&"+",#N/A,I39) -> 2.27087746
D40: 0.1 | E40: 10 | F40: 2337.5 | G40: 0.4828369796 | H40: 0.2336882055 | I40: 2.472845048 | J40: 179376.64 | K40: 0.1730866968 | L40: 0.1429173025 | M40: 2.636893295 | N40: 3.469238873 | P40: =IF(I40='Entrées Utilisateur'!$C$51&"+",#N/A,I40) -> 2.472845048
D41: 0.15 | E41: 11 | F41: 2443.75 | G41: 0.4511780679 | H41: 0.2235872447 | I41: 2.688965956 | J41: 174410.0594 | K41: 0.1809542739 | L41: 0.1507848797 | M41: 2.466446558 | N41: 3.24475798 | P41: =IF(I41='Entrées Utilisateur'!$C$51&"+",#N/A,I41) -> 2.688965956
D42: 0.2 | E42: 12 | F42: 2550 | G42: 0.4225322187 | H42: 0.2142310679 | I42: 2.92078194 | J42: 169443.4788 | K42: 0.1888218511 | L42: 0.1586524568 | M42: 2.315730523 | N42: 3.046262715 | P42: =IF(I42='Entrées Utilisateur'!$C$51&"+",#N/A,I42) -> 2.92078194
D43: 0.25 | E43: 13 | F43: 2656.25 | G43: 0.3965316355 | H43: 0.2055305302 | I43: 3.171977941 | J43: 164476.8983 | K43: 0.1966894282 | L43: 0.1665200339 | M43: 2.181506634 | N43: 2.869487851 | P43: =IF(I43='Entrées Utilisateur'!$C$51&"+",#N/A,I43) -> 3.171977941
D44: 0.3 | E44: 14 | F44: 2762.5 | G44: 0.3728608429 | H44: 0.1974104583 | I44: 3.442797805 | J44: 159510.3177 | K44: 0.2045570053 | L44: 0.174387611 | M44: 2.061208327 | N44: 2.711053187 | P44: =IF(I44='Entrées Utilisateur'!$C$51&"+",#N/A,I44) -> 3.442797805
D45: 0.35 | E45: 15 | F45: 2868.75 | G45: 0.3512475669 | H45: 0.1898069441 | I45: 3.734309861 | J45: 154543.7371 | K45: 0.2124245824 | L45: 0.1822551882 | M45: 1.952775331 | N45: 2.568245316 | P45: =IF(I45='Entrées Utilisateur'!$C$51&"+",#N/A,I45) -> 3.734309861
B48: Subvention
B49: Tableaux Scenario
D51: Scénario | F51: Subvention | G51: TRI des capitaux propres | H51: TRI du projet | I51: Temps de retour | J51: Valeur actualisée nette | K51: Coût moyen actualisé de l'énergie (sans subvention) | L51: Coût moyen actualisé de l'énergie (avec subvention) | M51: Ratio de couverture du service de la dette | N51: Ratio de couverture la durée du prêt
D52: changement | E52: # | F52: =Données!G30 -> 20000 | G52: =IF(OR('Capitaux propres'!$F$28<0.001,'Capitaux propres'!$F$28>1,ISERROR('Capitaux propres'!$F$28)=TRUE),#N/A,'Capitaux propres'!$F$28) -> 0.5570028245 | H52: =IF(OR('Flux de trésorerie'!$I$60<0.001,'Flux de trésorerie'!$I$60>1,ISERROR('Flux de trésorerie'!$I$60)),#N/A,'Flux de trésorerie'!$I$60) -> 0.2565719068 | I52: =IF('Capitaux propres'!$F$45=-1,'Entrées Utilisateur'!C51&"+",'Capitaux propres'!$F$45) -> 2.081716963 | J52: =IF(ISERROR('Capitaux propres'!$F$31)=TRUE,#N/A,'Capitaux propres'!$F$31) -> 189309.8011 | K52: =IF(ISERROR('Flux de trésorerie'!$I$73)=TRUE,#N/A,'Flux de trésorerie'!$I$73) -> 0.1573515425 | L52: =IF(ISERROR('Flux de trésorerie'!$I$74)=TRUE,#N/A,'Flux de trésorerie'!$I$74) -> 0.1271821483 | M52: =IF(ISERROR(Financement!$F$48)=TRUE,#N/A,Financement!$F$48) -> 3.054811433 | N52: =IF(ISERROR(Financement!$H$61)=TRUE,#N/A,Financement!$H$61) -> 4.019643292
D53: -0.35 | E53: 1 | P53: =IF(I53='Entrées Utilisateur'!$C$51&"+",#N/A,I53) -> 0
D54: -0.3 | E54: =E53+1 -> 2 | P54: =IF(I54='Entrées Utilisateur'!$C$51&"+",#N/A,I54) -> 0
D55: -0.25 | E55: 3 | P55: =IF(I55='Entrées Utilisateur'!$C$51&"+",#N/A,I55) -> 0
D56: -0.2 | E56: 4 | P56: =IF(I56='Entrées Utilisateur'!$C$51&"+",#N/A,I56) -> 0
D57: -0.15 | E57: 5 | P57: =IF(I57='Entrées Utilisateur'!$C$51&"+",#N/A,I57) -> 0
D58: -0.1 | E58: 6 | P58: =IF(I58='Entrées Utilisateur'!$C$51&"+",#N/A,I58) -> 0
D59: -0.05 | E59: 7 | P59: =IF(I59='Entrées Utilisateur'!$C$51&"+",#N/A,I59) -> 0
D60: 0 | E60: 8 | P60: =IF(I60='Entrées Utilisateur'!$C$51&"+",#N/A,I60) -> 0
D61: 0.05 | E61: 9 | P61: =IF(I61='Entrées Utilisateur'!$C$51&"+",#N/A,I61) -> 0
D62: 0.1 | E62: 10 | P62: =IF(I62='Entrées Utilisateur'!$C$51&"+",#N/A,I62) -> 0
D63: 0.15 | E63: 11 | P63: =IF(I63='Entrées Utilisateur'!$C$51&"+",#N/A,I63) -> 0
D64: 0.2 | E64: 12 | P64: =IF(I64='Entrées Utilisateur'!$C$51&"+",#N/A,I64) -> 0
D65: 0.25 | E65: 13 | P65: =IF(I65='Entrées Utilisateur'!$C$51&"+",#N/A,I65) -> 0
D66: 0.3 | E66: 14 | P66: =IF(I66='Entrées Utilisateur'!$C$51&"+",#N/A,I66) -> 0
D67: 0.35 | E67: 15 | P67: =IF(I67='Entrées Utilisateur'!$C$51&"+",#N/A,I67) -> 0
B70: Consommation annuelle d'électricité
B71: Tableaux Scenario
D73: Scénario | F73: Con-sommation annuelle | G73: TRI des capitaux propres | H73: TRI du projet | I73: Temps de retour | J73: Valeur actualisée nette | K73: Ratio de couverture du service de la dette | L73: Ratio de couverture la durée du prêt
D74: changement | E74: # | F74: =Données!$G$66 -> 150000 | G74: =IF(OR('Capitaux propres'!$F$28<0.001,'Capitaux propres'!$F$28>1,ISERROR('Capitaux propres'!$F$28)=TRUE),#N/A,'Capitaux propres'!$F$28) -> 0.5570028245 | H74: =IF(OR('Flux de trésorerie'!$I$60<0.001,'Flux de trésorerie'!$I$60>1,ISERROR('Flux de trésorerie'!$I$60)),#N/A,'Flux de trésorerie'!$I$60) -> 0.2565719068 | I74: =IF('Capitaux propres'!$F$45=-1,'Entrées Utilisateur'!C51&"+",'Capitaux propres'!$F$45) -> 2.081716963 | J74: =IF(ISERROR('Capitaux propres'!$F$31)=TRUE,#N/A,'Capitaux propres'!$F$31) -> 189309.8011 | K74: =IF(ISERROR(Financement!$F$48)=TRUE,#N/A,Financement!$F$48) -> 3.054811433 | L74: =IF(ISERROR(Financement!$H$61)=TRUE,#N/A,Financement!$H$61) -> 4.019643292
D75: -0.35 | E75: 1 | N75: =IF(I75='Entrées Utilisateur'!$C$51&"+",#N/A,I75) -> 0
D76: -0.3 | E76: =E75+1 -> 2 | N76: =IF(I76='Entrées Utilisateur'!$C$51&"+",#N/A,I76) -> 0
D77: -0.25 | E77: 3 | N77: =IF(I77='Entrées Utilisateur'!$C$51&"+",#N/A,I77) -> 0
D78: -0.2 | E78: 4 | N78: =IF(I78='Entrées Utilisateur'!$C$51&"+",#N/A,I78) -> 0
D79: -0.15 | E79: 5 | N79: =IF(I79='Entrées Utilisateur'!$C$51&"+",#N/A,I79) -> 0
D80: -0.1 | E80: 6 | N80: =IF(I80='Entrées Utilisateur'!$C$51&"+",#N/A,I80) -> 0
D81: -0.05 | E81: 7 | N81: =IF(I81='Entrées Utilisateur'!$C$51&"+",#N/A,I81) -> 0
D82: 0 | E82: 8 | N82: =IF(I82='Entrées Utilisateur'!$C$51&"+",#N/A,I82) -> 0
D83: 0.05 | E83: 9 | N83: =IF(I83='Entrées Utilisateur'!$C$51&"+",#N/A,I83) -> 0
D84: 0.1 | E84: 10 | N84: =IF(I84='Entrées Utilisateur'!$C$51&"+",#N/A,I84) -> 0
D85: 0.15 | E85: 11 | N85: =IF(I85='Entrées Utilisateur'!$C$51&"+",#N/A,I85) -> 0
D86: 0.2 | E86: 12 | N86: =IF(I86='Entrées Utilisateur'!$C$51&"+",#N/A,I86) -> 0
D87: 0.25 | E87: 13 | N87: =IF(I87='Entrées Utilisateur'!$C$51&"+",#N/A,I87) -> 0
D88: 0.3 | E88: 14 | N88: =IF(I88='Entrées Utilisateur'!$C$51&"+",#N/A,I88) -> 0
D89: 0.35 | E89: 15 | N89: =IF(I89='Entrées Utilisateur'!$C$51&"+",#N/A,I89) -> 0
B91: Augmentation du tarif de vente d'électricité
B92: Tableaux Scenario
D94: Scénario | F94: Évolution des prix | G94: TRI des capitaux propres | H94: TRI du projet | I94: Temps de retour | J94: Valeur actualisée nette | K94: Ratio de couverture du service de la dette | L94: Ratio de couverture la durée du prêt
E95: # | F95: =IF(Données!F72=-1,Données!L72,Données!F72) -> 0.05 | G95: =IF(OR('Capitaux propres'!$F$28<0.001,'Capitaux propres'!$F$28>1,ISERROR('Capitaux propres'!$F$28)=TRUE),#N/A,'Capitaux propres'!$F$28) -> 0.5570028245 | H95: =IF(OR('Flux de trésorerie'!$I$60<0.001,'Flux de trésorerie'!$I$60>1,ISERROR('Flux de trésorerie'!$I$60)),#N/A,'Flux de trésorerie'!$I$60) -> 0.2565719068 | I95: =IF('Capitaux propres'!$F$45=-1,'Entrées Utilisateur'!C51&"+",'Capitaux propres'!$F$45) -> 2.081716963 | J95: =IF(ISERROR('Capitaux propres'!$F$31)=TRUE,#N/A,'Capitaux propres'!$F$31) -> 189309.8011 | K95: =IF(ISERROR(Financement!$F$48)=TRUE,#N/A,Financement!$F$48) -> 3.054811433 | L95: =IF(ISERROR(Financement!$H$61)=TRUE,#N/A,Financement!$H$61) -> 4.019643292
E96: 1 | N96: =IF(I96='Entrées Utilisateur'!$C$51&"+",#N/A,I96) -> 0
E97: =E96+1 -> 2 | N97: =IF(I97='Entrées Utilisateur'!$C$51&"+",#N/A,I97) -> 0
E98: 3 | N98: =IF(I98='Entrées Utilisateur'!$C$51&"+",#N/A,I98) -> 0
E99: 4 | N99: =IF(I99='Entrées Utilisateur'!$C$51&"+",#N/A,I99) -> 0
E100: 5 | N100: =IF(I100='Entrées Utilisateur'!$C$51&"+",#N/A,I100) -> 0
E101: 6 | N101: =IF(I101='Entrées Utilisateur'!$C$51&"+",#N/A,I101) -> 0
E102: 7 | N102: =IF(I102='Entrées Utilisateur'!$C$51&"+",#N/A,I102) -> 0
E103: 8 | N103: =IF(I103='Entrées Utilisateur'!$C$51&"+",#N/A,I103) -> 0
E104: 9 | N104: =IF(I104='Entrées Utilisateur'!$C$51&"+",#N/A,I104) -> 0
E105: 10 | N105: =IF(I105='Entrées Utilisateur'!$C$51&"+",#N/A,I105) -> 0
E106: 11 | N106: =IF(I106='Entrées Utilisateur'!$C$51&"+",#N/A,I106) -> 0
E107: 12 | N107: =IF(I107='Entrées Utilisateur'!$C$51&"+",#N/A,I107) -> 0
E108: 13 | N108: =IF(I108='Entrées Utilisateur'!$C$51&"+",#N/A,I108) -> 0
E109: 14 | N109: =IF(I109='Entrées Utilisateur'!$C$51&"+",#N/A,I109) -> 0
E110: 15 | N110: =IF(I110='Entrées Utilisateur'!$C$51&"+",#N/A,I110) -> 0
B112: Montant de la dette / Ratio d´endettement
B113: Tableaux Scenario
D115: Scénario | F115: Montant de la dette | G115: Ratio d´endettement | H115: TRI des capitaux propres | I115: TRI du projet | J115: Temps de retour | K115: Valeur actualisée nette | L115: Ratio de couverture du service de la dette | M115: Ratio de couverture la durée du prêt
D116: changement | E116: # | F116: =Données!G110 -> 59500 | G116: =Données!G112 -> 0.7 | H116: =IF(OR('Capitaux propres'!$F$28<0.001,'Capitaux propres'!$F$28>1,ISERROR('Capitaux propres'!$F$28)=TRUE),#N/A,'Capitaux propres'!$F$28) -> 0.5570028245 | I116: =IF(OR('Flux de trésorerie'!$I$60<0.001,'Flux de trésorerie'!$I$60>1,ISERROR('Flux de trésorerie'!$I$60)),#N/A,'Flux de trésorerie'!$I$60) -> 0.2565719068 | J116: =IF('Capitaux propres'!$F$45=-1,'Entrées Utilisateur'!C51&"+",'Capitaux propres'!$F$45) -> 2.081716963 | K116: =IF(ISERROR('Capitaux propres'!$F$31)=TRUE,#N/A,'Capitaux propres'!$F$31) -> 189309.8011 | L116: =IF(ISERROR(Financement!$F$48)=TRUE,#N/A,Financement!$F$48) -> 3.054811433 | M116: =IF(ISERROR(Financement!$H$61)=TRUE,#N/A,Financement!$H$61) -> 4.019643292
D117: -0.35 | E117: 1 | O117: =IF(J117='Entrées Utilisateur'!$C$51&"+",#N/A,J117) -> 0
D118: -0.3 | E118: =E117+1 -> 2 | O118: =IF(J118='Entrées Utilisateur'!$C$51&"+",#N/A,J118) -> 0
D119: -0.25 | E119: 3 | O119: =IF(J119='Entrées Utilisateur'!$C$51&"+",#N/A,J119) -> 0
D120: -0.2 | E120: 4 | O120: =IF(J120='Entrées Utilisateur'!$C$51&"+",#N/A,J120) -> 0
D121: -0.15 | E121: 5 | O121: =IF(J121='Entrées Utilisateur'!$C$51&"+",#N/A,J121) -> 0
D122: -0.1 | E122: 6 | O122: =IF(J122='Entrées Utilisateur'!$C$51&"+",#N/A,J122) -> 0
D123: -0.05 | E123: 7 | O123: =IF(J123='Entrées Utilisateur'!$C$51&"+",#N/A,J123) -> 0
D124: 0 | E124: 8 | O124: =IF(J124='Entrées Utilisateur'!$C$51&"+",#N/A,J124) -> 0
D125: 0.05 | E125: 9 | O125: =IF(J125='Entrées Utilisateur'!$C$51&"+",#N/A,J125) -> 0
D126: 0.1 | E126: 10 | O126: =IF(J126='Entrées Utilisateur'!$C$51&"+",#N/A,J126) -> 0
D127: 0.15 | E127: 11 | O127: =IF(J127='Entrées Utilisateur'!$C$51&"+",#N/A,J127) -> 0
D128: 0.2 | E128: 12 | O128: =IF(J128='Entrées Utilisateur'!$C$51&"+",#N/A,J128) -> 0
D129: 0.25 | E129: 13 | O129: =IF(J129='Entrées Utilisateur'!$C$51&"+",#N/A,J129) -> 0
D130: 0.3 | E130: 14 | O130: =IF(J130='Entrées Utilisateur'!$C$51&"+",#N/A,J130) -> 0
D131: 0.35 | E131: 15 | O131: =IF(J131='Entrées Utilisateur'!$C$51&"+",#N/A,J131) -> 0
B134: Taux d´interêt
B135: Tableaux Scenario
D137: Scénario | F137: Taux d´interet | G137: TRI des capitaux propres | H137: TRI du projet | I137: Temps de retour | J137: Valeur actualisée nette | K137: Coût moyen actualisé de l'énergie (sans subvention) | L137: Coût moyen actualisé de l'énergie (avec subvention) | M137: Ratio de couverture du service de la dette | N137: Ratio de couverture la durée du prêt
D138: changement | E138: # | F138: =Données!J142 -> 0.0425 | G138: =IF(OR('Capitaux propres'!$F$28<0.001,'Capitaux propres'!$F$28>1,ISERROR('Capitaux propres'!$F$28)=TRUE),#N/A,'Capitaux propres'!$F$28) -> 0.5570028245 | H138: =IF(OR('Flux de trésorerie'!$I$60<0.001,'Flux de trésorerie'!$I$60>1,ISERROR('Flux de trésorerie'!$I$60)),#N/A,'Flux de trésorerie'!$I$60) -> 0.2565719068 | I138: =IF('Capitaux propres'!$F$45=-1,'Entrées Utilisateur'!C51&"+",'Capitaux propres'!$F$45) -> 2.081716963 | J138: =IF(ISERROR('Capitaux propres'!$F$31)=TRUE,#N/A,'Capitaux propres'!$F$31) -> 189309.8011 | K138: =IF(ISERROR('Flux de trésorerie'!$I$73)=TRUE,#N/A,'Flux de trésorerie'!$I$73) -> 0.1573515425 | L138: =IF(ISERROR('Flux de trésorerie'!$I$74)=TRUE,#N/A,'Flux de trésorerie'!$I$74) -> 0.1271821483 | M138: =IF(ISERROR(Financement!$F$48)=TRUE,#N/A,Financement!$F$48) -> 3.054811433 | N138: =IF(ISERROR(Financement!$H$61)=TRUE,#N/A,Financement!$H$61) -> 4.019643292
D139: -0.35 | E139: 1 | P139: =IF(I139='Entrées Utilisateur'!$C$51&"+",#N/A,I139) -> 0
D140: -0.3 | E140: =E139+1 -> 2 | P140: =IF(I140='Entrées Utilisateur'!$C$51&"+",#N/A,I140) -> 0
D141: -0.25 | E141: =E140+1 -> 3 | P141: =IF(I141='Entrées Utilisateur'!$C$51&"+",#N/A,I141) -> 0
D142: -0.2 | E142: 4 | P142: =IF(I142='Entrées Utilisateur'!$C$51&"+",#N/A,I142) -> 0
D143: -0.15 | E143: 5 | P143: =IF(I143='Entrées Utilisateur'!$C$51&"+",#N/A,I143) -> 0
D144: -0.1 | E144: 6 | P144: =IF(I144='Entrées Utilisateur'!$C$51&"+",#N/A,I144) -> 0
D145: -0.05 | E145: 7 | P145: =IF(I145='Entrées Utilisateur'!$C$51&"+",#N/A,I145) -> 0
D146: 0 | E146: 8 | P146: =IF(I146='Entrées Utilisateur'!$C$51&"+",#N/A,I146) -> 0
D147: 0.05 | E147: 9 | P147: =IF(I147='Entrées Utilisateur'!$C$51&"+",#N/A,I147) -> 0
D148: 0.1 | E148: 10 | P148: =IF(I148='Entrées Utilisateur'!$C$51&"+",#N/A,I148) -> 0
D149: 0.15 | E149: 11 | P149: =IF(I149='Entrées Utilisateur'!$C$51&"+",#N/A,I149) -> 0
D150: 0.2 | E150: 12 | P150: =IF(I150='Entrées Utilisateur'!$C$51&"+",#N/A,I150) -> 0
D151: 0.25 | E151: 13 | P151: =IF(I151='Entrées Utilisateur'!$C$51&"+",#N/A,I151) -> 0
D152: 0.3 | E152: 14 | P152: =IF(I152='Entrées Utilisateur'!$C$51&"+",#N/A,I152) -> 0
D153: 0.35 | E153: 15 | P153: =IF(I153='Entrées Utilisateur'!$C$51&"+",#N/A,I153) -> 0
B156: Durée de crédit
B157: Tableaux Scenario
D159: Scénario | F159: Duree de credit | G159: TRI des capitaux propres | H159: TRI du projet | I159: Temps de retour | J159: Valeur actualisée nette | K159: Ratio de couverture du service de la dette | L159: Ratio de couverture la durée du prêt
D160: changement | E160: # | F160: =Données!G124 -> 10 | G160: =IF(OR('Capitaux propres'!$F$28<0.001,'Capitaux propres'!$F$28>1,ISERROR('Capitaux propres'!$F$28)=TRUE),#N/A,'Capitaux propres'!$F$28) -> 0.5570028245 | H160: =IF(OR('Flux de trésorerie'!$I$60<0.001,'Flux de trésorerie'!$I$60>1,ISERROR('Flux de trésorerie'!$I$60)),#N/A,'Flux de trésorerie'!$I$60) -> 0.2565719068 | I160: =IF('Capitaux propres'!$F$45=-1,'Entrées Utilisateur'!C51&"+",'Capitaux propres'!$F$45) -> 2.081716963 | J160: =IF(ISERROR('Capitaux propres'!$F$31)=TRUE,#N/A,'Capitaux propres'!$F$31) -> 189309.8011 | K160: =IF(ISERROR(Financement!$F$48)=TRUE,#N/A,Financement!$F$48) -> 3.054811433 | L160: =IF(ISERROR(Financement!$H$61)=TRUE,#N/A,Financement!$H$61) -> 4.019643292
D161: -7 | E161: 1 | N161: =IF(I161='Entrées Utilisateur'!$C$51&"+",#N/A,I161) -> 0
D162: -6 | E162: =E161+1 -> 2 | N162: =IF(I162='Entrées Utilisateur'!$C$51&"+",#N/A,I162) -> 0
D163: -5 | E163: =E162+1 -> 3 | N163: =IF(I163='Entrées Utilisateur'!$C$51&"+",#N/A,I163) -> 0
D164: -4 | E164: =E163+1 -> 4 | N164: =IF(I164='Entrées Utilisateur'!$C$51&"+",#N/A,I164) -> 0
D165: -3 | E165: =E164+1 -> 5 | N165: =IF(I165='Entrées Utilisateur'!$C$51&"+",#N/A,I165) -> 0
D166: -2 | E166: =E165+1 -> 6 | N166: =IF(I166='Entrées Utilisateur'!$C$51&"+",#N/A,I166) -> 0
D167: -1 | E167: 7 | N167: =IF(I167='Entrées Utilisateur'!$C$51&"+",#N/A,I167) -> 0
D168: 0 | E168: 8 | N168: =IF(I168='Entrées Utilisateur'!$C$51&"+",#N/A,I168) -> 0
D169: 1 | E169: 9 | N169: =IF(I169='Entrées Utilisateur'!$C$51&"+",#N/A,I169) -> 0
D170: 2 | E170: 10 | N170: =IF(I170='Entrées Utilisateur'!$C$51&"+",#N/A,I170) -> 0
D171: 3 | E171: 11 | N171: =IF(I171='Entrées Utilisateur'!$C$51&"+",#N/A,I171) -> 0
D172: 4 | E172: 12 | N172: =IF(I172='Entrées Utilisateur'!$C$51&"+",#N/A,I172) -> 0
D173: 5 | E173: 13 | N173: =IF(I173='Entrées Utilisateur'!$C$51&"+",#N/A,I173) -> 0
D174: 6 | E174: =E173+1 -> 14 | N174: =IF(I174='Entrées Utilisateur'!$C$51&"+",#N/A,I174) -> 0
D175: 7 | E175: =E174+1 -> 15 | N175: =IF(I175='Entrées Utilisateur'!$C$51&"+",#N/A,I175) -> 0
B178: Horizon d´investissement
B179: Tableaux Scenario
D181: Scénario | F181: Horizon d´investissement | G181: TRI des capitaux propres | H181: TRI du projet | I181: Temps de retour | J181: Valeur actualisée nette | K181: Coût moyen actualisé de l'énergie (sans subvention) | L181: Coût moyen actualisé de l'énergie (avec subvention) | M181: Ratio de couverture du service de la dette | N181: Ratio de couverture la durée du prêt
D182: changement | E182: # | F182: =Données!G16 -> 20 | G182: =IF(OR('Capitaux propres'!$F$28<0.001,'Capitaux propres'!$F$28>1,ISERROR('Capitaux propres'!$F$28)=TRUE),#N/A,'Capitaux propres'!$F$28) -> 0.5570028245 | H182: =IF(OR('Flux de trésorerie'!$I$60<0.001,'Flux de trésorerie'!$I$60>1,ISERROR('Flux de trésorerie'!$I$60)),#N/A,'Flux de trésorerie'!$I$60) -> 0.2565719068 | I182: =IF('Capitaux propres'!$F$45=-1,'Entrées Utilisateur'!C51&"+",'Capitaux propres'!$F$45) -> 2.081716963 | J182: =IF(ISERROR('Capitaux propres'!$F$31)=TRUE,#N/A,'Capitaux propres'!$F$31) -> 189309.8011 | K182: =IF(ISERROR('Flux de trésorerie'!$I$73)=TRUE,#N/A,'Flux de trésorerie'!$I$73) -> 0.1573515425 | L182: =IF(ISERROR('Flux de trésorerie'!$I$74)=TRUE,#N/A,'Flux de trésorerie'!$I$74) -> 0.1271821483 | M182: =IF(ISERROR(Financement!$F$48)=TRUE,#N/A,Financement!$F$48) -> 3.054811433 | N182: =IF(ISERROR(Financement!$H$61)=TRUE,#N/A,Financement!$H$61) -> 4.019643292
D183: -7 | E183: 1 | P183: =IF(I183='Entrées Utilisateur'!$C$51&"+",#N/A,I183) -> 0
D184: -6 | E184: =E183+1 -> 2 | P184: =IF(I184='Entrées Utilisateur'!$C$51&"+",#N/A,I184) -> 0
D185: -5 | E185: 3 | P185: =IF(I185='Entrées Utilisateur'!$C$51&"+",#N/A,I185) -> 0
D186: -4 | E186: 4 | P186: =IF(I186='Entrées Utilisateur'!$C$51&"+",#N/A,I186) -> 0
D187: -3 | E187: 5 | P187: =IF(I187='Entrées Utilisateur'!$C$51&"+",#N/A,I187) -> 0
D188: -2 | E188: 6 | P188: =IF(I188='Entrées Utilisateur'!$C$51&"+",#N/A,I188) -> 0
D189: -1 | E189: 7 | P189: =IF(I189='Entrées Utilisateur'!$C$51&"+",#N/A,I189) -> 0
D190: 0 | E190: 8 | P190: =IF(I190='Entrées Utilisateur'!$C$51&"+",#N/A,I190) -> 0
D191: 1 | E191: 9 | P191: =IF(I191='Entrées Utilisateur'!$C$51&"+",#N/A,I191) -> 0
D192: 2 | E192: 10 | P192: =IF(I192='Entrées Utilisateur'!$C$51&"+",#N/A,I192) -> 0
D193: 3 | E193: 11 | P193: =IF(I193='Entrées Utilisateur'!$C$51&"+",#N/A,I193) -> 0
D194: 4 | E194: 12 | P194: =IF(I194='Entrées Utilisateur'!$C$51&"+",#N/A,I194) -> 0
D195: 5 | E195: 13 | P195: =IF(I195='Entrées Utilisateur'!$C$51&"+",#N/A,I195) -> 0
D196: 6 | E196: 14 | P196: =IF(I196='Entrées Utilisateur'!$C$51&"+",#N/A,I196) -> 0
D197: 7 | E197: 15 | P197: =IF(I197='Entrées Utilisateur'!$C$51&"+",#N/A,I197) -> 0
B200: Tarif de Transport
B201: Tableaux Scenario
D203: Scénario | F203: Tarif de Transport | G203: TRI des capitaux propres | H203: TRI du projet | I203: Temps de retour | J203: Valeur actualisée nette | K203: Coût moyen actualisé de l'énergie (sans subvention) | L203: Coût moyen actualisé de l'énergie (avec subvention) | M203: Ratio de couverture du service de la dette | N203: Ratio de couverture la durée du prêt
D204: # | F204: ='Entrées Utilisateur'!H75 -> 0.007 | G204: =IF(OR('Capitaux propres'!$F$28<0.001,'Capitaux propres'!$F$28>1,ISERROR('Capitaux propres'!$F$28)=TRUE),#N/A,'Capitaux propres'!$F$28) -> 0.5570028245 | H204: =IF(OR('Flux de trésorerie'!$I$60<0.001,'Flux de trésorerie'!$I$60>1,ISERROR('Flux de trésorerie'!$I$60)),#N/A,'Flux de trésorerie'!$I$60) -> 0.2565719068 | I204: =IF('Capitaux propres'!$F$45=-1,'Entrées Utilisateur'!C51&"+",'Capitaux propres'!$F$45) -> 2.081716963 | J204: =IF(ISERROR('Capitaux propres'!$F$31)=TRUE,#N/A,'Capitaux propres'!$F$31) -> 189309.8011 | K204: =IF(ISERROR('Flux de trésorerie'!$I$73)=TRUE,#N/A,'Flux de trésorerie'!$I$73) -> 0.1573515425 | L204: =IF(ISERROR('Flux de trésorerie'!$I$74)=TRUE,#N/A,'Flux de trésorerie'!$I$74) -> 0.1271821483 | M204: =IF(ISERROR(Financement!$F$48)=TRUE,#N/A,Financement!$F$48) -> 3.054811433 | N204: =IF(ISERROR(Financement!$H$61)=TRUE,#N/A,Financement!$H$61) -> 4.019643292
D205: 1 | P205: =IF(I205='Entrées Utilisateur'!$C$51&"+",#N/A,I205) -> 0
D206: =D205+1 -> 2 | P206: =IF(I206='Entrées Utilisateur'!$C$51&"+",#N/A,I206) -> 0
D207: 3 | P207: =IF(I207='Entrées Utilisateur'!$C$51&"+",#N/A,I207) -> 0
D208: 4 | P208: =IF(I208='Entrées Utilisateur'!$C$51&"+",#N/A,I208) -> 0
D209: 5 | P209: =IF(I209='Entrées Utilisateur'!$C$51&"+",#N/A,I209) -> 0
D210: 6 | P210: =IF(I210='Entrées Utilisateur'!$C$51&"+",#N/A,I210) -> 0
D211: 7 | P211: =IF(I211='Entrées Utilisateur'!$C$51&"+",#N/A,I211) -> 0
D212: 8 | P212: =IF(I212='Entrées Utilisateur'!$C$51&"+",#N/A,I212) -> 0
D213: 9 | P213: =IF(I213='Entrées Utilisateur'!$C$51&"+",#N/A,I213) -> 0
D214: 10 | P214: =IF(I214='Entrées Utilisateur'!$C$51&"+",#N/A,I214) -> 0
D215: 11 | P215: =IF(I215='Entrées Utilisateur'!$C$51&"+",#N/A,I215) -> 0
D216: 12 | P216: =IF(I216='Entrées Utilisateur'!$C$51&"+",#N/A,I216) -> 0
D217: 13 | P217: =IF(I217='Entrées Utilisateur'!$C$51&"+",#N/A,I217) -> 0
D218: 14 | P218: =IF(I218='Entrées Utilisateur'!$C$51&"+",#N/A,I218) -> 0
D219: 15 | P219: =IF(I219='Entrées Utilisateur'!$C$51&"+",#N/A,I219) -> 0

Sheet DataTableMap (hidden)
A1: =TABLE(,E203) | B1: $F$204 | C1: Scenario | D1: 204
A2: =TABLE(,E203) | B2: $G$204 | C2: Scenario | D2: 204
A3: =TABLE(,E203) | B3: $H$204 | C3: Scenario | D3: 204
A4: =TABLE(,E203) | B4: $I$204 | C4: Scenario | D4: 204
A5: =TABLE(,E203) | B5: $J$204 | C5: Scenario | D5: 204
A6: =TABLE(,E203) | B6: $K$204 | C6: Scenario | D6: 204
A7: =TABLE(,E203) | B7: $L$204 | C7: Scenario | D7: 204
A8: =TABLE(,E203) | B8: $M$204 | C8: Scenario | D8: 204
A9: =TABLE(,E203) | B9: $N$204 | C9: Scenario | D9: 204
A10: =TABLE(,E203) | B10: $O$204 | C10: Scenario | D10: 204
A11: =TABLE(,E203) | B11: $P$204 | C11: Scenario | D11: 204
A12: =TABLE(,E203) | B12: $F$205 | C12: Scenario | D12: 205
A13: =TABLE(,E203) | B13: $G$205 | C13: Scenario | D13: 205
A14: =TABLE(,E203) | B14: $H$205 | C14: Scenario | D14: 205
A15: =TABLE(,E203) | B15: $I$205 | C15: Scenario | D15: 205
A16: =TABLE(,E203) | B16: $J$205 | C16: Scenario | D16: 205
A17: =TABLE(,E203) | B17: $K$205 | C17: Scenario | D17: 205
A18: =TABLE(,E203) | B18: $L$205 | C18: Scenario | D18: 205
A19: =TABLE(,E203) | B19: $M$205 | C19: Scenario | D19: 205
A20: =TABLE(,E203) | B20: $N$205 | C20: Scenario | D20: 205
A21: =TABLE(,E203) | B21: $O$205 | C21: Scenario | D21: 205
A22: =TABLE(,E203) | B22: $P$205 | C22: Scenario | D22: 205
A23: =TABLE(,E203) | B23: $F$206 | C23: Scenario | D23: 206
A24: =TABLE(,E203) | B24: $G$206 | C24: Scenario | D24: 206
A25: =TABLE(,E203) | B25: $H$206 | C25: Scenario | D25: 206
A26: =TABLE(,E203) | B26: $I$206 | C26: Scenario | D26: 206
A27: =TABLE(,E203) | B27: $J$206 | C27: Scenario | D27: 206
A28: =TABLE(,E203) | B28: $K$206 | C28: Scenario | D28: 206
A29: =TABLE(,E203) | B29: $L$206 | C29: Scenario | D29: 206
A30: =TABLE(,E203) | B30: $M$206 | C30: Scenario | D30: 206
A31: =TABLE(,E203) | B31: $N$206 | C31: Scenario | D31: 206
A32: =TABLE(,E203) | B32: $O$206 | C32: Scenario | D32: 206
A33: =TABLE(,E203) | B33: $P$206 | C33: Scenario | D33: 206
A34: =TABLE(,E203) | B34: $F$207 | C34: Scenario | D34: 207
A35: =TABLE(,E203) | B35: $G$207 | C35: Scenario | D35: 207
A36: =TABLE(,E203) | B36: $H$207 | C36: Scenario | D36: 207
A37: =TABLE(,E203) | B37: $I$207 | C37: Scenario | D37: 207
A38: =TABLE(,E203) | B38: $J$207 | C38: Scenario | D38: 207
A39: =TABLE(,E203) | B39: $K$207 | C39: Scenario | D39: 207
A40: =TABLE(,E203) | B40: $L$207 | C40: Scenario | D40: 207
A41: =TABLE(,E203) | B41: $M$207 | C41: Scenario | D41: 207
A42: =TABLE(,E203) | B42: $N$207 | C42: Scenario | D42: 207
A43: =TABLE(,E203) | B43: $O$207 | C43: Scenario | D43: 207
A44: =TABLE(,E203) | B44: $P$207 | C44: Scenario | D44: 207
A45: =TABLE(,E203) | B45: $F$208 | C45: Scenario | D45: 208
A46: =TABLE(,E203) | B46: $G$208 | C46: Scenario | D46: 208
A47: =TABLE(,E203) | B47: $H$208 | C47: Scenario | D47: 208
A48: =TABLE(,E203) | B48: $I$208 | C48: Scenario | D48: 208
A49: =TABLE(,E203) | B49: $J$208 | C49: Scenario | D49: 208
A50: =TABLE(,E203) | B50: $K$208 | C50: Scenario | D50: 208
A51: =TABLE(,E203) | B51: $L$208 | C51: Scenario | D51: 208
A52: =TABLE(,E203) | B52: $M$208 | C52: Scenario | D52: 208
A53: =TABLE(,E203) | B53: $N$208 | C53: Scenario | D53: 208
A54: =TABLE(,E203) | B54: $O$208 | C54: Scenario | D54: 208
A55: =TABLE(,E203) | B55: $P$208 | C55: Scenario | D55: 208
A56: =TABLE(,E203) | B56: $F$209 | C56: Scenario | D56: 209
A57: =TABLE(,E203) | B57: $G$209 | C57: Scenario | D57: 209
A58: =TABLE(,E203) | B58: $H$209 | C58: Scenario | D58: 209
A59: =TABLE(,E203) | B59: $I$209 | C59: Scenario | D59: 209
A60: =TABLE(,E203) | B60: $J$209 | C60: Scenario | D60: 209
A61: =TABLE(,E203) | B61: $K$209 | C61: Scenario | D61: 209
A62: =TABLE(,E203) | B62: $L$209 | C62: Scenario | D62: 209
A63: =TABLE(,E203) | B63: $M$209 | C63: Scenario | D63: 209
A64: =TABLE(,E203) | B64: $N$209 | C64: Scenario | D64: 209
A65: =TABLE(,E203) | B65: $O$209 | C65: Scenario | D65: 209
A66: =TABLE(,E203) | B66: $P$209 | C66: Scenario | D66: 209
A67: =TABLE(,E203) | B67: $F$210 | C67: Scenario | D67: 210
A68: =TABLE(,E203) | B68: $G$210 | C68: Scenario | D68: 210
A69: =TABLE(,E203) | B69: $H$210 | C69: Scenario | D69: 210
A70: =TABLE(,E203) | B70: $I$210 | C70: Scenario | D70: 210
A71: =TABLE(,E203) | B71: $J$210 | C71: Scenario | D71: 210
A72: =TABLE(,E203) | B72: $K$210 | C72: Scenario | D72: 210
A73: =TABLE(,E203) | B73: $L$210 | C73: Scenario | D73: 210
A74: =TABLE(,E203) | B74: $M$210 | C74: Scenario | D74: 210
A75: =TABLE(,E203) | B75: $N$210 | C75: Scenario | D75: 210
A76: =TABLE(,E203) | B76: $O$210 | C76: Scenario | D76: 210
A77: =TABLE(,E203) | B77: $P$210 | C77: Scenario | D77: 210
A78: =TABLE(,E203) | B78: $F$211 | C78: Scenario | D78: 211
A79: =TABLE(,E203) | B79: $G$211 | C79: Scenario | D79: 211
A80: =TABLE(,E203) | B80: $H$211 | C80: Scenario | D80: 211
A81: =TABLE(,E203) | B81: $I$211 | C81: Scenario | D81: 211
A82: =TABLE(,E203) | B82: $J$211 | C82: Scenario | D82: 211
A83: =TABLE(,E203) | B83: $K$211 | C83: Scenario | D83: 211
A84: =TABLE(,E203) | B84: $L$211 | C84: Scenario | D84: 211
A85: =TABLE(,E203) | B85: $M$211 | C85: Scenario | D85: 211
A86: =TABLE(,E203) | B86: $N$211 | C86: Scenario | D86: 211
A87: =TABLE(,E203) | B87: $O$211 | C87: Scenario | D87: 211
A88: =TABLE(,E203) | B88: $P$211 | C88: Scenario | D88: 211
A89: =TABLE(,E203) | B89: $F$212 | C89: Scenario | D89: 212
A90: =TABLE(,E203) | B90: $G$212 | C90: Scenario | D90: 212
A91: =TABLE(,E203) | B91: $H$212 | C91: Scenario | D91: 212
A92: =TABLE(,E203) | B92: $I$212 | C92: Scenario | D92: 212
A93: =TABLE(,E203) | B93: $J$212 | C93: Scenario | D93: 212
A94: =TABLE(,E203) | B94: $K$212 | C94: Scenario | D94: 212
A95: =TABLE(,E203) | B95: $L$212 | C95: Scenario | D95: 212
A96: =TABLE(,E203) | B96: $M$212 | C96: Scenario | D96: 212
A97: =TABLE(,E203) | B97: $N$212 | C97: Scenario | D97: 212
A98: =TABLE(,E203) | B98: $O$212 | C98: Scenario | D98: 212
A99: =TABLE(,E203) | B99: $P$212 | C99: Scenario | D99: 212
A100: =TABLE(,E203) | B100: $F$213 | C100: Scenario | D100: 213
A101: =TABLE(,E203) | B101: $G$213 | C101: Scenario | D101: 213
A102: =TABLE(,E203) | B102: $H$213 | C102: Scenario | D102: 213
A103: =TABLE(,E203) | B103: $I$213 | C103: Scenario | D103: 213
A104: =TABLE(,E203) | B104: $J$213 | C104: Scenario | D104: 213
A105: =TABLE(,E203) | B105: $K$213 | C105: Scenario | D105: 213
A106: =TABLE(,E203) | B106: $L$213 | C106: Scenario | D106: 213
A107: =TABLE(,E203) | B107: $M$213 | C107: Scenario | D107: 213
A108: =TABLE(,E203) | B108: $N$213 | C108: Scenario | D108: 213
A109: =TABLE(,E203) | B109: $O$213 | C109: Scenario | D109: 213
A110: =TABLE(,E203) | B110: $P$213 | C110: Scenario | D110: 213
A111: =TABLE(,E203) | B111: $F$214 | C111: Scenario | D111: 214
A112: =TABLE(,E203) | B112: $G$214 | C112: Scenario | D112: 214
A113: =TABLE(,E203) | B113: $H$214 | C113: Scenario | D113: 214
A114: =TABLE(,E203) | B114: $I$214 | C114: Scenario | D114: 214
A115: =TABLE(,E203) | B115: $J$214 | C115: Scenario | D115: 214
A116: =TABLE(,E203) | B116: $K$214 | C116: Scenario | D116: 214
A117: =TABLE(,E203) | B117: $L$214 | C117: Scenario | D117: 214
A118: =TABLE(,E203) | B118: $M$214 | C118: Scenario | D118: 214
A119: =TABLE(,E203) | B119: $N$214 | C119: Scenario | D119: 214
A120: =TABLE(,E203) | B120: $O$214 | C120: Scenario | D120: 214
A121: =TABLE(,E203) | B121: $P$214 | C121: Scenario | D121: 214
A122: =TABLE(,E203) | B122: $F$215 | C122: Scenario | D122: 215
A123: =TABLE(,E203) | B123: $G$215 | C123: Scenario | D123: 215
A124: =TABLE(,E203) | B124: $H$215 | C124: Scenario | D124: 215
A125: =TABLE(,E203) | B125: $I$215 | C125: Scenario | D125: 215
A126: =TABLE(,E203) | B126: $J$215 | C126: Scenario | D126: 215
A127: =TABLE(,E203) | B127: $K$215 | C127: Scenario | D127: 215
A128: =TABLE(,E203) | B128: $L$215 | C128: Scenario | D128: 215
A129: =TABLE(,E203) | B129: $M$215 | C129: Scenario | D129: 215
A130: =TABLE(,E203) | B130: $N$215 | C130: Scenario | D130: 215
A131: =TABLE(,E203) | B131: $O$215 | C131: Scenario | D131: 215
A132: =TABLE(,E203) | B132: $P$215 | C132: Scenario | D132: 215
A133: =TABLE(,E203) | B133: $F$216 | C133: Scenario | D133: 216
A134: =TABLE(,E203) | B134: $G$216 | C134: Scenario | D134: 216
A135: =TABLE(,E203) | B135: $H$216 | C135: Scenario | D135: 216
A136: =TABLE(,E203) | B136: $I$216 | C136: Scenario | D136: 216
A137: =TABLE(,E203) | B137: $J$216 | C137: Scenario | D137: 216
A138: =TABLE(,E203) | B138: $K$216 | C138: Scenario | D138: 216
A139: =TABLE(,E203) | B139: $L$216 | C139: Scenario | D139: 216
A140: =TABLE(,E203) | B140: $M$216 | C140: Scenario | D140: 216
A141: =TABLE(,E203) | B141: $N$216 | C141: Scenario | D141: 216
A142: =TABLE(,E203) | B142: $O$216 | C142: Scenario | D142: 216
A143: =TABLE(,E203) | B143: $P$216 | C143: Scenario | D143: 216
A144: =TABLE(,E203) | B144: $F$217 | C144: Scenario | D144: 217
A145: =TABLE(,E203) | B145: $G$217 | C145: Scenario | D145: 217
A146: =TABLE(,E203) | B146: $H$217 | C146: Scenario | D146: 217
A147: =TABLE(,E203) | B147: $I$217 | C147: Scenario | D147: 217
A148: =TABLE(,E203) | B148: $J$217 | C148: Scenario | D148: 217
A149: =TABLE(,E203) | B149: $K$217 | C149: Scenario | D149: 217
A150: =TABLE(,E203) | B150: $L$217 | C150: Scenario | D150: 217
A151: =TABLE(,E203) | B151: $M$217 | C151: Scenario | D151: 217
A152: =TABLE(,E203) | B152: $N$217 | C152: Scenario | D152: 217
A153: =TABLE(,E203) | B153: $O$217 | C153: Scenario | D153: 217
A154: =TABLE(,E203) | B154: $P$217 | C154: Scenario | D154: 217
A155: =TABLE(,E203) | B155: $F$218 | C155: Scenario | D155: 218
A156: =TABLE(,E203) | B156: $G$218 | C156: Scenario | D156: 218
A157: =TABLE(,E203) | B157: $H$218 | C157: Scenario | D157: 218
A158: =TABLE(,E203) | B158: $I$218 | C158: Scenario | D158: 218
A159: =TABLE(,E203) | B159: $J$218 | C159: Scenario | D159: 218
A160: =TABLE(,E203) | B160: $K$218 | C160: Scenario | D160: 218
A161: =TABLE(,E203) | B161: $L$218 | C161: Scenario | D161: 218
A162: =TABLE(,E203) | B162: $M$218 | C162: Scenario | D162: 218
A163: =TABLE(,E203) | B163: $N$218 | C163: Scenario | D163: 218
A164: =TABLE(,E203) | B164: $O$218 | C164: Scenario | D164: 218
A165: =TABLE(,E203) | B165: $P$218 | C165: Scenario | D165: 218
A166: =TABLE(,E203) | B166: $F$219 | C166: Scenario | D166: 219
A167: =TABLE(,E203) | B167: $G$219 | C167: Scenario | D167: 219
A168: =TABLE(,E203) | B168: $H$219 | C168: Scenario | D168: 219
A169: =TABLE(,E203) | B169: $I$219 | C169: Scenario | D169: 219
A170: =TABLE(,E203) | B170: $J$219 | C170: Scenario | D170: 219
A171: =TABLE(,E203) | B171: $K$219 | C171: Scenario | D171: 219
A172: =TABLE(,E203) | B172: $L$219 | C172: Scenario | D172: 219
A173: =TABLE(,E203) | B173: $M$219 | C173: Scenario | D173: 219
A174: =TABLE(,E203) | B174: $N$219 | C174: Scenario | D174: 219
A175: =TABLE(,E203) | B175: $O$219 | C175: Scenario | D175: 219
A176: =TABLE(,E203) | B176: $P$219 | C176: Scenario | D176: 219
A177: =TABLE(,E203) | B177: $F$220 | C177: Scenario | D177: 220
A178: =TABLE(,E203) | B178: $G$220 | C178: Scenario | D178: 220
A179: =TABLE(,E203) | B179: $H$220 | C179: Scenario | D179: 220
A180: =TABLE(,E203) | B180: $I$220 | C180: Scenario | D180: 220
A181: =TABLE(,E203) | B181: $J$220 | C181: Scenario | D181: 220
A182: =TABLE(,E203) | B182: $K$220 | C182: Scenario | D182: 220
A183: =TABLE(,E203) | B183: $L$220 | C183: Scenario | D183: 220
A184: =TABLE(,E203) | B184: $M$220 | C184: Scenario | D184: 220
A185: =TABLE(,E203) | B185: $N$220 | C185: Scenario | D185: 220
A186: =TABLE(,E203) | B186: $O$220 | C186: Scenario | D186: 220
A187: =TABLE(,E203) | B187: $P$220 | C187: Scenario | D187: 220
A188: =TABLE(,E203) | B188: $F$221 | C188: Scenario | D188: 221
A189: =TABLE(,E203) | B189: $G$221 | C189: Scenario | D189: 221
A190: =TABLE(,E203) | B190: $H$221 | C190: Scenario | D190: 221
A191: =TABLE(,E203) | B191: $I$221 | C191: Scenario | D191: 221
A192: =TABLE(,E203) | B192: $J$221 | C192: Scenario | D192: 221
A193: =TABLE(,E203) | B193: $K$221 | C193: Scenario | D193: 221
A194: =TABLE(,E203) | B194: $L$221 | C194: Scenario | D194: 221
A195: =TABLE(,E203) | B195: $M$221 | C195: Scenario | D195: 221
A196: =TABLE(,E203) | B196: $N$221 | C196: Scenario | D196: 221
A197: =TABLE(,E203) | B197: $O$221 | C197: Scenario | D197: 221
A198: =TABLE(,E203) | B198: $P$221 | C198: Scenario | D198: 221
A199: =TABLE(,E203) | B199: $F$222 | C199: Scenario | D199: 222
A200: =TABLE(,E203) | B200: $G$222 | C200: Scenario | D200: 222
... 141 more rows

Sheet Rapport imprimable
B2: Outil d'analyse de la rentabilité des projets PV en Tunisie
B3: Autoproduction MT et HT avec transport
B4: ="Rapport de synthèse imprimé le "&TEXT(TODAY(),"dd mmmm yyyy") -> Rapport de synthèse imprimé le 21 April 2021
B6: Hypothèses de bases
C8: variable | D8: valeur | E8: unité
C9: Coût de l'installation Hors Taxes, Hors Subvention | D9: ='Entrées Utilisateur'!C10 -> 100000 | E9: ='Entrées Utilisateur'!D10 -> DT
C10: Subvention | D10: =IF('Entrées Utilisateur'!D11="DT",'Entrées Utilisateur'!C11,'Entrées Utilisateur'!C12) -> 20000 | E10: DT
D11: =D10/D9 -> 0.2 | E11: %
C12: Coût net total de l'installation TTC, Subvention comprise) | D12: ='Entrées Utilisateur'!C14 -> 85000 | E12: ='Entrées Utilisateur'!D14 -> DT
C13: Taille de l'installation PV | D13: ='Entrées Utilisateur'!C17 -> 40 | E13: ='Entrées Utilisateur'!D17 -> kWc
C14: Région (site PV) | D14: ='Entrées Utilisateur'!C34 -> Tunis
C15: Orientation des panneaux | D15: ='Entrées Utilisateur'!C35 -> Sud
C16: Site 1 (avec système PV)
C17: Courbe de charge | D17: ='Entrées Utilisateur'!C21 -> Hôtellerie
C18: Consommation annuelle moyenne | D18: =IF(D17="Aucun","- ",'Entrées Utilisateur'!C22) -> 150000 | E18: =IF(D17="Aucun","","kWh") -> kWh
C19: Tarif Souscrit STEG | D19: =IF(D17="Aucun","- ",'Entrées Utilisateur'!C23) -> Tarif Uniforme
C20: Site 2 (à distance)
C21: Courbe de charge | D21: ='Entrées Utilisateur'!I21 -> Industrie Plastique
C22: Consommation annuelle moyenne | D22: =IF(D20="Aucun","- ",'Entrées Utilisateur'!I22) -> 150000 | E22: =IF(D21="Aucun","","kWh") -> kWh
C23: Tarif Souscrit STEG | D23: =IF(D20="Aucun","- ",'Entrées Utilisateur'!I23) -> Tarif à Poste Horaire
C24: Site 3 (à distance)
C25: Courbe de charge | D25: ='Entrées Utilisateur'!C27 -> Aucun
C26: Consommation annuelle moyenne | D26: =IF(D20="Aucun","- ",'Entrées Utilisateur'!C28) -> 200000 | E26: =IF(D25="Aucun","","kWh") -> 
C27: Tarif Souscrit STEG | D27: =IF(D20="Aucun","- ",'Entrées Utilisateur'!C29) -> Tarif à Poste Horaire
C28: Site 4 (à distance)
C29: Courbe de charge | D29: ='Entrées Utilisateur'!I27 -> Aucun
C30: Consommation annuelle moyenne | D30: =IF(D20="Aucun","- ",'Entrées Utilisateur'!I28) -> 150000 | E30: =IF(D29="Aucun","","kWh") -> 
C31: Tarif Souscrit STEG | D31: =IF(D20="Aucun","- ",'Entrées Utilisateur'!I29) -> Tarif à Poste Horaire
C33: ** Voir modèle excel pour hypothèses détaillées
B34: Outil d'analyse de la rentabilité des projets PV en Tunisie (version juin 2020)
B35: Page 1
B37: Résultats
C39: variable | D39: valeur | E39: unité
C40: Consommation brute annuelle | D40: =Résultats!C5 -> 300000 | E40: =Résultats!D5 -> kWh
C41: Production annuelle | D41: =Résultats!C6 -> 66000 | E41: =Résultats!D6 -> kWh
C42: Energie autoconsommée annuelle, tous sites | D42: =Résultats!C7 -> 66000 | E42: =Résultats!D7 -> kWh
C43: Transport d'énergie PV annuelle | D43: =Résultats!C8 -> 18747.80143 | E43: =Résultats!D8 -> kWh
C44: Energie cédée annuellle (excédent) | D44: =Résultats!C9 -> 0 | E44: =Résultats!D9 -> kWh
C45: Taux de couverture totale (Ratio Production PV : Consommation) | D45: =Résultats!C10 -> 0.22 | E45: =Résultats!D10 -> -
C46: Pourcentage de la production cédée (excédent) | D46: =Résultats!C11 -> 0 | E46: =Résultats!D11 -> -
C47: Pourcentage de la production transportée | D47: =Résultats!C12 -> 0.2840575974 | E47: -
C48: Montant à rembourser à la fin de l'année | D48: =Résultats!C13 -> 0 | E48: =Résultats!D13 -> DT/an
C49: Coût Moyen Actualisé de l'Énergie (LCOE) avec subvention | D49: =Résultats!C14 -> 0.1271821483 | E49: =Résultats!D14 -> DT/kWh
C50: Facture annuelle sans PV | D50: =Résultats!C15 -> 73302.08865 | E50: =Résultats!D15 -> DT/an
C51: Facture annuelle avec PV | D51: =Résultats!C16 -> 54049.86433 | E51: =Résultats!D16 -> DT/an
C52: Vente annuelle de l'excédent à la STEG | D52: =Résultats!C18 -> 0 | E52: =Résultats!D18 -> DT/an
C53: Temps de retour sur investissement | D53: =Résultats!C19 -> 2.081716963 | E53: =Résultats!D19 -> années
C54: Taux de rentabilité interne du projet | D54: =Résultats!C20 -> 0.2565719068 | E54: =Résultats!D20 -> -
C55: Réduction d'émissions de gaz à effet de serre sur la vie du système PV | D55: =Résultats!C21 -> 752.4 | E55: =Résultats!D21 -> tonnes équivalent CO2
B57: Outil d'analyse de la rentabilité des projets PV en Tunisie (version juin 2020)
B58: Page 2
B116: Outil d'analyse de la rentabilité des projets PV en Tunisie (version juin 2020)
B117: Page 3
B175: Outil d'analyse de la rentabilité des projets PV en Tunisie (version juin 2020)
B176: Page 4

Sheet Données
C1: Assumptions | D1: Hypothèses
D2: Tunisie Moyenne Tension
C5: Timing | D5: Délais
C6: Start | D6: Départ
C7: Model Start Date | D7: Date de début de la modélisation | E7: date | G7: =DATE('Entrées Utilisateur'!C48-1,12,1) -> 2018-12-01
C9: Construction | D9: Construction
C10: Start | D10: Début | E10: date | G10: =Model_Start -> 2018-12-01
C11: End | D11: Fin | E11: date | G11: =EOMONTH(G10,0) -> 2018-12-31
C13: Operations | D13: Exploitation
C14: Start | D14: Début | E14: date | G14: =G11+1 -> 2019-01-01
D15: Durée de l'hypothèse de référence | E15: ans | G15: ='Entrées Utilisateur'!C51 -> 20
C16: Base Case Duration | D16: Durée appliqué | E16: ans | F16: 0 | G16: =G15+F16 -> 20
C17: End | D17: Fin | E17: date | G17: =EOMONTH(G14,G16*12-1) -> 2038-12-31
C19: Construction | D19: Construction
C20: System Cost | D20: Coût de l'installation
C21: Turnkey System Cost | D21: Coût de l'installation nette TTC | E21: DT | G21: ='Entrées Utilisateur'!C14 -> 85000
C22: Applied Scenario | D22: Coût de l'installation appliqué | E22: DT | F22: 0 | G22: =(1+F22)*G21 -> 85000
C24: Payment Profile | D24: Liste des dépenses
C25: Construction Month | D25: Mois de construction | G25: Total | H25: 1 | I25: =H25+1 -> 2 | J25: =I25+1 -> 3 | K25: =J25+1 -> 4 | L25: =K25+1 -> 5 | M25: =L25+1 -> 6
C26: Relative Costs | D26: Coûts relatifs | G26: =SUM(H26:M26) -> 1 | H26: 1
C28: Subsidy | D28: Subvention
C29: Subsidy | D29: Subvention | E29: DT | G29: =IF('Entrées Utilisateur'!D11="DT",'Entrées Utilisateur'!C11,'Entrées Utilisateur'!C12) -> 20000 | I29: limite de 200.000 DT
C30: Applied Subsidy | D30: Subvention appliquée | E30: DT | F30: 0 | G30: =G29*(1+F30) -> 20000
C32: Operations | D32: Exploitation
C33: Generation | D33: Production
C34: System Size | D34: Taille de l'installation | E34: kWc | G34: ='Entrées Utilisateur'!C17 -> 40
D35: Taille de l'installation appliquée | E35: kWc | F35: 0 | G35: =G34*(1+F35) -> 40
C37: Degradation | D37: Dégradation des performances | E37: % p.a. | G37: ='Entrées Utilisateur'!C55 -> 0.007
C38: Overall Efficiency | D38: Rendement global | E38: x | G38: ='Entrées Utilisateur'!C56 -> 1
C40: Applied Yield | D40: Rendement appliqué | E40: kWh/kWc/a | G40: ='Courbes de Production PV'!C6 -> 1650
C42: Electricity Savings | D42: Economies d'électricité
C43: Net-metering | D43: Net-metering | E43: Site 1 | F43: Site 2 | G43: Site 3 | H43: Site 4
D44: Tarifs de Consommation | E44: ='Entrées Utilisateur'!C23 -> Tarif Uniforme | F44: ='Entrées Utilisateur'!I23 -> Tarif à Poste Horaire | G44: ='Entrées Utilisateur'!C29 -> Tarif à Poste Horaire | H44: ='Entrées Utilisateur'!I29 -> Tarif à Poste Horaire
D46: Choix de Tarif
D48: Tarif Uniforme | E48: DT/kWh | G48: ='Entrées Utilisateur'!C63 -> 0.251
J49: Postes horaires
D50: Tarif jour | E50: DT/kWh | G50: ='Entrées Utilisateur'!C66 -> 0.24 | K50: Saison 1 | O50: Saison 2
D51: Tarif pointe matin été | E51: DT/kWh | G51: ='Entrées Utilisateur'!C67 -> 0.366 | K51: début (mois) | L51: fin (mois) | M51: début (heure) | N51: fin (heure) | O51: début (mois) | P51: fin (mois) | Q51: début (heure) | R51: fin (heure) | S51: début (heure) | T51: fin (heure)
D52: Tarif pointe soir | E52: DT/kWh | G52: ='Entrées Utilisateur'!C68 -> 0.329 | J52: Tarif jour | K52: 9 | L52: 6 | M52: 7 | N52: 18 | O52: 6 | P52: 9 | Q52: 7 | R52: 9 | S52: 14 | T52: 19
D53: Tarif nuit / dim | E53: DT/kWh | G53: ='Entrées Utilisateur'!C69 -> 0.188 | J53: Tarif pointe matin été | K53: 9 | L53: 6 | O53: 6 | P53: 9 | Q53: 9 | R53: 14
J54: Tarif pointe soir | K54: 9 | L54: 6 | M54: 18 | N54: 21 | O54: 6 | P54: 9 | Q54: 19 | R54: 22
D55: TVA payé par le client pour consommation | E55: % | G55: ='Entrées Utilisateur'!C71 -> 0 | J55: Tarif nuit / dim | K55: 9 | L55: 6 | M55: 21 | N55: 7 | O55: 6 | P55: 9 | Q55: 22 | R55: 7
D56: surtaxe municipale | E56: DT/kWh | G56: ='Entrées Utilisateur'!C72 -> 0.005
D58: Tarifs d'Achat de l'Excèdent
D59: Tarif jour | E59: DT/kWh | G59: ='Entrées Utilisateur'!C75 -> 0.115
D60: Tarif pointe matin été | E60: DT/kWh | G60: ='Entrées Utilisateur'!C76 -> 0.182
D61: Tarif pointe soir | E61: DT/kWh | G61: ='Entrées Utilisateur'!C77 -> 0.168
D62: Tarif nuit / dim | E62: DT/kWh | G62: ='Entrées Utilisateur'!C78 -> 0.087
C64: Net-metering | D64: Net-metering
C65: Yearly Consumption | D65: Consommation annuelle | E65: kWh | G65: ='Entrées Utilisateur'!C22 -> 150000
C66: Yearly Consumption | D66: Consommation annuelle appliqué | E66: kWh | F66: 0 | G66: =G65*(1+F66) -> 150000
C67: Average Yearly PV Generation | D67: Production annuelle moyenne | E67: kWh | G67: =SUM('Compensation PV'!N53:N8812) -> 66000
C68: Annual Net-metering Limit | D68: Limite facturation par poste horaire | E68: % | G68: ='Entrées Utilisateur'!C81 -> 0.3
C70: Price Forecast | D70: Valeur de la production PV et projections de prix | G70: =YEAR(Model_Start) -> 2018 | H70: =G70+1 -> 2019 | I70: =H70+1 -> 2020 | J70: =I70+1 -> 2021 | K70: =J70+1 -> 2022 | L70: 2023 | M70: 2024 | N70: 2025 | O70: 2026 | P70: 2027 | Q70: 2028 | R70: 2029 | S70: 2030 | T70: 2031 | U70: 2032 | V70: 2033 | W70: 2034 | X70: 2035 | Y70: 2036 | Z70: 2037 | AA70: 2038 | AB70: 2039 | AC70: 2040 | AD70: 2041 | AE70: 2042 | AF70: 2043 | AG70: 2044 | AH70: 2045
G71: ='Entrées Utilisateur'!D84 -> 0 | H71: ='Entrées Utilisateur'!E84 -> 0.05 | I71: ='Entrées Utilisateur'!G84 -> 0.05 | J71: ='Entrées Utilisateur'!H84 -> 0.05 | K71: ='Entrées Utilisateur'!$I$84 -> 0.05 | L71: ='Entrées Utilisateur'!$I$84 -> 0.05 | M71: ='Entrées Utilisateur'!$I$84 -> 0.05 | N71: ='Entrées Utilisateur'!$I$84 -> 0.05 | O71: ='Entrées Utilisateur'!$I$84 -> 0.05 | P71: ='Entrées Utilisateur'!$I$84 -> 0.05 | Q71: ='Entrées Utilisateur'!$I$84 -> 0.05 | R71: ='Entrées Utilisateur'!$I$84 -> 0.05 | S71: ='Entrées Utilisateur'!$I$84 -> 0.05 | T71: ='Entrées Utilisateur'!$I$84 -> 0.05 | U71: ='Entrées Utilisateur'!$I$84 -> 0.05 | V71: ='Entrées Utilisateur'!$I$84 -> 0.05 | W71: ='Entrées Utilisateur'!$I$84 -> 0.05 | X71: ='Entrées Utilisateur'!$I$84 -> 0.05 | Y71: ='Entrées Utilisateur'!$I$84 -> 0.05 | Z71: ='Entrées Utilisateur'!$I$84 -> 0.05 | AA71: ='Entrées Utilisateur'!$I$84 -> 0.05 | AB71: ='Entrées Utilisateur'!$I$84 -> 0.05 | AC71: ='Entrées Utilisateur'!$I$84 -> 0.05 | AD71: ='Entrées Utilisateur'!$I$84 -> 0.05 | AE71: ='Entrées Utilisateur'!$I$84 -> 0.05 | AF71: ='Entrées Utilisateur'!$I$84 -> 0.05 | AG71: ='Entrées Utilisateur'!$I$84 -> 0.05 | AH71: ='Entrées Utilisateur'!$I$84 -> 0.05
C72: Price Escalation | D72: Augmentation du tarif de vente et de transport | E72: % | F72: -1 | G72: =IF($F$72=-1,G71,$F$72) -> 0 | H72: =IF($F$72=-1,H71,$F$72) -> 0.05 | I72: 0.05 | J72: 0.05 | K72: 0.05 | L72: 0.05 | M72: 0.05 | N72: 0.05 | O72: 0.05 | P72: 0.05 | Q72: 0.05 | R72: 0.05 | S72: 0.05 | T72: 0.05 | U72: 0.05 | V72: 0.05 | W72: 0.05 | X72: 0.05 | Y72: 0.05 | Z72: 0.05 | AA72: 0.05 | AB72: 0.05 | AC72: 0.05 | AD72: 0.05 | AE72: 0.05 | AF72: 0.05 | AG72: 0.05 | AH72: 0.05
D73: Augmentation du tarif d'achat de l'excédent | E73: % | G73: ='Entrées Utilisateur'!D85 -> 0 | H73: ='Entrées Utilisateur'!E85 -> 0.05 | I73: ='Entrées Utilisateur'!G85 -> 0.05 | J73: ='Entrées Utilisateur'!H85 -> 0.05 | K73: ='Entrées Utilisateur'!I85 -> 0.05 | L73: ='Entrées Utilisateur'!J85 -> 0 | M73: =L73 -> 0 | N73: 0 | O73: 0 | P73: 0 | Q73: 0 | R73: 0 | S73: 0 | T73: 0 | U73: 0 | V73: 0 | W73: 0 | X73: 0 | Y73: 0 | Z73: 0 | AA73: 0 | AB73: 0 | AC73: 0 | AD73: 0 | AE73: 0 | AF73: 0 | AG73: 0 | AH73: 0
D74: Valeur de l’électricité PV pour le consommateur (venant de la partie de la production PV autoconsommée - le cout du transport) | G74: ='Compensation PV'!C44 -> 0.2897119652 | H74: =G74*(1+H72) -> 0.3041975635 | I74: =H74*(1+I72) -> 0.3194074417 | J74: 0.3353778137 | K74: 0.3521467044 | L74: 0.3697540397 | M74: 0.3882417416 | N74: 0.4076538287 | O74: 0.4280365202 | P74: 0.4494383462 | Q74: 0.4719102635 | R74: 0.4955057766 | S74: 0.5202810655 | T74: 0.5462951188 | U74: 0.5736098747 | V74: 0.6022903684 | W74: 0.6324048868 | X74: 0.6640251312 | Y74: 0.6972263877 | Z74: 0.7320877071 | AA74: 0.7686920925 | AB74: 0.8071266971 | AC74: 0.847483032 | AD74: 0.8898571836 | AE74: 0.9343500427 | AF74: 0.9810675449 | AG74: 1.030120922 | AH74: 1.081626968
D75: Valeur de l’électricité PV pour le consommateur (venant de la partie de la production PV vendu comme excédent) | G75: ='Compensation PV'!C45 -> 0 | H75: =G75*(1+H73) -> 0 | I75: =H75*(1+I73) -> 0 | J75: 0 | K75: 0 | L75: 0 | M75: 0 | N75: 0 | O75: 0 | P75: 0 | Q75: 0 | R75: 0 | S75: 0 | T75: 0 | U75: 0 | V75: 0 | W75: 0 | X75: 0 | Y75: 0 | Z75: 0 | AA75: 0 | AB75: 0 | AC75: 0 | AD75: 0 | AE75: 0 | AF75: 0 | AG75: 0 | AH75: 0
C76: Escalated Price | D76: Valeur de l’électricité PV pour le consommateur (totale) | E76: DT/kWh | G76: =G74+G75 -> 0.2897119652 | H76: =SUM(H74:H75) -> 0.3041975635 | I76: =SUM(I74:I75) -> 0.3194074417 | J76: 0.3353778137 | K76: 0.3521467044 | L76: 0.3697540397 | M76: 0.3882417416 | N76: 0.4076538287 | O76: 0.4280365202 | P76: 0.4494383462 | Q76: 0.4719102635 | R76: 0.4955057766 | S76: 0.5202810655 | T76: 0.5462951188 | U76: 0.5736098747 | V76: 0.6022903684 | W76: 0.6324048868 | X76: 0.6640251312 | Y76: 0.6972263877 | Z76: 0.7320877071 | AA76: 0.7686920925 | AB76: 0.8071266971 | AC76: 0.847483032 | AD76: 0.8898571836 | AE76: 0.9343500427 | AF76: 0.9810675449 | AG76: 1.030120922 | AH76: 1.081626968
C78: OpEx | D78: Coûts d’exploitation
C79: O&M | D79: Exploitation & Maintenance
C80: Fixed Operation Costs | D80: Coûts fixes d'exploitation | E80: % de l'investissement | G80: ='Entrées Utilisateur'!C89 -> 0.015
C81: Fixed Operation Costs | D81: Coûts fixes d'exploitation | E81: DT/p.a. | G81: =G80*G22 -> 1275
C83: Cost Categories | D83: Catégories de coûts
C84: Absolute Costs | D84: Coûts fixes
C85: Fixed Operation | D85: Coût d'exploitation fixe | E85: DT p.a. | G85: =G81 -> 1275
C86: Spare | D86: Autre | E86: DT p.a. | G86: ='Entrées Utilisateur'!C93 -> 0
C87: Spare | D87: Autre | E87: DT p.a. | G87: ='Entrées Utilisateur'!C94 -> 0
C88: Spare | D88: Autre | E88: DT p.a. | G88: ='Entrées Utilisateur'!C95 -> 0
C89: Spare | D89: Autre | E89: DT p.a. | G89: ='Entrées Utilisateur'!C96 -> 0
C90: Total | D90: Sommaire | E90: DT p.a. | G90: =SUM(G85:G89) -> 1275
C92: Variable Costs | D92: Coûts variables
C93: Land Lease | D93: Bail Foncier | E93: DT/kWh | G93: ='Entrées Utilisateur'!C99 -> 0
C94: Spare | D94: Autre | E94: DT/kWh | G94: ='Entrées Utilisateur'!C100 -> 0
C95: Spare | D95: Autre | E95: DT/kWh | G95: ='Entrées Utilisateur'!C101 -> 0
C96: Spare | D96: Autre | E96: DT/kWh | G96: ='Entrées Utilisateur'!C102 -> 0
C97: Total | D97: Sommaire | E97: DT/kWh | G97: =SUM(G93:G96) -> 0
C99: Ongoing CapEx | D99: Dépenses en immobilisations permanentes (valeure nominale)
G100: 1 | H100: 2 | I100: 3 | J100: 4 | K100: 5 | L100: 6 | M100: 7 | N100: 8 | O100: 9 | P100: 10 | Q100: 11 | R100: 12 | S100: 13 | T100: 14 | U100: 15 | V100: 16 | W100: 17 | X100: 18 | Y100: 19 | Z100: 20
C101: Spare | D101: Autre | E101: DT | G101: ='Entrées Utilisateur'!D106 -> 0 | H101: ='Entrées Utilisateur'!E106 -> 0 | I101: ='Entrées Utilisateur'!G106 -> 0 | J101: ='Entrées Utilisateur'!H106 -> 0 | K101: ='Entrées Utilisateur'!I106 -> 0 | L101: ='Entrées Utilisateur'!J106 -> 0 | M101: ='Entrées Utilisateur'!K106 -> 0 | N101: ='Entrées Utilisateur'!L106 -> 0 | O101: ='Entrées Utilisateur'!M106 -> 0 | P101: ='Entrées Utilisateur'!N106 -> 0 | Q101: ='Entrées Utilisateur'!O106 -> 0 | R101: ='Entrées Utilisateur'!P106 -> 0 | S101: ='Entrées Utilisateur'!Q106 -> 0 | T101: ='Entrées Utilisateur'!R106 -> 0 | U101: ='Entrées Utilisateur'!S106 -> 0 | V101: ='Entrées Utilisateur'!T106 -> 0 | W101: ='Entrées Utilisateur'!U106 -> 0 | X101: ='Entrées Utilisateur'!V106 -> 0 | Y101: ='Entrées Utilisateur'!W106 -> 0 | Z101: ='Entrées Utilisateur'!X106 -> 0
C102: Spare | D102: Autre | E102: DT | G102: ='Entrées Utilisateur'!D107 -> 0 | H102: ='Entrées Utilisateur'!E107 -> 0 | I102: ='Entrées Utilisateur'!G107 -> 0 | J102: ='Entrées Utilisateur'!H107 -> 0 | K102: ='Entrées Utilisateur'!I107 -> 0 | L102: ='Entrées Utilisateur'!J107 -> 0 | M102: ='Entrées Utilisateur'!K107 -> 0 | N102: ='Entrées Utilisateur'!L107 -> 0 | O102: ='Entrées Utilisateur'!M107 -> 0 | P102: ='Entrées Utilisateur'!N107 -> 0 | Q102: ='Entrées Utilisateur'!O107 -> 0 | R102: ='Entrées Utilisateur'!P107 -> 0 | S102: ='Entrées Utilisateur'!Q107 -> 0 | T102: ='Entrées Utilisateur'!R107 -> 0 | U102: ='Entrées Utilisateur'!S107 -> 0 | V102: ='Entrées Utilisateur'!T107 -> 0 | W102: ='Entrées Utilisateur'!U107 -> 0 | X102: ='Entrées Utilisateur'!V107 -> 0 | Y102: ='Entrées Utilisateur'!W107 -> 0 | Z102: ='Entrées Utilisateur'!X107 -> 0
C103: Spare | D103: Autre | E103: DT | G103: ='Entrées Utilisateur'!D108 -> 0 | H103: ='Entrées Utilisateur'!E108 -> 0 | I103: ='Entrées Utilisateur'!G108 -> 0 | J103: ='Entrées Utilisateur'!H108 -> 0 | K103: ='Entrées Utilisateur'!I108 -> 0 | L103: ='Entrées Utilisateur'!J108 -> 0 | M103: ='Entrées Utilisateur'!K108 -> 0 | N103: ='Entrées Utilisateur'!L108 -> 0 | O103: ='Entrées Utilisateur'!M108 -> 0 | P103: ='Entrées Utilisateur'!N108 -> 0 | Q103: ='Entrées Utilisateur'!O108 -> 0 | R103: ='Entrées Utilisateur'!P108 -> 0 | S103: ='Entrées Utilisateur'!Q108 -> 0 | T103: ='Entrées Utilisateur'!R108 -> 0 | U103: ='Entrées Utilisateur'!S108 -> 0 | V103: ='Entrées Utilisateur'!T108 -> 0 | W103: ='Entrées Utilisateur'!U108 -> 0 | X103: ='Entrées Utilisateur'!V108 -> 0 | Y103: ='Entrées Utilisateur'!W108 -> 0 | Z103: ='Entrées Utilisateur'!X108 -> 0
C105: Funding | D105: Financement
C106: Senior Debt | D106: Dette de premier rang
C107: Fixed Debt Limit | D107: Limite | E107: DT | G107: ='Entrées Utilisateur'!C112 -> 200000
C108: Debt Gearing Base Case | D108: Ratio | E108: % | G108: ='Entrées Utilisateur'!C113 -> 0.7
C109: Selection | D109: Sélection | F109: Ratio | G109: =IF(F109=D108,G108,G107) -> 0.7
C110: Applied Debt Limit | D110: Limite d'endettement appliquée | F110: 0 | G110: =(1+F110)*IF(G109=G108,G22*G109,G107) -> 59500
D112: Ratio d´endettement | E112: % | G112: =G110/G22 -> 0.7
C114: Period | D114: Période | G114: Cons | H114: 1 | I114: 2 | J114: 3 | K114: 4
C115: Margin | D115: Marge | E115: % p.a. | G115: ='Entrées Utilisateur'!D117 -> 0.0125 | H115: ='Entrées Utilisateur'!E117 -> 0.0125 | I115: ='Entrées Utilisateur'!G117 -> 0.0125 | J115: ='Entrées Utilisateur'!H117 -> 0.0125 | K115: ='Entrées Utilisateur'!I117 -> 0.0125
F116: 0.35
C117: Financing Fees | D117: Frais de financement
C118: Upfront Fee | D118: Commission initiale | E118: % crédit | G118: ='Entrées Utilisateur'!C120 -> 0.01 | H118: =G110*G118 -> 595
C119: Commitment Fee | D119: Commission d'engagement | E119: % marge | G119: ='Entrées Utilisateur'!C121 -> 0.25
C120: Commitment Fee | D120: Commission d'engagement | E120: % p.a. | G120: =G115*G119 -> 0.003125
C122: Repayment Terms | D122: Modalités de remboursement
D123: Durée du crédit | E123: an(s) | G123: ='Entrées Utilisateur'!C124 -> 10 | I123: From | J123: To
D124: Durée du crédit appliquée | E124: an(s) | F124: 0 | G124: =G123+F124 -> 10 | I124: =G14 -> 2019-01-01 | J124: =EOMONTH(I124,G124*12-1) -> 2028-12-31
C125: Tenor | D125: Délai de grâce | E125: an(s) | G125: ='Entrées Utilisateur'!C125 -> 0 | I125: =I124 -> 2019-01-01 | J125: =EOMONTH(I125,G125*12-1) -> 2018-12-31
C127: Equity | D127: Capitaux propres
C128: Equity | D128: Capitaux propres
C129: Initial Equity | D129: Capital initial | E129: DT | G129: =IF(G110>Construction!I20,0,Construction!I20-G110) -> 25500
C130: Additional Equity | D130: Capitaux propres supplémentaires | E130: DT | G130: =ROUND(-Construction!I32,6) -> 610.791952
C131: Total | D131: Total | E131: DT | G131: =SUM(G129:G130) -> 26110.79195
C133: WACC | D133: Coût moyen pondéré du capital
C134: Target Equity IRR | D134: Taux d'actualisation | E134: % | G134: ='Entrées Utilisateur'!C129 -> 0.08
C135: Debt All-in Rate | D135: Taux global de la dette | E135: % | G135: =AVERAGE(G142:J142)+AVERAGE(G115:K115) -> 0.08125
C136: WACC nominal | D136: Coût moyen pondéré du capital | E136: % | G136: =(G110/(G110+G131))*G135+(G131/(G110+G131))*G134 -> 0.08086875729
C138: Macroeconomics | D138: Elements macroéconomiques
C139: Interest Rate | D139: Taux d'intérêt
C140: Calendar Year | D140: Année civile | G140: =YEAR(Model_Start) -> 2018 | H140: =G140+1 -> 2019 | I140: =H140+1 -> 2020 | J140: =I140+1 -> 2021
D141: Taux de référence | E141: % p.a. | G141: ='Entrées Utilisateur'!D134 -> 0.0775 | H141: ='Entrées Utilisateur'!E134 -> 0.0775 | I141: ='Entrées Utilisateur'!G134 -> 0.0775 | J141: ='Entrées Utilisateur'!H134 -> 0.0425
C142: Base Rate | D142: Taux appliqué | E142: % p.a. | F142: 0 | G142: =G141*(1+$F$142) -> 0.0775 | H142: =H141*(1+$F$142) -> 0.0775 | I142: =I141*(1+$F$142) -> 0.0775 | J142: =J141*(1+$F$142) -> 0.0425
C144: Cost Escalation | D144: Inflation
C145: Calendar Year | D145: Année civile | G145: =YEAR(Model_Start) -> 2018 | H145: =G145+1 -> 2019 | I145: =H145+1 -> 2020 | J145: =I145+1 -> 2021
C146: Escalation Rate | D146: Taux d'augmentation | E146: % p.a. | G146: ='Entrées Utilisateur'!D138 -> 0.075 | H146: ='Entrées Utilisateur'!E138 -> 0.075 | I146: ='Entrées Utilisateur'!G138 -> 0.075 | J146: ='Entrées Utilisateur'!H138 -> 0.04

Sheet Courbes de Charge
B2: Courbe de Charge Moyenne
H3: Courbe de charge moyenne, Graphique
C4: Site 1 | D4: Site 2 | E4: Site 3 | F4: Site 4
B5: Type de client | C5: ='Entrées Utilisateur'!C21 -> Hôtellerie | D5: ='Entrées Utilisateur'!I21 -> Industrie Plastique | E5: ='Entrées Utilisateur'!C27 -> Aucun | F5: ='Entrées Utilisateur'!I27 -> Aucun | H5: Hôpital | J5: =HYPERLINK("#"&ADDRESS(ROW(),COLUMN()-1),CHAR(128)) -> €
B6: Consommation annuelle moyenne (kWh, le cas échéant) | C6: =Données!G66 -> 150000 | D6: ='Entrées Utilisateur'!I22 -> 150000 | E6: ='Entrées Utilisateur'!C28 -> 200000 | F6: ='Entrées Utilisateur'!I28 -> 150000 | H6: Mois | I6: septembre | J6: =HYPERLINK("#"&ADDRESS(ROW(),COLUMN()-1),CHAR(128)) -> €
B7: facteur de multiplication de la courbe de charge | C7: =IF(C5="Aucun",0,IF(C5="Saisie Manuelle",1,IF(C6>0,C6/SUM(T12:T8771),1))) -> 0.1653258738 | D7: =IF(D5="Aucun",0,IF(D5="Saisie Manuelle",1,IF(D6>0,D6/SUM(U12:U8771),1))) -> 3.105796748 | E7: =IF(E5="Aucun",0,IF(E5="Saisie Manuelle",1,IF(E6>0,E6/SUM(V12:V8771),1))) -> 0 | F7: =IF(F5="Aucun",0,IF(F5="Saisie Manuelle",1,IF(F6>0,F6/SUM(W12:W8771),1))) -> 0
B8: Saisie Manuelle: Entrer l'année des données | C8: 2020
AG10: ="Moyenne Mensuelle - "&I6 -> Moyenne Mensuelle - septembre
B11: mois | C11: jour | D11: heure | E11: Saisie Manuelle Site 1 | F11: Saisie Manuelle Site 2 | G11: Saisie Manuelle Site 3 | H11: Saisie Manuelle Site 4 | I11: Administration | J11: Education | K11: Hôtellerie | L11: Elevage | M11: Huilerie | N11: Atelier mécanique | O11: Hôpital | P11: Industrie Plastique | Q11: Industrie textile / cuire | R11: SONEDE | T11: selection Site 1 | U11: selection Site 2 | V11: selection Site 3 | W11: selection Site 4 | AE11: =H5&" - "&I6 -> Hôpital - septembre | AF11: ="PV "&'Entrées Utilisateur'!C34&" "&'Entrées Utilisateur'!C35&" - "&I6 -> PV Tunis Sud - septembre | AG11: =H5 -> Hôpital | AH11: ="PV "&'Entrées Utilisateur'!C34&" "&'Entrées Utilisateur'!C35 -> PV Tunis Sud
A12: 2 | B12: 1 | C12: 1 | D12: 0 | I12: 17.5 | J12: 2 | K12: 125.5 | L12: 1 | M12: 16 | N12: 0 | O12: 25.6 | P12: 1 | Q12: 1.850406413 | R12: 0.28 | T12: =IF($C$5="Saisie Manuelle",E12,IF($C$5="Aucun",0,HLOOKUP($C$5,$I$11:$R$8771,A12,FALSE))) -> 125.5 | U12: =IF($D$5="Saisie Manuelle",F12,IF($D$5="Aucun",0,HLOOKUP($D$5,$I$11:$R$8771,A12,FALSE))) -> 1 | V12: =IF($E$5="Saisie Manuelle",G12,IF($E$5="Aucun",0,HLOOKUP($E$5,$I$11:$R$8771,A12,FALSE))) -> 0 | W12: =IF($F$5="Saisie Manuelle",H12,IF($F$5="Aucun",0,HLOOKUP($F$5,$I$11:$R$8771,A12,FALSE))) -> 0 | X12: ='Courbes de Production PV'!AD10 -> 0 | Y12: =HLOOKUP($H$5,$E$11:$R$8771,A12,FALSE) -> 25.6 | Z12: janvier | AC12: 0 | AD12: =VLOOKUP(I6,$AK$12:$AL$23,2,FALSE) -> 9 | AE12: =AVERAGEIFS($Y$12:$Y$8771,$D$12:$D$8771,AC12,$B$12:$B$8771,AD12) -> 55.66666667 | AF12: =AVERAGEIFS($X$12:$X$8771,$D$12:$D$8771,AC12,$B$12:$B$8771,AD12)/Données!$G$35 -> 0 | AG12: =AVERAGEIF($D$12:$D$8771,AC12,$Y$12:$Y$8771) -> 43.16739726 | AH12: =AVERAGEIF($D$12:$D$8771,AC12,$X$12:$X$8771) -> 0 | AK12: janvier | AL12: 1
A13: =A12+1 -> 3 | B13: 1 | C13: 1 | D13: 1 | I13: 18 | J13: 2 | K13: 119 | L13: 1 | M13: 16 | N13: 0 | O13: 31.7 | P13: 2 | Q13: 2.176948721 | R13: 0.23 | T13: =IF($C$5="Saisie Manuelle",E13,IF($C$5="Aucun",0,HLOOKUP($C$5,$I$11:$R$8771,A13,FALSE))) -> 119 | U13: =IF($D$5="Saisie Manuelle",F13,IF($D$5="Aucun",0,HLOOKUP($D$5,$I$11:$R$8771,A13,FALSE))) -> 2 | V13: =IF($E$5="Saisie Manuelle",G13,IF($E$5="Aucun",0,HLOOKUP($E$5,$I$11:$R$8771,A13,FALSE))) -> 0 | W13: =IF($F$5="Saisie Manuelle",H13,IF($F$5="Aucun",0,HLOOKUP($F$5,$I$11:$R$8771,A13,FALSE))) -> 0 | X13: ='Courbes de Production PV'!AD11 -> 0 | Y13: 31.7 | Z13: février | AC13: 1 | AD13: =AD12 -> 9 | AE13: =AVERAGEIFS($Y$12:$Y$8771,$D$12:$D$8771,AC13,$B$12:$B$8771,AD13) -> 51.86 | AF13: =AVERAGEIFS($X$12:$X$8771,$D$12:$D$8771,AC13,$B$12:$B$8771,AD13)/Données!$G$35 -> 0 | AG13: =AVERAGEIF($D$12:$D$8771,AC13,$Y$12:$Y$8771) -> 41.31452055 | AH13: =AVERAGEIF($D$12:$D$8771,AC13,$X$12:$X$8771) -> 0 | AK13: février | AL13: 2
A14: =A13+1 -> 4 | B14: 1 | C14: 1 | D14: 2 | I14: 17 | J14: 2 | K14: 111 | L14: 1 | M14: 13 | N14: 0 | O14: 31.9 | P14: 2 | Q14: 2.285796157 | R14: 0.23 | T14: 111 | U14: 2 | V14: 0 | W14: 0 | X14: ='Courbes de Production PV'!AD12 -> 0 | Y14: 31.9 | Z14: mars | AC14: 2 | AD14: =AD13 -> 9 | AE14: 51.80333333 | AF14: =AVERAGEIFS($X$12:$X$8771,$D$12:$D$8771,AC14,$B$12:$B$8771,AD14)/Données!$G$35 -> 0 | AG14: 41.0860274 | AH14: 0 | AK14: mars | AL14: 3
A15: 5 | B15: 1 | C15: 1 | D15: 3 | I15: 17 | J15: 2 | K15: 106 | L15: 1 | M15: 16 | N15: 0 | O15: 31.9 | P15: 2 | Q15: 2.176948721 | R15: 0.24 | T15: 106 | U15: 2 | V15: 0 | W15: 0 | X15: ='Courbes de Production PV'!AD13 -> 0 | Y15: 31.9 | Z15: avril | AC15: 3 | AD15: 9 | AE15: 46.89666667 | AF15: =AVERAGEIFS($X$12:$X$8771,$D$12:$D$8771,AC15,$B$12:$B$8771,AD15)/Données!$G$35 -> 0 | AG15: 38.77287671 | AH15: 0 | AK15: avril | AL15: 4
A16: 6 | B16: 1 | C16: 1 | D16: 4 | I16: 17 | J16: 2 | K16: 104.5 | L16: 2 | M16: 12 | N16: 0 | O16: 45.1 | P16: 2 | Q16: 2.394643593 | R16: 0.24 | T16: 104.5 | U16: 2 | V16: 0 | W16: 0 | X16: ='Courbes de Production PV'!AD14 -> 0 | Y16: 45.1 | Z16: mai | AC16: 4 | AD16: 9 | AE16: 47.44333333 | AF16: =AVERAGEIFS($X$12:$X$8771,$D$12:$D$8771,AC16,$B$12:$B$8771,AD16)/Données!$G$35 -> 0 | AG16: 39.42465753 | AH16: 0 | AK16: mai | AL16: 5
A17: 7 | B17: 1 | C17: 1 | D17: 5 | I17: 16.5 | J17: 2 | K17: 112.5 | L17: 1 | M17: 12 | N17: 0 | O17: 52.9 | P17: 2 | Q17: 1.415016668 | R17: 0.29 | T17: 112.5 | U17: 2 | V17: 0 | W17: 0 | X17: ='Courbes de Production PV'!AD15 -> 0 | Y17: 52.9 | Z17: juin | AC17: 5 | AD17: 9 | AE17: 46.14333333 | AF17: =AVERAGEIFS($X$12:$X$8771,$D$12:$D$8771,AC17,$B$12:$B$8771,AD17)/Données!$G$35 -> 0 | AG17: 38.91369863 | AH17: 0.1830490279 | AK17: juin | AL17: 6
A18: 8 | B18: 1 | C18: 1 | D18: 6 | I18: 19.5 | J18: 2 | K18: 111.5 | L18: 2 | M18: 17 | N18: 0 | O18: 48.2 | P18: 2 | Q18: 1.415016668 | R18: 0.19 | T18: 111.5 | U18: 2 | V18: 0 | W18: 0 | X18: ='Courbes de Production PV'!AD16 -> 0 | Y18: 48.2 | Z18: juillet | AC18: 6 | AD18: 9 | AE18: 47.1 | AF18: =AVERAGEIFS($X$12:$X$8771,$D$12:$D$8771,AC18,$B$12:$B$8771,AD18)/Données!$G$35 -> 0.06534688023 | AG18: 39.98712329 | AH18: 1.934186199 | AK18: juillet | AL18: 7
A19: 9 | B19: 1 | C19: 1 | D19: 7 | I19: 17 | J19: 1 | K19: 109.5 | L19: 1 | M19: 15 | N19: 0 | O19: 48.7 | P19: 2 | Q19: 1.306169232 | R19: 0.18 | T19: 109.5 | U19: 2 | V19: 0 | W19: 0 | X19: ='Courbes de Production PV'!AD17 -> 0.7964947346 | Y19: 48.7 | Z19: août | AC19: 7 | AD19: 9 | AE19: 59.30333333 | AF19: =AVERAGEIFS($X$12:$X$8771,$D$12:$D$8771,AC19,$B$12:$B$8771,AD19)/Données!$G$35 -> 0.2552969751 | AG19: 52.41068493 | AH19: 8.131249791 | AK19: août | AL19: 8
A20: 10 | B20: 1 | C20: 1 | D20: 8 | I20: 19 | J20: 0.5 | K20: 113 | L20: 1 | M20: 13 | N20: 0 | O20: 37.2 | P20: 2 | Q20: 1.306169232 | R20: 0.18 | T20: 113 | U20: 2 | V20: 0 | W20: 0 | X20: ='Courbes de Production PV'!AD18 -> 1.895552719 | Y20: 37.2 | Z20: septembre | AC20: 8 | AD20: 9 | AE20: 62.99 | AF20: =AVERAGEIFS($X$12:$X$8771,$D$12:$D$8771,AC20,$B$12:$B$8771,AD20)/Données!$G$35 -> 0.4359757825 | AG20: 55.45945205 | AH20: 14.8767706 | AK20: septembre | AL20: 9
A21: 11 | B21: 1 | C21: 1 | D21: 9 | I21: 17.5 | J21: 0.5 | K21: 122.5 | L21: 2 | M21: 19 | N21: 0 | O21: 35.3 | P21: 2 | Q21: 1.415016668 | R21: 0.17 | T21: 122.5 | U21: 2 | V21: 0 | W21: 0 | X21: ='Courbes de Production PV'!AD19 -> 7.426296127 | Y21: 35.3 | Z21: octobre | AC21: 9 | AD21: 9 | AE21: 64.31 | AF21: =AVERAGEIFS($X$12:$X$8771,$D$12:$D$8771,AC21,$B$12:$B$8771,AD21)/Données!$G$35 -> 0.56910697 | AG21: 55.62219178 | AH21: 20.37705183 | AK21: octobre | AL21: 10
A22: 12 | B22: 1 | C22: 1 | D22: 10 | I22: 21 | J22: 0.5 | K22: 113 | L22: 5 | M22: 14 | N22: 0 | O22: 33.9 | P22: 2 | Q22: 1.523864104 | R22: 0.18 | T22: 113 | U22: 2 | V22: 0 | W22: 0 | X22: ='Courbes de Production PV'!AD20 -> 7.737722748 | Y22: 33.9 | Z22: novembre | AC22: 10 | AD22: 9 | AE22: 66.54666667 | AF22: =AVERAGEIFS($X$12:$X$8771,$D$12:$D$8771,AC22,$B$12:$B$8771,AD22)/Données!$G$35 -> 0.6498207194 | AG22: 57.66465753 | AH22: 24.04398398 | AK22: novembre | AL22: 11
A23: 13 | B23: 1 | C23: 1 | D23: 11 | I23: 17.5 | J23: 1 | K23: 111.5 | L23: 2 | M23: 19 | N23: 0 | O23: 34.9 | P23: 3 | Q23: 1.415016668 | R23: 0.18 | T23: 111.5 | U23: 3 | V23: 0 | W23: 0 | X23: ='Courbes de Production PV'!AD21 -> 9.752528093 | Y23: 34.9 | Z23: décembre | AC23: 11 | AD23: 9 | AE23: 73.41666667 | AF23: =AVERAGEIFS($X$12:$X$8771,$D$12:$D$8771,AC23,$B$12:$B$8771,AD23)/Données!$G$35 -> 0.6947418944 | AG23: 61.12 | AH23: 25.8839701 | AK23: décembre | AL23: 12
A24: 14 | B24: 1 | C24: 1 | D24: 12 | I24: 13.5 | J24: 1 | K24: 110 | L24: 2 | M24: 13 | N24: 0 | O24: 32.6 | P24: 2 | Q24: 1.306169232 | R24: 0.18 | T24: 110 | U24: 2 | V24: 0 | W24: 0 | X24: ='Courbes de Production PV'!AD22 -> 11.71898778 | Y24: 32.6 | AC24: 12 | AD24: 9 | AE24: 71.01 | AF24: =AVERAGEIFS($X$12:$X$8771,$D$12:$D$8771,AC24,$B$12:$B$8771,AD24)/Données!$G$35 -> 0.6073020551 | AG24: 59.95780822 | AH24: 25.07543862
A25: 15 | B25: 1 | C25: 1 | D25: 13 | I25: 16 | J25: 0.5 | K25: 105 | L25: 6 | M25: 19 | N25: 0 | O25: 49.9 | P25: 3 | Q25: 1.306169232 | R25: 0.18 | T25: 105 | U25: 3 | V25: 0 | W25: 0 | X25: ='Courbes de Production PV'!AD23 -> 8.592635154 | Y25: 49.9 | AC25: 13 | AD25: 9 | AE25: 61.61333333 | AF25: =AVERAGEIFS($X$12:$X$8771,$D$12:$D$8771,AC25,$B$12:$B$8771,AD25)/Données!$G$35 -> 0.5495709591 | AG25: 49.95260274 | AH25: 22.22351163
A26: 16 | B26: 1 | C26: 1 | D26: 14 | I26: 17 | J26: 1 | K26: 100 | L26: 4 | M26: 14 | N26: 0 | O26: 32.6 | P26: 3 | Q26: 1.415016668 | R26: 0.63 | T26: 100 | U26: 3 | V26: 0 | W26: 0 | X26: ='Courbes de Production PV'!AD24 -> 6.614089053 | Y26: 32.6 | AC26: 14 | AD26: 9 | AE26: 58.98666667 | AF26: =AVERAGEIFS($X$12:$X$8771,$D$12:$D$8771,AC26,$B$12:$B$8771,AD26)/Données!$G$35 -> 0.448208913 | AG26: 47.01506849 | AH26: 18.23495281
A27: 17 | B27: 1 | C27: 1 | D27: 15 | I27: 15 | J27: 0.5 | K27: 95 | L27: 3 | M27: 14 | N27: 0 | O27: 31.9 | P27: 4 | Q27: 1.306169232 | R27: 0.18 | T27: 95 | U27: 4 | V27: 0 | W27: 0 | X27: ='Courbes de Production PV'!AD25 -> 3.29314515 | Y27: 31.9 | AC27: 15 | AD27: 9 | AE27: 62.26666667 | AF27: =AVERAGEIFS($X$12:$X$8771,$D$12:$D$8771,AC27,$B$12:$B$8771,AD27)/Données!$G$35 -> 0.3058776137 | AG27: 49.01068493 | AH27: 12.52194074
A28: 18 | B28: 1 | C28: 1 | D28: 16 | I28: 14.5 | J28: 0.5 | K28: 98 | L28: 5 | M28: 17 | N28: 0 | O28: 33.2 | P28: 2 | Q28: 1.415016668 | R28: 0.18 | T28: 98 | U28: 2 | V28: 0 | W28: 0 | X28: ='Courbes de Production PV'!AD26 -> 2.376592028 | Y28: 33.2 | AC28: 16 | AD28: 9 | AE28: 60.77 | AF28: =AVERAGEIFS($X$12:$X$8771,$D$12:$D$8771,AC28,$B$12:$B$8771,AD28)/Données!$G$35 -> 0.1566083767 | AG28: 47.91671233 | AH28: 6.059079782
A29: 19 | B29: 1 | C29: 1 | D29: 17 | I29: 19 | J29: 1.5 | K29: 109.5 | L29: 3 | M29: 13 | N29: 0 | O29: 31.9 | P29: 2 | Q29: 1.306169232 | R29: 0.21 | T29: 109.5 | U29: 2 | V29: 0 | W29: 0 | X29: ='Courbes de Production PV'!AD27 -> 0 | Y29: 31.9 | AC29: 17 | AD29: 9 | AE29: 62.59666667 | AF29: =AVERAGEIFS($X$12:$X$8771,$D$12:$D$8771,AC29,$B$12:$B$8771,AD29)/Données!$G$35 -> 0.01388561192 | AG29: 50.43287671 | AH29: 1.155052854
A30: 20 | B30: 1 | C30: 1 | D30: 18 | I30: 22 | J30: 2 | K30: 129 | L30: 2 | M30: 19 | N30: 0 | O30: 35.3 | P30: 3 | Q30: 1.306169232 | R30: 0.21 | T30: 129 | U30: 3 | V30: 0 | W30: 0 | X30: ='Courbes de Production PV'!AD28 -> 0 | Y30: 35.3 | AC30: 18 | AD30: 9 | AE30: 61.45333333 | AF30: =AVERAGEIFS($X$12:$X$8771,$D$12:$D$8771,AC30,$B$12:$B$8771,AD30)/Données!$G$35 -> 0 | AG30: 50.47013699 | AH30: 0.1216798429
A31: 21 | B31: 1 | C31: 1 | D31: 19 | I31: 21.5 | J31: 2 | K31: 131.5 | L31: 2 | M31: 13 | N31: 0 | O31: 33.2 | P31: 3 | Q31: 1.306169232 | R31: 0.22 | T31: 131.5 | U31: 3 | V31: 0 | W31: 0 | X31: ='Courbes de Production PV'!AD29 -> 0 | Y31: 33.2 | AC31: 19 | AD31: 9 | AE31: 63.68666667 | AF31: =AVERAGEIFS($X$12:$X$8771,$D$12:$D$8771,AC31,$B$12:$B$8771,AD31)/Données!$G$35 -> 0 | AG31: 51.95452055 | AH31: 0
A32: 22 | B32: 1 | C32: 1 | D32: 20 | I32: 20.5 | J32: 2.5 | K32: 128.5 | L32: 2 | M32: 20 | N32: 0 | O32: 33.4 | P32: 3 | Q32: 1.741558977 | R32: 0.23 | T32: 128.5 | U32: 3 | V32: 0 | W32: 0 | X32: ='Courbes de Production PV'!AD30 -> 0 | Y32: 33.4 | AC32: 20 | AD32: 9 | AE32: 63.44666667 | AF32: =AVERAGEIFS($X$12:$X$8771,$D$12:$D$8771,AC32,$B$12:$B$8771,AD32)/Données!$G$35 -> 0 | AG32: 50.74575342 | AH32: 0
A33: 23 | B33: 1 | C33: 1 | D33: 21 | I33: 19.5 | J33: 2 | K33: 106.5 | L33: 2 | M33: 14 | N33: 0 | O33: 33.2 | P33: 3 | Q33: 2.068101285 | R33: 0.3 | T33: 106.5 | U33: 3 | V33: 0 | W33: 0 | X33: ='Courbes de Production PV'!AD31 -> 0 | Y33: 33.2 | AC33: 21 | AD33: 9 | AE33: 63.45333333 | AF33: =AVERAGEIFS($X$12:$X$8771,$D$12:$D$8771,AC33,$B$12:$B$8771,AD33)/Données!$G$35 -> 0 | AG33: 49.64630137 | AH33: 0
A34: 24 | B34: 1 | C34: 1 | D34: 22 | I34: 19.5 | J34: 2 | K34: 98 | L34: 3 | M34: 18 | N34: 0 | O34: 32.8 | P34: 3 | Q34: 2.394643593 | R34: 0.3 | T34: 98 | U34: 3 | V34: 0 | W34: 0 | X34: ='Courbes de Production PV'!AD32 -> 0 | Y34: 32.8 | AC34: 22 | AD34: 9 | AE34: 61.79333333 | AF34: =AVERAGEIFS($X$12:$X$8771,$D$12:$D$8771,AC34,$B$12:$B$8771,AD34)/Données!$G$35 -> 0 | AG34: 47.65945205 | AH34: 0
A35: 25 | B35: 1 | C35: 1 | D35: 23 | I35: 18 | J35: 2 | K35: 104.5 | L35: 1 | M35: 13 | N35: 0 | O35: 32.6 | P35: 3 | Q35: 2.176948721 | R35: 0.24 | T35: 104.5 | U35: 3 | V35: 0 | W35: 0 | X35: ='Courbes de Production PV'!AD33 -> 0 | Y35: 32.6 | AC35: 23 | AD35: 9 | AE35: 57.13333333 | AF35: =AVERAGEIFS($X$12:$X$8771,$D$12:$D$8771,AC35,$B$12:$B$8771,AD35)/Données!$G$35 -> 0 | AG35: 44.53178082 | AH35: 0
A36: 26 | B36: 1 | C36: 2 | D36: 0 | I36: 18 | J36: 2 | K36: 102.5 | L36: 1 | M36: 18 | N36: 0 | O36: 30.9 | P36: 3 | Q36: 2.285796157 | R36: 0.24 | T36: 102.5 | U36: 3 | V36: 0 | W36: 0 | X36: ='Courbes de Production PV'!AD34 -> 0 | Y36: 30.9
A37: 27 | B37: 1 | C37: 2 | D37: 1 | I37: 18 | J37: 2 | K37: 96 | L37: 1 | M37: 14 | N37: 0 | O37: 28.4 | P37: 3 | Q37: 2.176948721 | R37: 0.24 | T37: 96 | U37: 3 | V37: 0 | W37: 0 | X37: ='Courbes de Production PV'!AD35 -> 0 | Y37: 28.4
A38: 28 | B38: 1 | C38: 2 | D38: 2 | I38: 19 | J38: 2 | K38: 84.5 | L38: 1 | M38: 16 | N38: 0 | O38: 29.2 | P38: 3 | Q38: 2.068101285 | R38: 0.24 | T38: 84.5 | U38: 3 | V38: 0 | W38: 0 | X38: ='Courbes de Production PV'!AD36 -> 0 | Y38: 29.2
A39: 29 | B39: 1 | C39: 2 | D39: 3 | I39: 18 | J39: 2 | K39: 85.5 | L39: 1 | M39: 12 | N39: 0 | O39: 27.5 | P39: 3 | Q39: 2.285796157 | R39: 0.23 | T39: 85.5 | U39: 3 | V39: 0 | W39: 0 | X39: ='Courbes de Production PV'!AD37 -> 0 | Y39: 27.5
A40: 30 | B40: 1 | C40: 2 | D40: 4 | I40: 18 | J40: 2 | K40: 81.5 | L40: 3 | M40: 16 | N40: 0 | O40: 28.6 | P40: 3 | Q40: 2.176948721 | R40: 0.3 | T40: 81.5 | U40: 3 | V40: 0 | W40: 0 | X40: ='Courbes de Production PV'!AD38 -> 0 | Y40: 28.6
A41: 31 | B41: 1 | C41: 2 | D41: 5 | I41: 18 | J41: 2 | K41: 91.5 | L41: 2 | M41: 15 | N41: 0 | O41: 26.7 | P41: 3 | Q41: 1.63271154 | R41: 0.24 | T41: 91.5 | U41: 3 | V41: 0 | W41: 0 | X41: ='Courbes de Production PV'!AD39 -> 0 | Y41: 26.7
A42: 32 | B42: 1 | C42: 2 | D42: 6 | I42: 19.5 | J42: 3 | K42: 96 | L42: 1 | M42: 14 | N42: 0 | O42: 30.5 | P42: 3 | Q42: 1.741558977 | R42: 0.61 | T42: 96 | U42: 3 | V42: 0 | W42: 0 | X42: ='Courbes de Production PV'!AD40 -> 0 | Y42: 30.5
A43: 33 | B43: 1 | C43: 2 | D43: 7 | I43: 28 | J43: 7 | K43: 97 | L43: 1 | M43: 13 | N43: 0 | O43: 42.7 | P43: 3 | Q43: 16.21826797 | R43: 0.2 | T43: 97 | U43: 3 | V43: 0 | W43: 0 | X43: ='Courbes de Production PV'!AD41 -> 0.1087777331 | Y43: 42.7
A44: 34 | B44: 1 | C44: 2 | D44: 8 | I44: 36.5 | J44: 22 | K44: 88.5 | L44: 2 | M44: 14 | N44: 0 | O44: 47 | P44: 3 | Q44: 124.5214668 | R44: 0.18 | T44: 88.5 | U44: 3 | V44: 0 | W44: 0 | X44: ='Courbes de Production PV'!AD42 -> 1.478168529 | Y44: 47
A45: 35 | B45: 1 | C45: 2 | D45: 9 | I45: 56.5 | J45: 22 | K45: 89.5 | L45: 2 | M45: 14 | N45: 2 | O45: 46.8 | P45: 3 | Q45: 155.2164438 | R45: 0.23 | T45: 89.5 | U45: 3 | V45: 0 | W45: 0 | X45: ='Courbes de Production PV'!AD43 -> 7.537088263 | Y45: 46.8
A46: 36 | B46: 1 | C46: 2 | D46: 10 | I46: 63 | J46: 20.5 | K46: 87 | L46: 5 | M46: 20 | N46: 2 | O46: 47.2 | P46: 3 | Q46: 200.2792823 | R46: 0.23 | T46: 87 | U46: 3 | V46: 0 | W46: 0 | X46: ='Courbes de Production PV'!AD44 -> 25.94671239 | Y46: 47.2
A47: 37 | B47: 1 | C47: 2 | D47: 11 | I47: 65 | J47: 18 | K47: 91.5 | L47: 3 | M47: 17 | N47: 3 | O47: 46.5 | P47: 3 | Q47: 201.5854515 | R47: 0.17 | T47: 91.5 | U47: 3 | V47: 0 | W47: 0 | X47: ='Courbes de Production PV'!AD45 -> 28.60008332 | Y47: 46.5
A48: 38 | B48: 1 | C48: 2 | D48: 12 | I48: 47.5 | J48: 8 | K48: 88 | L48: 4 | M48: 19 | N48: 2 | O48: 54.6 | P48: 2 | Q48: 149.5563771 | R48: 0.17 | T48: 88 | U48: 2 | V48: 0 | W48: 0 | X48: ='Courbes de Production PV'!AD46 -> 25.89957537 | Y48: 54.6
A49: 39 | B49: 1 | C49: 2 | D49: 13 | I49: 42 | J49: 6 | K49: 89.5 | L49: 4 | M49: 15 | N49: 2 | O49: 68.6 | P49: 3 | Q49: 120.2764168 | R49: 0.17 | T49: 89.5 | U49: 3 | V49: 0 | W49: 0 | X49: ='Courbes de Production PV'!AD47 -> 9.252956282 | Y49: 68.6
A50: 40 | B50: 1 | C50: 2 | D50: 14 | I50: 52 | J50: 13.5 | K50: 79.5 | L50: 4 | M50: 10 | N50: 2 | O50: 48.7 | P50: 3 | Q50: 214.2117541 | R50: 0.18 | T50: 79.5 | U50: 3 | V50: 0 | W50: 0 | X50: ='Courbes de Production PV'!AD48 -> 2.684392725 | Y50: 48.7
A51: 41 | B51: 1 | C51: 2 | D51: 15 | I51: 50.5 | J51: 16.5 | K51: 75 | L51: 5 | M51: 12 | N51: 2 | O51: 46.8 | P51: 3 | Q51: 214.429449 | R51: 0.18 | T51: 75 | U51: 3 | V51: 0 | W51: 0 | X51: ='Courbes de Production PV'!AD49 -> 1.073273633 | Y51: 46.8
A52: 42 | B52: 1 | C52: 2 | D52: 16 | I52: 47.5 | J52: 14 | K52: 78 | L52: 7 | M52: 18 | N52: 0 | O52: 42.7 | P52: 3 | Q52: 213.1232798 | R52: 0.17 | T52: 78 | U52: 3 | V52: 0 | W52: 0 | X52: ='Courbes de Production PV'!AD50 -> 5.029560074 | Y52: 42.7
A53: 43 | B53: 1 | C53: 2 | D53: 17 | I53: 35 | J53: 8 | K53: 98.5 | L53: 4 | M53: 15 | N53: 0 | O53: 31.5 | P53: 3 | Q53: 186.6733528 | R53: 0.2 | T53: 98.5 | U53: 3 | V53: 0 | W53: 0 | X53: ='Courbes de Production PV'!AD51 -> 0 | Y53: 31.5
A54: 44 | B54: 1 | C54: 2 | D54: 18 | I54: 28 | J54: 3 | K54: 122.5 | L54: 3 | M54: 19 | N54: 0 | O54: 34.1 | P54: 2 | Q54: 26.8853167 | R54: 0.23 | T54: 122.5 | U54: 2 | V54: 0 | W54: 0 | X54: ='Courbes de Production PV'!AD52 -> 0 | Y54: 34.1
A55: 45 | B55: 1 | C55: 2 | D55: 19 | I55: 28 | J55: 3 | K55: 120.5 | L55: 2 | M55: 21 | N55: 0 | O55: 33.9 | P55: 3 | Q55: 9.578574371 | R55: 0.23 | T55: 120.5 | U55: 3 | V55: 0 | W55: 0 | X55: ='Courbes de Production PV'!AD53 -> 0 | Y55: 33.9
A56: 46 | B56: 1 | C56: 2 | D56: 20 | I56: 29.5 | J56: 3 | K56: 116 | L56: 2 | M56: 19 | N56: 0 | O56: 34.7 | P56: 3 | Q56: 10.23165899 | R56: 0.24 | T56: 116 | U56: 3 | V56: 0 | W56: 0 | X56: ='Courbes de Production PV'!AD54 -> 0 | Y56: 34.7
A57: 47 | B57: 1 | C57: 2 | D57: 21 | I57: 27.5 | J57: 3.5 | K57: 100.5 | L57: 2 | M57: 18 | N57: 0 | O57: 36.4 | P57: 2 | Q57: 10.8847436 | R57: 0.26 | T57: 100.5 | U57: 2 | V57: 0 | W57: 0 | X57: ='Courbes de Production PV'!AD55 -> 0 | Y57: 36.4
A58: 48 | B58: 1 | C58: 2 | D58: 22 | I58: 27 | J58: 3.5 | K58: 93.5 | L58: 3 | M58: 12 | N58: 0 | O58: 33.4 | P58: 3 | Q58: 6.85738847 | R58: 0.24 | T58: 93.5 | U58: 3 | V58: 0 | W58: 0 | X58: ='Courbes de Production PV'!AD56 -> 0 | Y58: 33.4
A59: 49 | B59: 1 | C59: 2 | D59: 23 | I59: 26 | J59: 3 | K59: 100 | L59: 1 | M59: 17 | N59: 0 | O59: 33.4 | P59: 3 | Q59: 2.176948721 | R59: 0.29 | T59: 100 | U59: 3 | V59: 0 | W59: 0 | X59: ='Courbes de Production PV'!AD57 -> 0 | Y59: 33.4
A60: 50 | B60: 1 | C60: 3 | D60: 0 | I60: 25.5 | J60: 3.5 | K60: 93 | L60: 0 | M60: 13 | N60: 0 | O60: 32.2 | P60: 3 | Q60: 2.285796157 | R60: 0.3 | T60: 93 | U60: 3 | V60: 0 | W60: 0 | X60: ='Courbes de Production PV'!AD58 -> 0 | Y60: 32.2
A61: 51 | B61: 1 | C61: 3 | D61: 1 | I61: 25.5 | J61: 3.5 | K61: 88.5 | L61: 2 | M61: 18 | N61: 0 | O61: 29.4 | P61: 2 | Q61: 2.285796157 | R61: 0.31 | T61: 88.5 | U61: 2 | V61: 0 | W61: 0 | X61: ='Courbes de Production PV'!AD59 -> 0 | Y61: 29.4
A62: 52 | B62: 1 | C62: 3 | D62: 2 | I62: 25 | J62: 3 | K62: 86 | L62: 0 | M62: 14 | N62: 0 | O62: 29.4 | P62: 2 | Q62: 2.176948721 | R62: 0.24 | T62: 86 | U62: 2 | V62: 0 | W62: 0 | X62: ='Courbes de Production PV'!AD60 -> 0 | Y62: 29.4
A63: 53 | B63: 1 | C63: 3 | D63: 3 | I63: 25 | J63: 3.5 | K63: 84.5 | L63: 1 | M63: 13 | N63: 0 | O63: 28.1 | P63: 2 | Q63: 2.285796157 | R63: 0.23 | T63: 84.5 | U63: 2 | V63: 0 | W63: 0 | X63: ='Courbes de Production PV'!AD61 -> 0 | Y63: 28.1
A64: 54 | B64: 1 | C64: 3 | D64: 4 | I64: 25 | J64: 3 | K64: 82.5 | L64: 3 | M64: 19 | N64: 0 | O64: 28.8 | P64: 3 | Q64: 2.176948721 | R64: 0.24 | T64: 82.5 | U64: 3 | V64: 0 | W64: 0 | X64: ='Courbes de Production PV'!AD62 -> 0 | Y64: 28.8
A65: 55 | B65: 1 | C65: 3 | D65: 5 | I65: 26 | J65: 3.5 | K65: 88 | L65: 1 | M65: 15 | N65: 0 | O65: 29 | P65: 2 | Q65: 1.741558977 | R65: 0.23 | T65: 88 | U65: 2 | V65: 0 | W65: 0 | X65: ='Courbes de Production PV'!AD63 -> 0 | Y65: 29
A66: 56 | B66: 1 | C66: 3 | D66: 6 | I66: 25 | J66: 3.5 | K66: 92.5 | L66: 2 | M66: 9 | N66: 0 | O66: 31.5 | P66: 3 | Q66: 2.394643593 | R66: 0.19 | T66: 92.5 | U66: 3 | V66: 0 | W66: 0 | X66: ='Courbes de Production PV'!AD64 -> 0 | Y66: 31.5
A67: 57 | B67: 1 | C67: 3 | D67: 7 | I67: 34 | J67: 6 | K67: 87 | L67: 2 | M67: 7 | N67: 0 | O67: 39.4 | P67: 3 | Q67: 26.8853167 | R67: 0.18 | T67: 87 | U67: 3 | V67: 0 | W67: 0 | X67: ='Courbes de Production PV'!AD65 -> 0.2654982449 | Y67: 39.4
A68: 58 | B68: 1 | C68: 3 | D68: 8 | I68: 47 | J68: 17.5 | K68: 91 | L68: 3 | M68: 6 | N68: 0 | O68: 41.9 | P68: 3 | Q68: 127.8957373 | R68: 0.24 | T68: 91 | U68: 3 | V68: 0 | W68: 0 | X68: ='Courbes de Production PV'!AD66 -> 3.658154876 | Y68: 41.9
A69: 59 | B69: 1 | C69: 3 | D69: 9 | I69: 63.5 | J69: 19.5 | K69: 95.5 | L69: 3 | M69: 5 | N69: 0 | O69: 52.7 | P69: 3 | Q69: 183.8433195 | R69: 0.2 | T69: 95.5 | U69: 3 | V69: 0 | W69: 0 | X69: ='Courbes de Production PV'!AD67 -> 20.99369961 | Y69: 52.7
A70: 60 | B70: 1 | C70: 3 | D70: 10 | I70: 63.5 | J70: 19 | K70: 90 | L70: 5 | M70: 6 | N70: 0 | O70: 53.3 | P70: 3 | Q70: 212.5790426 | R70: 0.2 | T70: 90 | U70: 3 | V70: 0 | W70: 0 | X70: ='Courbes de Production PV'!AD68 -> 25.69692648 | Y70: 53.3
A71: 61 | B71: 1 | C71: 3 | D71: 11 | I71: 59.5 | J71: 14.5 | K71: 102.5 | L71: 3 | M71: 11 | N71: 0 | O71: 51.8 | P71: 3 | Q71: 214.7559913 | R71: 0.24 | T71: 102.5 | U71: 3 | V71: 0 | W71: 0 | X71: ='Courbes de Production PV'!AD69 -> 27.88698484 | Y71: 51.8
A72: 62 | B72: 1 | C72: 3 | D72: 12 | I72: 50.5 | J72: 7.5 | K72: 102 | L72: 4 | M72: 8 | N72: 0 | O72: 52.7 | P72: 3 | Q72: 167.8427464 | R72: 0.23 | T72: 102 | U72: 3 | V72: 0 | W72: 0 | X72: ='Courbes de Production PV'!AD70 -> 22.44890395 | Y72: 52.7
A73: 63 | B73: 1 | C73: 3 | D73: 13 | I73: 45 | J73: 5.5 | K73: 101 | L73: 4 | M73: 12 | N73: 0 | O73: 55 | P73: 3 | Q73: 124.6303143 | R73: 0.18 | T73: 101 | U73: 3 | V73: 0 | W73: 0 | X73: ='Courbes de Production PV'!AD71 -> 17.6377051 | Y73: 55
A74: 64 | B74: 1 | C74: 3 | D74: 14 | I74: 53 | J74: 14 | K74: 87 | L74: 4 | M74: 19 | N74: 0 | O74: 35.1 | P74: 3 | Q74: 213.8852118 | R74: 0.18 | T74: 87 | U74: 3 | V74: 0 | W74: 0 | X74: ='Courbes de Production PV'!AD72 -> 20.83295029 | Y74: 35.1
A75: 65 | B75: 1 | C75: 3 | D75: 15 | I75: 58 | J75: 19 | K75: 76.5 | L75: 4 | M75: 19 | N75: 0 | O75: 33.2 | P75: 3 | Q75: 210.6197887 | R75: 0.19 | T75: 76.5 | U75: 3 | V75: 0 | W75: 0 | X75: ='Courbes de Production PV'!AD73 -> 13.06904031 | Y75: 33.2
A76: 66 | B76: 1 | C76: 3 | D76: 16 | I76: 48 | J76: 12 | K76: 87 | L76: 5 | M76: 20 | N76: 0 | O76: 34.9 | P76: 3 | Q76: 209.3136195 | R76: 0.19 | T76: 87 | U76: 3 | V76: 0 | W76: 0 | X76: ='Courbes de Production PV'!AD74 -> 5.381274745 | Y76: =HLOOKUP($H$5,$E$11:$R$8771,A76,FALSE) -> 34.9
A77: 67 | B77: 1 | C77: 3 | D77: 17 | I77: 32 | J77: 5 | K77: 103 | L77: 4 | M77: 20 | N77: 0 | O77: 36 | P77: 6 | Q77: 181.0132861 | R77: 0.22 | T77: =IF($C$5="Saisie Manuelle",E77,IF($C$5="Aucun",0,HLOOKUP($C$5,$I$11:$R$8771,A77,FALSE))) -> 103 | U77: =IF($D$5="Saisie Manuelle",F77,IF($D$5="Aucun",0,HLOOKUP($D$5,$I$11:$R$8771,A77,FALSE))) -> 6 | V77: =IF($E$5="Saisie Manuelle",G77,IF($E$5="Aucun",0,HLOOKUP($E$5,$I$11:$R$8771,A77,FALSE))) -> 0 | W77: =IF($F$5="Saisie Manuelle",H77,IF($F$5="Aucun",0,HLOOKUP($F$5,$I$11:$R$8771,A77,FALSE))) -> 0 | X77: ='Courbes de Production PV'!AD75 -> 0 | Y77: 36
A78: =A77+1 -> 68 | B78: 1 | C78: 3 | D78: 18 | I78: 28.5 | J78: 2.5 | K78: 121.5 | L78: 3 | M78: 19 | N78: 0 | O78: 37.9 | P78: 6 | Q78: 24.05528336 | R78: 0.24 | T78: 121.5 | U78: 6 | V78: 0 | W78: 0 | X78: ='Courbes de Production PV'!AD76 -> 0 | Y78: 37.9
A79: 69 | B79: 1 | C79: 3 | D79: 19 | I79: 27.5 | J79: 3.5 | K79: 120.5 | L79: 3 | M79: 20 | N79: 0 | O79: 34.1 | P79: 5 | Q79: 11.53782822 | R79: 0.23 | T79: 120.5 | U79: 5 | V79: 0 | W79: 0 | X79: ='Courbes de Production PV'!AD77 -> 0 | Y79: 34.1
A80: 70 | B80: 1 | C80: 3 | D80: 20 | I80: 25.5 | J80: 4 | K80: 118 | L80: 1 | M80: 14 | N80: 0 | O80: 35.3 | P80: 6 | Q80: 11.42898078 | R80: 0.26 | T80: 118 | U80: 6 | V80: 0 | W80: 0 | X80: ='Courbes de Production PV'!AD78 -> 0 | Y80: 35.3
A81: 71 | B81: 1 | C81: 3 | D81: 21 | I81: 25.5 | J81: 3.5 | K81: 108 | L81: 2 | M81: 20 | N81: 0 | O81: 35.3 | P81: 6 | Q81: 11.75552309 | R81: 0.26 | T81: 108 | U81: 6 | V81: 0 | W81: 0 | X81: ='Courbes de Production PV'!AD79 -> 0 | Y81: 35.3
A82: 72 | B82: 1 | C82: 3 | D82: 22 | I82: 24 | J82: 3.5 | K82: 102 | L82: 3 | M82: 20 | N82: 0 | O82: 33 | P82: 5 | Q82: 12.0820654 | R82: 0.25 | T82: 102 | U82: 5 | V82: 0 | W82: 0 | X82: ='Courbes de Production PV'!AD80 -> 0 | Y82: 33
A83: 73 | B83: 1 | C83: 3 | D83: 23 | I83: 22 | J83: 3.5 | K83: 102 | L83: 1 | M83: 14 | N83: 0 | O83: 30.5 | P83: 5 | Q83: 12.0820654 | R83: 0.29 | T83: 102 | U83: 5 | V83: 0 | W83: 0 | X83: ='Courbes de Production PV'!AD81 -> 0 | Y83: 30.5
A84: 74 | B84: 1 | C84: 4 | D84: 0 | I84: 22 | J84: 3 | K84: 106 | L84: 1 | M84: 17 | N84: 0 | O84: 32.2 | P84: 6 | Q84: 2.394643593 | R84: 0.29 | T84: 106 | U84: 6 | V84: 0 | W84: 0 | X84: ='Courbes de Production PV'!AD82 -> 0 | Y84: 32.2
A85: 75 | B85: 1 | C85: 4 | D85: 1 | I85: 20.5 | J85: 3.5 | K85: 90 | L85: 2 | M85: 20 | N85: 0 | O85: 30 | P85: 6 | Q85: 2.285796157 | R85: 0.23 | T85: 90 | U85: 6 | V85: 0 | W85: 0 | X85: ='Courbes de Production PV'!AD83 -> 0 | Y85: 30
A86: 76 | B86: 1 | C86: 4 | D86: 2 | I86: 21.5 | J86: 3.5 | K86: 82.5 | L86: 1 | M86: 17 | N86: 0 | O86: 29.8 | P86: 5 | Q86: 2.285796157 | R86: 0.24 | T86: 82.5 | U86: 5 | V86: 0 | W86: 0 | X86: ='Courbes de Production PV'!AD84 -> 0 | Y86: 29.8
A87: 77 | B87: 1 | C87: 4 | D87: 3 | I87: 20.5 | J87: 3 | K87: 86 | L87: 1 | M87: 14 | N87: 1 | O87: 28.8 | P87: 5 | Q87: 2.285796157 | R87: 0.23 | T87: 86 | U87: 5 | V87: 0 | W87: 0 | X87: ='Courbes de Production PV'!AD85 -> 0 | Y87: 28.8
A88: 78 | B88: 1 | C88: 4 | D88: 4 | I88: 22.5 | J88: 3.5 | K88: 82.5 | L88: 3 | M88: 20 | N88: 2 | O88: 30.7 | P88: 6 | Q88: 2.285796157 | R88: 0.24 | T88: 82.5 | U88: 6 | V88: 0 | W88: 0 | X88: ='Courbes de Production PV'!AD86 -> 0 | Y88: 30.7
A89: 79 | B89: 1 | C89: 4 | D89: 5 | I89: 22.5 | J89: 3 | K89: 94 | L89: 1 | M89: 19 | N89: 2 | O89: 29.8 | P89: 5 | Q89: 1.523864104 | R89: 0.24 | T89: 94 | U89: 5 | V89: 0 | W89: 0 | X89: ='Courbes de Production PV'!AD87 -> 0 | Y89: 29.8
A90: 80 | B90: 1 | C90: 4 | D90: 6 | I90: 23.5 | J90: 2 | K90: 96 | L90: 2 | M90: 14 | N90: 2 | O90: 29.2 | P90: 6 | Q90: 3.591965389 | R90: 0.2 | T90: 96 | U90: 6 | V90: 0 | W90: 0 | X90: ='Courbes de Production PV'!AD88 -> 0 | Y90: 29.2
A91: 81 | B91: 1 | C91: 4 | D91: 7 | I91: 31.5 | J91: 5 | K91: 91.5 | L91: 2 | M91: 15 | N91: 2 | O91: 40.8 | P91: 8 | Q91: 21.98718208 | R91: 0.18 | T91: 91.5 | U91: 8 | V91: 0 | W91: 0 | X91: ='Courbes de Production PV'!AD89 -> 2.532506779 | Y91: 40.8
A92: 82 | B92: 1 | C92: 4 | D92: 8 | I92: 45 | J92: 21 | K92: 88.5 | L92: 3 | M92: 18 | N92: 2 | O92: 49.5 | P92: 10 | Q92: 126.6984155 | R92: 0.19 | T92: 88.5 | U92: 10 | V92: 0 | W92: 0 | X92: ='Courbes de Production PV'!AD90 -> 8.432288718 | Y92: 49.5
A93: 83 | B93: 1 | C93: 4 | D93: 9 | I93: 57 | J93: 23.5 | K93: 84.5 | L93: 3 | M93: 20 | N93: 1 | O93: 50.4 | P93: 7 | Q93: 164.7950182 | R93: 0.21 | T93: 84.5 | U93: 7 | V93: 0 | W93: 0 | X93: ='Courbes de Production PV'!AD91 -> 21.58633681 | Y93: 50.4
A94: 84 | B94: 1 | C94: 4 | D94: 10 | I94: 62.5 | J94: 16 | K94: 84 | L94: 5 | M94: 21 | N94: 2 | O94: 48.5 | P94: 6 | Q94: 207.8986028 | R94: 0.21 | T94: 84 | U94: 6 | V94: 0 | W94: 0 | X94: ='Courbes de Production PV'!AD92 -> 26.56996851 | Y94: 48.5
A95: 85 | B95: 1 | C95: 4 | D95: 11 | I95: 55 | J95: 10 | K95: 88 | L95: 3 | M95: 15 | N95: 1 | O95: 49.3 | P95: 7 | Q95: 210.6197887 | R95: 0.18 | T95: 88 | U95: 7 | V95: 0 | W95: 0 | X95: ='Courbes de Production PV'!AD93 -> 24.39763689 | Y95: 49.3
A96: 86 | B96: 1 | C96: 4 | D96: 12 | I96: 40 | J96: 3 | K96: 93 | L96: 5 | M96: 17 | N96: 2 | O96: 54.2 | P96: 6 | Q96: 168.7135258 | R96: 0.19 | T96: 93 | U96: 6 | V96: 0 | W96: 0 | X96: ='Courbes de Production PV'!AD94 -> 22.80706471 | Y96: 54.2
A97: 87 | B97: 1 | C97: 4 | D97: 13 | I97: 36.5 | J97: 2.5 | K97: 89.5 | L97: 6 | M97: 13 | N97: 2 | O97: 40.2 | P97: 6 | Q97: 125.7187886 | R97: 0.19 | T97: 89.5 | U97: 6 | V97: 0 | W97: 0 | X97: ='Courbes de Production PV'!AD95 -> 14.18179623 | Y97: 40.2
A98: 88 | B98: 1 | C98: 4 | D98: 14 | I98: 40 | J98: 4 | K98: 94 | L98: 7 | M98: 18 | N98: 2 | O98: 57.3 | P98: 6 | Q98: 213.7763644 | R98: 0.19 | T98: 94 | U98: 6 | V98: 0 | W98: 0 | X98: ='Courbes de Production PV'!AD96 -> 2.396736053 | Y98: 57.3
A99: 89 | B99: 1 | C99: 4 | D99: 15 | I99: 54.5 | J99: 4.5 | K99: 86 | L99: 6 | M99: 13 | N99: 0 | O99: 46.5 | P99: 7 | Q99: 210.5109413 | R99: 0.19 | T99: 86 | U99: 7 | V99: 0 | W99: 0 | X99: ='Courbes de Production PV'!AD97 -> 1.879034619 | Y99: 46.5
A100: 90 | B100: 1 | C100: 4 | D100: 16 | I100: 50 | J100: 3.5 | K100: 91.5 | L100: 7 | M100: 18 | N100: 0 | O100: 30.9 | P100: 6 | Q100: 208.8782297 | R100: 0.18 | T100: 91.5 | U100: 6 | V100: 0 | W100: 0 | X100: ='Courbes de Production PV'!AD98 -> 2.208187982 | Y100: 30.9
A101: 91 | B101: 1 | C101: 4 | D101: 17 | I101: 31 | J101: 2.5 | K101: 118 | L101: 4 | M101: 12 | N101: 0 | O101: 32.2 | P101: 7 | Q101: 185.6937259 | R101: 0.22 | T101: 118 | U101: 7 | V101: 0 | W101: 0 | X101: ='Courbes de Production PV'!AD99 -> 0 | Y101: 32.2
A102: 92 | B102: 1 | C102: 4 | D102: 18 | I102: 26.5 | J102: 3.5 | K102: 139 | L102: 4 | M102: 19 | N102: 0 | O102: 35.1 | P102: 6 | Q102: 29.93304491 | R102: 14.35 | T102: 139 | U102: 6 | V102: 0 | W102: 0 | X102: ='Courbes de Production PV'!AD100 -> 0 | Y102: 35.1
A103: 93 | B103: 1 | C103: 4 | D103: 19 | I103: 23 | J103: 4.5 | K103: 135.5 | L103: 3 | M103: 17 | N103: 0 | O103: 34.5 | P103: 6 | Q103: 11.10243848 | R103: 12.95 | T103: 135.5 | U103: 6 | V103: 0 | W103: 0 | X103: ='Courbes de Production PV'!AD101 -> 0 | Y103: 34.5
A104: 94 | B104: 1 | C104: 4 | D104: 20 | I104: 20.5 | J104: 5 | K104: 121.5 | L104: 3 | M104: 19 | N104: 0 | O104: 33 | P104: 8 | Q104: 12.0820654 | R104: 14.38 | T104: 121.5 | U104: 8 | V104: 0 | W104: 0 | X104: ='Courbes de Production PV'!AD102 -> 0 | Y104: 33
A105: 95 | B105: 1 | C105: 4 | D105: 21 | I105: 19 | J105: 4 | K105: 110 | L105: 3 | M105: 19 | N105: 0 | O105: 32.6 | P105: 8 | Q105: 12.84399745 | R105: 14.35 | T105: 110 | U105: 8 | V105: 0 | W105: 0 | X105: ='Courbes de Production PV'!AD103 -> 0 | Y105: 32.6
A106: 96 | B106: 1 | C106: 4 | D106: 22 | I106: 20.5 | J106: 4 | K106: 94 | L106: 3 | M106: 20 | N106: 0 | O106: 32.6 | P106: 5 | Q106: 12.84399745 | R106: 13.47 | T106: 94 | U106: 5 | V106: 0 | W106: 0 | X106: ='Courbes de Production PV'!AD104 -> 0 | Y106: 32.6
A107: 97 | B107: 1 | C107: 4 | D107: 23 | I107: 20 | J107: 3.5 | K107: 95.5 | L107: 1 | M107: 20 | N107: 0 | O107: 29.8 | P107: 8 | Q107: 13.2793872 | R107: 14.42 | T107: 95.5 | U107: 8 | V107: 0 | W107: 0 | X107: ='Courbes de Production PV'!AD105 -> 0 | Y107: 29.8
A108: 98 | B108: 1 | C108: 5 | D108: 0 | I108: 18 | J108: 3.5 | K108: 103.5 | L108: 1 | M108: 19 | N108: 0 | O108: 30.5 | P108: 7 | Q108: 2.503491029 | R108: 14.34 | T108: 103.5 | U108: 7 | V108: 0 | W108: 0 | X108: ='Courbes de Production PV'!AD106 -> 0 | Y108: 30.5
A109: 99 | B109: 1 | C109: 5 | D109: 1 | I109: 17 | J109: 3.5 | K109: 101.5 | L109: 3 | M109: 13 | N109: 1 | O109: 28.4 | P109: 8 | Q109: 2.394643593 | R109: 14.37 | T109: 101.5 | U109: 8 | V109: 0 | W109: 0 | X109: ='Courbes de Production PV'!AD107 -> 0 | Y109: 28.4
A110: 100 | B110: 1 | C110: 5 | D110: 2 | I110: 17 | J110: 3.5 | K110: 86 | L110: 0 | M110: 20 | N110: 0 | O110: 29.4 | P110: 7 | Q110: 2.394643593 | R110: 13.64 | T110: 86 | U110: 7 | V110: 0 | W110: 0 | X110: ='Courbes de Production PV'!AD108 -> 0 | Y110: 29.4
A111: 101 | B111: 1 | C111: 5 | D111: 3 | I111: 18 | J111: 3.5 | K111: 88 | L111: 1 | M111: 20 | N111: 1 | O111: 26.7 | P111: 7 | Q111: 2.285796157 | R111: 14.39 | T111: 88 | U111: 7 | V111: 0 | W111: 0 | X111: ='Courbes de Production PV'!AD109 -> 0 | Y111: 26.7
A112: 102 | B112: 1 | C112: 5 | D112: 4 | I112: 18.5 | J112: 3.5 | K112: 88 | L112: 2 | M112: 14 | N112: 2 | O112: 28.4 | P112: 8 | Q112: 2.394643593 | R112: 14.42 | T112: 88 | U112: 8 | V112: 0 | W112: 0 | X112: ='Courbes de Production PV'!AD110 -> 0 | Y112: 28.4
A113: 103 | B113: 1 | C113: 5 | D113: 5 | I113: 17.5 | J113: 3.5 | K113: 95 | L113: 2 | M113: 9 | N113: 2 | O113: 27.3 | P113: 10 | Q113: 1.523864104 | R113: 13.04 | T113: 95 | U113: 10 | V113: 0 | W113: 0 | X113: ='Courbes de Production PV'!AD111 -> 0 | Y113: 27.3
A114: 104 | B114: 1 | C114: 5 | D114: 6 | I114: 17.5 | J114: 3.5 | K114: 101 | L114: 2 | M114: 8 | N114: 2 | O114: 30.3 | P114: 9 | Q114: 1.523864104 | R114: 14.29 | T114: 101 | U114: 9 | V114: 0 | W114: 0 | X114: ='Courbes de Production PV'!AD112 -> 0 | Y114: 30.3
A115: 105 | B115: 1 | C115: 5 | D115: 7 | I115: 19 | J115: 5.5 | K115: 96.5 | L115: 2 | M115: 7 | N115: 2 | O115: 37.4 | P115: 9 | Q115: 26.23223208 | R115: 14.36 | T115: 96.5 | U115: 9 | V115: 0 | W115: 0 | X115: ='Courbes de Production PV'!AD113 -> 0.2961171623 | Y115: 37.4
A116: 106 | B116: 1 | C116: 5 | D116: 8 | I116: 20.5 | J116: 21.5 | K116: 92.5 | L116: 4 | M116: 8 | N116: 3 | O116: 46.5 | P116: 9 | Q116: 125.9364835 | R116: 13.18 | T116: 92.5 | U116: 9 | V116: 0 | W116: 0 | X116: ='Courbes de Production PV'!AD114 -> 0.2945056404 | Y116: 46.5
A117: 107 | B117: 1 | C117: 5 | D117: 9 | I117: 18.5 | J117: 21.5 | K117: 87 | L117: 3 | M117: 7 | N117: 2 | O117: 48.9 | P117: 10 | Q117: 152.7129528 | R117: 14.35 | T117: 87 | U117: 10 | V117: 0 | W117: 0 | X117: ='Courbes de Production PV'!AD115 -> 1.733997642 | Y117: 48.9
A118: 108 | B118: 1 | C118: 5 | D118: 10 | I118: 18.5 | J118: 14.5 | K118: 92.5 | L118: 4 | M118: 7 | N118: 2 | O118: 48.2 | P118: 9 | Q118: 206.3747387 | R118: 14.32 | T118: 92.5 | U118: 9 | V118: 0 | W118: 0 | X118: ='Courbes de Production PV'!AD116 -> 6.643096449 | Y118: 48.2
A119: 109 | B119: 1 | C119: 5 | D119: 11 | I119: 15.5 | J119: 11 | K119: 95.5 | L119: 7 | M119: 17 | N119: 2 | O119: 51.8 | P119: 9 | Q119: 208.7693823 | R119: 14.31 | T119: 95.5 | U119: 9 | V119: 0 | W119: 0 | X119: ='Courbes de Production PV'!AD117 -> 29.2716851 | Y119: 51.8
A120: 110 | B120: 1 | C120: 5 | D120: 12 | I120: 16 | J120: 4.5 | K120: 95.5 | L120: 5 | M120: 18 | N120: 2 | O120: 55 | P120: 7 | Q120: 166.5365771 | R120: 13.51 | T120: 95.5 | U120: 7 | V120: 0 | W120: 0 | X120: ='Courbes de Production PV'!AD118 -> 1.902804568 | Y120: 55
A121: 111 | B121: 1 | C121: 5 | D121: 13 | I121: 12.5 | J121: 3.5 | K121: 88 | L121: 8 | M121: 16 | N121: 2 | O121: 37.7 | P121: 9 | Q121: 127.2426527 | R121: 14.34 | T121: 88 | U121: 9 | V121: 0 | W121: 0 | X121: ='Courbes de Production PV'!AD119 -> 4.782594332 | Y121: 37.7
A122: 112 | B122: 1 | C122: 5 | D122: 14 | I122: 15.5 | J122: 4.5 | K122: 86 | L122: 8 | M122: 15 | N122: 2 | O122: 30.3 | P122: 10 | Q122: 217.2594823 | R122: 14.33 | T122: 86 | U122: 10 | V122: 0 | W122: 0 | X122: ='Courbes de Production PV'!AD120 -> 5.055747306 | Y122: 30.3
A123: 113 | B123: 1 | C123: 5 | D123: 15 | I123: 16.5 | J123: 4 | K123: 80 | L123: 6 | M123: 14 | N123: 0 | O123: 33.9 | P123: 10 | Q123: 214.7559913 | R123: 13.06 | T123: 80 | U123: 10 | V123: 0 | W123: 0 | X123: ='Courbes de Production PV'!AD121 -> 11.49216606 | Y123: 33.9
A124: 114 | B124: 1 | C124: 5 | D124: 16 | I124: 16.5 | J124: 2.5 | K124: 83 | L124: 8 | M124: 18 | N124: 0 | O124: 40 | P124: 9 | Q124: 206.4835862 | R124: 14.37 | T124: 83 | U124: 9 | V124: 0 | W124: 0 | X124: ='Courbes de Production PV'!AD122 -> 0.7348540192 | Y124: 40
A125: 115 | B125: 1 | C125: 5 | D125: 17 | I125: 22 | J125: 2.5 | K125: 114.5 | L125: 5 | M125: 19 | N125: 0 | O125: 56.1 | P125: 7 | Q125: 184.7140989 | R125: 14.41 | T125: 114.5 | U125: 7 | V125: 0 | W125: 0 | X125: ='Courbes de Production PV'!AD123 -> 0 | Y125: 56.1
A126: 116 | B126: 1 | C126: 5 | D126: 18 | I126: 24.5 | J126: 3.5 | K126: 135 | L126: 4 | M126: 12 | N126: 0 | O126: 53.3 | P126: 7 | Q126: 21.76948721 | R126: 14.32 | T126: 135 | U126: 7 | V126: 0 | W126: 0 | X126: ='Courbes de Production PV'!AD124 -> 0 | Y126: 53.3
A127: 117 | B127: 1 | C127: 5 | D127: 19 | I127: 20.5 | J127: 4.5 | K127: 127 | L127: 3 | M127: 13 | N127: 1 | O127: 52.7 | P127: 9 | Q127: 9.905116679 | R127: 13.91 | T127: 127 | U127: 9 | V127: 0 | W127: 0 | X127: ='Courbes de Production PV'!AD125 -> 0 | Y127: 52.7
A128: 118 | B128: 1 | C128: 5 | D128: 20 | I128: 20 | J128: 4 | K128: 119.5 | L128: 3 | M128: 17 | N128: 0 | O128: 51.6 | P128: 8 | Q128: 10.34050642 | R128: 15.83 | T128: 119.5 | U128: 8 | V128: 0 | W128: 0 | X128: ='Courbes de Production PV'!AD126 -> 0 | Y128: 51.6
A129: 119 | B129: 1 | C129: 5 | D129: 21 | I129: 21 | J129: 4.5 | K129: 107 | L129: 3 | M129: 13 | N129: 0 | O129: 48 | P129: 9 | Q129: 10.77589617 | R129: 17.14 | T129: 107 | U129: 9 | V129: 0 | W129: 0 | X129: ='Courbes de Production PV'!AD127 -> 0 | Y129: 48
A130: 120 | B130: 1 | C130: 5 | D130: 22 | I130: 21.5 | J130: 3.5 | K130: 96 | L130: 4 | M130: 16 | N130: 0 | O130: 36.6 | P130: 8 | Q130: 10.66704873 | R130: 13.69 | T130: 96 | U130: 8 | V130: 0 | W130: 0 | X130: ='Courbes de Production PV'!AD128 -> 0 | Y130: 36.6
A131: 121 | B131: 1 | C131: 5 | D131: 23 | I131: 20.5 | J131: 3.5 | K131: 90 | L131: 2 | M131: 14 | N131: 0 | O131: 32.6 | P131: 8 | Q131: 10.44935386 | R131: 14.34 | T131: 90 | U131: 8 | V131: 0 | W131: 0 | X131: ='Courbes de Production PV'!AD129 -> 0 | Y131: 32.6
A132: 122 | B132: 1 | C132: 6 | D132: 0 | I132: 20.5 | J132: 4 | K132: 100.5 | L132: 2 | M132: 11 | N132: 0 | O132: 29.8 | P132: 6 | Q132: 2.830033337 | R132: 14.38 | T132: 100.5 | U132: 6 | V132: 0 | W132: 0 | X132: ='Courbes de Production PV'!AD130 -> 0 | Y132: 29.8
A133: 123 | B133: 1 | C133: 6 | D133: 1 | I133: 21 | J133: 3.5 | K133: 92 | L133: 2 | M133: 19 | N133: 0 | O133: 31.3 | P133: 7 | Q133: 2.285796157 | R133: 13.9 | T133: 92 | U133: 7 | V133: 0 | W133: 0 | X133: ='Courbes de Production PV'!AD131 -> 0 | Y133: 31.3
A134: 124 | B134: 1 | C134: 6 | D134: 2 | I134: 20 | J134: 4 | K134: 85 | L134: 2 | M134: 19 | N134: 0 | O134: 30 | P134: 7 | Q134: 2.285796157 | R134: 14.37 | T134: 85 | U134: 7 | V134: 0 | W134: 0 | X134: ='Courbes de Production PV'!AD132 -> 0 | Y134: 30
A135: 125 | B135: 1 | C135: 6 | D135: 3 | I135: 22 | J135: 3.5 | K135: 85 | L135: 2 | M135: 13 | N135: 1 | O135: 28.6 | P135: 7 | Q135: 2.394643593 | R135: 13 | T135: 85 | U135: 7 | V135: 0 | W135: 0 | X135: ='Courbes de Production PV'!AD133 -> 0 | Y135: 28.6
A136: 126 | B136: 1 | C136: 6 | D136: 4 | I136: 20.5 | J136: 3.5 | K136: 81.5 | L136: 4 | M136: 20 | N136: 2 | O136: 29.6 | P136: 8 | Q136: 2.285796157 | R136: 14.44 | T136: 81.5 | U136: 8 | V136: 0 | W136: 0 | X136: ='Courbes de Production PV'!AD134 -> 0 | Y136: 29.6
A137: 127 | B137: 1 | C137: 6 | D137: 5 | I137: 20 | J137: 3.5 | K137: 93.5 | L137: 2 | M137: 15 | N137: 1 | O137: 29 | P137: 7 | Q137: 1.63271154 | R137: 14.4 | T137: 93.5 | U137: 7 | V137: 0 | W137: 0 | X137: ='Courbes de Production PV'!AD135 -> 0 | Y137: 29
A138: 128 | B138: 1 | C138: 6 | D138: 6 | I138: 19 | J138: 2.5 | K138: 93.5 | L138: 2 | M138: 11 | N138: 2 | O138: 29.6 | P138: 7 | Q138: 4.136202569 | R138: 14.45 | T138: 93.5 | U138: 7 | V138: 0 | W138: 0 | X138: ='Courbes de Production PV'!AD136 -> 0 | Y138: 29.6
A139: 129 | B139: 1 | C139: 6 | D139: 7 | I139: 17.5 | J139: 2 | K139: 90 | L139: 3 | M139: 13 | N139: 1 | O139: 40.2 | P139: 10 | Q139: 25.14375772 | R139: 14.41 | T139: 90 | U139: 10 | V139: 0 | W139: 0 | X139: ='Courbes de Production PV'!AD137 -> 2.415268555 | Y139: 40.2
A140: 130 | B140: 1 | C140: 6 | D140: 8 | I140: 20 | J140: 2.5 | K140: 90.5 | L140: 4 | M140: 19 | N140: 1 | O140: 47.6 | P140: 9 | Q140: 123.2152976 | R140: 12.94 | T140: 90.5 | U140: 9 | V140: 0 | W140: 0 | X140: ='Courbes de Production PV'!AD138 -> 2.376189148 | Y140: =HLOOKUP($H$5,$E$11:$R$8771,A140,FALSE) -> 47.6
A141: 131 | B141: 1 | C141: 6 | D141: 9 | I141: 17 | J141: 2 | K141: 92.5 | L141: 2 | M141: 20 | N141: 2 | O141: 45.3 | P141: 9 | Q141: 149.5563771 | R141: 14.44 | T141: =IF($C$5="Saisie Manuelle",E141,IF($C$5="Aucun",0,HLOOKUP($C$5,$I$11:$R$8771,A141,FALSE))) -> 92.5 | U141: =IF($D$5="Saisie Manuelle",F141,IF($D$5="Aucun",0,HLOOKUP($D$5,$I$11:$R$8771,A141,FALSE))) -> 9 | V141: =IF($E$5="Saisie Manuelle",G141,IF($E$5="Aucun",0,HLOOKUP($E$5,$I$11:$R$8771,A141,FALSE))) -> 0 | W141: =IF($F$5="Saisie Manuelle",H141,IF($F$5="Aucun",0,HLOOKUP($F$5,$I$11:$R$8771,A141,FALSE))) -> 0 | X141: ='Courbes de Production PV'!AD139 -> 8.912925146 | Y141: 45.3
A142: =A141+1 -> 132 | B142: 1 | C142: 6 | D142: 10 | I142: 16.5 | J142: 1.5 | K142: 84.5 | L142: 6 | M142: 23 | N142: 3 | O142: 50.4 | P142: 10 | Q142: 191.6803349 | R142: 14.48 | T142: 84.5 | U142: 10 | V142: 0 | W142: 0 | X142: ='Courbes de Production PV'!AD140 -> 14.8123042 | Y142: 50.4
A143: 133 | B143: 1 | C143: 6 | D143: 11 | I143: 15 | J143: 2 | K143: 81.5 | L143: 4 | M143: 24 | N143: 2 | O143: 51 | P143: 8 | Q143: 188.6326066 | R143: 13.75 | T143: 81.5 | U143: 8 | V143: 0 | W143: 0 | X143: ='Courbes de Production PV'!AD141 -> 8.050358011 | Y143: 51
A144: 134 | B144: 1 | C144: 6 | D144: 12 | I144: 10.5 | J144: 1.5 | K144: 80.5 | L144: 2 | M144: 18 | N144: 3 | O144: 57.5 | P144: 5 | Q144: 203.1093156 | R144: 14.45 | T144: 80.5 | U144: 5 | V144: 0 | W144: 0 | X144: ='Courbes de Production PV'!AD142 -> 7.027041558 | Y144: 57.5
A145: 135 | B145: 1 | C145: 6 | D145: 13 | I145: 10.5 | J145: 1.5 | K145: 85.5 | L145: 3 | M145: 25 | N145: 2 | O145: 58.6 | P145: 9 | Q145: 104.4935386 | R145: 13.73 | T145: 85.5 | U145: 9 | V145: 0 | W145: 0 | X145: ='Courbes de Production PV'!AD143 -> 19.95064201 | Y145: 58.6
A146: 136 | B146: 1 | C146: 6 | D146: 14 | I146: 11 | J146: 1.5 | K146: 76.5 | L146: 4 | M146: 20 | N146: 3 | O146: 52 | P146: 9 | Q146: 11.10243848 | R146: 14.37 | T146: 76.5 | U146: 9 | V146: 0 | W146: 0 | X146: ='Courbes de Production PV'!AD144 -> 17.57485574 | Y146: 52
A147: 137 | B147: 1 | C147: 6 | D147: 15 | I147: 12 | J147: 1.5 | K147: 73.5 | L147: 2 | M147: 19 | N147: 0 | O147: 47.2 | P147: 9 | Q147: 5.115829494 | R147: 14.31 | T147: 73.5 | U147: 9 | V147: 0 | W147: 0 | X147: ='Courbes de Production PV'!AD145 -> 13.44452493 | Y147: 47.2
A148: 138 | B148: 1 | C148: 6 | D148: 16 | I148: 14.5 | J148: 2 | K148: 81.5 | L148: 5 | M148: 24 | N148: 0 | O148: 50.4 | P148: 10 | Q148: 2.068101285 | R148: 13.01 | T148: 81.5 | U148: 10 | V148: 0 | W148: 0 | X148: ='Courbes de Production PV'!AD146 -> 2.462808454 | Y148: 50.4
A149: 139 | B149: 1 | C149: 6 | D149: 17 | I149: 19 | J149: 1.5 | K149: 101.5 | L149: 2 | M149: 20 | N149: 0 | O149: 48.5 | P149: 9 | Q149: 2.068101285 | R149: 14.43 | T149: 101.5 | U149: 9 | V149: 0 | W149: 0 | X149: ='Courbes de Production PV'!AD147 -> 0 | Y149: 48.5
A150: 140 | B150: 1 | C150: 6 | D150: 18 | I150: 22.5 | J150: 3 | K150: 118.5 | L150: 2 | M150: 21 | N150: 0 | O150: 51 | P150: 7 | Q150: 1.63271154 | R150: 13.98 | T150: 118.5 | U150: 7 | V150: 0 | W150: 0 | X150: ='Courbes de Production PV'!AD148 -> 0 | Y150: 51
A151: 141 | B151: 1 | C151: 6 | D151: 19 | I151: 22.5 | J151: 2.5 | K151: 111.5 | L151: 2 | M151: 21 | N151: 0 | O151: 50.6 | P151: 9 | Q151: 1.523864104 | R151: 14.69 | T151: 111.5 | U151: 9 | V151: 0 | W151: 0 | X151: ='Courbes de Production PV'!AD149 -> 0 | Y151: 50.6
A152: 142 | B152: 1 | C152: 6 | D152: 20 | I152: 20.5 | J152: 2.5 | K152: 107.5 | L152: 1 | M152: 21 | N152: 1 | O152: 52.7 | P152: 9 | Q152: 1.63271154 | R152: 14.44 | T152: 107.5 | U152: 9 | V152: 0 | W152: 0 | X152: ='Courbes de Production PV'!AD150 -> 0 | Y152: 52.7
A153: 143 | B153: 1 | C153: 6 | D153: 21 | I153: 20 | J153: 2.5 | K153: 98.5 | L153: 1 | M153: 20 | N153: 0 | O153: 49.1 | P153: 9 | Q153: 2.394643593 | R153: 13.1 | T153: 98.5 | U153: 9 | V153: 0 | W153: 0 | X153: ='Courbes de Production PV'!AD151 -> 0 | Y153: 49.1
A154: 144 | B154: 1 | C154: 6 | D154: 22 | I154: 22 | J154: 2 | K154: 87.5 | L154: 4 | M154: 19 | N154: 0 | O154: 51 | P154: 7 | Q154: 2.285796157 | R154: 14.44 | T154: 87.5 | U154: 7 | V154: 0 | W154: 0 | X154: ='Courbes de Production PV'!AD152 -> 0 | Y154: 51
A155: 145 | B155: 1 | C155: 6 | D155: 23 | I155: 20 | J155: 2.5 | K155: 84.5 | L155: 1 | M155: 20 | N155: 0 | O155: 36 | P155: 9 | Q155: 2.285796157 | R155: 14.43 | T155: 84.5 | U155: 9 | V155: 0 | W155: 0 | X155: ='Courbes de Production PV'!AD153 -> 0 | Y155: 36
A156: 146 | B156: 1 | C156: 7 | D156: 0 | I156: 18.5 | J156: 2.5 | K156: 84 | L156: 1 | M156: 20 | N156: 0 | O156: 32.2 | P156: 9 | Q156: 2.285796157 | R156: 14.38 | T156: 84 | U156: 9 | V156: 0 | W156: 0 | X156: ='Courbes de Production PV'!AD154 -> 0 | Y156: 32.2
A157: 147 | B157: 1 | C157: 7 | D157: 1 | I157: 19 | J157: 2 | K157: 80 | L157: 1 | M157: 20 | N157: 0 | O157: 31.9 | P157: 9 | Q157: 2.394643593 | R157: 14.37 | T157: 80 | U157: 9 | V157: 0 | W157: 0 | X157: ='Courbes de Production PV'!AD155 -> 0 | Y157: 31.9
A158: 148 | B158: 1 | C158: 7 | D158: 2 | I158: 18.5 | J158: 2.5 | K158: 77.5 | L158: 1 | M158: 18 | N158: 0 | O158: 31.9 | P158: 9 | Q158: 2.285796157 | R158: 13.1 | T158: 77.5 | U158: 9 | V158: 0 | W158: 0 | X158: ='Courbes de Production PV'!AD156 -> 0 | Y158: 31.9
A159: 149 | B159: 1 | C159: 7 | D159: 3 | I159: 18 | J159: 2.5 | K159: 77 | L159: 0 | M159: 14 | N159: 1 | O159: 30.7 | P159: 9 | Q159: 2.285796157 | R159: 14.46 | T159: 77 | U159: 9 | V159: 0 | W159: 0 | X159: ='Courbes de Production PV'!AD157 -> 0 | Y159: 30.7
A160: 150 | B160: 1 | C160: 7 | D160: 4 | I160: 16 | J160: 2 | K160: 85 | L160: 4 | M160: 14 | N160: 2 | O160: 30.5 | P160: 9 | Q160: 2.176948721 | R160: 14.41 | T160: 85 | U160: 9 | V160: 0 | W160: 0 | X160: ='Courbes de Production PV'!AD158 -> 0 | Y160: 30.5
A161: 151 | B161: 1 | C161: 7 | D161: 5 | I161: 16.5 | J161: 2.5 | K161: 84.5 | L161: 1 | M161: 9 | N161: 2 | O161: 29.6 | P161: 9 | Q161: 1.523864104 | R161: 13.79 | T161: 84.5 | U161: 9 | V161: 0 | W161: 0 | X161: ='Courbes de Production PV'!AD159 -> 0 | Y161: 29.6
A162: 152 | B162: 1 | C162: 7 | D162: 6 | I162: 18 | J162: 6 | K162: 91 | L162: 1 | M162: 7 | N162: 2 | O162: 33.6 | P162: 8 | Q162: 1.850406413 | R162: 14.32 | T162: 91 | U162: 8 | V162: 0 | W162: 0 | X162: ='Courbes de Production PV'!AD160 -> 0 | Y162: 33.6
A163: 153 | B163: 1 | C163: 7 | D163: 7 | I163: 24 | J163: 20 | K163: 84.5 | L163: 2 | M163: 13 | N163: 2 | O163: 63.1 | P163: 9 | Q163: 28.62687568 | R163: 13.56 | T163: 84.5 | U163: 9 | V163: 0 | W163: 0 | X163: ='Courbes de Production PV'!AD161 -> 2.493830252 | Y163: 63.1
A164: 154 | B164: 1 | C164: 7 | D164: 8 | I164: 36.5 | J164: 22.5 | K164: 87.5 | L164: 2 | M164: 9 | N164: 2 | O164: 61.4 | P164: 9 | Q164: 130.5080758 | R164: 14.34 | T164: 87.5 | U164: 9 | V164: 0 | W164: 0 | X164: ='Courbes de Production PV'!AD162 -> 7.037516451 | Y164: 61.4
A165: 155 | B165: 1 | C165: 7 | D165: 9 | I165: 62 | J165: 22 | K165: 84.5 | L165: 2 | M165: 20 | N165: 3 | O165: 51 | P165: 9 | Q165: 193.204199 | R165: 14.35 | T165: 84.5 | U165: 9 | V165: 0 | W165: 0 | X165: ='Courbes de Production PV'!AD163 -> 3.175504046 | Y165: 51
A166: 156 | B166: 1 | C166: 7 | D166: 10 | I166: 67.5 | J166: 17 | K166: 91.5 | L166: 5 | M166: 18 | N166: 2 | O166: 49.5 | P166: 9 | Q166: 206.2658913 | R166: 13.03 | T166: 91.5 | U166: 9 | V166: 0 | W166: 0 | X166: ='Courbes de Production PV'!AD164 -> 4.345871878 | Y166: 49.5
A167: 157 | B167: 1 | C167: 7 | D167: 11 | I167: 64 | J167: 4 | K167: 90.5 | L167: 3 | M167: 20 | N167: 2 | O167: 49.3 | P167: 9 | Q167: 190.5918605 | R167: 14.36 | T167: 90.5 | U167: 9 | V167: 0 | W167: 0 | X167: ='Courbes de Production PV'!AD165 -> 9.771060596 | Y167: 49.3
A168: 158 | B168: 1 | C168: 7 | D168: 12 | I168: 44 | J168: 3 | K168: 86 | L168: 2 | M168: 17 | N168: 2 | O168: 57.5 | P168: 5 | Q168: 203.3270105 | R168: 14.4 | T168: 86 | U168: 5 | V168: 0 | W168: 0 | X168: ='Courbes de Production PV'!AD166 -> 16.71672029 | Y168: 57.5
A169: 159 | B169: 1 | C169: 7 | D169: 13 | I169: 41 | J169: 10.5 | K169: 85.5 | L169: 4 | M169: 14 | N169: 3 | O169: 58.6 | P169: 9 | Q169: 192.3334195 | R169: 13.52 | T169: 85.5 | U169: 9 | V169: 0 | W169: 0 | X169: ='Courbes de Production PV'!AD167 -> 11.44301464 | Y169: 58.6
A170: 160 | B170: 1 | C170: 7 | D170: 14 | I170: 48.5 | J170: 14 | K170: 77 | L170: 4 | M170: 25 | N170: 3 | O170: 55.4 | P170: 9 | Q170: 36.02850133 | R170: 14.33 | T170: 77 | U170: 9 | V170: 0 | W170: 0 | X170: ='Courbes de Production PV'!AD168 -> 8.304172721 | Y170: 55.4
A171: 161 | B171: 1 | C171: 7 | D171: 15 | I171: 50 | J171: 16.5 | K171: 91 | L171: 7 | M171: 21 | N171: 0 | O171: 45.3 | P171: 9 | Q171: 19.26599618 | R171: 14.32 | T171: 91 | U171: 9 | V171: 0 | W171: 0 | X171: ='Courbes de Production PV'!AD169 -> 0.830336696 | Y171: 45.3
A172: 162 | B172: 1 | C172: 7 | D172: 16 | I172: 48 | J172: 15 | K172: 93.5 | L172: 6 | M172: 23 | N172: 0 | O172: 45.9 | P172: 10 | Q172: 8.054710266 | R172: 14.38 | T172: 93.5 | U172: 10 | V172: 0 | W172: 0 | X172: ='Courbes de Production PV'!AD170 -> 2.683989844 | Y172: 45.9
A173: 163 | B173: 1 | C173: 7 | D173: 17 | I173: 30.5 | J173: 4 | K173: 113 | L173: 2 | M173: 20 | N173: 0 | O173: 50.1 | P173: 9 | Q173: 1.415016668 | R173: 14.43 | T173: 113 | U173: 9 | V173: 0 | W173: 0 | X173: ='Courbes de Production PV'!AD171 -> 0 | Y173: 50.1
A174: 164 | B174: 1 | C174: 7 | D174: 18 | I174: 30.5 | J174: 3 | K174: 140.5 | L174: 2 | M174: 19 | N174: 0 | O174: 51.8 | P174: 7 | Q174: 1.415016668 | R174: 14.21 | T174: 140.5 | U174: 7 | V174: 0 | W174: 0 | X174: ='Courbes de Production PV'!AD172 -> 0 | Y174: 51.8
A175: 165 | B175: 1 | C175: 7 | D175: 19 | I175: 30.5 | J175: 3 | K175: 133.5 | L175: 2 | M175: 14 | N175: 0 | O175: 53.7 | P175: 10 | Q175: 1.415016668 | R175: 14.43 | T175: 133.5 | U175: 10 | V175: 0 | W175: 0 | X175: ='Courbes de Production PV'!AD173 -> 0 | Y175: 53.7
A176: 166 | B176: 1 | C176: 7 | D176: 20 | I176: 27 | J176: 2.5 | K176: 123 | L176: 1 | M176: 20 | N176: 0 | O176: 51.4 | P176: 10 | Q176: 1.741558977 | R176: 14.46 | T176: 123 | U176: 10 | V176: 0 | W176: 0 | X176: ='Courbes de Production PV'!AD174 -> 0 | Y176: 51.4
A177: 167 | B177: 1 | C177: 7 | D177: 21 | I177: 32 | J177: 2.5 | K177: 106.5 | L177: 2 | M177: 20 | N177: 0 | O177: 51 | P177: 8 | Q177: 2.285796157 | R177: 13.82 | T177: 106.5 | U177: 8 | V177: 0 | W177: 0 | X177: ='Courbes de Production PV'!AD175 -> 0 | Y177: 51
A178: 168 | B178: 1 | C178: 7 | D178: 22 | I178: 31 | J178: 2 | K178: 106 | L178: 1 | M178: 14 | N178: 0 | O178: 42.5 | P178: 9 | Q178: 2.285796157 | R178: 14.52 | T178: 106 | U178: 9 | V178: 0 | W178: 0 | X178: ='Courbes de Production PV'!AD176 -> 0 | Y178: 42.5
A179: 169 | B179: 1 | C179: 7 | D179: 23 | I179: 28.5 | J179: 2 | K179: 103.5 | L179: 1 | M179: 19 | N179: 0 | O179: 32.4 | P179: 9 | Q179: 2.285796157 | R179: 14.38 | T179: 103.5 | U179: 9 | V179: 0 | W179: 0 | X179: ='Courbes de Production PV'!AD177 -> 0 | Y179: 32.4
A180: 170 | B180: 1 | C180: 8 | D180: 0 | I180: 27.5 | J180: 2.5 | K180: 109 | L180: 1 | M180: 20 | N180: 0 | O180: 32.8 | P180: 9 | Q180: 2.394643593 | R180: 13.63 | T180: 109 | U180: 9 | V180: 0 | W180: 0 | X180: ='Courbes de Production PV'!AD178 -> 0 | Y180: 32.8
A181: 171 | B181: 1 | C181: 8 | D181: 1 | I181: 27.5 | J181: 2 | K181: 99.5 | L181: 1 | M181: 16 | N181: 0 | O181: 30.5 | P181: 10 | Q181: 2.176948721 | R181: 14.46 | T181: 99.5 | U181: 10 | V181: 0 | W181: 0 | X181: ='Courbes de Production PV'!AD179 -> 0 | Y181: 30.5
A182: 172 | B182: 1 | C182: 8 | D182: 2 | I182: 28 | J182: 2 | K182: 93 | L182: 1 | M182: 18 | N182: 0 | O182: 31.1 | P182: 9 | Q182: 2.285796157 | R182: 14.41 | T182: 93 | U182: 9 | V182: 0 | W182: 0 | X182: ='Courbes de Production PV'!AD180 -> 0 | Y182: 31.1
A183: 173 | B183: 1 | C183: 8 | D183: 3 | I183: 27.5 | J183: 1.5 | K183: 93 | L183: 2 | M183: 20 | N183: 0 | O183: 28.8 | P183: 9 | Q183: 2.285796157 | R183: 13.1 | T183: 93 | U183: 9 | V183: 0 | W183: 0 | X183: ='Courbes de Production PV'!AD181 -> 0 | Y183: 28.8
A184: 174 | B184: 1 | C184: 8 | D184: 4 | I184: 29.5 | J184: 2 | K184: 98.5 | L184: 2 | M184: 19 | N184: 0 | O184: 28.8 | P184: 8 | Q184: 2.176948721 | R184: 14.43 | T184: 98.5 | U184: 8 | V184: 0 | W184: 0 | X184: ='Courbes de Production PV'!AD182 -> 0 | Y184: 28.8
A185: 175 | B185: 1 | C185: 8 | D185: 5 | I185: 29.5 | J185: 2.5 | K185: 101 | L185: 2 | M185: 18 | N185: 1 | O185: 29.6 | P185: 9 | Q185: 1.523864104 | R185: 14.42 | T185: 101 | U185: 9 | V185: 0 | W185: 0 | X185: ='Courbes de Production PV'!AD183 -> 0 | Y185: 29.6
A186: 176 | B186: 1 | C186: 8 | D186: 6 | I186: 28.5 | J186: 6.5 | K186: 101.5 | L186: 2 | M186: 19 | N186: 2 | O186: 30.3 | P186: 9 | Q186: 1.415016668 | R186: 13.3 | T186: 101.5 | U186: 9 | V186: 0 | W186: 0 | X186: ='Courbes de Production PV'!AD184 -> 0 | Y186: 30.3
A187: 177 | B187: 1 | C187: 8 | D187: 7 | I187: 32.5 | J187: 22 | K187: 98.5 | L187: 2 | M187: 12 | N187: 2 | O187: 31.9 | P187: 9 | Q187: 1.306169232 | R187: 14.43 | T187: 98.5 | U187: 9 | V187: 0 | W187: 0 | X187: ='Courbes de Production PV'!AD185 -> 2.458779649 | Y187: 31.9
A188: 178 | B188: 1 | C188: 8 | D188: 8 | I188: 40 | J188: 22.5 | K188: 90.5 | L188: 2 | M188: 12 | N188: 3 | O188: 34.1 | P188: 9 | Q188: 1.415016668 | R188: 14.32 | T188: 90.5 | U188: 9 | V188: 0 | W188: 0 | X188: ='Courbes de Production PV'!AD186 -> 13.45459694 | Y188: 34.1
A189: 179 | B189: 1 | C189: 8 | D189: 9 | I189: 48 | J189: 21 | K189: 84.5 | L189: 3 | M189: 22 | N189: 3 | O189: 31.7 | P189: 11 | Q189: 1.63271154 | R189: 12.95 | T189: 84.5 | U189: 11 | V189: 0 | W189: 0 | X189: ='Courbes de Production PV'!AD187 -> 21.07306707 | Y189: 31.7
A190: 180 | B190: 1 | C190: 8 | D190: 10 | I190: 53.5 | J190: 20.5 | K190: 84 | L190: 3 | M190: 10 | N190: 2 | O190: 33.2 | P190: 10 | Q190: 2.068101285 | R190: 14.43 | T190: 84 | U190: 10 | V190: 0 | W190: 0 | X190: ='Courbes de Production PV'!AD188 -> 26.00190702 | Y190: 33.2
A191: 181 | B191: 1 | C191: 8 | D191: 11 | I191: 50.5 | J191: 9 | K191: 90 | L191: 5 | M191: 9 | N191: 2 | O191: 32.4 | P191: 9 | Q191: 1.741558977 | R191: 14.29 | T191: 90 | U191: 9 | V191: 0 | W191: 0 | X191: ='Courbes de Production PV'!AD189 -> 28.28946246 | Y191: 32.4
A192: 182 | B192: 1 | C192: 8 | D192: 12 | I192: 34 | J192: 7.5 | K192: 96 | L192: 4 | M192: 15 | N192: 1 | O192: 30.3 | P192: 6 | Q192: 1.415016668 | R192: 13 | T192: 96 | U192: 6 | V192: 0 | W192: 0 | X192: ='Courbes de Production PV'!AD190 -> 20.70402853 | Y192: 30.3
A193: 183 | B193: 1 | C193: 8 | D193: 13 | I193: 30.5 | J193: 13 | K193: 99 | L193: 4 | M193: 13 | N193: 2 | O193: 32.2 | P193: 9 | Q193: 1.415016668 | R193: 14.37 | T193: 99 | U193: 9 | V193: 0 | W193: 0 | X193: ='Courbes de Production PV'!AD191 -> 25.79764661 | Y193: 32.2
A194: 184 | B194: 1 | C194: 8 | D194: 14 | I194: 35.5 | J194: 17.5 | K194: 90 | L194: 6 | M194: 14 | N194: 3 | O194: 30.7 | P194: 10 | Q194: 1.415016668 | R194: 14.31 | T194: 90 | U194: 10 | V194: 0 | W194: 0 | X194: ='Courbes de Production PV'!AD192 -> 20.90748318 | Y194: 30.7
A195: 185 | B195: 1 | C195: 8 | D195: 15 | I195: 40 | J195: 17 | K195: 83.5 | L195: 5 | M195: 14 | N195: 0 | O195: 31.7 | P195: 9 | Q195: 1.415016668 | R195: 12.89 | T195: 83.5 | U195: 9 | V195: 0 | W195: 0 | X195: ='Courbes de Production PV'!AD193 -> 13.45701423 | Y195: 31.7
A196: 186 | B196: 1 | C196: 8 | D196: 16 | I196: 41 | J196: 12.5 | K196: 92 | L196: 5 | M196: 16 | N196: 0 | O196: 34.5 | P196: 9 | Q196: 1.415016668 | R196: 14.32 | T196: 92 | U196: 9 | V196: 0 | W196: 0 | X196: ='Courbes de Production PV'!AD194 -> 2.807674156 | Y196: 34.5
A197: 187 | B197: 1 | C197: 8 | D197: 17 | I197: 28.5 | J197: 3 | K197: 115 | L197: 3 | M197: 8 | N197: 0 | O197: 31.7 | P197: 8 | Q197: 1.415016668 | R197: 14.39 | T197: 115 | U197: 8 | V197: 0 | W197: 0 | X197: ='Courbes de Production PV'!AD195 -> 0 | Y197: 31.7
A198: 188 | B198: 1 | C198: 8 | D198: 18 | I198: 28 | J198: 3 | K198: 125.5 | L198: 3 | M198: 14 | N198: 0 | O198: 31.7 | P198: 6 | Q198: 1.306169232 | R198: 13.58 | T198: 125.5 | U198: 6 | V198: 0 | W198: 0 | X198: ='Courbes de Production PV'!AD196 -> 0 | Y198: 31.7
A199: 189 | B199: 1 | C199: 8 | D199: 19 | I199: 24 | J199: 3.5 | K199: 113 | L199: 2 | M199: 11 | N199: 0 | O199: 36 | P199: 9 | Q199: 1.523864104 | R199: 14.46 | T199: 113 | U199: 9 | V199: 0 | W199: 0 | X199: ='Courbes de Production PV'!AD197 -> 0 | Y199: 36
A200: 190 | B200: 1 | C200: 8 | D200: 20 | I200: 24 | J200: 3 | K200: 113 | L200: 2 | M200: 15 | N200: 0 | O200: 35.5 | P200: 10 | Q200: 1.523864104 | R200: 15.15 | T200: 113 | U200: 10 | V200: 0 | W200: 0 | X200: ='Courbes de Production PV'!AD198 -> 0 | Y200: 35.5
A201: 191 | B201: 1 | C201: 8 | D201: 21 | I201: 22.5 | J201: 3.5 | K201: 105 | L201: 2 | M201: 12 | N201: 0 | O201: 34.3 | P201: 9 | Q201: 2.176948721 | R201: 17.24 | T201: 105 | U201: 9 | V201: 0 | W201: 0 | X201: ='Courbes de Production PV'!AD199 -> 0 | Y201: 34.3
A202: 192 | B202: 1 | C202: 8 | D202: 22 | I202: 21 | J202: 3 | K202: 100 | L202: 1 | M202: 10 | N202: 0 | O202: 32.4 | P202: 7 | Q202: 2.285796157 | R202: 13.13 | T202: 100 | U202: 7 | V202: 0 | W202: 0 | X202: ='Courbes de Production PV'!AD200 -> 0 | Y202: 32.4
... 2048 more rows

Sheet Courbes de Production PV
B2: Courbe de Production PV moyenne (kWh/kW)
B4: Région | C4: ='Entrées Utilisateur'!C34 -> Tunis
B5: Orientation des panneaux | C5: ='Entrées Utilisateur'!C35 -> Sud
B6: rendement spécifique | C6: =IF('Entrées Utilisateur'!H55="Calcul Automatique",SUM(AC9:AC8767)/Données!G35,'Entrées Utilisateur'!H56) -> 1650 | D6: kWh/kWc/a | AC6: modulation | AD6: =IF('Entrées Utilisateur'!H55="Calcul Automatique",1,'Entrées Utilisateur'!H56/(SUM(AC9:AC8767)/Données!G35)) -> 1
H7: =H8&H9 -> BizerteSud | I7: =H8&I9 -> BizerteSud-ouest | J7: =J8&J9 -> GafsaSud | K7: =J8&K9 -> GafsaSud-ouest | L7: =L8&L9 -> JendoubaSud | M7: =L8&M9 -> JendoubaSud-ouest | N7: =N8&N9 -> JerbaSud | O7: =N8&O9 -> JerbaSud-ouest | P7: =P8&P9 -> KairouanSud | Q7: =P8&Q9 -> KairouanSud-ouest | R7: =R8&R9 -> MonastirSud | S7: =R8&S9 -> MonastirSud-ouest | T7: =T8&T9 -> SfaxSud | U7: =T8&U9 -> SfaxSud-ouest | V7: =V8&V9 -> TataouineSud | W7: =V8&W9 -> TataouineSud-ouest | X7: =X8&X9 -> TozeurSud | Y7: =X8&Y9 -> TozeurSud-ouest | Z7: =Z8&Z9 -> TunisSud | AA7: =Z8&AA9 -> TunisSud-ouest
H8: Bizerte | J8: Gafsa | L8: Jendouba | N8: Jerba | P8: Kairouan | R8: Monastir | T8: Sfax | V8: Tataouine | X8: Tozeur | Z8: Tunis | AH8: 0 | AI8: 0 | AJ8: 0 | AK8: 0 | AL8: 0 | AM8: 0 | AN8: 0 | AO8: 0 | AP8: 0 | AQ8: 0
C9: mois | D9: jour | E9: heure | G9: Saisie manuelle | H9: Sud | I9: Sud-ouest | J9: Sud | K9: Sud-ouest | L9: Sud | M9: Sud-ouest | N9: Sud | O9: Sud-ouest | P9: Sud | Q9: Sud-ouest | R9: Sud | S9: Sud-ouest | T9: Sud | U9: Sud-ouest | V9: Sud | W9: Sud-ouest | X9: Sud | Y9: Sud-ouest | Z9: Sud | AA9: Sud-ouest | AC9: Production non modulée | AD9: Production modulée | AH9: 0 | AI9: 0 | AJ9: 0 | AK9: 0 | AL9: 0 | AM9: 0 | AN9: 0 | AO9: 0 | AP9: 0 | AQ9: 0
C10: 1 | D10: 1 | E10: 0 | H10: 0 | I10: 0 | J10: 0 | K10: 0 | L10: 0 | M10: 0 | N10: 0 | O10: 0 | P10: 0 | Q10: 0 | R10: 0 | S10: 0 | T10: 0 | U10: 0 | V10: 0 | W10: 0 | X10: 0 | Y10: 0 | Z10: 0 | AA10: 0 | AC10: =IF('Courbes de Production PV'!$C$4="Saisie Manuelle",G10*Données!$G$35,HLOOKUP('Courbes de Production PV'!$C$4&'Courbes de Production PV'!$C$5,'Courbes de Production PV'!$H$7:$AA$8768,'Compensation PV'!A54+1,FALSE)*Données!$G$35) -> 0 | AD10: =AC10*$AD$6 -> 0 | AH10: 0 | AI10: 0 | AJ10: 0 | AK10: 0 | AL10: 0 | AM10: 0 | AN10: 0 | AO10: 0 | AP10: 0 | AQ10: 0 | AS10: 0 | AT10: 0 | AU10: 0 | AV10: 0 | AW10: 0 | AX10: 0 | AY10: 0 | AZ10: 0 | BA10: 0 | BB10: 0
C11: 1 | D11: 1 | E11: 1 | H11: 0 | I11: 0 | J11: 0 | K11: 0 | L11: 0 | M11: 0 | N11: 0 | O11: 0 | P11: 0 | Q11: 0 | R11: 0 | S11: 0 | T11: 0 | U11: 0 | V11: 0 | W11: 0 | X11: 0 | Y11: 0 | Z11: 0 | AA11: 0 | AC11: =IF('Courbes de Production PV'!$C$4="Saisie Manuelle",G11*Données!$G$35,HLOOKUP('Courbes de Production PV'!$C$4&'Courbes de Production PV'!$C$5,'Courbes de Production PV'!$H$7:$AA$8768,'Compensation PV'!A55+1,FALSE)*Données!$G$35) -> 0 | AD11: 0 | AH11: 0 | AI11: 0 | AJ11: 0 | AK11: 0 | AL11: 0 | AM11: 0 | AN11: 0 | AO11: 0 | AP11: 0 | AQ11: 0 | AS11: 0 | AT11: 0 | AU11: 0 | AV11: 0 | AW11: 0 | AX11: 0 | AY11: 0 | AZ11: 0 | BA11: 0 | BB11: 0
C12: 1 | D12: 1 | E12: 2 | H12: 0 | I12: 0 | J12: 0 | K12: 0 | L12: 0 | M12: 0 | N12: 0 | O12: 0 | P12: 0 | Q12: 0 | R12: 0 | S12: 0 | T12: 0 | U12: 0 | V12: 0 | W12: 0 | X12: 0 | Y12: 0 | Z12: 0 | AA12: 0 | AC12: =IF('Courbes de Production PV'!$C$4="Saisie Manuelle",G12*Données!$G$35,HLOOKUP('Courbes de Production PV'!$C$4&'Courbes de Production PV'!$C$5,'Courbes de Production PV'!$H$7:$AA$8768,'Compensation PV'!A56+1,FALSE)*Données!$G$35) -> 0 | AD12: 0 | AH12: 0 | AI12: 0 | AJ12: 0 | AK12: 0 | AL12: 0 | AM12: 0 | AN12: 0 | AO12: 0 | AP12: 0 | AQ12: 0 | AS12: 0 | AT12: 0 | AU12: 0 | AV12: 0 | AW12: 0 | AX12: 0 | AY12: 0 | AZ12: 0 | BA12: 0 | BB12: 0
C13: 1 | D13: 1 | E13: 3 | H13: 0 | I13: 0 | J13: 0 | K13: 0 | L13: 0 | M13: 0 | N13: 0 | O13: 0 | P13: 0 | Q13: 0 | R13: 0 | S13: 0 | T13: 0 | U13: 0 | V13: 0 | W13: 0 | X13: 0 | Y13: 0 | Z13: 0 | AA13: 0 | AC13: =IF('Courbes de Production PV'!$C$4="Saisie Manuelle",G13*Données!$G$35,HLOOKUP('Courbes de Production PV'!$C$4&'Courbes de Production PV'!$C$5,'Courbes de Production PV'!$H$7:$AA$8768,'Compensation PV'!A57+1,FALSE)*Données!$G$35) -> 0 | AD13: 0 | AH13: 0 | AI13: 0 | AJ13: 0 | AK13: 0 | AL13: 0 | AM13: 0 | AN13: 0 | AO13: 0 | AP13: 0 | AQ13: 0 | AS13: 0 | AT13: 0 | AU13: 0 | AV13: 0 | AW13: 0 | AX13: 0 | AY13: 0 | AZ13: 0 | BA13: 0 | BB13: 0
C14: 1 | D14: 1 | E14: 4 | H14: 0 | I14: 0 | J14: 0 | K14: 0 | L14: 0 | M14: 0 | N14: 0 | O14: 0 | P14: 0 | Q14: 0 | R14: 0 | S14: 0 | T14: 0 | U14: 0 | V14: 0 | W14: 0 | X14: 0 | Y14: 0 | Z14: 0 | AA14: 0 | AC14: =IF('Courbes de Production PV'!$C$4="Saisie Manuelle",G14*Données!$G$35,HLOOKUP('Courbes de Production PV'!$C$4&'Courbes de Production PV'!$C$5,'Courbes de Production PV'!$H$7:$AA$8768,'Compensation PV'!A58+1,FALSE)*Données!$G$35) -> 0 | AD14: 0 | AH14: 0 | AI14: 0 | AJ14: 0 | AK14: 0 | AL14: 0 | AM14: 0 | AN14: 0 | AO14: 0 | AP14: 0 | AQ14: 0 | AS14: 0 | AT14: 0 | AU14: 0 | AV14: 0 | AW14: 0 | AX14: 0 | AY14: 0 | AZ14: 0 | BA14: 0 | BB14: 0
C15: 1 | D15: 1 | E15: 5 | H15: 0 | I15: 0 | J15: 0 | K15: 0 | L15: 0 | M15: 0 | N15: 0 | O15: 0 | P15: 0 | Q15: 0 | R15: 0 | S15: 0 | T15: 0 | U15: 0 | V15: 0 | W15: 0 | X15: 0 | Y15: 0 | Z15: 0 | AA15: 0 | AC15: =IF('Courbes de Production PV'!$C$4="Saisie Manuelle",G15*Données!$G$35,HLOOKUP('Courbes de Production PV'!$C$4&'Courbes de Production PV'!$C$5,'Courbes de Production PV'!$H$7:$AA$8768,'Compensation PV'!A59+1,FALSE)*Données!$G$35) -> 0 | AD15: 0 | AH15: 0 | AI15: 0 | AJ15: 0 | AK15: 0 | AL15: 0 | AM15: 0 | AN15: 0 | AO15: 0 | AP15: 0 | AQ15: 0 | AS15: 0 | AT15: 0 | AU15: 0 | AV15: 0 | AW15: 0 | AX15: 0 | AY15: 0 | AZ15: 0 | BA15: 0 | BB15: 0
C16: 1 | D16: 1 | E16: 6 | H16: 0 | I16: 0 | J16: 0 | K16: 0 | L16: 0 | M16: 0 | N16: 0 | O16: 0 | P16: 0 | Q16: 0 | R16: 0 | S16: 0 | T16: 0 | U16: 0 | V16: 0 | W16: 0 | X16: 0 | Y16: 0 | Z16: 0 | AA16: 0 | AC16: =IF('Courbes de Production PV'!$C$4="Saisie Manuelle",G16*Données!$G$35,HLOOKUP('Courbes de Production PV'!$C$4&'Courbes de Production PV'!$C$5,'Courbes de Production PV'!$H$7:$AA$8768,'Compensation PV'!A60+1,FALSE)*Données!$G$35) -> 0 | AD16: 0 | AH16: 0.0333214 | AI16: 0.0336673 | AJ16: 0.0336063 | AK16: 0.0330768 | AL16: 0.0332196 | AM16: 0.033138 | AN16: 0.0332807 | AO16: 0.0333214 | AP16: 0.0333011 | AQ16: 0.0332603 | AS16: 0.1709 | AT16: 0.08366 | AU16: 0.07159 | AV16: 0.11996 | AW16: 0.08831 | AX16: 0 | AY16: 0.11904 | AZ16: 0.01242 | BA16: 0.15855 | BB16: 0.00212
C17: 1 | D17: 1 | E17: 7 | H17: 0.02435994234 | I17: 0.004239036449 | J17: 0.08722176081 | K17: 0.009951866276 | L17: 0.06908319304 | M17: 0.007203386502 | N17: 0.1077430298 | O17: 0.01382718331 | P17: 0.01929344633 | Q17: 0.007989918069 | R17: 0 | S17: 0 | T17: 0.1057841584 | U17: 0.01124836152 | V17: 0.08097544465 | W17: 0.01415586591 | X17: 0.07069889143 | Y17: 0.01012024261 | Z17: 0.01991236837 | AA17: 0.006234575629 | AC17: =IF('Courbes de Production PV'!$C$4="Saisie Manuelle",G17*Données!$G$35,HLOOKUP('Courbes de Production PV'!$C$4&'Courbes de Production PV'!$C$5,'Courbes de Production PV'!$H$7:$AA$8768,'Compensation PV'!A61+1,FALSE)*Données!$G$35) -> 0.7964947346 | AD17: 0.7964947346 | AH17: 0.103418 | AI17: 0.10558 | AJ17: 0.1041 | AK17: 0.104472 | AL17: 0.104351 | AM17: 0.104255 | AN17: 0.104927 | AO17: 0.105111 | AP17: 0.104455 | AQ17: 0.103357 | AS17: 0.20087 | AT17: 0.37602 | AU17: 0.0194 | AV17: 0.39993 | AW17: 0.01136 | AX17: 0.00332 | AY17: 0.40225 | AZ17: 0.03533 | BA17: 0.3657 | BB17: 0.0696
C18: 1 | D18: 1 | E18: 8 | H18: 0.3242185412 | I18: 0.08529367175 | J18: 0.08541937802 | K18: 0.06910103059 | L18: 0.3113567802 | M18: 0.08371477915 | N18: 0.3564653132 | O18: 0.1222822295 | P18: 0.06869368823 | Q18: 0.06188019982 | R18: 0.003177296425 | S18: 0.003310476515 | T18: 0.3567438655 | U18: 0.1134040162 | V18: 0.369404861 | W18: 0.1352931075 | X18: 0.1885049893 | Y18: 0.08900672448 | Z18: 0.04738881799 | AA18: 0.046583057 | AC18: =IF('Courbes de Production PV'!$C$4="Saisie Manuelle",G18*Données!$G$35,HLOOKUP('Courbes de Production PV'!$C$4&'Courbes de Production PV'!$C$5,'Courbes de Production PV'!$H$7:$AA$8768,'Compensation PV'!A62+1,FALSE)*Données!$G$35) -> 1.895552719 | AD18: 1.895552719 | AH18: 0.163917 | AI18: 0.168581 | AJ18: 0.164833 | AK18: 0.167091 | AL18: 0.166696 | AM18: 0.166575 | AN18: 0.167758 | AO18: 0.167928 | AP18: 0.166884 | AQ18: 0.163856 | AS18: 0.1817 | AT18: 0.14071 | AU18: 0.00403 | AV18: 0.60535 | AW18: 0.0944 | AX18: 0.00654 | AY18: 0.60627 | AZ18: 0.62017 | BA18: 0.57539 | BB18: 0.09566
C19: 1 | D19: 1 | E19: 9 | H19: 0.385820064 | I19: 0.2289950718 | J19: 0.5350945042 | K19: 0.2949512227 | L19: 0.4976612719 | M19: 0.2659820022 | N19: 0.5382404713 | O19: 0.3109665841 | P19: 0.1402108076 | Q19: 0.1301033162 | R19: 0.006240438488 | S19: 0.006468747213 | T19: 0.5373902505 | U19: 0.3014313088 | V19: 0.5506388611 | W19: 0.3289998362 | X19: 0.4374267797 | Y19: 0.2574711581 | Z19: 0.1856574032 | AA19: 0.1546356052 | AC19: =IF('Courbes de Production PV'!$C$4="Saisie Manuelle",G19*Données!$G$35,HLOOKUP('Courbes de Production PV'!$C$4&'Courbes de Production PV'!$C$5,'Courbes de Production PV'!$H$7:$AA$8768,'Compensation PV'!A63+1,FALSE)*Données!$G$35) -> 7.426296127 | AD19: 7.426296127 | AH19: 0.203791 | AI19: 0.208062 | AJ19: 0.205209 | AK19: 0.205288 | AL19: 0.205504 | AM19: 0.20515 | AN19: 0.206325 | AO19: 0.206508 | AP19: 0.205951 | AQ19: 0.203554 | AS19: 0.43376 | AT19: 0.71316 | AU19: 0.06447 | AV19: 0.30549 | AW19: 0.01715 | AX19: 0.11018 | AY19: 0.06415 | AZ19: 0.75923 | BA19: 0.71563 | BB19: 0.13097
C20: 1 | D20: 1 | E20: 10 | H20: 0.2443156076 | I20: 0.2127163975 | J20: 0.6549238891 | K20: 0.4584835453 | L20: 0.6189292064 | M20: 0.4257304462 | N20: 0.1558964374 | O20: 0.1541735334 | P20: 0.2308351053 | Q20: 0.2108063905 | R20: 0.1051171422 | S20: 0.1074192552 | T20: 0.05672855812 | U20: 0.05806490949 | V20: 0.6584180244 | W20: 0.4833133683 | X20: 0.6414215476 | Y20: 0.4499271358 | Z20: 0.1934430687 | AA20: 0.1821221268 | AC20: =IF('Courbes de Production PV'!$C$4="Saisie Manuelle",G20*Données!$G$35,HLOOKUP('Courbes de Production PV'!$C$4&'Courbes de Production PV'!$C$5,'Courbes de Production PV'!$H$7:$AA$8768,'Compensation PV'!A64+1,FALSE)*Données!$G$35) -> 7.737722748 | AD20: 7.737722748 | AH20: 0.213511 | AI20: 0.217998 | AJ20: 0.215028 | AK20: 0.214969 | AL20: 0.215264 | AM20: 0.214847 | AN20: 0.216055 | AO20: 0.216251 | AP20: 0.21585 | AQ20: 0.213243 | AS20: 0.20218 | AT20: 0.70566 | AU20: 0.06118 | AV20: 0.25164 | AW20: 0.32318 | AX20: 0.20752 | AY20: 0.13885 | AZ20: 0.8045 | BA20: 0.35986 | BB20: 0.15127
C21: 1 | D21: 1 | E21: 11 | H21: 0.330054475 | I21: 0.2930258141 | J21: 0.7141118144 | K21: 0.5678668622 | L21: 0.6759005935 | M21: 0.5323667946 | N21: 0.2678676141 | O21: 0.2524757528 | P21: 0.4199363687 | Q21: 0.3625560123 | R21: 0.1976868174 | S21: 0.1946522139 | T21: 0.1228027258 | U21: 0.1251037282 | V21: 0.7028606329 | W21: 0.5791159879 | X21: 0.6992011829 | Y21: 0.5593647545 | Z21: 0.2438132023 | AA21: 0.2310821788 | AC21: =IF('Courbes de Production PV'!$C$4="Saisie Manuelle",G21*Données!$G$35,HLOOKUP('Courbes de Production PV'!$C$4&'Courbes de Production PV'!$C$5,'Courbes de Production PV'!$H$7:$AA$8768,'Compensation PV'!A65+1,FALSE)*Données!$G$35) -> 9.752528093 | AD21: 9.752528093 | AH21: 0.167549 | AI21: 0.171321 | AJ21: 0.16892 | AK21: 0.168561 | AL21: 0.168879 | AM21: 0.168471 | AN21: 0.169496 | AO21: 0.169711 | AP21: 0.16951 | AQ21: 0.167299 | AS21: 0.63804 | AT21: 0.55374 | AU21: 0.20745 | AV21: 0.06036 | AW21: 0.04043 | AX21: 0.10241 | AY21: 0.13367 | AZ21: 0.2582 | BA21: 0.20871 | BB21: 0.20508
C22: 1 | D22: 1 | E22: 12 | H22: 0.3197278725 | I22: 0.2997908517 | J22: 0.7147029184 | K22: 0.6206204747 | L22: 0.673586892 | M22: 0.5822753034 | N22: 0.06171688114 | O22: 0.06302663976 | P22: 0.3345177722 | Q22: 0.3138224139 | R22: 0.09770662151 | S22: 0.1000182474 | T22: 0.1182272711 | U22: 0.1206433236 | V22: 0.6907867982 | W22: 0.6177600425 | X22: 0.6994677557 | Y22: 0.6123936833 | Z22: 0.2929746945 | AA22: 0.2791156055 | AC22: =IF('Courbes de Production PV'!$C$4="Saisie Manuelle",G22*Données!$G$35,HLOOKUP('Courbes de Production PV'!$C$4&'Courbes de Production PV'!$C$5,'Courbes de Production PV'!$H$7:$AA$8768,'Compensation PV'!A66+1,FALSE)*Données!$G$35) -> 11.71898778 | AD22: 11.71898778 | AH22: 0.105572 | AI22: 0.106732 | AJ22: 0.106531 | AK22: 0.104743 | AL22: 0.105224 | AM22: 0.104949 | AN22: 0.105429 | AO22: 0.105567 | AP22: 0.105498 | AQ22: 0.105366 | AS22: 0.70747 | AT22: 0.56139 | AU22: 0.5112 | AV22: 0.0466 | AW22: 0.70142 | AX22: 0.12303 | AY22: 0.21208 | AZ22: 0.72562 | BA22: 0.70045 | BB22: 0.101
C23: 1 | D23: 1 | E23: 13 | H23: 0.2640106742 | I23: 0.2602942587 | J23: 0.6555634443 | K23: 0.6137985528 | L23: 0.6136367313 | M23: 0.5742195006 | N23: 0.0869451177 | O23: 0.08873834427 | P23: 0.3122342338 | Q23: 0.303420815 | R23: 0.1173506847 | S23: 0.1198620807 | T23: 0.1876732923 | U23: 0.1887706934 | V23: 0.6236072421 | W23: 0.5988758255 | X23: 0.6426496862 | Y23: 0.6075382518 | Z23: 0.2148158789 | AA23: 0.214090694 | AC23: =IF('Courbes de Production PV'!$C$4="Saisie Manuelle",G23*Données!$G$35,HLOOKUP('Courbes de Production PV'!$C$4&'Courbes de Production PV'!$C$5,'Courbes de Production PV'!$H$7:$AA$8768,'Compensation PV'!A67+1,FALSE)*Données!$G$35) -> 8.592635154 | AD23: 8.592635154 | AH23: 0.0434341 | AI23: 0.0439358 | AJ23: 0.0438474 | AK23: 0.0430793 | AL23: 0.0432864 | AM23: 0.0431681 | AN23: 0.043375 | AO23: 0.0434341 | AP23: 0.0434046 | AQ23: 0.0433455 | AS23: 0.56436 | AT23: 0.48814 | AU23: 0.05653 | AV23: 0.06389 | AW23: 0.36478 | AX23: 0.31781 | AY23: 0.38249 | AZ23: 0.06533 | BA23: 0.3477 | BB23: 0.26326
C24: 1 | D24: 1 | E24: 14 | H24: 0.3275091175 | I24: 0.3434877685 | J24: 0.4314768741 | K24: 0.4378918064 | L24: 0.5001997865 | M24: 0.5096700384 | N24: 0.09761657386 | O24: 0.09992842968 | P24: 0.2659515305 | Q24: 0.2710199816 | R24: 0.3010440799 | S24: 0.3138388813 | T24: 0.3389199472 | U24: 0.3557615145 | V24: 0.5052233408 | W24: 0.5250512822 | X24: 0.5317078357 | Y24: 0.5456362599 | Z24: 0.1653522263 | AA24: 0.1702673683 | AC24: =IF('Courbes de Production PV'!$C$4="Saisie Manuelle",G24*Données!$G$35,HLOOKUP('Courbes de Production PV'!$C$4&'Courbes de Production PV'!$C$5,'Courbes de Production PV'!$H$7:$AA$8768,'Compensation PV'!A68+1,FALSE)*Données!$G$35) -> 6.614089053 | AD24: 6.614089053 | AH24: 0.00649685 | AI24: 0.00660957 | AJ24: 0.0065897 | AK24: 0.00641714 | AL24: 0.00646365 | AM24: 0.00643708 | AN24: 0.00648358 | AO24: 0.00649685 | AP24: 0.00649021 | AQ24: 0.00647694 | AS24: 0.34914 | AT24: 0.34343 | AU24: 0.10266 | AV24: 0.00084 | AW24: 0.12481 | AX24: 0.07771 | AY24: 0.35682 | AZ24: 0.00182 | BA24: 0.34907 | BB24: 0.0242
C25: 1 | D25: 1 | E25: 15 | H25: 0.3078624417 | I25: 0.3743127254 | J25: 0.3552922853 | K25: 0.40392755 | L25: 0.2352950137 | M25: 0.2673121464 | N25: 0.01300089264 | O25: 0.01333492504 | P25: 0.2734120553 | Q25: 0.3114989653 | R25: 0.07389592405 | S25: 0.07967023222 | T25: 0.3164851742 | U25: 0.383639043 | V25: 0.3249136068 | W25: 0.3796496217 | X25: 0.3576072933 | Y25: 0.411578747 | Z25: 0.08232862874 | AA25: 0.08967112572 | AC25: =IF('Courbes de Production PV'!$C$4="Saisie Manuelle",G25*Données!$G$35,HLOOKUP('Courbes de Production PV'!$C$4&'Courbes de Production PV'!$C$5,'Courbes de Production PV'!$H$7:$AA$8768,'Compensation PV'!A69+1,FALSE)*Données!$G$35) -> 3.29314515 | AD25: 3.29314515 | AH25: 0 | AI25: 0 | AJ25: 0 | AK25: 0 | AL25: 0 | AM25: 0 | AN25: 0 | AO25: 0 | AP25: 0 | AQ25: 0 | AS25: 0.0461 | AT25: 0.16543 | AU25: 0.07949 | AV25: 0.00131 | AW25: 0.06429 | AX25: 0.16455 | AY25: 0.05873 | AZ25: 0.03167 | BA25: 0.08774 | BB25: 0.00303
C26: 1 | D26: 1 | E26: 16 | H26: 0.04249682431 | I26: 0.0749573911 | J26: 0.1085111963 | K26: 0.1592395507 | L26: 0.09329743766 | M26: 0.1431872121 | N26: 0.002733791488 | O26: 0.00301508193 | P26: 0.01611708626 | Q26: 0.02283253887 | R26: 0.1532712575 | S26: 0.2673400043 | T26: 0.05221505349 | U26: 0.08801334017 | V26: 0.06265551647 | W26: 0.09539399673 | X26: 0.1101897346 | Y26: 0.1628759271 | Z26: 0.0594148007 | AA26: 0.1019388367 | AC26: =IF('Courbes de Production PV'!$C$4="Saisie Manuelle",G26*Données!$G$35,HLOOKUP('Courbes de Production PV'!$C$4&'Courbes de Production PV'!$C$5,'Courbes de Production PV'!$H$7:$AA$8768,'Compensation PV'!A70+1,FALSE)*Données!$G$35) -> 2.376592028 | AD26: 2.376592028 | AH26: 0 | AI26: 0 | AJ26: 0 | AK26: 0 | AL26: 0 | AM26: 0 | AN26: 0 | AO26: 0 | AP26: 0 | AQ26: 0 | AS26: 0 | AT26: 0 | AU26: 0 | AV26: 0 | AW26: 0 | AX26: 0 | AY26: 0 | AZ26: 0 | BA26: 0 | BB26: 0
C27: 1 | D27: 1 | E27: 17 | H27: 0 | I27: 0 | J27: 0 | K27: 0 | L27: 0 | M27: 0 | N27: 0 | O27: 0 | P27: 0 | Q27: 0 | R27: 0 | S27: 0 | T27: 0 | U27: 0 | V27: 0 | W27: 0 | X27: 0 | Y27: 0 | Z27: 0 | AA27: 0 | AC27: =IF('Courbes de Production PV'!$C$4="Saisie Manuelle",G27*Données!$G$35,HLOOKUP('Courbes de Production PV'!$C$4&'Courbes de Production PV'!$C$5,'Courbes de Production PV'!$H$7:$AA$8768,'Compensation PV'!A71+1,FALSE)*Données!$G$35) -> 0 | AD27: 0 | AH27: 0 | AI27: 0 | AJ27: 0 | AK27: 0 | AL27: 0 | AM27: 0 | AN27: 0 | AO27: 0 | AP27: 0 | AQ27: 0 | AS27: 0 | AT27: 0 | AU27: 0 | AV27: 0 | AW27: 0 | AX27: 0 | AY27: 0 | AZ27: 0 | BA27: 0 | BB27: 0
C28: 1 | D28: 1 | E28: 18 | H28: 0 | I28: 0 | J28: 0 | K28: 0 | L28: 0 | M28: 0 | N28: 0 | O28: 0 | P28: 0 | Q28: 0 | R28: 0 | S28: 0 | T28: 0 | U28: 0 | V28: 0 | W28: 0 | X28: 0 | Y28: 0 | Z28: 0 | AA28: 0 | AC28: =IF('Courbes de Production PV'!$C$4="Saisie Manuelle",G28*Données!$G$35,HLOOKUP('Courbes de Production PV'!$C$4&'Courbes de Production PV'!$C$5,'Courbes de Production PV'!$H$7:$AA$8768,'Compensation PV'!A72+1,FALSE)*Données!$G$35) -> 0 | AD28: 0 | AH28: 0 | AI28: 0 | AJ28: 0 | AK28: 0 | AL28: 0 | AM28: 0 | AN28: 0 | AO28: 0 | AP28: 0 | AQ28: 0 | AS28: 0 | AT28: 0 | AU28: 0 | AV28: 0 | AW28: 0 | AX28: 0 | AY28: 0 | AZ28: 0 | BA28: 0 | BB28: 0
C29: 1 | D29: 1 | E29: 19 | H29: 0 | I29: 0 | J29: 0 | K29: 0 | L29: 0 | M29: 0 | N29: 0 | O29: 0 | P29: 0 | Q29: 0 | R29: 0 | S29: 0 | T29: 0 | U29: 0 | V29: 0 | W29: 0 | X29: 0 | Y29: 0 | Z29: 0 | AA29: 0 | AC29: =IF('Courbes de Production PV'!$C$4="Saisie Manuelle",G29*Données!$G$35,HLOOKUP('Courbes de Production PV'!$C$4&'Courbes de Production PV'!$C$5,'Courbes de Production PV'!$H$7:$AA$8768,'Compensation PV'!A73+1,FALSE)*Données!$G$35) -> 0 | AD29: 0 | AH29: 0 | AI29: 0 | AJ29: 0 | AK29: 0 | AL29: 0 | AM29: 0 | AN29: 0 | AO29: 0 | AP29: 0 | AQ29: 0 | AS29: 0 | AT29: 0 | AU29: 0 | AV29: 0 | AW29: 0 | AX29: 0 | AY29: 0 | AZ29: 0 | BA29: 0 | BB29: 0
C30: 1 | D30: 1 | E30: 20 | H30: 0 | I30: 0 | J30: 0 | K30: 0 | L30: 0 | M30: 0 | N30: 0 | O30: 0 | P30: 0 | Q30: 0 | R30: 0 | S30: 0 | T30: 0 | U30: 0 | V30: 0 | W30: 0 | X30: 0 | Y30: 0 | Z30: 0 | AA30: 0 | AC30: =IF('Courbes de Production PV'!$C$4="Saisie Manuelle",G30*Données!$G$35,HLOOKUP('Courbes de Production PV'!$C$4&'Courbes de Production PV'!$C$5,'Courbes de Production PV'!$H$7:$AA$8768,'Compensation PV'!A74+1,FALSE)*Données!$G$35) -> 0 | AD30: 0 | AH30: 0 | AI30: 0 | AJ30: 0 | AK30: 0 | AL30: 0 | AM30: 0 | AN30: 0 | AO30: 0 | AP30: 0 | AQ30: 0 | AS30: 0 | AT30: 0 | AU30: 0 | AV30: 0 | AW30: 0 | AX30: 0 | AY30: 0 | AZ30: 0 | BA30: 0 | BB30: 0
C31: 1 | D31: 1 | E31: 21 | H31: 0 | I31: 0 | J31: 0 | K31: 0 | L31: 0 | M31: 0 | N31: 0 | O31: 0 | P31: 0 | Q31: 0 | R31: 0 | S31: 0 | T31: 0 | U31: 0 | V31: 0 | W31: 0 | X31: 0 | Y31: 0 | Z31: 0 | AA31: 0 | AC31: =IF('Courbes de Production PV'!$C$4="Saisie Manuelle",G31*Données!$G$35,HLOOKUP('Courbes de Production PV'!$C$4&'Courbes de Production PV'!$C$5,'Courbes de Production PV'!$H$7:$AA$8768,'Compensation PV'!A75+1,FALSE)*Données!$G$35) -> 0 | AD31: 0 | AH31: 0 | AI31: 0 | AJ31: 0 | AK31: 0 | AL31: 0 | AM31: 0 | AN31: 0 | AO31: 0 | AP31: 0 | AQ31: 0 | AS31: 0 | AT31: 0 | AU31: 0 | AV31: 0 | AW31: 0 | AX31: 0 | AY31: 0 | AZ31: 0 | BA31: 0 | BB31: 0
C32: 1 | D32: 1 | E32: 22 | H32: 0 | I32: 0 | J32: 0 | K32: 0 | L32: 0 | M32: 0 | N32: 0 | O32: 0 | P32: 0 | Q32: 0 | R32: 0 | S32: 0 | T32: 0 | U32: 0 | V32: 0 | W32: 0 | X32: 0 | Y32: 0 | Z32: 0 | AA32: 0 | AC32: =IF('Courbes de Production PV'!$C$4="Saisie Manuelle",G32*Données!$G$35,HLOOKUP('Courbes de Production PV'!$C$4&'Courbes de Production PV'!$C$5,'Courbes de Production PV'!$H$7:$AA$8768,'Compensation PV'!A76+1,FALSE)*Données!$G$35) -> 0 | AD32: 0 | AH32: 0 | AI32: 0 | AJ32: 0 | AK32: 0 | AL32: 0 | AM32: 0 | AN32: 0 | AO32: 0 | AP32: 0 | AQ32: 0 | AS32: 0 | AT32: 0 | AU32: 0 | AV32: 0 | AW32: 0 | AX32: 0 | AY32: 0 | AZ32: 0 | BA32: 0 | BB32: 0
C33: 1 | D33: 1 | E33: 23 | H33: 0 | I33: 0 | J33: 0 | K33: 0 | L33: 0 | M33: 0 | N33: 0 | O33: 0 | P33: 0 | Q33: 0 | R33: 0 | S33: 0 | T33: 0 | U33: 0 | V33: 0 | W33: 0 | X33: 0 | Y33: 0 | Z33: 0 | AA33: 0 | AC33: =IF('Courbes de Production PV'!$C$4="Saisie Manuelle",G33*Données!$G$35,HLOOKUP('Courbes de Production PV'!$C$4&'Courbes de Production PV'!$C$5,'Courbes de Production PV'!$H$7:$AA$8768,'Compensation PV'!A77+1,FALSE)*Données!$G$35) -> 0 | AD33: 0 | AH33: 0 | AI33: 0 | AJ33: 0 | AK33: 0 | AL33: 0 | AM33: 0 | AN33: 0 | AO33: 0 | AP33: 0 | AQ33: 0 | AS33: 0 | AT33: 0 | AU33: 0 | AV33: 0 | AW33: 0 | AX33: 0 | AY33: 0 | AZ33: 0 | BA33: 0 | BB33: 0
C34: 1 | D34: 2 | E34: 0 | H34: 0 | I34: 0 | J34: 0 | K34: 0 | L34: 0 | M34: 0 | N34: 0 | O34: 0 | P34: 0 | Q34: 0 | R34: 0 | S34: 0 | T34: 0 | U34: 0 | V34: 0 | W34: 0 | X34: 0 | Y34: 0 | Z34: 0 | AA34: 0 | AC34: =IF('Courbes de Production PV'!$C$4="Saisie Manuelle",G34*Données!$G$35,HLOOKUP('Courbes de Production PV'!$C$4&'Courbes de Production PV'!$C$5,'Courbes de Production PV'!$H$7:$AA$8768,'Compensation PV'!A78+1,FALSE)*Données!$G$35) -> 0 | AD34: 0 | AH34: 0 | AI34: 0 | AJ34: 0 | AK34: 0 | AL34: 0 | AM34: 0 | AN34: 0 | AO34: 0 | AP34: 0 | AQ34: 0 | AS34: 0 | AT34: 0 | AU34: 0 | AV34: 0 | AW34: 0 | AX34: 0 | AY34: 0 | AZ34: 0 | BA34: 0 | BB34: 0
C35: 1 | D35: 2 | E35: 1 | H35: 0 | I35: 0 | J35: 0 | K35: 0 | L35: 0 | M35: 0 | N35: 0 | O35: 0 | P35: 0 | Q35: 0 | R35: 0 | S35: 0 | T35: 0 | U35: 0 | V35: 0 | W35: 0 | X35: 0 | Y35: 0 | Z35: 0 | AA35: 0 | AC35: =IF('Courbes de Production PV'!$C$4="Saisie Manuelle",G35*Données!$G$35,HLOOKUP('Courbes de Production PV'!$C$4&'Courbes de Production PV'!$C$5,'Courbes de Production PV'!$H$7:$AA$8768,'Compensation PV'!A79+1,FALSE)*Données!$G$35) -> 0 | AD35: 0 | AH35: 0 | AI35: 0 | AJ35: 0 | AK35: 0 | AL35: 0 | AM35: 0 | AN35: 0 | AO35: 0 | AP35: 0 | AQ35: 0 | AS35: 0 | AT35: 0 | AU35: 0 | AV35: 0 | AW35: 0 | AX35: 0 | AY35: 0 | AZ35: 0 | BA35: 0 | BB35: 0
C36: 1 | D36: 2 | E36: 2 | H36: 0 | I36: 0 | J36: 0 | K36: 0 | L36: 0 | M36: 0 | N36: 0 | O36: 0 | P36: 0 | Q36: 0 | R36: 0 | S36: 0 | T36: 0 | U36: 0 | V36: 0 | W36: 0 | X36: 0 | Y36: 0 | Z36: 0 | AA36: 0 | AC36: =IF('Courbes de Production PV'!$C$4="Saisie Manuelle",G36*Données!$G$35,HLOOKUP('Courbes de Production PV'!$C$4&'Courbes de Production PV'!$C$5,'Courbes de Production PV'!$H$7:$AA$8768,'Compensation PV'!A80+1,FALSE)*Données!$G$35) -> 0 | AD36: 0 | AH36: 0 | AI36: 0 | AJ36: 0 | AK36: 0 | AL36: 0 | AM36: 0 | AN36: 0 | AO36: 0 | AP36: 0 | AQ36: 0 | AS36: 0 | AT36: 0 | AU36: 0 | AV36: 0 | AW36: 0 | AX36: 0 | AY36: 0 | AZ36: 0 | BA36: 0 | BB36: 0
C37: 1 | D37: 2 | E37: 3 | H37: 0 | I37: 0 | J37: 0 | K37: 0 | L37: 0 | M37: 0 | N37: 0 | O37: 0 | P37: 0 | Q37: 0 | R37: 0 | S37: 0 | T37: 0 | U37: 0 | V37: 0 | W37: 0 | X37: 0 | Y37: 0 | Z37: 0 | AA37: 0 | AC37: =IF('Courbes de Production PV'!$C$4="Saisie Manuelle",G37*Données!$G$35,HLOOKUP('Courbes de Production PV'!$C$4&'Courbes de Production PV'!$C$5,'Courbes de Production PV'!$H$7:$AA$8768,'Compensation PV'!A81+1,FALSE)*Données!$G$35) -> 0 | AD37: 0 | AH37: 0 | AI37: 0 | AJ37: 0 | AK37: 0 | AL37: 0 | AM37: 0 | AN37: 0 | AO37: 0 | AP37: 0 | AQ37: 0 | AS37: 0 | AT37: 0 | AU37: 0 | AV37: 0 | AW37: 0 | AX37: 0 | AY37: 0 | AZ37: 0 | BA37: 0 | BB37: 0
C38: 1 | D38: 2 | E38: 4 | H38: 0 | I38: 0 | J38: 0 | K38: 0 | L38: 0 | M38: 0 | N38: 0 | O38: 0 | P38: 0 | Q38: 0 | R38: 0 | S38: 0 | T38: 0 | U38: 0 | V38: 0 | W38: 0 | X38: 0 | Y38: 0 | Z38: 0 | AA38: 0 | AC38: =IF('Courbes de Production PV'!$C$4="Saisie Manuelle",G38*Données!$G$35,HLOOKUP('Courbes de Production PV'!$C$4&'Courbes de Production PV'!$C$5,'Courbes de Production PV'!$H$7:$AA$8768,'Compensation PV'!A82+1,FALSE)*Données!$G$35) -> 0 | AD38: 0 | AH38: 0 | AI38: 0 | AJ38: 0 | AK38: 0 | AL38: 0 | AM38: 0 | AN38: 0 | AO38: 0 | AP38: 0 | AQ38: 0 | AS38: 0 | AT38: 0 | AU38: 0 | AV38: 0 | AW38: 0 | AX38: 0 | AY38: 0 | AZ38: 0 | BA38: 0 | BB38: 0
C39: 1 | D39: 2 | E39: 5 | H39: 0 | I39: 0 | J39: 0 | K39: 0 | L39: 0 | M39: 0 | N39: 0 | O39: 0 | P39: 0 | Q39: 0 | R39: 0 | S39: 0 | T39: 0 | U39: 0 | V39: 0 | W39: 0 | X39: 0 | Y39: 0 | Z39: 0 | AA39: 0 | AC39: =IF('Courbes de Production PV'!$C$4="Saisie Manuelle",G39*Données!$G$35,HLOOKUP('Courbes de Production PV'!$C$4&'Courbes de Production PV'!$C$5,'Courbes de Production PV'!$H$7:$AA$8768,'Compensation PV'!A83+1,FALSE)*Données!$G$35) -> 0 | AD39: 0 | AH39: 0 | AI39: 0 | AJ39: 0 | AK39: 0 | AL39: 0 | AM39: 0 | AN39: 0 | AO39: 0 | AP39: 0 | AQ39: 0 | AS39: 0 | AT39: 0 | AU39: 0 | AV39: 0 | AW39: 0 | AX39: 0 | AY39: 0 | AZ39: 0 | BA39: 0 | BB39: 0
C40: 1 | D40: 2 | E40: 6 | H40: 0 | I40: 0 | J40: 0 | K40: 0 | L40: 0 | M40: 0 | N40: 0 | O40: 0 | P40: 0 | Q40: 0 | R40: 0 | S40: 0 | T40: 0 | U40: 0 | V40: 0 | W40: 0 | X40: 0 | Y40: 0 | Z40: 0 | AA40: 0 | AC40: =IF('Courbes de Production PV'!$C$4="Saisie Manuelle",G40*Données!$G$35,HLOOKUP('Courbes de Production PV'!$C$4&'Courbes de Production PV'!$C$5,'Courbes de Production PV'!$H$7:$AA$8768,'Compensation PV'!A84+1,FALSE)*Données!$G$35) -> 0 | AD40: 0 | AH40: 0.0576796 | AI40: 0.0616413 | AJ40: 0.0572594 | AK40: 0.065036 | AL40: 0.0618822 | AM40: 0.0627563 | AN40: 0.0641947 | AO40: 0.0651667 | AP40: 0.0609456 | AQ40: 0.058352 | AS40: 0.05982 | AT40: 0 | AU40: 0.04652 | AV40: 0.10887 | AW40: 0.08467 | AX40: 0.10351 | AY40: 0.11047 | AZ40: 0.01606 | BA40: 0.00107 | BB40: 0.00042
C41: 1 | D41: 2 | E41: 7 | H41: 0.04836179255 | I41: 0.00390030066 | J41: 0.0943731506 | K41: 0.008449880616 | L41: 0.05470452168 | M41: 0.01342321568 | N41: 0.09774842875 | O41: 0.01306242492 | P41: 0.06776234809 | Q41: 0.008715383023 | R41: 0.09686948952 | S41: 0.009798249455 | T41: 0.09816430057 | U41: 0.010735061 | V41: 0.05079572228 | W41: 0.02742638213 | X41: 0.07346934355 | Y41: 0.008749297229 | Z41: 0.002719443328 | AA41: 0.002316562835 | AC41: =IF('Courbes de Production PV'!$C$4="Saisie Manuelle",G41*Données!$G$35,HLOOKUP('Courbes de Production PV'!$C$4&'Courbes de Production PV'!$C$5,'Courbes de Production PV'!$H$7:$AA$8768,'Compensation PV'!A85+1,FALSE)*Données!$G$35) -> 0.1087777331 | AD41: 0.1087777331 | AH41: 0.165671 | AI41: 0.195108 | AJ41: 0.162043 | AK41: 0.210142 | AL41: 0.196737 | AM41: 0.200264 | AN41: 0.206785 | AO41: 0.208487 | AP41: 0.193401 | AQ41: 0.168621 | AS41: 0.36263 | AT41: 0.01387 | AU41: 0.33443 | AV41: 0.38335 | AW41: 0.37677 | AX41: 0.39403 | AY41: 0.39638 | AZ41: 0.34432 | BA41: 0.01249 | BB41: 0.3026
C42: 1 | D42: 2 | E42: 8 | H42: 0.1296874165 | I42: 0.07144421705 | J42: 0.3526080916 | K42: 0.1030846674 | L42: 0.300687525 | M42: 0.08095145143 | N42: 0.3415393391 | O42: 0.1171310983 | P42: 0.05349813853 | Q42: 0.05234131604 | R42: 0.3715819631 | S42: 0.1137453095 | T42: 0.3515312101 | U42: 0.1116251644 | V42: 0.3649489252 | W42: 0.1326954331 | X42: 0.3349105309 | Y42: 0.09462379234 | Z42: 0.03695421322 | AA42: 0.03759882201 | AC42: =IF('Courbes de Production PV'!$C$4="Saisie Manuelle",G42*Données!$G$35,HLOOKUP('Courbes de Production PV'!$C$4&'Courbes de Production PV'!$C$5,'Courbes de Production PV'!$H$7:$AA$8768,'Compensation PV'!A86+1,FALSE)*Données!$G$35) -> 1.478168529 | AD42: 1.478168529 | AH42: 0.267296 | AI42: 0.326437 | AJ42: 0.2612 | AK42: 0.345929 | AL42: 0.327341 | AM42: 0.331601 | AN42: 0.342029 | AO42: 0.341985 | AP42: 0.324334 | AQ42: 0.271167 | AS42: 0.56665 | AT42: 0.06517 | AU42: 0.04574 | AV42: 0.58378 | AW42: 0.57607 | AX42: 0.21441 | AY42: 0.59593 | AZ42: 0.5958 | BA42: 0.03007 | BB42: 0.22042
C43: 1 | D43: 2 | E43: 9 | H43: 0.1088696827 | I43: 0.1027530822 | J43: 0.5487286579 | K43: 0.3010948286 | L43: 0.2097037888 | M43: 0.1593362866 | N43: 0.5184534467 | O43: 0.2997237568 | P43: 0.4603369237 | Q43: 0.2739610558 | R43: 0.2036799214 | S43: 0.16753104 | T43: 0.5282127911 | U43: 0.2972541045 | V43: 0.278213843 | W43: 0.2142351666 | X43: 0.5292991608 | Y43: 0.2887648904 | Z43: 0.1884272066 | AA43: 0.1556730225 | AC43: =IF('Courbes de Production PV'!$C$4="Saisie Manuelle",G43*Données!$G$35,HLOOKUP('Courbes de Production PV'!$C$4&'Courbes de Production PV'!$C$5,'Courbes de Production PV'!$H$7:$AA$8768,'Compensation PV'!A87+1,FALSE)*Données!$G$35) -> 7.537088263 | AD43: 7.537088263 | AH43: 0.330806 | AI43: 0.411122 | AJ43: 0.324088 | AK43: 0.429447 | AL43: 0.409656 | AM43: 0.413187 | AN43: 0.425814 | AO43: 0.424354 | AP43: 0.409342 | AQ43: 0.334616 | AS43: 0.69525 | AT43: 0.2411 | AU43: 0.08606 | AV43: 0.71758 | AW43: 0.35631 | AX43: 0.25248 | AY43: 0.72499 | AZ43: 0.53619 | BA43: 0.12216 | BB43: 0.6797
C44: 1 | D44: 2 | E44: 10 | H44: 0.1229610915 | I44: 0.1225062178 | J44: 0.6753121332 | K44: 0.470770757 | L44: 0.3237496024 | M44: 0.2613733336 | N44: 0.6364547873 | O44: 0.4567453559 | P44: 0.6581731773 | Q44: 0.4632779979 | R44: 0.2400856502 | S44: 0.2174069835 | T44: 0.6424575582 | U44: 0.4545984157 | V44: 0.6691686992 | W44: 0.4859110426 | X44: 0.6556927081 | Y44: 0.458257533 | Z44: 0.6486678097 | AA44: 0.4533916348 | AC44: =IF('Courbes de Production PV'!$C$4="Saisie Manuelle",G44*Données!$G$35,HLOOKUP('Courbes de Production PV'!$C$4&'Courbes de Production PV'!$C$5,'Courbes de Production PV'!$H$7:$AA$8768,'Compensation PV'!A88+1,FALSE)*Données!$G$35) -> 25.94671239 | AD44: 25.94671239 | AH44: 0.347974 | AI44: 0.434916 | AJ44: 0.342986 | AK44: 0.447855 | AL44: 0.429823 | AM44: 0.431642 | AN44: 0.444767 | AO44: 0.44353 | AP44: 0.433817 | AQ44: 0.351057 | AS44: 0.75664 | AT44: 0.7668 | AU44: 0.52062 | AV44: 0.78348 | AW44: 0.76987 | AX44: 0.23675 | AY44: 0.78577 | AZ44: 0.79596 | BA44: 0.20851 | BB44: 0.73475
C45: 1 | D45: 2 | E45: 11 | H45: 0.2445285272 | I45: 0.2279304736 | J45: 0.7467678897 | K45: 0.5913365995 | L45: 0.5866123229 | M45: 0.4702902766 | N45: 0.694602796 | O45: 0.5650245956 | P45: 0.5790190687 | Q45: 0.4735619538 | R45: 0.2253787632 | S45: 0.2180443454 | T45: 0.6962567633 | U45: 0.5610905748 | V45: 0.2359310985 | W45: 0.2297336507 | X45: 0.7296285539 | Y45: 0.581099951 | Z45: 0.7150020829 | AA45: 0.5693607847 | AC45: =IF('Courbes de Production PV'!$C$4="Saisie Manuelle",G45*Données!$G$35,HLOOKUP('Courbes de Production PV'!$C$4&'Courbes de Production PV'!$C$5,'Courbes de Production PV'!$H$7:$AA$8768,'Compensation PV'!A89+1,FALSE)*Données!$G$35) -> 28.60008332 | AD45: 28.60008332 | AH45: 0.316602 | AI45: 0.3981 | AJ45: 0.314772 | AK45: 0.404151 | AL45: 0.389135 | AM45: 0.388911 | AN45: 0.401347 | AO45: 0.40197 | AP45: 0.398073 | AQ45: 0.318762 | AS45: 0.75353 | AT45: 0.77572 | AU45: 0.62433 | AV45: 0.77884 | AW45: 0.76472 | AX45: 0.05036 | AY45: 0.77959 | AZ45: 0.79084 | BA45: 0.5634 | BB45: 0.12917
C46: 1 | D46: 2 | E46: 12 | H46: 0.1251386787 | I46: 0.1268710704 | J46: 0.7509637593 | K46: 0.6499140402 | L46: 0.5509045084 | M46: 0.4835167808 | N46: 0.6908229557 | O46: 0.6161051819 | P46: 0.6699374738 | Q46: 0.5840973234 | R46: 0.04805898665 | S46: 0.04927663318 | T46: 0.6907786077 | U46: 0.6116506766 | V46: 0.1693061021 | W46: 0.1715243409 | X46: 0.7358930127 | Y46: 0.6417738044 | Z46: 0.6474893843 | AA46: 0.5700456815 | AC46: =IF('Courbes de Production PV'!$C$4="Saisie Manuelle",G46*Données!$G$35,HLOOKUP('Courbes de Production PV'!$C$4&'Courbes de Production PV'!$C$5,'Courbes de Production PV'!$H$7:$AA$8768,'Compensation PV'!A90+1,FALSE)*Données!$G$35) -> 25.89957537 | AD46: 25.89957537 | AH46: 0.239738 | AI46: 0.30074 | AJ46: 0.241468 | AK46: 0.300006 | AL46: 0.289535 | AM46: 0.28753 | AN46: 0.297385 | AO46: 0.300644 | AP46: 0.301999 | AQ46: 0.240881 | AS46: 0.45219 | AT46: 0.71735 | AU46: 0.24536 | AV46: 0.70587 | AW46: 0.69473 | AX46: 0.06415 | AY46: 0.70667 | AZ46: 0.35144 | BA46: 0.70802 | BB46: 0.16899
C47: 1 | D47: 2 | E47: 13 | H47: 0.08658086775 | I47: 0.08825519037 | J47: 0.690593626 | K47: 0.6454662246 | L47: 0.5937033028 | M47: 0.5564217966 | N47: 0.626882122 | O47: 0.6072269523 | P47: 0.574362368 | Q47: 0.5397165147 | R47: 0.06121527694 | S47: 0.06272782224 | T47: 0.6262266415 | U47: 0.6029865177 | V47: 0.3086659807 | W47: 0.3045894804 | X47: 0.6794557613 | Y47: 0.641031209 | Z47: 0.2313239071 | AA47: 0.229662025 | AC47: =IF('Courbes de Production PV'!$C$4="Saisie Manuelle",G47*Données!$G$35,HLOOKUP('Courbes de Production PV'!$C$4&'Courbes de Production PV'!$C$5,'Courbes de Production PV'!$H$7:$AA$8768,'Compensation PV'!A91+1,FALSE)*Données!$G$35) -> 9.252956282 | AD47: 9.252956282 | AH47: 0.13359 | AI47: 0.166769 | AJ47: 0.137179 | AK47: 0.162209 | AL47: 0.156699 | AM47: 0.154095 | AN47: 0.160071 | AO47: 0.16467 | AP47: 0.168735 | AQ47: 0.133916 | AS47: 0.26865 | AT47: 0.23216 | AU47: 0.5302 | AV47: 0.56043 | AW47: 0.51168 | AX47: 0.07305 | AY47: 0.13265 | AZ47: 0.02798 | BA47: 0.58662 | BB47: 0.07733
C48: 1 | D48: 2 | E48: 14 | H48: 0.05527200265 | I48: 0.05640434801 | J48: 0.5783807619 | K48: 0.5871213494 | L48: 0.4645200736 | M48: 0.4729318306 | N48: 0.4985345673 | O48: 0.5291249029 | P48: 0.2733924481 | Q48: 0.2784510956 | R48: 0.06971026408 | S48: 0.07141306666 | T48: 0.1173599702 | U48: 0.1206167736 | V48: 0.1135485299 | W48: 0.1163991613 | X48: 0.5780058035 | Y48: 0.5932956526 | Z48: 0.06710981812 | AA48: 0.06868105204 | AC48: =IF('Courbes de Production PV'!$C$4="Saisie Manuelle",G48*Données!$G$35,HLOOKUP('Courbes de Production PV'!$C$4&'Courbes de Production PV'!$C$5,'Courbes de Production PV'!$H$7:$AA$8768,'Compensation PV'!A92+1,FALSE)*Données!$G$35) -> 2.684392725 | AD48: 2.684392725 | AH48: 0.0324498 | AI48: 0.0349358 | AJ48: 0.0332087 | AK48: 0.0336548 | AL48: 0.0334107 | AM48: 0.0330028 | AN48: 0.033574 | AO48: 0.0342811 | AP48: 0.0349846 | AQ48: 0.032394 | AS48: 0.23609 | AT48: 0.25592 | AU48: 0.04747 | AV48: 0.34962 | AW48: 0.31246 | AX48: 0.30651 | AY48: 0.36011 | AZ48: 0.36464 | BA48: 0.39632 | BB48: 0.20286
C49: 1 | D49: 2 | E49: 15 | H49: 0.01814656014 | I49: 0.01857239942 | J49: 0.3857777491 | K49: 0.4391224656 | L49: 0.08301223821 | M49: 0.08877307396 | N49: 0.311959891 | O49: 0.3776236287 | P49: 0.3282434807 | Q49: 0.3757516316 | R49: 0.2890293332 | S49: 0.3457545385 | T49: 0.3193879772 | U49: 0.3858692453 | V49: 0.2846545188 | W49: 0.3312083458 | X49: 0.3922712663 | Y49: 0.4521263606 | Z49: 0.02683184083 | AA49: 0.02753688169 | AC49: =IF('Courbes de Production PV'!$C$4="Saisie Manuelle",G49*Données!$G$35,HLOOKUP('Courbes de Production PV'!$C$4&'Courbes de Production PV'!$C$5,'Courbes de Production PV'!$H$7:$AA$8768,'Compensation PV'!A93+1,FALSE)*Données!$G$35) -> 1.073273633 | AD49: 1.073273633 | AH49: 0 | AI49: 0 | AJ49: 0 | AK49: 0 | AL49: 0 | AM49: 0 | AN49: 0 | AO49: 0 | AP49: 0 | AQ49: 0 | AS49: 0 | AT49: 0.11104 | AU49: 0.00095 | AV49: 0.06406 | AW49: 0.06911 | AX49: 0.05387 | AY49: 0.06556 | AZ49: 0.08023 | BA49: 0.12694 | BB49: 0.00211
C50: 1 | D50: 2 | E50: 16 | H50: 0 | I50: 0 | J50: 0.1228721172 | K50: 0.1814398677 | L50: 0.07487213044 | M50: 0.1095776532 | N50: 0.05762058907 | O50: 0.09532229869 | P50: 0.05561571191 | Q50: 0.08522252488 | R50: 0.05027548385 | S50: 0.08577749062 | T50: 0.0582773097 | U50: 0.09762445001 | V50: 0.04184493421 | W50: 0.0539284981 | X50: 0.120871684 | Y50: 0.179774733 | Z50: 0.1257390019 | AA50: 0.2154302716 | AC50: =IF('Courbes de Production PV'!$C$4="Saisie Manuelle",G50*Données!$G$35,HLOOKUP('Courbes de Production PV'!$C$4&'Courbes de Production PV'!$C$5,'Courbes de Production PV'!$H$7:$AA$8768,'Compensation PV'!A94+1,FALSE)*Données!$G$35) -> 5.029560074 | AD50: 5.029560074 | AH50: 0 | AI50: 0 | AJ50: 0 | AK50: 0 | AL50: 0 | AM50: 0 | AN50: 0 | AO50: 0 | AP50: 0 | AQ50: 0 | AS50: 0 | AT50: 0 | AU50: 0 | AV50: 0 | AW50: 0 | AX50: 0 | AY50: 0 | AZ50: 0 | BA50: 0 | BB50: 0
C51: 1 | D51: 2 | E51: 17 | H51: 0 | I51: 0 | J51: 0 | K51: 0 | L51: 0 | M51: 0 | N51: 0 | O51: 0 | P51: 0 | Q51: 0 | R51: 0 | S51: 0 | T51: 0 | U51: 0 | V51: 0 | W51: 0 | X51: 0 | Y51: 0 | Z51: 0 | AA51: 0 | AC51: =IF('Courbes de Production PV'!$C$4="Saisie Manuelle",G51*Données!$G$35,HLOOKUP('Courbes de Production PV'!$C$4&'Courbes de Production PV'!$C$5,'Courbes de Production PV'!$H$7:$AA$8768,'Compensation PV'!A95+1,FALSE)*Données!$G$35) -> 0 | AD51: 0 | AH51: 0 | AI51: 0 | AJ51: 0 | AK51: 0 | AL51: 0 | AM51: 0 | AN51: 0 | AO51: 0 | AP51: 0 | AQ51: 0 | AS51: 0 | AT51: 0 | AU51: 0 | AV51: 0 | AW51: 0 | AX51: 0 | AY51: 0 | AZ51: 0 | BA51: 0 | BB51: 0
C52: 1 | D52: 2 | E52: 18 | H52: 0 | I52: 0 | J52: 0 | K52: 0 | L52: 0 | M52: 0 | N52: 0 | O52: 0 | P52: 0 | Q52: 0 | R52: 0 | S52: 0 | T52: 0 | U52: 0 | V52: 0 | W52: 0 | X52: 0 | Y52: 0 | Z52: 0 | AA52: 0 | AC52: =IF('Courbes de Production PV'!$C$4="Saisie Manuelle",G52*Données!$G$35,HLOOKUP('Courbes de Production PV'!$C$4&'Courbes de Production PV'!$C$5,'Courbes de Production PV'!$H$7:$AA$8768,'Compensation PV'!A96+1,FALSE)*Données!$G$35) -> 0 | AD52: 0 | AH52: 0 | AI52: 0 | AJ52: 0 | AK52: 0 | AL52: 0 | AM52: 0 | AN52: 0 | AO52: 0 | AP52: 0 | AQ52: 0 | AS52: 0 | AT52: 0 | AU52: 0 | AV52: 0 | AW52: 0 | AX52: 0 | AY52: 0 | AZ52: 0 | BA52: 0 | BB52: 0
C53: 1 | D53: 2 | E53: 19 | H53: 0 | I53: 0 | J53: 0 | K53: 0 | L53: 0 | M53: 0 | N53: 0 | O53: 0 | P53: 0 | Q53: 0 | R53: 0 | S53: 0 | T53: 0 | U53: 0 | V53: 0 | W53: 0 | X53: 0 | Y53: 0 | Z53: 0 | AA53: 0 | AC53: =IF('Courbes de Production PV'!$C$4="Saisie Manuelle",G53*Données!$G$35,HLOOKUP('Courbes de Production PV'!$C$4&'Courbes de Production PV'!$C$5,'Courbes de Production PV'!$H$7:$AA$8768,'Compensation PV'!A97+1,FALSE)*Données!$G$35) -> 0 | AD53: 0 | AH53: 0 | AI53: 0 | AJ53: 0 | AK53: 0 | AL53: 0 | AM53: 0 | AN53: 0 | AO53: 0 | AP53: 0 | AQ53: 0 | AS53: 0 | AT53: 0 | AU53: 0 | AV53: 0 | AW53: 0 | AX53: 0 | AY53: 0 | AZ53: 0 | BA53: 0 | BB53: 0
C54: 1 | D54: 2 | E54: 20 | H54: 0 | I54: 0 | J54: 0 | K54: 0 | L54: 0 | M54: 0 | N54: 0 | O54: 0 | P54: 0 | Q54: 0 | R54: 0 | S54: 0 | T54: 0 | U54: 0 | V54: 0 | W54: 0 | X54: 0 | Y54: 0 | Z54: 0 | AA54: 0 | AC54: =IF('Courbes de Production PV'!$C$4="Saisie Manuelle",G54*Données!$G$35,HLOOKUP('Courbes de Production PV'!$C$4&'Courbes de Production PV'!$C$5,'Courbes de Production PV'!$H$7:$AA$8768,'Compensation PV'!A98+1,FALSE)*Données!$G$35) -> 0 | AD54: 0 | AH54: 0 | AI54: 0 | AJ54: 0 | AK54: 0 | AL54: 0 | AM54: 0 | AN54: 0 | AO54: 0 | AP54: 0 | AQ54: 0 | AS54: 0 | AT54: 0 | AU54: 0 | AV54: 0 | AW54: 0 | AX54: 0 | AY54: 0 | AZ54: 0 | BA54: 0 | BB54: 0
C55: 1 | D55: 2 | E55: 21 | H55: 0 | I55: 0 | J55: 0 | K55: 0 | L55: 0 | M55: 0 | N55: 0 | O55: 0 | P55: 0 | Q55: 0 | R55: 0 | S55: 0 | T55: 0 | U55: 0 | V55: 0 | W55: 0 | X55: 0 | Y55: 0 | Z55: 0 | AA55: 0 | AC55: =IF('Courbes de Production PV'!$C$4="Saisie Manuelle",G55*Données!$G$35,HLOOKUP('Courbes de Production PV'!$C$4&'Courbes de Production PV'!$C$5,'Courbes de Production PV'!$H$7:$AA$8768,'Compensation PV'!A99+1,FALSE)*Données!$G$35) -> 0 | AD55: 0 | AH55: 0 | AI55: 0 | AJ55: 0 | AK55: 0 | AL55: 0 | AM55: 0 | AN55: 0 | AO55: 0 | AP55: 0 | AQ55: 0 | AS55: 0 | AT55: 0 | AU55: 0 | AV55: 0 | AW55: 0 | AX55: 0 | AY55: 0 | AZ55: 0 | BA55: 0 | BB55: 0
C56: 1 | D56: 2 | E56: 22 | H56: 0 | I56: 0 | J56: 0 | K56: 0 | L56: 0 | M56: 0 | N56: 0 | O56: 0 | P56: 0 | Q56: 0 | R56: 0 | S56: 0 | T56: 0 | U56: 0 | V56: 0 | W56: 0 | X56: 0 | Y56: 0 | Z56: 0 | AA56: 0 | AC56: =IF('Courbes de Production PV'!$C$4="Saisie Manuelle",G56*Données!$G$35,HLOOKUP('Courbes de Production PV'!$C$4&'Courbes de Production PV'!$C$5,'Courbes de Production PV'!$H$7:$AA$8768,'Compensation PV'!A100+1,FALSE)*Données!$G$35) -> 0 | AD56: 0 | AH56: 0 | AI56: 0 | AJ56: 0 | AK56: 0 | AL56: 0 | AM56: 0 | AN56: 0 | AO56: 0 | AP56: 0 | AQ56: 0 | AS56: 0 | AT56: 0 | AU56: 0 | AV56: 0 | AW56: 0 | AX56: 0 | AY56: 0 | AZ56: 0 | BA56: 0 | BB56: 0
C57: 1 | D57: 2 | E57: 23 | H57: 0 | I57: 0 | J57: 0 | K57: 0 | L57: 0 | M57: 0 | N57: 0 | O57: 0 | P57: 0 | Q57: 0 | R57: 0 | S57: 0 | T57: 0 | U57: 0 | V57: 0 | W57: 0 | X57: 0 | Y57: 0 | Z57: 0 | AA57: 0 | AC57: =IF('Courbes de Production PV'!$C$4="Saisie Manuelle",G57*Données!$G$35,HLOOKUP('Courbes de Production PV'!$C$4&'Courbes de Production PV'!$C$5,'Courbes de Production PV'!$H$7:$AA$8768,'Compensation PV'!A101+1,FALSE)*Données!$G$35) -> 0 | AD57: 0 | AH57: 0 | AI57: 0 | AJ57: 0 | AK57: 0 | AL57: 0 | AM57: 0 | AN57: 0 | AO57: 0 | AP57: 0 | AQ57: 0 | AS57: 0 | AT57: 0 | AU57: 0 | AV57: 0 | AW57: 0 | AX57: 0 | AY57: 0 | AZ57: 0 | BA57: 0 | BB57: 0
C58: 1 | D58: 3 | E58: 0 | H58: 0 | I58: 0 | J58: 0 | K58: 0 | L58: 0 | M58: 0 | N58: 0 | O58: 0 | P58: 0 | Q58: 0 | R58: 0 | S58: 0 | T58: 0 | U58: 0 | V58: 0 | W58: 0 | X58: 0 | Y58: 0 | Z58: 0 | AA58: 0 | AC58: =IF('Courbes de Production PV'!$C$4="Saisie Manuelle",G58*Données!$G$35,HLOOKUP('Courbes de Production PV'!$C$4&'Courbes de Production PV'!$C$5,'Courbes de Production PV'!$H$7:$AA$8768,'Compensation PV'!A102+1,FALSE)*Données!$G$35) -> 0 | AD58: 0 | AH58: 0 | AI58: 0 | AJ58: 0 | AK58: 0 | AL58: 0 | AM58: 0 | AN58: 0 | AO58: 0 | AP58: 0 | AQ58: 0 | AS58: 0 | AT58: 0 | AU58: 0 | AV58: 0 | AW58: 0 | AX58: 0 | AY58: 0 | AZ58: 0 | BA58: 0 | BB58: 0
C59: 1 | D59: 3 | E59: 1 | H59: 0 | I59: 0 | J59: 0 | K59: 0 | L59: 0 | M59: 0 | N59: 0 | O59: 0 | P59: 0 | Q59: 0 | R59: 0 | S59: 0 | T59: 0 | U59: 0 | V59: 0 | W59: 0 | X59: 0 | Y59: 0 | Z59: 0 | AA59: 0 | AC59: =IF('Courbes de Production PV'!$C$4="Saisie Manuelle",G59*Données!$G$35,HLOOKUP('Courbes de Production PV'!$C$4&'Courbes de Production PV'!$C$5,'Courbes de Production PV'!$H$7:$AA$8768,'Compensation PV'!A103+1,FALSE)*Données!$G$35) -> 0 | AD59: 0 | AH59: 0 | AI59: 0 | AJ59: 0 | AK59: 0 | AL59: 0 | AM59: 0 | AN59: 0 | AO59: 0 | AP59: 0 | AQ59: 0 | AS59: 0 | AT59: 0 | AU59: 0 | AV59: 0 | AW59: 0 | AX59: 0 | AY59: 0 | AZ59: 0 | BA59: 0 | BB59: 0
C60: 1 | D60: 3 | E60: 2 | H60: 0 | I60: 0 | J60: 0 | K60: 0 | L60: 0 | M60: 0 | N60: 0 | O60: 0 | P60: 0 | Q60: 0 | R60: 0 | S60: 0 | T60: 0 | U60: 0 | V60: 0 | W60: 0 | X60: 0 | Y60: 0 | Z60: 0 | AA60: 0 | AC60: =IF('Courbes de Production PV'!$C$4="Saisie Manuelle",G60*Données!$G$35,HLOOKUP('Courbes de Production PV'!$C$4&'Courbes de Production PV'!$C$5,'Courbes de Production PV'!$H$7:$AA$8768,'Compensation PV'!A104+1,FALSE)*Données!$G$35) -> 0 | AD60: 0 | AH60: 0 | AI60: 0 | AJ60: 0 | AK60: 0 | AL60: 0 | AM60: 0 | AN60: 0 | AO60: 0 | AP60: 0 | AQ60: 0 | AS60: 0 | AT60: 0 | AU60: 0 | AV60: 0 | AW60: 0 | AX60: 0 | AY60: 0 | AZ60: 0 | BA60: 0 | BB60: 0
C61: 1 | D61: 3 | E61: 3 | H61: 0 | I61: 0 | J61: 0 | K61: 0 | L61: 0 | M61: 0 | N61: 0 | O61: 0 | P61: 0 | Q61: 0 | R61: 0 | S61: 0 | T61: 0 | U61: 0 | V61: 0 | W61: 0 | X61: 0 | Y61: 0 | Z61: 0 | AA61: 0 | AC61: =IF('Courbes de Production PV'!$C$4="Saisie Manuelle",G61*Données!$G$35,HLOOKUP('Courbes de Production PV'!$C$4&'Courbes de Production PV'!$C$5,'Courbes de Production PV'!$H$7:$AA$8768,'Compensation PV'!A105+1,FALSE)*Données!$G$35) -> 0 | AD61: 0 | AH61: 0 | AI61: 0 | AJ61: 0 | AK61: 0 | AL61: 0 | AM61: 0 | AN61: 0 | AO61: 0 | AP61: 0 | AQ61: 0 | AS61: 0 | AT61: 0 | AU61: 0 | AV61: 0 | AW61: 0 | AX61: 0 | AY61: 0 | AZ61: 0 | BA61: 0 | BB61: 0
C62: 1 | D62: 3 | E62: 4 | H62: 0 | I62: 0 | J62: 0 | K62: 0 | L62: 0 | M62: 0 | N62: 0 | O62: 0 | P62: 0 | Q62: 0 | R62: 0 | S62: 0 | T62: 0 | U62: 0 | V62: 0 | W62: 0 | X62: 0 | Y62: 0 | Z62: 0 | AA62: 0 | AC62: =IF('Courbes de Production PV'!$C$4="Saisie Manuelle",G62*Données!$G$35,HLOOKUP('Courbes de Production PV'!$C$4&'Courbes de Production PV'!$C$5,'Courbes de Production PV'!$H$7:$AA$8768,'Compensation PV'!A106+1,FALSE)*Données!$G$35) -> 0 | AD62: 0 | AH62: 0 | AI62: 0 | AJ62: 0 | AK62: 0 | AL62: 0 | AM62: 0 | AN62: 0 | AO62: 0 | AP62: 0 | AQ62: 0 | AS62: 0 | AT62: 0 | AU62: 0 | AV62: 0 | AW62: 0 | AX62: 0 | AY62: 0 | AZ62: 0 | BA62: 0 | BB62: 0
C63: 1 | D63: 3 | E63: 5 | H63: 0 | I63: 0 | J63: 0 | K63: 0 | L63: 0 | M63: 0 | N63: 0 | O63: 0 | P63: 0 | Q63: 0 | R63: 0 | S63: 0 | T63: 0 | U63: 0 | V63: 0 | W63: 0 | X63: 0 | Y63: 0 | Z63: 0 | AA63: 0 | AC63: =IF('Courbes de Production PV'!$C$4="Saisie Manuelle",G63*Données!$G$35,HLOOKUP('Courbes de Production PV'!$C$4&'Courbes de Production PV'!$C$5,'Courbes de Production PV'!$H$7:$AA$8768,'Compensation PV'!A107+1,FALSE)*Données!$G$35) -> 0 | AD63: 0 | AH63: 0 | AI63: 0 | AJ63: 0 | AK63: 0 | AL63: 0 | AM63: 0 | AN63: 0 | AO63: 0 | AP63: 0 | AQ63: 0 | AS63: 0 | AT63: 0 | AU63: 0 | AV63: 0 | AW63: 0 | AX63: 0 | AY63: 0 | AZ63: 0 | BA63: 0 | BB63: 0
C64: 1 | D64: 3 | E64: 6 | H64: 0 | I64: 0 | J64: 0 | K64: 0 | L64: 0 | M64: 0 | N64: 0 | O64: 0 | P64: 0 | Q64: 0 | R64: 0 | S64: 0 | T64: 0 | U64: 0 | V64: 0 | W64: 0 | X64: 0 | Y64: 0 | Z64: 0 | AA64: 0 | AC64: =IF('Courbes de Production PV'!$C$4="Saisie Manuelle",G64*Données!$G$35,HLOOKUP('Courbes de Production PV'!$C$4&'Courbes de Production PV'!$C$5,'Courbes de Production PV'!$H$7:$AA$8768,'Compensation PV'!A108+1,FALSE)*Données!$G$35) -> 0 | AD64: 0 | AH64: 0.0579414 | AI64: 0.0616935 | AJ64: 0.0574691 | AK64: 0.0651335 | AL64: 0.0620387 | AM64: 0.0629095 | AN64: 0.0642685 | AO64: 0.0651962 | AP64: 0.0611 | AQ64: 0.0586072 | AS64: 0.05346 | AT64: 0.07133 | AU64: 0.00328 | AV64: 0.10909 | AW64: 0.08085 | AX64: 0.09875 | AY64: 0.10653 | AZ64: 0.01618 | BA64: 0.06014 | BB64: 0.01043
C65: 1 | D65: 3 | E65: 7 | H65: 0.0006097244208 | I65: 0.0005516554283 | J65: 0.09044860742 | K65: 0.008178554175 | L65: 0.002941304762 | M65: 0.002875734273 | N65: 0.09780996104 | O65: 0.01306242492 | P65: 0.0164013901 | Q65: 0.007293863857 | R65: 0.09241746938 | S65: 0.009541402139 | T65: 0.09466854698 | U65: 0.01049611075 | V65: 0.0761011568 | W65: 0.01467150914 | X65: 0.06858535064 | Y65: 0.01084379711 | Z65: 0.006637456122 | AA65: 0.003827364683 | AC65: =IF('Courbes de Production PV'!$C$4="Saisie Manuelle",G65*Données!$G$35,HLOOKUP('Courbes de Production PV'!$C$4&'Courbes de Production PV'!$C$5,'Courbes de Production PV'!$H$7:$AA$8768,'Compensation PV'!A109+1,FALSE)*Données!$G$35) -> 0.2654982449 | AD65: 0.2654982449 | AH65: 0.167154 | AI65: 0.196473 | AJ65: 0.163373 | AK65: 0.211916 | AL65: 0.198388 | AM65: 0.201987 | AN65: 0.208442 | AO65: 0.210082 | AP65: 0.194936 | AQ65: 0.170133 | AS65: 0.34749 | AT65: 0.36188 | AU65: 0.32777 | AV65: 0.38116 | AW65: 0.36229 | AX65: 0.38312 | AY65: 0.38507 | AZ65: 0.39287 | BA65: 0.35378 | BB65: 0.34372
C66: 1 | D66: 3 | E66: 8 | H66: 0.07089256162 | I66: 0.05585269258 | J66: 0.3467939536 | K66: 0.1004295444 | L66: 0.08036131703 | M66: 0.05951926896 | N66: 0.3394208704 | O66: 0.1162432753 | P66: 0.05930185816 | Q66: 0.05597844439 | R66: 0.3613175833 | S66: 0.1107392446 | T66: 0.3414952998 | U66: 0.1086338613 | V66: 0.3558813877 | W66: 0.1296599484 | X66: 0.2151622605 | Y66: 0.08996829034 | Z66: 0.0914538719 | AA66: 0.06811701935 | AC66: =IF('Courbes de Production PV'!$C$4="Saisie Manuelle",G66*Données!$G$35,HLOOKUP('Courbes de Production PV'!$C$4&'Courbes de Production PV'!$C$5,'Courbes de Production PV'!$H$7:$AA$8768,'Compensation PV'!A110+1,FALSE)*Données!$G$35) -> 3.658154876 | AD66: 3.658154876 | AH66: 0.267609 | AI66: 0.319888 | AJ66: 0.262199 | AK66: 0.337374 | AL66: 0.320845 | AM66: 0.324664 | AN66: 0.333869 | AO66: 0.333753 | AP66: 0.318079 | AQ66: 0.271026 | AS66: 0.55243 | AT66: 0.55591 | AU66: 0.38765 | AV66: 0.57931 | AW66: 0.54989 | AX66: 0.57673 | AY66: 0.57891 | AZ66: 0.59035 | BA66: 0.55672 | BB66: 0.53714
C67: 1 | D67: 3 | E67: 9 | H67: 0.08702606336 | I67: 0.08597114333 | J67: 0.5475076889 | K67: 0.2978970526 | L67: 0.003559540794 | M67: 0.003709416196 | N67: 0.5141637675 | O67: 0.2978514172 | P67: 0.5352656892 | Q67: 0.2982543281 | R67: 0.5451251328 | S67: 0.3031083713 | T67: 0.5131146757 | U67: 0.289890897 | V67: 0.5389931075 | W67: 0.3206327951 | X67: 0.5266334337 | Y67: 0.2851661588 | Z67: 0.5248424902 | AA67: 0.2866796868 | AC67: =IF('Courbes de Production PV'!$C$4="Saisie Manuelle",G67*Données!$G$35,HLOOKUP('Courbes de Production PV'!$C$4&'Courbes de Production PV'!$C$5,'Courbes de Production PV'!$H$7:$AA$8768,'Compensation PV'!A111+1,FALSE)*Données!$G$35) -> 20.99369961 | AD67: 20.99369961 | AH67: 0.321955 | AI67: 0.377224 | AJ67: 0.318138 | AK67: 0.388446 | AL67: 0.375254 | AM67: 0.377499 | AN67: 0.386443 | AO67: 0.385449 | AP67: 0.375135 | AQ67: 0.324357 | AS67: 0.68689 | AT67: 0.67688 | AU67: 0.66356 | AV67: 0.26027 | AW67: 0.66549 | AX67: 0.69922 | AY67: 0.70275 | AZ67: 0.71392 | BA67: 0.68604 | BB67: 0.66162
C68: 1 | D68: 3 | E68: 10 | H68: 0.05589140524 | I68: 0.05702375059 | J68: 0.6798084 | K68: 0.4704219087 | L68: 0.06049345908 | M68: 0.06202031473 | N68: 0.3141574726 | O68: 0.2666457588 | P68: 0.1136823189 | Q68: 0.1162410534 | R68: 0.6615435569 | S68: 0.4650458474 | T68: 0.622739738 | U68: 0.4424473533 | V68: 0.6549836459 | W68: 0.4779818119 | X68: 0.6570255717 | Y68: 0.4561249513 | Z68: 0.6424231621 | AA68: 0.4496549182 | AC68: =IF('Courbes de Production PV'!$C$4="Saisie Manuelle",G68*Données!$G$35,HLOOKUP('Courbes de Production PV'!$C$4&'Courbes de Production PV'!$C$5,'Courbes de Production PV'!$H$7:$AA$8768,'Compensation PV'!A112+1,FALSE)*Données!$G$35) -> 25.69692648 | AD68: 25.69692648 | AH68: 0.311263 | AI68: 0.362086 | AJ68: 0.309478 | AK68: 0.367513 | AL68: 0.357645 | AM68: 0.358423 | AN68: 0.366466 | AO68: 0.365815 | AP68: 0.360143 | AQ68: 0.312773 | AS68: 0.73835 | AT68: 0.7474 | AU68: 0.71836 | AV68: 0.76684 | AW68: 0.72598 | AX68: 0.76027 | AY68: 0.76248 | AZ68: 0.77165 | BA68: 0.76024 | BB68: 0.68364
C69: 1 | D69: 3 | E69: 11 | H69: 0.1743521499 | I69: 0.1710422173 | J69: 0.7417483505 | K69: 0.5847956942 | L69: 0.09253869344 | M69: 0.09477745725 | N69: 0.6798086768 | O69: 0.5537026553 | P69: 0.7157888196 | Q69: 0.5681076837 | R69: 0.7195625117 | S69: 0.5765841726 | T69: 0.6756096921 | U69: 0.5459482093 | V69: 0.7112374031 | W69: 0.5824628043 | X69: 0.7224882134 | Y69: 0.5732455765 | Z69: 0.6971746211 | AA69: 0.5575463142 | AC69: =IF('Courbes de Production PV'!$C$4="Saisie Manuelle",G69*Données!$G$35,HLOOKUP('Courbes de Production PV'!$C$4&'Courbes de Production PV'!$C$5,'Courbes de Production PV'!$H$7:$AA$8768,'Compensation PV'!A113+1,FALSE)*Données!$G$35) -> 27.88698484 | AD69: 27.88698484 | AH69: 0.270427 | AI69: 0.314209 | AJ69: 0.270426 | AK69: 0.315553 | AL69: 0.3081 | AM69: 0.307734 | AN69: 0.314737 | AO69: 0.315135 | AP69: 0.313009 | AQ69: 0.271337 | AS69: 0.7363 | AT69: 0.75547 | AU69: 0.71779 | AV69: 0.76316 | AW69: 0.72381 | AX69: 0.75434 | AY69: 0.75733 | AZ69: 0.7682 | BA69: 0.76829 | BB69: 0.71513
C70: 1 | D70: 3 | E70: 12 | H70: 0.1210351366 | I70: 0.1228836662 | J70: 0.7429983902 | K70: 0.6416773447 | L70: 0.3906221333 | M70: 0.3555138204 | N70: 0.6772243208 | O70: 0.6042470317 | P70: 0.5791367117 | Q70: 0.5102273447 | R70: 0.7139213836 | S70: 0.6284673303 | T70: 0.6710430875 | U70: 0.5949949596 | V70: 0.7078419411 | W70: 0.6299117102 | X70: 0.726001261 | Y70: 0.6321295845 | Z70: 0.5612225987 | AA70: 0.4998336836 | AC70: =IF('Courbes de Production PV'!$C$4="Saisie Manuelle",G70*Données!$G$35,HLOOKUP('Courbes de Production PV'!$C$4&'Courbes de Production PV'!$C$5,'Courbes de Production PV'!$H$7:$AA$8768,'Compensation PV'!A114+1,FALSE)*Données!$G$35) -> 22.44890395 | AD70: 22.44890395 | AH70: 0.200957 | AI70: 0.225537 | AJ70: 0.202655 | AK70: 0.22315 | AL70: 0.219644 | AM70: 0.218588 | AN70: 0.222893 | AO70: 0.224243 | AP70: 0.224683 | AQ70: 0.201156 | AS70: 0.667 | AT70: 0.69881 | AU70: 0.65475 | AV70: 0.69247 | AW70: 0.66072 | AX70: 0.68348 | AY70: 0.68776 | AZ70: 0.69837 | BA70: 0.71023 | BB70: 0.64913
C71: 1 | D71: 3 | E71: 13 | H71: 0.4249779213 | I71: 0.4111671793 | J71: 0.6799925143 | K71: 0.6351170589 | L71: 0.007184652077 | M71: 0.007437566817 | N71: 0.6154722784 | O71: 0.5961071895 | P71: 0.08787929518 | Q71: 0.09038901178 | R71: 0.6465703097 | S71: 0.6188212867 | T71: 0.6094558744 | U71: 0.5869503013 | V71: 0.6440773052 | W71: 0.6171568372 | X71: 0.6160876195 | Y71: 0.5822424055 | Z71: 0.4409426275 | AA71: 0.4244748874 | AC71: =IF('Courbes de Production PV'!$C$4="Saisie Manuelle",G71*Données!$G$35,HLOOKUP('Courbes de Production PV'!$C$4&'Courbes de Production PV'!$C$5,'Courbes de Production PV'!$H$7:$AA$8768,'Compensation PV'!A115+1,FALSE)*Données!$G$35) -> 17.6377051 | AD71: 17.6377051 | AH71: 0.109733 | AI71: 0.118799 | AJ71: 0.111397 | AK71: 0.116033 | AL71: 0.115092 | AM71: 0.114231 | AN71: 0.116091 | AO71: 0.117311 | AP71: 0.118245 | AQ71: 0.109637 | AS71: 0.53361 | AT71: 0.57552 | AU71: 0.53433 | AV71: 0.55292 | AW71: 0.5285 | AX71: 0.53976 | AY71: 0.55288 | AZ71: 0.56062 | BA71: 0.58836 | BB71: 0.51566
C72: 1 | D72: 3 | E72: 14 | H72: 0.07141518256 | I72: 0.0728862637 | J72: 0.5577405718 | K72: 0.5661613818 | L72: 0.01948380224 | M72: 0.02005520221 | N72: 0.4921264194 | O72: 0.5221278031 | P72: 0.1360246788 | Q72: 0.1394461284 | R72: 0.5100702306 | S72: 0.5356503207 | T72: 0.490060402 | U72: 0.5172918799 | V72: 0.5222784837 | W72: 0.5431960862 | X72: 0.4583432171 | Y72: 0.4697868028 | Z72: 0.5208237573 | AA72: 0.5428311042 | AC72: =IF('Courbes de Production PV'!$C$4="Saisie Manuelle",G72*Données!$G$35,HLOOKUP('Courbes de Production PV'!$C$4&'Courbes de Production PV'!$C$5,'Courbes de Production PV'!$H$7:$AA$8768,'Compensation PV'!A116+1,FALSE)*Données!$G$35) -> 20.83295029 | AD72: 20.83295029 | AH72: 0.0318661 | AI72: 0.0330212 | AJ72: 0.0323507 | AK72: 0.0321202 | AL72: 0.0321396 | AM72: 0.0319324 | AN72: 0.0322445 | AO72: 0.032527 | AP72: 0.0327634 | AQ72: 0.0318003 | AS72: 0.33041 | AT72: 0.38444 | AU72: 0.34572 | AV72: 0.34599 | AW72: 0.33782 | AX72: 0.33665 | AY72: 0.35027 | AZ72: 0.35721 | BA72: 0.39751 | BB72: 0.17274
C73: 1 | D73: 3 | E73: 15 | H73: 0.07858670312 | I73: 0.08604856866 | J73: 0.3676860896 | K73: 0.4185501072 | L73: 0.02199421522 | M73: 0.02262181847 | N73: 0.3088656961 | O73: 0.3736416108 | P73: 0.01880326731 | Q73: 0.01945030362 | R73: 0.3173301023 | S73: 0.3815133926 | T73: 0.3106530183 | U73: 0.3746297338 | V73: 0.1520369186 | W73: 0.1693450186 | X73: 0.373496931 | Y73: 0.4303911641 | Z73: 0.3267260078 | AA73: 0.3894444285 | AC73: =IF('Courbes de Production PV'!$C$4="Saisie Manuelle",G73*Données!$G$35,HLOOKUP('Courbes de Production PV'!$C$4&'Courbes de Production PV'!$C$5,'Courbes de Production PV'!$H$7:$AA$8768,'Compensation PV'!A117+1,FALSE)*Données!$G$35) -> 13.06904031 | AD73: 13.06904031 | AH73: 0 | AI73: 0 | AJ73: 0 | AK73: 0 | AL73: 0 | AM73: 0 | AN73: 0 | AO73: 0 | AP73: 0 | AQ73: 0 | AS73: 0.04555 | AT73: 0.11093 | AU73: 0.07699 | AV73: 0.06508 | AW73: 0.06416 | AX73: 0.04985 | AY73: 0.06505 | AZ73: 0.07992 | BA73: 0.1285 | BB73: 0.00359
C74: 1 | D74: 3 | E74: 16 | H74: 0.05278471414 | I74: 0.09202967488 | J74: 0.1216317678 | K74: 0.1793564683 | L74: 0.02961912629 | M74: 0.04242410594 | N74: 0.05856115399 | O74: 0.09642108948 | P74: 0 | Q74: 0 | R74: 0.04654644134 | S74: 0.07878553591 | T74: 0.05781710923 | U74: 0.09631464867 | V74: 0.06515589966 | W74: 0.09831273197 | X74: 0.1146357867 | Y74: 0.1686358018 | Z74: 0.1345318686 | AA74: 0.2290174162 | AC74: =IF('Courbes de Production PV'!$C$4="Saisie Manuelle",G74*Données!$G$35,HLOOKUP('Courbes de Production PV'!$C$4&'Courbes de Production PV'!$C$5,'Courbes de Production PV'!$H$7:$AA$8768,'Compensation PV'!A118+1,FALSE)*Données!$G$35) -> 5.381274745 | AD74: =AC74*$AD$6 -> 5.381274745 | AH74: 0 | AI74: 0 | AJ74: 0 | AK74: 0 | AL74: 0 | AM74: 0 | AN74: 0 | AO74: 0 | AP74: 0 | AQ74: 0 | AS74: 0 | AT74: 0 | AU74: 0 | AV74: 0 | AW74: 0 | AX74: 0 | AY74: 0 | AZ74: 0 | BA74: 0 | BB74: 0
C75: 1 | D75: 3 | E75: 17 | H75: 0 | I75: 0 | J75: 0 | K75: 0 | L75: 0 | M75: 0 | N75: 0 | O75: 0 | P75: 0 | Q75: 0 | R75: 0 | S75: 0 | T75: 0 | U75: 0 | V75: 0 | W75: 0 | X75: 0 | Y75: 0 | Z75: 0 | AA75: 0 | AC75: =IF('Courbes de Production PV'!$C$4="Saisie Manuelle",G75*Données!$G$35,HLOOKUP('Courbes de Production PV'!$C$4&'Courbes de Production PV'!$C$5,'Courbes de Production PV'!$H$7:$AA$8768,'Compensation PV'!A119+1,FALSE)*Données!$G$35) -> 0 | AD75: 0 | AH75: 0 | AI75: 0 | AJ75: 0 | AK75: 0 | AL75: 0 | AM75: 0 | AN75: 0 | AO75: 0 | AP75: 0 | AQ75: 0 | AS75: 0 | AT75: 0 | AU75: 0 | AV75: 0 | AW75: 0 | AX75: 0 | AY75: 0 | AZ75: 0 | BA75: 0 | BB75: 0
C76: 1 | D76: 3 | E76: 18 | H76: 0 | I76: 0 | J76: 0 | K76: 0 | L76: 0 | M76: 0 | N76: 0 | O76: 0 | P76: 0 | Q76: 0 | R76: 0 | S76: 0 | T76: 0 | U76: 0 | V76: 0 | W76: 0 | X76: 0 | Y76: 0 | Z76: 0 | AA76: 0 | AC76: =IF('Courbes de Production PV'!$C$4="Saisie Manuelle",G76*Données!$G$35,HLOOKUP('Courbes de Production PV'!$C$4&'Courbes de Production PV'!$C$5,'Courbes de Production PV'!$H$7:$AA$8768,'Compensation PV'!A120+1,FALSE)*Données!$G$35) -> 0 | AD76: 0 | AH76: 0 | AI76: 0 | AJ76: 0 | AK76: 0 | AL76: 0 | AM76: 0 | AN76: 0 | AO76: 0 | AP76: 0 | AQ76: 0 | AS76: 0 | AT76: 0 | AU76: 0 | AV76: 0 | AW76: 0 | AX76: 0 | AY76: 0 | AZ76: 0 | BA76: 0 | BB76: 0
C77: 1 | D77: 3 | E77: 19 | H77: 0 | I77: 0 | J77: 0 | K77: 0 | L77: 0 | M77: 0 | N77: 0 | O77: 0 | P77: 0 | Q77: 0 | R77: 0 | S77: 0 | T77: 0 | U77: 0 | V77: 0 | W77: 0 | X77: 0 | Y77: 0 | Z77: 0 | AA77: 0 | AC77: =IF('Courbes de Production PV'!$C$4="Saisie Manuelle",G77*Données!$G$35,HLOOKUP('Courbes de Production PV'!$C$4&'Courbes de Production PV'!$C$5,'Courbes de Production PV'!$H$7:$AA$8768,'Compensation PV'!A121+1,FALSE)*Données!$G$35) -> 0 | AD77: 0 | AH77: 0 | AI77: 0 | AJ77: 0 | AK77: 0 | AL77: 0 | AM77: 0 | AN77: 0 | AO77: 0 | AP77: 0 | AQ77: 0 | AS77: 0 | AT77: 0 | AU77: 0 | AV77: 0 | AW77: 0 | AX77: 0 | AY77: 0 | AZ77: 0 | BA77: 0 | BB77: 0
C78: 1 | D78: 3 | E78: 20 | H78: 0 | I78: 0 | J78: 0 | K78: 0 | L78: 0 | M78: 0 | N78: 0 | O78: 0 | P78: 0 | Q78: 0 | R78: 0 | S78: 0 | T78: 0 | U78: 0 | V78: 0 | W78: 0 | X78: 0 | Y78: 0 | Z78: 0 | AA78: 0 | AC78: =IF('Courbes de Production PV'!$C$4="Saisie Manuelle",G78*Données!$G$35,HLOOKUP('Courbes de Production PV'!$C$4&'Courbes de Production PV'!$C$5,'Courbes de Production PV'!$H$7:$AA$8768,'Compensation PV'!A122+1,FALSE)*Données!$G$35) -> 0 | AD78: 0 | AH78: 0 | AI78: 0 | AJ78: 0 | AK78: 0 | AL78: 0 | AM78: 0 | AN78: 0 | AO78: 0 | AP78: 0 | AQ78: 0 | AS78: 0 | AT78: 0 | AU78: 0 | AV78: 0 | AW78: 0 | AX78: 0 | AY78: 0 | AZ78: 0 | BA78: 0 | BB78: 0
C79: 1 | D79: 3 | E79: 21 | H79: 0 | I79: 0 | J79: 0 | K79: 0 | L79: 0 | M79: 0 | N79: 0 | O79: 0 | P79: 0 | Q79: 0 | R79: 0 | S79: 0 | T79: 0 | U79: 0 | V79: 0 | W79: 0 | X79: 0 | Y79: 0 | Z79: 0 | AA79: 0 | AC79: =IF('Courbes de Production PV'!$C$4="Saisie Manuelle",G79*Données!$G$35,HLOOKUP('Courbes de Production PV'!$C$4&'Courbes de Production PV'!$C$5,'Courbes de Production PV'!$H$7:$AA$8768,'Compensation PV'!A123+1,FALSE)*Données!$G$35) -> 0 | AD79: 0 | AH79: 0 | AI79: 0 | AJ79: 0 | AK79: 0 | AL79: 0 | AM79: 0 | AN79: 0 | AO79: 0 | AP79: 0 | AQ79: 0 | AS79: 0 | AT79: 0 | AU79: 0 | AV79: 0 | AW79: 0 | AX79: 0 | AY79: 0 | AZ79: 0 | BA79: 0 | BB79: 0
C80: 1 | D80: 3 | E80: 22 | H80: 0 | I80: 0 | J80: 0 | K80: 0 | L80: 0 | M80: 0 | N80: 0 | O80: 0 | P80: 0 | Q80: 0 | R80: 0 | S80: 0 | T80: 0 | U80: 0 | V80: 0 | W80: 0 | X80: 0 | Y80: 0 | Z80: 0 | AA80: 0 | AC80: =IF('Courbes de Production PV'!$C$4="Saisie Manuelle",G80*Données!$G$35,HLOOKUP('Courbes de Production PV'!$C$4&'Courbes de Production PV'!$C$5,'Courbes de Production PV'!$H$7:$AA$8768,'Compensation PV'!A124+1,FALSE)*Données!$G$35) -> 0 | AD80: 0 | AH80: 0 | AI80: 0 | AJ80: 0 | AK80: 0 | AL80: 0 | AM80: 0 | AN80: 0 | AO80: 0 | AP80: 0 | AQ80: 0 | AS80: 0 | AT80: 0 | AU80: 0 | AV80: 0 | AW80: 0 | AX80: 0 | AY80: 0 | AZ80: 0 | BA80: 0 | BB80: 0
C81: 1 | D81: 3 | E81: 23 | H81: 0 | I81: 0 | J81: 0 | K81: 0 | L81: 0 | M81: 0 | N81: 0 | O81: 0 | P81: 0 | Q81: 0 | R81: 0 | S81: 0 | T81: 0 | U81: 0 | V81: 0 | W81: 0 | X81: 0 | Y81: 0 | Z81: 0 | AA81: 0 | AC81: =IF('Courbes de Production PV'!$C$4="Saisie Manuelle",G81*Données!$G$35,HLOOKUP('Courbes de Production PV'!$C$4&'Courbes de Production PV'!$C$5,'Courbes de Production PV'!$H$7:$AA$8768,'Compensation PV'!A125+1,FALSE)*Données!$G$35) -> 0 | AD81: 0 | AH81: 0 | AI81: 0 | AJ81: 0 | AK81: 0 | AL81: 0 | AM81: 0 | AN81: 0 | AO81: 0 | AP81: 0 | AQ81: 0 | AS81: 0 | AT81: 0 | AU81: 0 | AV81: 0 | AW81: 0 | AX81: 0 | AY81: 0 | AZ81: 0 | BA81: 0 | BB81: 0
C82: 1 | D82: 4 | E82: 0 | H82: 0 | I82: 0 | J82: 0 | K82: 0 | L82: 0 | M82: 0 | N82: 0 | O82: 0 | P82: 0 | Q82: 0 | R82: 0 | S82: 0 | T82: 0 | U82: 0 | V82: 0 | W82: 0 | X82: 0 | Y82: 0 | Z82: 0 | AA82: 0 | AC82: =IF('Courbes de Production PV'!$C$4="Saisie Manuelle",G82*Données!$G$35,HLOOKUP('Courbes de Production PV'!$C$4&'Courbes de Production PV'!$C$5,'Courbes de Production PV'!$H$7:$AA$8768,'Compensation PV'!A126+1,FALSE)*Données!$G$35) -> 0 | AD82: 0 | AH82: 0 | AI82: 0 | AJ82: 0 | AK82: 0 | AL82: 0 | AM82: 0 | AN82: 0 | AO82: 0 | AP82: 0 | AQ82: 0 | AS82: 0 | AT82: 0 | AU82: 0 | AV82: 0 | AW82: 0 | AX82: 0 | AY82: 0 | AZ82: 0 | BA82: 0 | BB82: 0
C83: 1 | D83: 4 | E83: 1 | H83: 0 | I83: 0 | J83: 0 | K83: 0 | L83: 0 | M83: 0 | N83: 0 | O83: 0 | P83: 0 | Q83: 0 | R83: 0 | S83: 0 | T83: 0 | U83: 0 | V83: 0 | W83: 0 | X83: 0 | Y83: 0 | Z83: 0 | AA83: 0 | AC83: =IF('Courbes de Production PV'!$C$4="Saisie Manuelle",G83*Données!$G$35,HLOOKUP('Courbes de Production PV'!$C$4&'Courbes de Production PV'!$C$5,'Courbes de Production PV'!$H$7:$AA$8768,'Compensation PV'!A127+1,FALSE)*Données!$G$35) -> 0 | AD83: 0 | AH83: 0 | AI83: 0 | AJ83: 0 | AK83: 0 | AL83: 0 | AM83: 0 | AN83: 0 | AO83: 0 | AP83: 0 | AQ83: 0 | AS83: 0 | AT83: 0 | AU83: 0 | AV83: 0 | AW83: 0 | AX83: 0 | AY83: 0 | AZ83: 0 | BA83: 0 | BB83: 0
C84: 1 | D84: 4 | E84: 2 | H84: 0 | I84: 0 | J84: 0 | K84: 0 | L84: 0 | M84: 0 | N84: 0 | O84: 0 | P84: 0 | Q84: 0 | R84: 0 | S84: 0 | T84: 0 | U84: 0 | V84: 0 | W84: 0 | X84: 0 | Y84: 0 | Z84: 0 | AA84: 0 | AC84: =IF('Courbes de Production PV'!$C$4="Saisie Manuelle",G84*Données!$G$35,HLOOKUP('Courbes de Production PV'!$C$4&'Courbes de Production PV'!$C$5,'Courbes de Production PV'!$H$7:$AA$8768,'Compensation PV'!A128+1,FALSE)*Données!$G$35) -> 0 | AD84: 0 | AH84: 0 | AI84: 0 | AJ84: 0 | AK84: 0 | AL84: 0 | AM84: 0 | AN84: 0 | AO84: 0 | AP84: 0 | AQ84: 0 | AS84: 0 | AT84: 0 | AU84: 0 | AV84: 0 | AW84: 0 | AX84: 0 | AY84: 0 | AZ84: 0 | BA84: 0 | BB84: 0
C85: 1 | D85: 4 | E85: 3 | H85: 0 | I85: 0 | J85: 0 | K85: 0 | L85: 0 | M85: 0 | N85: 0 | O85: 0 | P85: 0 | Q85: 0 | R85: 0 | S85: 0 | T85: 0 | U85: 0 | V85: 0 | W85: 0 | X85: 0 | Y85: 0 | Z85: 0 | AA85: 0 | AC85: =IF('Courbes de Production PV'!$C$4="Saisie Manuelle",G85*Données!$G$35,HLOOKUP('Courbes de Production PV'!$C$4&'Courbes de Production PV'!$C$5,'Courbes de Production PV'!$H$7:$AA$8768,'Compensation PV'!A129+1,FALSE)*Données!$G$35) -> 0 | AD85: 0 | AH85: 0 | AI85: 0 | AJ85: 0 | AK85: 0 | AL85: 0 | AM85: 0 | AN85: 0 | AO85: 0 | AP85: 0 | AQ85: 0 | AS85: 0 | AT85: 0 | AU85: 0 | AV85: 0 | AW85: 0 | AX85: 0 | AY85: 0 | AZ85: 0 | BA85: 0 | BB85: 0
C86: 1 | D86: 4 | E86: 4 | H86: 0 | I86: 0 | J86: 0 | K86: 0 | L86: 0 | M86: 0 | N86: 0 | O86: 0 | P86: 0 | Q86: 0 | R86: 0 | S86: 0 | T86: 0 | U86: 0 | V86: 0 | W86: 0 | X86: 0 | Y86: 0 | Z86: 0 | AA86: 0 | AC86: =IF('Courbes de Production PV'!$C$4="Saisie Manuelle",G86*Données!$G$35,HLOOKUP('Courbes de Production PV'!$C$4&'Courbes de Production PV'!$C$5,'Courbes de Production PV'!$H$7:$AA$8768,'Compensation PV'!A130+1,FALSE)*Données!$G$35) -> 0 | AD86: 0 | AH86: 0 | AI86: 0 | AJ86: 0 | AK86: 0 | AL86: 0 | AM86: 0 | AN86: 0 | AO86: 0 | AP86: 0 | AQ86: 0 | AS86: 0 | AT86: 0 | AU86: 0 | AV86: 0 | AW86: 0 | AX86: 0 | AY86: 0 | AZ86: 0 | BA86: 0 | BB86: 0
C87: 1 | D87: 4 | E87: 5 | H87: 0 | I87: 0 | J87: 0 | K87: 0 | L87: 0 | M87: 0 | N87: 0 | O87: 0 | P87: 0 | Q87: 0 | R87: 0 | S87: 0 | T87: 0 | U87: 0 | V87: 0 | W87: 0 | X87: 0 | Y87: 0 | Z87: 0 | AA87: 0 | AC87: =IF('Courbes de Production PV'!$C$4="Saisie Manuelle",G87*Données!$G$35,HLOOKUP('Courbes de Production PV'!$C$4&'Courbes de Production PV'!$C$5,'Courbes de Production PV'!$H$7:$AA$8768,'Compensation PV'!A131+1,FALSE)*Données!$G$35) -> 0 | AD87: 0 | AH87: 0 | AI87: 0 | AJ87: 0 | AK87: 0 | AL87: 0 | AM87: 0 | AN87: 0 | AO87: 0 | AP87: 0 | AQ87: 0 | AS87: 0 | AT87: 0 | AU87: 0 | AV87: 0 | AW87: 0 | AX87: 0 | AY87: 0 | AZ87: 0 | BA87: 0 | BB87: 0
C88: 1 | D88: 4 | E88: 6 | H88: 0 | I88: 0 | J88: 0 | K88: 0 | L88: 0 | M88: 0 | N88: 0 | O88: 0 | P88: 0 | Q88: 0 | R88: 0 | S88: 0 | T88: 0 | U88: 0 | V88: 0 | W88: 0 | X88: 0 | Y88: 0 | Z88: 0 | AA88: 0 | AC88: =IF('Courbes de Production PV'!$C$4="Saisie Manuelle",G88*Données!$G$35,HLOOKUP('Courbes de Production PV'!$C$4&'Courbes de Production PV'!$C$5,'Courbes de Production PV'!$H$7:$AA$8768,'Compensation PV'!A132+1,FALSE)*Données!$G$35) -> 0 | AD88: 0 | AH88: 0.0580777 | AI88: 0.0620499 | AJ88: 0.0575931 | AK88: 0.0656379 | AL88: 0.0623902 | AM88: 0.063305 | AN88: 0.0647456 | AO88: 0.0657191 | AP88: 0.0613939 | AQ88: 0.0587755 | AS88: 0.04924 | AT88: 0.07023 | AU88: 0.00332 | AV88: 0.10391 | AW88: 0.08122 | AX88: 0.09945 | AY88: 0.10663 | AZ88: 0.01549 | BA88: 0.05653 | BB88: 0.06025
C89: 1 | D89: 4 | E89: 7 | H89: 0.04799402227 | I89: 0.003861587998 | J89: 0.03196806898 | K89: 0.01007783927 | L89: 0.01362929436 | M89: 0.01341384847 | N89: 0.09321262037 | O89: 0.0127547635 | P89: 0.07342881759 | Q89: 0.007725221397 | R89: 0.09307385696 | S89: 0.009531889276 | T89: 0.09475704708 | U89: 0.01046956073 | V89: 0.09842948138 | W89: 0.01519688148 | X89: 0.01230994703 | Y89: 0.008206631351 | Z89: 0.06331266947 | AA89: 0.005912271234 | AC89: =IF('Courbes de Production PV'!$C$4="Saisie Manuelle",G89*Données!$G$35,HLOOKUP('Courbes de Production PV'!$C$4&'Courbes de Production PV'!$C$5,'Courbes de Production PV'!$H$7:$AA$8768,'Compensation PV'!A133+1,FALSE)*Données!$G$35) -> 2.532506779 | AD89: 2.532506779 | AH89: 0.170663 | AI89: 0.201345 | AJ89: 0.166563 | AK89: 0.217861 | AL89: 0.203583 | AM89: 0.207417 | AN89: 0.214138 | AO89: 0.215796 | AP89: 0.199854 | AQ89: 0.173811 | AS89: 0.33932 | AT89: 0.36368 | AU89: 0.32463 | AV89: 0.37694 | AW89: 0.36094 | AX89: 0.38208 | AY89: 0.39062 | AZ89: 0.38565 | BA89: 0.35013 | BB89: 0.33871
C90: 1 | D90: 4 | E90: 8 | H90: 0.3203182406 | I90: 0.08271927975 | J90: 0.3525499502 | K90: 0.1012629042 | L90: 0.005695265271 | M90: 0.005910711161 | N90: 0.3363003046 | O90: 0.114537952 | P90: 0.3482427848 | Q90: 0.1064080622 | R90: 0.3603282455 | S90: 0.1096072138 | T90: 0.3464247549 | U90: 0.1090144117 | V90: 0.3648127175 | W90: 0.1320046658 | X90: 0.1128745027 | Y90: 0.07583993659 | Z90: 0.2108072179 | AA90: 0.09113156751 | AC90: =IF('Courbes de Production PV'!$C$4="Saisie Manuelle",G90*Données!$G$35,HLOOKUP('Courbes de Production PV'!$C$4&'Courbes de Production PV'!$C$5,'Courbes de Production PV'!$H$7:$AA$8768,'Compensation PV'!A134+1,FALSE)*Données!$G$35) -> 8.432288718 | AD90: 8.432288718 | AH90: 0.277003 | AI90: 0.335708 | AJ90: 0.270715 | AK90: 0.355768 | AL90: 0.337093 | AM90: 0.341463 | AN90: 0.35175 | AO90: 0.351504 | AP90: 0.333823 | AQ90: 0.280869 | AS90: 0.54458 | AT90: 0.56329 | AU90: 0.52036 | AV90: 0.57635 | AW90: 0.55092 | AX90: 0.57493 | AY90: 0.59006 | AZ90: 0.58967 | BA90: 0.55778 | BB90: 0.53387
C91: 1 | D91: 4 | E91: 9 | H91: 0.5064777522 | I91: 0.2680658255 | J91: 0.3647014987 | K91: 0.2361605969 | L91: 0.06892395043 | M91: 0.07027282905 | N91: 0.5131089283 | O91: 0.2958472228 | P91: 0.5395204431 | Q91: 0.2990484181 | R91: 0.5434128174 | S91: 0.3010821313 | T91: 0.5230089858 | U91: 0.2932450504 | V91: 0.5483330603 | W91: 0.3256530198 | X91: 0.05614211726 | Y91: 0.05765586945 | Z91: 0.5396584203 | AA91: 0.2921991495 | AC91: =IF('Courbes de Production PV'!$C$4="Saisie Manuelle",G91*Données!$G$35,HLOOKUP('Courbes de Production PV'!$C$4&'Courbes de Production PV'!$C$5,'Courbes de Production PV'!$H$7:$AA$8768,'Compensation PV'!A135+1,FALSE)*Données!$G$35) -> 21.58633681 | AD91: 21.58633681 | AH91: 0.342365 | AI91: 0.425353 | AJ91: 0.335354 | AK91: 0.444571 | AL91: 0.424066 | AM91: 0.427802 | AN91: 0.440866 | AO91: 0.439086 | AP91: 0.423439 | AQ91: 0.346254 | AS91: 0.68094 | AT91: 0.69153 | AU91: 0.64628 | AV91: 0.71024 | AW91: 0.67037 | AX91: 0.69562 | AY91: 0.72 | AZ91: 0.72233 | BA91: 0.69377 | BB91: 0.66077
C92: 1 | D92: 4 | E92: 10 | H92: 0.6258192099 | I92: 0.4316461773 | J92: 0.1404986457 | K92: 0.1417680658 | L92: 0.1031611125 | M92: 0.1049689846 | N92: 0.631866237 | O92: 0.4526930155 | P92: 0.6639376826 | Q92: 0.4634054444 | R92: 0.658118926 | S92: 0.4616402423 | T92: 0.6380325536 | U92: 0.4503327113 | V92: 0.6606362632 | W92: 0.4823209983 | X92: 0.4375029433 | Y92: 0.336548049 | Z92: 0.6642492128 | AA92: 0.460915428 | AC92: =IF('Courbes de Production PV'!$C$4="Saisie Manuelle",G92*Données!$G$35,HLOOKUP('Courbes de Production PV'!$C$4&'Courbes de Production PV'!$C$5,'Courbes de Production PV'!$H$7:$AA$8768,'Compensation PV'!A136+1,FALSE)*Données!$G$35) -> 26.56996851 | AD92: 26.56996851 | AH92: 0.364195 | AI92: 0.45684 | AJ92: 0.358547 | AK92: 0.471517 | AL92: 0.452058 | AM92: 0.454174 | AN92: 0.468097 | AO92: 0.466398 | AP92: 0.4559 | AQ92: 0.367483 | AS92: 0.7391 | AT92: 0.75695 | AU92: 0.71275 | AV92: 0.78112 | AW92: 0.72792 | AX92: 0.753 | AY92: 0.77453 | AZ92: 0.79122 | BA92: 0.76499 | BB92: 0.71757
C93: 1 | D93: 4 | E93: 11 | H93: 0.4572836374 | I93: 0.3748837371 | J93: 0.7550917973 | K93: 0.595445257 | L93: 0.1423722646 | M93: 0.1435150645 | N93: 0.6947170702 | O93: 0.5642334662 | P93: 0.6816821632 | Q93: 0.5397067111 | R93: 0.7126751985 | S93: 0.5703151955 | T93: 0.6862916531 | U93: 0.5519219654 | V93: 0.7168219165 | W93: 0.5876192366 | X93: 0.04741186094 | Y93: 0.04871616314 | Z93: 0.6099409223 | AA93: 0.4906782244 | AC93: =IF('Courbes de Production PV'!$C$4="Saisie Manuelle",G93*Données!$G$35,HLOOKUP('Courbes de Production PV'!$C$4&'Courbes de Production PV'!$C$5,'Courbes de Production PV'!$H$7:$AA$8768,'Compensation PV'!A137+1,FALSE)*Données!$G$35) -> 24.39763689 | AD93: 24.39763689 | AH93: 0.320769 | AI93: 0.399602 | AJ93: 0.318804 | AK93: 0.405826 | AL93: 0.391282 | AM93: 0.39115 | AN93: 0.403086 | AO93: 0.403477 | AP93: 0.399673 | AQ93: 0.322865 | AS93: 0.53406 | AT93: 0.76186 | AU93: 0.72112 | AV93: 0.77691 | AW93: 0.72477 | AX93: 0.74551 | AY93: 0.76763 | AZ93: 0.78549 | BA93: 0.7685 | BB93: 0.71641
C94: 1 | D94: 4 | E94: 12 | H94: 0.2705047232 | I94: 0.2584166946 | J94: 0.06173645574 | K94: 0.06358728968 | L94: 0.3643471019 | M94: 0.3342502478 | N94: 0.6911569881 | O94: 0.615621714 | P94: 0.7180142324 | Q94: 0.6217332687 | R94: 0.7055690894 | S94: 0.6206762951 | T94: 0.6801939968 | U94: 0.6013935161 | V94: 0.7118697957 | W94: 0.6340563142 | X94: 0.0108247562 | Y94: 0.01118653345 | Z94: 0.5701766177 | AA94: 0.5071056765 | AC94: =IF('Courbes de Production PV'!$C$4="Saisie Manuelle",G94*Données!$G$35,HLOOKUP('Courbes de Production PV'!$C$4&'Courbes de Production PV'!$C$5,'Courbes de Production PV'!$H$7:$AA$8768,'Compensation PV'!A138+1,FALSE)*Données!$G$35) -> 22.80706471 | AD94: 22.80706471 | AH94: 0.239462 | AI94: 0.292164 | AJ94: 0.241151 | AK94: 0.290976 | AL94: 0.282212 | AM94: 0.280457 | AN94: 0.289045 | AO94: 0.291659 | AP94: 0.292735 | AQ94: 0.240345 | AS94: 0.66659 | AT94: 0.70253 | AU94: 0.66407 | AV94: 0.70431 | AW94: 0.65964 | AX94: 0.67402 | AY94: 0.69445 | AZ94: 0.71054 | BA94: 0.7071 | BB94: 0.40259
C95: 1 | D95: 4 | E95: 13 | H95: 0.6309002467 | I95: 0.6042852918 | J95: 0.0142446382 | K95: 0.01475822039 | L95: 0.1270475047 | M95: 0.1292300653 | N95: 0.6270403479 | O95: 0.6069456619 | P95: 0.008225204 | Q95: 0.008548722155 | R95: 0.6376282179 | S95: 0.6100789651 | T95: 0.6154030805 | U95: 0.5921187066 | V95: 0.6476478913 | W95: 0.6207566107 | X95: 0.01250987656 | Y95: 0.01291925608 | Z95: 0.3545449058 | AA95: 0.3447549098 | AC95: =IF('Courbes de Production PV'!$C$4="Saisie Manuelle",G95*Données!$G$35,HLOOKUP('Courbes de Production PV'!$C$4&'Courbes de Production PV'!$C$5,'Courbes de Production PV'!$H$7:$AA$8768,'Compensation PV'!A139+1,FALSE)*Données!$G$35) -> 14.18179623 | AD95: 14.18179623 | AH95: 0.128358 | AI95: 0.145466 | AJ95: 0.130714 | AK95: 0.141889 | AL95: 0.139554 | AM95: 0.138116 | AN95: 0.141368 | AO95: 0.143606 | AP95: 0.145511 | AQ95: 0.128366 | AS95: 0.53083 | AT95: 0.57334 | AU95: 0.53514 | AV95: 0.56006 | AW95: 0.53059 | AX95: 0.53705 | AY95: 0.55526 | AZ95: 0.57407 | BA95: 0.58622 | BB95: 0.07598
C96: 1 | D96: 4 | E96: 14 | H96: 0.5078036609 | I96: 0.5362381108 | J96: 0.08219253141 | K96: 0.084576328 | L96: 0.06022180991 | M96: 0.06173929835 | N96: 0.4990444062 | O96: 0.5296083708 | P96: 0.05942930471 | Q96: 0.06118414561 | R96: 0.5075112703 | S96: 0.5329011031 | T96: 0.4921755542 | U96: 0.5198406826 | V96: 0.1432807129 | W96: 0.1470361522 | X96: 0.05060121303 | Y96: 0.05197215841 | Z96: 0.05991840132 | AA96: 0.06133855506 | AC96: =IF('Courbes de Production PV'!$C$4="Saisie Manuelle",G96*Données!$G$35,HLOOKUP('Courbes de Production PV'!$C$4&'Courbes de Production PV'!$C$5,'Courbes de Production PV'!$H$7:$AA$8768,'Compensation PV'!A140+1,FALSE)*Données!$G$35) -> 2.396736053 | AD96: 2.396736053 | AH96: 0.028462 | AI96: 0.0288057 | AJ96: 0.0287505 | AK96: 0.0282075 | AL96: 0.0283532 | AM96: 0.0282709 | AN96: 0.0284145 | AO96: 0.0284554 | AP96: 0.028434 | AQ96: 0.0284 | AS96: 0.32961 | AT96: 0.38269 | AU96: 0.34617 | AV96: 0.35159 | AW96: 0.33947 | AX96: 0.3372 | AY96: 0.3508 | AZ96: 0.36522 | BA96: 0.39599 | BB96: 0.06389
C97: 1 | D97: 4 | E97: 15 | H97: 0.3201440336 | I97: 0.3897493992 | J97: 0.0310378069 | K97: 0.03204559082 | L97: 0.06031548204 | M97: 0.0631069114 | N97: 0.3140256177 | O97: 0.38008492 | P97: 0.07536992652 | Q97: 0.07990898427 | R97: 0.3178533098 | S97: 0.3820556258 | T97: 0.3111220687 | U97: 0.3756828849 | V97: 0.01817399142 | W97: 0.01869936377 | X97: 0.1109608914 | Y97: 0.1189009501 | Z97: 0.04697586548 | AA97: 0.04875861166 | AC97: =IF('Courbes de Production PV'!$C$4="Saisie Manuelle",G97*Données!$G$35,HLOOKUP('Courbes de Production PV'!$C$4&'Courbes de Production PV'!$C$5,'Courbes de Production PV'!$H$7:$AA$8768,'Compensation PV'!A141+1,FALSE)*Données!$G$35) -> 1.879034619 | AD97: 1.879034619 | AH97: 0 | AI97: 0 | AJ97: 0 | AK97: 0 | AL97: 0 | AM97: 0 | AN97: 0 | AO97: 0 | AP97: 0 | AQ97: 0 | AS97: 0.04801 | AT97: 0.11272 | AU97: 0.07933 | AV97: 0.07033 | AW97: 0.06849 | AX97: 0.05402 | AY97: 0.06742 | AZ97: 0.08545 | BA97: 0.13647 | BB97: 0.00401
C98: 1 | D98: 4 | E98: 16 | H98: 0.05201046091 | I98: 0.08991983482 | J98: 0.04253041975 | K98: 0.05897474017 | L98: 0.02165699557 | M98: 0.02493551998 | N98: 0.06322881727 | O98: 0.1038664959 | P98: 0.06895838491 | Q98: 0.1053884899 | R98: 0.0504467154 | S98: 0.08493084576 | T98: 0.05992341139 | U98: 0.0994652519 | V98: 0.06096265003 | W98: 0.09121047622 | X98: 0.02658110758 | Y98: 0.03138893685 | Z98: 0.05520469955 | AA98: 0.09229992094 | AC98: =IF('Courbes de Production PV'!$C$4="Saisie Manuelle",G98*Données!$G$35,HLOOKUP('Courbes de Production PV'!$C$4&'Courbes de Production PV'!$C$5,'Courbes de Production PV'!$H$7:$AA$8768,'Compensation PV'!A142+1,FALSE)*Données!$G$35) -> 2.208187982 | AD98: 2.208187982 | AH98: 0 | AI98: 0 | AJ98: 0 | AK98: 0 | AL98: 0 | AM98: 0 | AN98: 0 | AO98: 0 | AP98: 0 | AQ98: 0 | AS98: 0 | AT98: 0 | AU98: 0 | AV98: 0 | AW98: 0 | AX98: 0 | AY98: 0 | AZ98: 0 | BA98: 0 | BB98: 0
C99: 1 | D99: 4 | E99: 17 | H99: 0 | I99: 0 | J99: 0 | K99: 0 | L99: 0 | M99: 0 | N99: 0 | O99: 0 | P99: 0 | Q99: 0 | R99: 0 | S99: 0 | T99: 0 | U99: 0 | V99: 0 | W99: 0 | X99: 0 | Y99: 0 | Z99: 0 | AA99: 0 | AC99: =IF('Courbes de Production PV'!$C$4="Saisie Manuelle",G99*Données!$G$35,HLOOKUP('Courbes de Production PV'!$C$4&'Courbes de Production PV'!$C$5,'Courbes de Production PV'!$H$7:$AA$8768,'Compensation PV'!A143+1,FALSE)*Données!$G$35) -> 0 | AD99: 0 | AH99: 0 | AI99: 0 | AJ99: 0 | AK99: 0 | AL99: 0 | AM99: 0 | AN99: 0 | AO99: 0 | AP99: 0 | AQ99: 0 | AS99: 0 | AT99: 0 | AU99: 0 | AV99: 0 | AW99: 0 | AX99: 0 | AY99: 0 | AZ99: 0 | BA99: 0 | BB99: 0
C100: 1 | D100: 4 | E100: 18 | H100: 0 | I100: 0 | J100: 0 | K100: 0 | L100: 0 | M100: 0 | N100: 0 | O100: 0 | P100: 0 | Q100: 0 | R100: 0 | S100: 0 | T100: 0 | U100: 0 | V100: 0 | W100: 0 | X100: 0 | Y100: 0 | Z100: 0 | AA100: 0 | AC100: =IF('Courbes de Production PV'!$C$4="Saisie Manuelle",G100*Données!$G$35,HLOOKUP('Courbes de Production PV'!$C$4&'Courbes de Production PV'!$C$5,'Courbes de Production PV'!$H$7:$AA$8768,'Compensation PV'!A144+1,FALSE)*Données!$G$35) -> 0 | AD100: 0 | AH100: 0 | AI100: 0 | AJ100: 0 | AK100: 0 | AL100: 0 | AM100: 0 | AN100: 0 | AO100: 0 | AP100: 0 | AQ100: 0 | AS100: 0 | AT100: 0 | AU100: 0 | AV100: 0 | AW100: 0 | AX100: 0 | AY100: 0 | AZ100: 0 | BA100: 0 | BB100: 0
C101: 1 | D101: 4 | E101: 19 | H101: 0 | I101: 0 | J101: 0 | K101: 0 | L101: 0 | M101: 0 | N101: 0 | O101: 0 | P101: 0 | Q101: 0 | R101: 0 | S101: 0 | T101: 0 | U101: 0 | V101: 0 | W101: 0 | X101: 0 | Y101: 0 | Z101: 0 | AA101: 0 | AC101: =IF('Courbes de Production PV'!$C$4="Saisie Manuelle",G101*Données!$G$35,HLOOKUP('Courbes de Production PV'!$C$4&'Courbes de Production PV'!$C$5,'Courbes de Production PV'!$H$7:$AA$8768,'Compensation PV'!A145+1,FALSE)*Données!$G$35) -> 0 | AD101: 0 | AH101: 0 | AI101: 0 | AJ101: 0 | AK101: 0 | AL101: 0 | AM101: 0 | AN101: 0 | AO101: 0 | AP101: 0 | AQ101: 0 | AS101: 0 | AT101: 0 | AU101: 0 | AV101: 0 | AW101: 0 | AX101: 0 | AY101: 0 | AZ101: 0 | BA101: 0 | BB101: 0
C102: 1 | D102: 4 | E102: 20 | H102: 0 | I102: 0 | J102: 0 | K102: 0 | L102: 0 | M102: 0 | N102: 0 | O102: 0 | P102: 0 | Q102: 0 | R102: 0 | S102: 0 | T102: 0 | U102: 0 | V102: 0 | W102: 0 | X102: 0 | Y102: 0 | Z102: 0 | AA102: 0 | AC102: =IF('Courbes de Production PV'!$C$4="Saisie Manuelle",G102*Données!$G$35,HLOOKUP('Courbes de Production PV'!$C$4&'Courbes de Production PV'!$C$5,'Courbes de Production PV'!$H$7:$AA$8768,'Compensation PV'!A146+1,FALSE)*Données!$G$35) -> 0 | AD102: 0 | AH102: 0 | AI102: 0 | AJ102: 0 | AK102: 0 | AL102: 0 | AM102: 0 | AN102: 0 | AO102: 0 | AP102: 0 | AQ102: 0 | AS102: 0 | AT102: 0 | AU102: 0 | AV102: 0 | AW102: 0 | AX102: 0 | AY102: 0 | AZ102: 0 | BA102: 0 | BB102: 0
C103: 1 | D103: 4 | E103: 21 | H103: 0 | I103: 0 | J103: 0 | K103: 0 | L103: 0 | M103: 0 | N103: 0 | O103: 0 | P103: 0 | Q103: 0 | R103: 0 | S103: 0 | T103: 0 | U103: 0 | V103: 0 | W103: 0 | X103: 0 | Y103: 0 | Z103: 0 | AA103: 0 | AC103: =IF('Courbes de Production PV'!$C$4="Saisie Manuelle",G103*Données!$G$35,HLOOKUP('Courbes de Production PV'!$C$4&'Courbes de Production PV'!$C$5,'Courbes de Production PV'!$H$7:$AA$8768,'Compensation PV'!A147+1,FALSE)*Données!$G$35) -> 0 | AD103: 0 | AH103: 0 | AI103: 0 | AJ103: 0 | AK103: 0 | AL103: 0 | AM103: 0 | AN103: 0 | AO103: 0 | AP103: 0 | AQ103: 0 | AS103: 0 | AT103: 0 | AU103: 0 | AV103: 0 | AW103: 0 | AX103: 0 | AY103: 0 | AZ103: 0 | BA103: 0 | BB103: 0
C104: 1 | D104: 4 | E104: 22 | H104: 0 | I104: 0 | J104: 0 | K104: 0 | L104: 0 | M104: 0 | N104: 0 | O104: 0 | P104: 0 | Q104: 0 | R104: 0 | S104: 0 | T104: 0 | U104: 0 | V104: 0 | W104: 0 | X104: 0 | Y104: 0 | Z104: 0 | AA104: 0 | AC104: =IF('Courbes de Production PV'!$C$4="Saisie Manuelle",G104*Données!$G$35,HLOOKUP('Courbes de Production PV'!$C$4&'Courbes de Production PV'!$C$5,'Courbes de Production PV'!$H$7:$AA$8768,'Compensation PV'!A148+1,FALSE)*Données!$G$35) -> 0 | AD104: 0 | AH104: 0 | AI104: 0 | AJ104: 0 | AK104: 0 | AL104: 0 | AM104: 0 | AN104: 0 | AO104: 0 | AP104: 0 | AQ104: 0 | AS104: 0 | AT104: 0 | AU104: 0 | AV104: 0 | AW104: 0 | AX104: 0 | AY104: 0 | AZ104: 0 | BA104: 0 | BB104: 0
C105: 1 | D105: 4 | E105: 23 | H105: 0 | I105: 0 | J105: 0 | K105: 0 | L105: 0 | M105: 0 | N105: 0 | O105: 0 | P105: 0 | Q105: 0 | R105: 0 | S105: 0 | T105: 0 | U105: 0 | V105: 0 | W105: 0 | X105: 0 | Y105: 0 | Z105: 0 | AA105: 0 | AC105: =IF('Courbes de Production PV'!$C$4="Saisie Manuelle",G105*Données!$G$35,HLOOKUP('Courbes de Production PV'!$C$4&'Courbes de Production PV'!$C$5,'Courbes de Production PV'!$H$7:$AA$8768,'Compensation PV'!A149+1,FALSE)*Données!$G$35) -> 0 | AD105: 0 | AH105: 0 | AI105: 0 | AJ105: 0 | AK105: 0 | AL105: 0 | AM105: 0 | AN105: 0 | AO105: 0 | AP105: 0 | AQ105: 0 | AS105: 0 | AT105: 0 | AU105: 0 | AV105: 0 | AW105: 0 | AX105: 0 | AY105: 0 | AZ105: 0 | BA105: 0 | BB105: 0
C106: 1 | D106: 5 | E106: 0 | H106: 0 | I106: 0 | J106: 0 | K106: 0 | L106: 0 | M106: 0 | N106: 0 | O106: 0 | P106: 0 | Q106: 0 | R106: 0 | S106: 0 | T106: 0 | U106: 0 | V106: 0 | W106: 0 | X106: 0 | Y106: 0 | Z106: 0 | AA106: 0 | AC106: =IF('Courbes de Production PV'!$C$4="Saisie Manuelle",G106*Données!$G$35,HLOOKUP('Courbes de Production PV'!$C$4&'Courbes de Production PV'!$C$5,'Courbes de Production PV'!$H$7:$AA$8768,'Compensation PV'!A150+1,FALSE)*Données!$G$35) -> 0 | AD106: 0 | AH106: 0 | AI106: 0 | AJ106: 0 | AK106: 0 | AL106: 0 | AM106: 0 | AN106: 0 | AO106: 0 | AP106: 0 | AQ106: 0 | AS106: 0 | AT106: 0 | AU106: 0 | AV106: 0 | AW106: 0 | AX106: 0 | AY106: 0 | AZ106: 0 | BA106: 0 | BB106: 0
C107: 1 | D107: 5 | E107: 1 | H107: 0 | I107: 0 | J107: 0 | K107: 0 | L107: 0 | M107: 0 | N107: 0 | O107: 0 | P107: 0 | Q107: 0 | R107: 0 | S107: 0 | T107: 0 | U107: 0 | V107: 0 | W107: 0 | X107: 0 | Y107: 0 | Z107: 0 | AA107: 0 | AC107: =IF('Courbes de Production PV'!$C$4="Saisie Manuelle",G107*Données!$G$35,HLOOKUP('Courbes de Production PV'!$C$4&'Courbes de Production PV'!$C$5,'Courbes de Production PV'!$H$7:$AA$8768,'Compensation PV'!A151+1,FALSE)*Données!$G$35) -> 0 | AD107: 0 | AH107: 0 | AI107: 0 | AJ107: 0 | AK107: 0 | AL107: 0 | AM107: 0 | AN107: 0 | AO107: 0 | AP107: 0 | AQ107: 0 | AS107: 0 | AT107: 0 | AU107: 0 | AV107: 0 | AW107: 0 | AX107: 0 | AY107: 0 | AZ107: 0 | BA107: 0 | BB107: 0
C108: 1 | D108: 5 | E108: 2 | H108: 0 | I108: 0 | J108: 0 | K108: 0 | L108: 0 | M108: 0 | N108: 0 | O108: 0 | P108: 0 | Q108: 0 | R108: 0 | S108: 0 | T108: 0 | U108: 0 | V108: 0 | W108: 0 | X108: 0 | Y108: 0 | Z108: 0 | AA108: 0 | AC108: =IF('Courbes de Production PV'!$C$4="Saisie Manuelle",G108*Données!$G$35,HLOOKUP('Courbes de Production PV'!$C$4&'Courbes de Production PV'!$C$5,'Courbes de Production PV'!$H$7:$AA$8768,'Compensation PV'!A152+1,FALSE)*Données!$G$35) -> 0 | AD108: 0 | AH108: 0 | AI108: 0 | AJ108: 0 | AK108: 0 | AL108: 0 | AM108: 0 | AN108: 0 | AO108: 0 | AP108: 0 | AQ108: 0 | AS108: 0 | AT108: 0 | AU108: 0 | AV108: 0 | AW108: 0 | AX108: 0 | AY108: 0 | AZ108: 0 | BA108: 0 | BB108: 0
C109: 1 | D109: 5 | E109: 3 | H109: 0 | I109: 0 | J109: 0 | K109: 0 | L109: 0 | M109: 0 | N109: 0 | O109: 0 | P109: 0 | Q109: 0 | R109: 0 | S109: 0 | T109: 0 | U109: 0 | V109: 0 | W109: 0 | X109: 0 | Y109: 0 | Z109: 0 | AA109: 0 | AC109: =IF('Courbes de Production PV'!$C$4="Saisie Manuelle",G109*Données!$G$35,HLOOKUP('Courbes de Production PV'!$C$4&'Courbes de Production PV'!$C$5,'Courbes de Production PV'!$H$7:$AA$8768,'Compensation PV'!A153+1,FALSE)*Données!$G$35) -> 0 | AD109: 0 | AH109: 0 | AI109: 0 | AJ109: 0 | AK109: 0 | AL109: 0 | AM109: 0 | AN109: 0 | AO109: 0 | AP109: 0 | AQ109: 0 | AS109: 0 | AT109: 0 | AU109: 0 | AV109: 0 | AW109: 0 | AX109: 0 | AY109: 0 | AZ109: 0 | BA109: 0 | BB109: 0
C110: 1 | D110: 5 | E110: 4 | H110: 0 | I110: 0 | J110: 0 | K110: 0 | L110: 0 | M110: 0 | N110: 0 | O110: 0 | P110: 0 | Q110: 0 | R110: 0 | S110: 0 | T110: 0 | U110: 0 | V110: 0 | W110: 0 | X110: 0 | Y110: 0 | Z110: 0 | AA110: 0 | AC110: =IF('Courbes de Production PV'!$C$4="Saisie Manuelle",G110*Données!$G$35,HLOOKUP('Courbes de Production PV'!$C$4&'Courbes de Production PV'!$C$5,'Courbes de Production PV'!$H$7:$AA$8768,'Compensation PV'!A154+1,FALSE)*Données!$G$35) -> 0 | AD110: 0 | AH110: 0 | AI110: 0 | AJ110: 0 | AK110: 0 | AL110: 0 | AM110: 0 | AN110: 0 | AO110: 0 | AP110: 0 | AQ110: 0 | AS110: 0 | AT110: 0 | AU110: 0 | AV110: 0 | AW110: 0 | AX110: 0 | AY110: 0 | AZ110: 0 | BA110: 0 | BB110: 0
C111: 1 | D111: 5 | E111: 5 | H111: 0 | I111: 0 | J111: 0 | K111: 0 | L111: 0 | M111: 0 | N111: 0 | O111: 0 | P111: 0 | Q111: 0 | R111: 0 | S111: 0 | T111: 0 | U111: 0 | V111: 0 | W111: 0 | X111: 0 | Y111: 0 | Z111: 0 | AA111: 0 | AC111: =IF('Courbes de Production PV'!$C$4="Saisie Manuelle",G111*Données!$G$35,HLOOKUP('Courbes de Production PV'!$C$4&'Courbes de Production PV'!$C$5,'Courbes de Production PV'!$H$7:$AA$8768,'Compensation PV'!A155+1,FALSE)*Données!$G$35) -> 0 | AD111: 0 | AH111: 0 | AI111: 0 | AJ111: 0 | AK111: 0 | AL111: 0 | AM111: 0 | AN111: 0 | AO111: 0 | AP111: 0 | AQ111: 0 | AS111: 0 | AT111: 0 | AU111: 0 | AV111: 0 | AW111: 0 | AX111: 0 | AY111: 0 | AZ111: 0 | BA111: 0 | BB111: 0
C112: 1 | D112: 5 | E112: 6 | H112: 0 | I112: 0 | J112: 0 | K112: 0 | L112: 0 | M112: 0 | N112: 0 | O112: 0 | P112: 0 | Q112: 0 | R112: 0 | S112: 0 | T112: 0 | U112: 0 | V112: 0 | W112: 0 | X112: 0 | Y112: 0 | Z112: 0 | AA112: 0 | AC112: =IF('Courbes de Production PV'!$C$4="Saisie Manuelle",G112*Données!$G$35,HLOOKUP('Courbes de Production PV'!$C$4&'Courbes de Production PV'!$C$5,'Courbes de Production PV'!$H$7:$AA$8768,'Compensation PV'!A156+1,FALSE)*Données!$G$35) -> 0 | AD112: 0 | AH112: 0.0337836 | AI112: 0.0340465 | AJ112: 0.0340002 | AK112: 0.0335979 | AL112: 0.0337062 | AM112: 0.0336443 | AN112: 0.0337527 | AO112: 0.0337836 | AP112: 0.0337681 | AQ112: 0.0337372 | AS112: 0.05193 | AT112: 0.07178 | AU112: 0.00323 | AV112: 0.10559 | AW112: 0.08061 | AX112: 0.09774 | AY112: 0.10539 | AZ112: 0.01586 | BA112: 0.05976 | BB112: 0.06207
C113: 1 | D113: 5 | E113: 7 | H113: 0.7737693245 | I113: 0.03136693409 | J113: 0.05150357279 | K113: 0.02350849814 | L113: 0.01000418307 | M113: 0.009835573247 | N113: 0.09470697584 | O113: 0.01273718285 | P113: 0.6998481978 | Q113: 0.03897903588 | R113: 0.09146618302 | S113: 0.009351144868 | T113: 0.09365964595 | U113: 0.01035451061 | V113: 0.08068357113 | W113: 0.01428234444 | X113: 0.03622532748 | Y113: 0.02103068289 | Z113: 0.007402929058 | AA113: 0.007211560824 | AC113: =IF('Courbes de Production PV'!$C$4="Saisie Manuelle",G113*Données!$G$35,HLOOKUP('Courbes de Production PV'!$C$4&'Courbes de Production PV'!$C$5,'Courbes de Production PV'!$H$7:$AA$8768,'Compensation PV'!A157+1,FALSE)*Données!$G$35) -> 0.2961171623 | AD113: 0.2961171623 | AH113: 0.106818 | AI113: 0.108662 | AJ113: 0.107295 | AK113: 0.107965 | AL113: 0.107766 | AM113: 0.107726 | AN113: 0.108277 | AO113: 0.108422 | AP113: 0.107809 | AQ113: 0.106795 | AS113: 0.34473 | AT113: 0.36161 | AU113: 0.16436 | AV113: 0.37451 | AW113: 0.3643 | AX113: 0.38461 | AY113: 0.38628 | AZ113: 0.38644 | BA113: 0.3507 | BB113: 0.15391
C114: 1 | D114: 5 | E114: 8 | H114: 0.3187890904 | I114: 0.08091914099 | J114: 0.06012787755 | K114: 0.05585448609 | L114: 0.007512504518 | M114: 0.007774786471 | N114: 0.333671997 | O114: 0.1134127903 | P114: 0.34686048 | Q114: 0.1059963119 | R114: 0.3626969485 | S114: 0.108969852 | T114: 0.3425661509 | U114: 0.1074391101 | V114: 0.3744250856 | W114: 0.1345147781 | X114: 0.04103315676 | Y114: 0.04129972947 | Z114: 0.007362641009 | AA114: 0.007604369305 | AC114: =IF('Courbes de Production PV'!$C$4="Saisie Manuelle",G114*Données!$G$35,HLOOKUP('Courbes de Production PV'!$C$4&'Courbes de Production PV'!$C$5,'Courbes de Production PV'!$H$7:$AA$8768,'Compensation PV'!A158+1,FALSE)*Données!$G$35) -> 0.2945056404 | AD114: 0.2945056404 | AH114: 0.196946 | AI114: 0.210425 | AJ114: 0.196394 | AK114: 0.213202 | AL114: 0.20955 | AM114: 0.210283 | AN114: 0.212876 | AO114: 0.212903 | AP114: 0.209035 | AQ114: 0.197596 | AS114: 0.54773 | AT114: 0.55851 | AU114: 0.258 | AV114: 0.57151 | AW114: 0.5621 | AX114: 0.58507 | AY114: 0.58326 | AZ114: 0.58352 | BA114: 0.55188 | BB114: 0.52119
C115: 1 | D115: 5 | E115: 9 | H115: 0.1000819085 | I115: 0.09651066546 | J115: 0.268089905 | K115: 0.1952096847 | L115: 0.3019895675 | M115: 0.1970580518 | N115: 0.5076765067 | O115: 0.2933068185 | P115: 0.5341872953 | Q115: 0.2972543629 | R115: 0.5529542195 | S115: 0.3038123232 | T115: 0.5169821296 | U115: 0.2900501971 | V115: 0.5635688582 | W115: 0.3332806478 | X115: 0.3404323943 | Y115: 0.2195607102 | Z115: 0.04334994104 | AA115: 0.04441757435 | AC115: =IF('Courbes de Production PV'!$C$4="Saisie Manuelle",G115*Données!$G$35,HLOOKUP('Courbes de Production PV'!$C$4&'Courbes de Production PV'!$C$5,'Courbes de Production PV'!$H$7:$AA$8768,'Compensation PV'!A159+1,FALSE)*Données!$G$35) -> 1.733997642 | AD115: 1.733997642 | AH115: 0.271525 | AI115: 0.299425 | AJ115: 0.270107 | AK115: 0.304205 | AL115: 0.297847 | AM115: 0.298869 | AN115: 0.303523 | AO115: 0.302997 | AP115: 0.297808 | AQ115: 0.272595 | AS115: 0.68052 | AT115: 0.68383 | AU115: 0.65349 | AV115: 0.7041 | AW115: 0.69019 | AX115: 0.71486 | AY115: 0.71137 | AZ115: 0.708 | BA115: 0.67957 | BB115: 0.53145
C116: 1 | D116: 5 | E116: 10 | H116: 0.6416623666 | I116: 0.4370175591 | J116: 0.1998222342 | K116: 0.1891242202 | L116: 0.0975595194 | M116: 0.09966714224 | N116: 0.624702121 | O116: 0.4485088202 | P116: 0.654418406 | Q116: 0.4585918864 | R116: 0.6762599568 | S116: 0.4712577473 | T116: 0.6303772958 | U116: 0.4455891065 | V116: 0.6825170483 | W116: 0.4961460742 | X116: 0.06695735301 | Y116: 0.068718637 | Z116: 0.1660774112 | AA116: 0.1609507569 | AC116: =IF('Courbes de Production PV'!$C$4="Saisie Manuelle",G116*Données!$G$35,HLOOKUP('Courbes de Production PV'!$C$4&'Courbes de Production PV'!$C$5,'Courbes de Production PV'!$H$7:$AA$8768,'Compensation PV'!A160+1,FALSE)*Données!$G$35) -> 6.643096449 | AD116: 6.643096449 | AH116: 0.289766 | AI116: 0.31042 | AJ116: 0.289907 | AK116: 0.310963 | AL116: 0.307509 | AM116: 0.307606 | AN116: 0.311123 | AO116: 0.310913 | AP116: 0.308633 | AQ116: 0.290158 | AS116: 0.75362 | AT116: 0.75555 | AU116: 0.71747 | AV116: 0.77152 | AW116: 0.28747 | AX116: 0.78411 | AY116: 0.77471 | AZ116: 0.7735 | BA116: 0.73877 | BB116: 0.7421
C117: 1 | D117: 5 | E117: 11 | H117: 0.2149907664 | I117: 0.2052061412 | J117: 0.4037628161 | K117: 0.3533348588 | L117: 0.22865366 | M117: 0.2177408573 | N117: 0.6842741626 | O117: 0.5565858823 | P117: 0.7151123726 | Q117: 0.5673430044 | R117: 0.7420509211 | S117: 0.5912815467 | T117: 0.6864421032 | U117: 0.5527096162 | V117: 0.7413879381 | W117: 0.6055597292 | X117: 0.5219779317 | Y117: 0.4346182457 | Z117: 0.7317921274 | AA117: 0.5791910687 | AC117: =IF('Courbes de Production PV'!$C$4="Saisie Manuelle",G117*Données!$G$35,HLOOKUP('Courbes de Production PV'!$C$4&'Courbes de Production PV'!$C$5,'Courbes de Production PV'!$H$7:$AA$8768,'Compensation PV'!A161+1,FALSE)*Données!$G$35) -> 29.2716851 | AD117: 29.2716851 | AH117: 0.278171 | AI117: 0.31802 | AJ117: 0.27737 | AK117: 0.321194 | AL117: 0.313802 | AM117: 0.313753 | AN117: 0.319848 | AO117: 0.319922 | AP117: 0.317947 | AQ117: 0.279158 | AS117: 0.75193 | AT117: 0.76341 | AU117: 0.7214 | AV117: 0.77055 | AW117: 0.75586 | AX117: 0.7783 | AY117: 0.7713 | AZ117: 0.77177 | BA117: 0.73672 | BB117: 0.74007
C118: 1 | D118: 5 | E118: 12 | H118: 0.70668996 | I118: 0.616934654 | J118: 0.5776055435 | K118: 0.5107623365 | L118: 0.06442768837 | M118: 0.06604821616 | N118: 0.6838082753 | O118: 0.6095300178 | P118: 0.7171024994 | Q118: 0.6208999644 | R118: 0.736552486 | S118: 0.6464466425 | T118: 0.6834242501 | U118: 0.6046414694 | V118: 0.7381578711 | W118: 0.6558495374 | X118: 0.3690223176 | Y118: 0.3441929736 | Z118: 0.04757011421 | AA118: 0.04873846764 | AC118: =IF('Courbes de Production PV'!$C$4="Saisie Manuelle",G118*Données!$G$35,HLOOKUP('Courbes de Production PV'!$C$4&'Courbes de Production PV'!$C$5,'Courbes de Production PV'!$H$7:$AA$8768,'Compensation PV'!A162+1,FALSE)*Données!$G$35) -> 1.902804568 | AD118: 1.902804568 | AH118: 0.225627 | AI118: 0.257711 | AJ118: 0.226457 | AK118: 0.257678 | AL118: 0.252117 | AM118: 0.25114 | AN118: 0.256285 | AO118: 0.257763 | AP118: 0.258426 | AQ118: 0.226197 | AS118: 0.68457 | AT118: 0.70594 | AU118: 0.66324 | AV118: 0.70191 | AW118: 0.68867 | AX118: 0.70524 | AY118: 0.70181 | AZ118: 0.70244 | BA118: 0.67651 | BB118: 0.67284
C119: 1 | D119: 5 | E119: 13 | H119: 0.1588477289 | I119: 0.1600187869 | J119: 0.4786295336 | K119: 0.4543555073 | L119: 0.06779988492 | M119: 0.06948598319 | N119: 0.6235945399 | O119: 0.6036492895 | P119: 0.6560948182 | Q119: 0.6133119931 | R119: 0.6671276078 | S119: 0.6378279881 | T119: 0.6219166871 | U119: 0.5984199131 | V119: 0.6723598497 | W119: 0.6438146191 | X119: 0.2640212304 | Y119: 0.2610603692 | Z119: 0.1195648583 | AA119: 0.1219116372 | AC119: =IF('Courbes de Production PV'!$C$4="Saisie Manuelle",G119*Données!$G$35,HLOOKUP('Courbes de Production PV'!$C$4&'Courbes de Production PV'!$C$5,'Courbes de Production PV'!$H$7:$AA$8768,'Compensation PV'!A163+1,FALSE)*Données!$G$35) -> 4.782594332 | AD119: 4.782594332 | AH119: 0.132719 | AI119: 0.15382 | AJ119: 0.134766 | AK119: 0.151438 | AL119: 0.147838 | AM119: 0.14627 | AN119: 0.149984 | AO119: 0.152719 | AP119: 0.155279 | AQ119: 0.132945 | AS119: 0.55429 | AT119: 0.5748 | AU119: 0.54652 | AV119: 0.56369 | AW119: 0.55872 | AX119: 0.57065 | AY119: 0.5713 | AZ119: 0.56918 | BA119: 0.56495 | BB119: 0.5422
C120: 1 | D120: 5 | E120: 14 | H120: 0.2832024762 | I120: 0.2959679764 | J120: 0.321076083 | K120: 0.3263184974 | L120: 0.006538314406 | M120: 0.006772494722 | N120: 0.5013298911 | O120: 0.5316828879 | P120: 0.4283870551 | Q120: 0.4352887757 | R120: 0.539255696 | S120: 0.5663388185 | T120: 0.5063886688 | U120: 0.5345493976 | V120: 0.545745115 | W120: 0.5675480673 | X120: 0.2523681947 | Y120: 0.258413683 | Z120: 0.1263936827 | AA120: 0.1297174467 | AC120: =IF('Courbes de Production PV'!$C$4="Saisie Manuelle",G120*Données!$G$35,HLOOKUP('Courbes de Production PV'!$C$4&'Courbes de Production PV'!$C$5,'Courbes de Production PV'!$H$7:$AA$8768,'Compensation PV'!A164+1,FALSE)*Données!$G$35) -> 5.055747306 | AD120: 5.055747306 | AH120: 0.0351421 | AI120: 0.0367676 | AJ120: 0.0356458 | AK120: 0.0359079 | AL120: 0.03577 | AM120: 0.0355057 | AN120: 0.0358826 | AO120: 0.0363194 | AP120: 0.0367537 | AQ120: 0.0350998 | AS120: 0.3533 | AT120: 0.38457 | AU120: 0.16025 | AV120: 0.35732 | AW120: 0.36043 | AX120: 0.36233 | AY120: 0.36646 | AZ120: 0.36595 | BA120: 0.3884 | BB120: 0.34288
C121: 1 | D121: 5 | E121: 15 | H121: 0.03906107559 | I121: 0.04022245544 | J121: 0.1423107187 | K121: 0.1545204086 | L121: 0.07592125825 | M121: 0.08011776951 | N121: 0.318693281 | O121: 0.3850866157 | P121: 0.3402626704 | Q121: 0.3900550555 | R121: 0.34154034 | S121: 0.4106893451 | T121: 0.325007733 | U121: 0.3919138015 | V121: 0.3533907336 | W121: 0.4134972213 | X121: 0.1363995445 | Y121: 0.1483286734 | Z121: 0.2873041516 | AA121: 0.3404440886 | AC121: =IF('Courbes de Production PV'!$C$4="Saisie Manuelle",G121*Données!$G$35,HLOOKUP('Courbes de Production PV'!$C$4&'Courbes de Production PV'!$C$5,'Courbes de Production PV'!$H$7:$AA$8768,'Compensation PV'!A165+1,FALSE)*Données!$G$35) -> 11.49216606 | AD121: 11.49216606 | AH121: 0 | AI121: 0 | AJ121: 0 | AK121: 0 | AL121: 0 | AM121: 0 | AN121: 0 | AO121: 0 | AP121: 0 | AQ121: 0 | AS121: 0.06353 | AT121: 0.11789 | AU121: 0.09011 | AV121: 0.07607 | AW121: 0.07919 | AX121: 0.06651 | AY121: 0.0778 | AZ121: 0.08993 | BA121: 0.13913 | BB121: 0.00488
C122: 1 | D122: 5 | E122: 16 | H122: 0.05549460046 | I122: 0.0954654236 | J122: 0.06725019665 | K122: 0.08861715394 | L122: 0.01818175969 | M122: 0.02147901853 | N122: 0.06838873882 | O122: 0.1118656928 | P122: 0.07226219152 | Q122: 0.1100746013 | R122: 0.06212851184 | S122: 0.1040612144 | T122: 0.06914512084 | U122: 0.1142624671 | V122: 0.0735910445 | W122: 0.1115346026 | X122: 0.07541151616 | Y122: 0.09279586517 | Z122: 0.01837135048 | AA122: 0.02817141847 | AC122: =IF('Courbes de Production PV'!$C$4="Saisie Manuelle",G122*Données!$G$35,HLOOKUP('Courbes de Production PV'!$C$4&'Courbes de Production PV'!$C$5,'Courbes de Production PV'!$H$7:$AA$8768,'Compensation PV'!A166+1,FALSE)*Données!$G$35) -> 0.7348540192 | AD122: 0.7348540192 | AH122: 0 | AI122: 0 | AJ122: 0 | AK122: 0 | AL122: 0 | AM122: 0 | AN122: 0 | AO122: 0 | AP122: 0 | AQ122: 0 | AS122: 0 | AT122: 0 | AU122: 0 | AV122: 0 | AW122: 0 | AX122: 0 | AY122: 0 | AZ122: 0 | BA122: 0 | BB122: 0
C123: 1 | D123: 5 | E123: 17 | H123: 0 | I123: 0 | J123: 0 | K123: 0 | L123: 0 | M123: 0 | N123: 0 | O123: 0 | P123: 0 | Q123: 0 | R123: 0 | S123: 0 | T123: 0 | U123: 0 | V123: 0 | W123: 0 | X123: 0 | Y123: 0 | Z123: 0 | AA123: 0 | AC123: =IF('Courbes de Production PV'!$C$4="Saisie Manuelle",G123*Données!$G$35,HLOOKUP('Courbes de Production PV'!$C$4&'Courbes de Production PV'!$C$5,'Courbes de Production PV'!$H$7:$AA$8768,'Compensation PV'!A167+1,FALSE)*Données!$G$35) -> 0 | AD123: 0 | AH123: 0 | AI123: 0 | AJ123: 0 | AK123: 0 | AL123: 0 | AM123: 0 | AN123: 0 | AO123: 0 | AP123: 0 | AQ123: 0 | AS123: 0 | AT123: 0 | AU123: 0 | AV123: 0 | AW123: 0 | AX123: 0 | AY123: 0 | AZ123: 0 | BA123: 0 | BB123: 0
C124: 1 | D124: 5 | E124: 18 | H124: 0 | I124: 0 | J124: 0 | K124: 0 | L124: 0 | M124: 0 | N124: 0 | O124: 0 | P124: 0 | Q124: 0 | R124: 0 | S124: 0 | T124: 0 | U124: 0 | V124: 0 | W124: 0 | X124: 0 | Y124: 0 | Z124: 0 | AA124: 0 | AC124: =IF('Courbes de Production PV'!$C$4="Saisie Manuelle",G124*Données!$G$35,HLOOKUP('Courbes de Production PV'!$C$4&'Courbes de Production PV'!$C$5,'Courbes de Production PV'!$H$7:$AA$8768,'Compensation PV'!A168+1,FALSE)*Données!$G$35) -> 0 | AD124: 0 | AH124: 0 | AI124: 0 | AJ124: 0 | AK124: 0 | AL124: 0 | AM124: 0 | AN124: 0 | AO124: 0 | AP124: 0 | AQ124: 0 | AS124: 0 | AT124: 0 | AU124: 0 | AV124: 0 | AW124: 0 | AX124: 0 | AY124: 0 | AZ124: 0 | BA124: 0 | BB124: 0
C125: 1 | D125: 5 | E125: 19 | H125: 0 | I125: 0 | J125: 0 | K125: 0 | L125: 0 | M125: 0 | N125: 0 | O125: 0 | P125: 0 | Q125: 0 | R125: 0 | S125: 0 | T125: 0 | U125: 0 | V125: 0 | W125: 0 | X125: 0 | Y125: 0 | Z125: 0 | AA125: 0 | AC125: =IF('Courbes de Production PV'!$C$4="Saisie Manuelle",G125*Données!$G$35,HLOOKUP('Courbes de Production PV'!$C$4&'Courbes de Production PV'!$C$5,'Courbes de Production PV'!$H$7:$AA$8768,'Compensation PV'!A169+1,FALSE)*Données!$G$35) -> 0 | AD125: 0 | AH125: 0 | AI125: 0 | AJ125: 0 | AK125: 0 | AL125: 0 | AM125: 0 | AN125: 0 | AO125: 0 | AP125: 0 | AQ125: 0 | AS125: 0 | AT125: 0 | AU125: 0 | AV125: 0 | AW125: 0 | AX125: 0 | AY125: 0 | AZ125: 0 | BA125: 0 | BB125: 0
C126: 1 | D126: 5 | E126: 20 | H126: 0 | I126: 0 | J126: 0 | K126: 0 | L126: 0 | M126: 0 | N126: 0 | O126: 0 | P126: 0 | Q126: 0 | R126: 0 | S126: 0 | T126: 0 | U126: 0 | V126: 0 | W126: 0 | X126: 0 | Y126: 0 | Z126: 0 | AA126: 0 | AC126: =IF('Courbes de Production PV'!$C$4="Saisie Manuelle",G126*Données!$G$35,HLOOKUP('Courbes de Production PV'!$C$4&'Courbes de Production PV'!$C$5,'Courbes de Production PV'!$H$7:$AA$8768,'Compensation PV'!A170+1,FALSE)*Données!$G$35) -> 0 | AD126: 0 | AH126: 0 | AI126: 0 | AJ126: 0 | AK126: 0 | AL126: 0 | AM126: 0 | AN126: 0 | AO126: 0 | AP126: 0 | AQ126: 0 | AS126: 0 | AT126: 0 | AU126: 0 | AV126: 0 | AW126: 0 | AX126: 0 | AY126: 0 | AZ126: 0 | BA126: 0 | BB126: 0
C127: 1 | D127: 5 | E127: 21 | H127: 0 | I127: 0 | J127: 0 | K127: 0 | L127: 0 | M127: 0 | N127: 0 | O127: 0 | P127: 0 | Q127: 0 | R127: 0 | S127: 0 | T127: 0 | U127: 0 | V127: 0 | W127: 0 | X127: 0 | Y127: 0 | Z127: 0 | AA127: 0 | AC127: =IF('Courbes de Production PV'!$C$4="Saisie Manuelle",G127*Données!$G$35,HLOOKUP('Courbes de Production PV'!$C$4&'Courbes de Production PV'!$C$5,'Courbes de Production PV'!$H$7:$AA$8768,'Compensation PV'!A171+1,FALSE)*Données!$G$35) -> 0 | AD127: 0 | AH127: 0 | AI127: 0 | AJ127: 0 | AK127: 0 | AL127: 0 | AM127: 0 | AN127: 0 | AO127: 0 | AP127: 0 | AQ127: 0 | AS127: 0 | AT127: 0 | AU127: 0 | AV127: 0 | AW127: 0 | AX127: 0 | AY127: 0 | AZ127: 0 | BA127: 0 | BB127: 0
C128: 1 | D128: 5 | E128: 22 | H128: 0 | I128: 0 | J128: 0 | K128: 0 | L128: 0 | M128: 0 | N128: 0 | O128: 0 | P128: 0 | Q128: 0 | R128: 0 | S128: 0 | T128: 0 | U128: 0 | V128: 0 | W128: 0 | X128: 0 | Y128: 0 | Z128: 0 | AA128: 0 | AC128: =IF('Courbes de Production PV'!$C$4="Saisie Manuelle",G128*Données!$G$35,HLOOKUP('Courbes de Production PV'!$C$4&'Courbes de Production PV'!$C$5,'Courbes de Production PV'!$H$7:$AA$8768,'Compensation PV'!A172+1,FALSE)*Données!$G$35) -> 0 | AD128: 0 | AH128: 0 | AI128: 0 | AJ128: 0 | AK128: 0 | AL128: 0 | AM128: 0 | AN128: 0 | AO128: 0 | AP128: 0 | AQ128: 0 | AS128: 0 | AT128: 0 | AU128: 0 | AV128: 0 | AW128: 0 | AX128: 0 | AY128: 0 | AZ128: 0 | BA128: 0 | BB128: 0
C129: 1 | D129: 5 | E129: 23 | H129: 0 | I129: 0 | J129: 0 | K129: 0 | L129: 0 | M129: 0 | N129: 0 | O129: 0 | P129: 0 | Q129: 0 | R129: 0 | S129: 0 | T129: 0 | U129: 0 | V129: 0 | W129: 0 | X129: 0 | Y129: 0 | Z129: 0 | AA129: 0 | AC129: =IF('Courbes de Production PV'!$C$4="Saisie Manuelle",G129*Données!$G$35,HLOOKUP('Courbes de Production PV'!$C$4&'Courbes de Production PV'!$C$5,'Courbes de Production PV'!$H$7:$AA$8768,'Compensation PV'!A173+1,FALSE)*Données!$G$35) -> 0 | AD129: 0 | AH129: 0 | AI129: 0 | AJ129: 0 | AK129: 0 | AL129: 0 | AM129: 0 | AN129: 0 | AO129: 0 | AP129: 0 | AQ129: 0 | AS129: 0 | AT129: 0 | AU129: 0 | AV129: 0 | AW129: 0 | AX129: 0 | AY129: 0 | AZ129: 0 | BA129: 0 | BB129: 0
C130: 1 | D130: 6 | E130: 0 | H130: 0 | I130: 0 | J130: 0 | K130: 0 | L130: 0 | M130: 0 | N130: 0 | O130: 0 | P130: 0 | Q130: 0 | R130: 0 | S130: 0 | T130: 0 | U130: 0 | V130: 0 | W130: 0 | X130: 0 | Y130: 0 | Z130: 0 | AA130: 0 | AC130: =IF('Courbes de Production PV'!$C$4="Saisie Manuelle",G130*Données!$G$35,HLOOKUP('Courbes de Production PV'!$C$4&'Courbes de Production PV'!$C$5,'Courbes de Production PV'!$H$7:$AA$8768,'Compensation PV'!A174+1,FALSE)*Données!$G$35) -> 0 | AD130: 0 | AH130: 0 | AI130: 0 | AJ130: 0 | AK130: 0 | AL130: 0 | AM130: 0 | AN130: 0 | AO130: 0 | AP130: 0 | AQ130: 0 | AS130: 0 | AT130: 0 | AU130: 0 | AV130: 0 | AW130: 0 | AX130: 0 | AY130: 0 | AZ130: 0 | BA130: 0 | BB130: 0
C131: 1 | D131: 6 | E131: 1 | H131: 0 | I131: 0 | J131: 0 | K131: 0 | L131: 0 | M131: 0 | N131: 0 | O131: 0 | P131: 0 | Q131: 0 | R131: 0 | S131: 0 | T131: 0 | U131: 0 | V131: 0 | W131: 0 | X131: 0 | Y131: 0 | Z131: 0 | AA131: 0 | AC131: =IF('Courbes de Production PV'!$C$4="Saisie Manuelle",G131*Données!$G$35,HLOOKUP('Courbes de Production PV'!$C$4&'Courbes de Production PV'!$C$5,'Courbes de Production PV'!$H$7:$AA$8768,'Compensation PV'!A175+1,FALSE)*Données!$G$35) -> 0 | AD131: 0 | AH131: 0 | AI131: 0 | AJ131: 0 | AK131: 0 | AL131: 0 | AM131: 0 | AN131: 0 | AO131: 0 | AP131: 0 | AQ131: 0 | AS131: 0 | AT131: 0 | AU131: 0 | AV131: 0 | AW131: 0 | AX131: 0 | AY131: 0 | AZ131: 0 | BA131: 0 | BB131: 0
C132: 1 | D132: 6 | E132: 2 | H132: 0 | I132: 0 | J132: 0 | K132: 0 | L132: 0 | M132: 0 | N132: 0 | O132: 0 | P132: 0 | Q132: 0 | R132: 0 | S132: 0 | T132: 0 | U132: 0 | V132: 0 | W132: 0 | X132: 0 | Y132: 0 | Z132: 0 | AA132: 0 | AC132: =IF('Courbes de Production PV'!$C$4="Saisie Manuelle",G132*Données!$G$35,HLOOKUP('Courbes de Production PV'!$C$4&'Courbes de Production PV'!$C$5,'Courbes de Production PV'!$H$7:$AA$8768,'Compensation PV'!A176+1,FALSE)*Données!$G$35) -> 0 | AD132: 0 | AH132: 0 | AI132: 0 | AJ132: 0 | AK132: 0 | AL132: 0 | AM132: 0 | AN132: 0 | AO132: 0 | AP132: 0 | AQ132: 0 | AS132: 0 | AT132: 0 | AU132: 0 | AV132: 0 | AW132: 0 | AX132: 0 | AY132: 0 | AZ132: 0 | BA132: 0 | BB132: 0
C133: 1 | D133: 6 | E133: 3 | H133: 0 | I133: 0 | J133: 0 | K133: 0 | L133: 0 | M133: 0 | N133: 0 | O133: 0 | P133: 0 | Q133: 0 | R133: 0 | S133: 0 | T133: 0 | U133: 0 | V133: 0 | W133: 0 | X133: 0 | Y133: 0 | Z133: 0 | AA133: 0 | AC133: =IF('Courbes de Production PV'!$C$4="Saisie Manuelle",G133*Données!$G$35,HLOOKUP('Courbes de Production PV'!$C$4&'Courbes de Production PV'!$C$5,'Courbes de Production PV'!$H$7:$AA$8768,'Compensation PV'!A177+1,FALSE)*Données!$G$35) -> 0 | AD133: 0 | AH133: 0 | AI133: 0 | AJ133: 0 | AK133: 0 | AL133: 0 | AM133: 0 | AN133: 0 | AO133: 0 | AP133: 0 | AQ133: 0 | AS133: 0 | AT133: 0 | AU133: 0 | AV133: 0 | AW133: 0 | AX133: 0 | AY133: 0 | AZ133: 0 | BA133: 0 | BB133: 0
C134: 1 | D134: 6 | E134: 4 | H134: 0 | I134: 0 | J134: 0 | K134: 0 | L134: 0 | M134: 0 | N134: 0 | O134: 0 | P134: 0 | Q134: 0 | R134: 0 | S134: 0 | T134: 0 | U134: 0 | V134: 0 | W134: 0 | X134: 0 | Y134: 0 | Z134: 0 | AA134: 0 | AC134: =IF('Courbes de Production PV'!$C$4="Saisie Manuelle",G134*Données!$G$35,HLOOKUP('Courbes de Production PV'!$C$4&'Courbes de Production PV'!$C$5,'Courbes de Production PV'!$H$7:$AA$8768,'Compensation PV'!A178+1,FALSE)*Données!$G$35) -> 0 | AD134: 0 | AH134: 0 | AI134: 0 | AJ134: 0 | AK134: 0 | AL134: 0 | AM134: 0 | AN134: 0 | AO134: 0 | AP134: 0 | AQ134: 0 | AS134: 0 | AT134: 0 | AU134: 0 | AV134: 0 | AW134: 0 | AX134: 0 | AY134: 0 | AZ134: 0 | BA134: 0 | BB134: 0
C135: 1 | D135: 6 | E135: 5 | H135: 0 | I135: 0 | J135: 0 | K135: 0 | L135: 0 | M135: 0 | N135: 0 | O135: 0 | P135: 0 | Q135: 0 | R135: 0 | S135: 0 | T135: 0 | U135: 0 | V135: 0 | W135: 0 | X135: 0 | Y135: 0 | Z135: 0 | AA135: 0 | AC135: =IF('Courbes de Production PV'!$C$4="Saisie Manuelle",G135*Données!$G$35,HLOOKUP('Courbes de Production PV'!$C$4&'Courbes de Production PV'!$C$5,'Courbes de Production PV'!$H$7:$AA$8768,'Compensation PV'!A179+1,FALSE)*Données!$G$35) -> 0 | AD135: 0 | AH135: 0 | AI135: 0 | AJ135: 0 | AK135: 0 | AL135: 0 | AM135: 0 | AN135: 0 | AO135: 0 | AP135: 0 | AQ135: 0 | AS135: 0 | AT135: 0 | AU135: 0 | AV135: 0 | AW135: 0 | AX135: 0 | AY135: 0 | AZ135: 0 | BA135: 0 | BB135: 0
C136: 1 | D136: 6 | E136: 6 | H136: 0 | I136: 0 | J136: 0 | K136: 0 | L136: 0 | M136: 0 | N136: 0 | O136: 0 | P136: 0 | Q136: 0 | R136: 0 | S136: 0 | T136: 0 | U136: 0 | V136: 0 | W136: 0 | X136: 0 | Y136: 0 | Z136: 0 | AA136: 0 | AC136: =IF('Courbes de Production PV'!$C$4="Saisie Manuelle",G136*Données!$G$35,HLOOKUP('Courbes de Production PV'!$C$4&'Courbes de Production PV'!$C$5,'Courbes de Production PV'!$H$7:$AA$8768,'Compensation PV'!A180+1,FALSE)*Données!$G$35) -> 0 | AD136: 0 | AH136: 0.0466168 | AI136: 0.0475812 | AJ136: 0.0466797 | AK136: 0.047957 | AL136: 0.0474026 | AM136: 0.0475374 | AN136: 0.0478965 | AO136: 0.0481057 | AP136: 0.047248 | AQ136: 0.0467187 | AS136: 0.06627 | AT136: 0.0689 | AU136: 0.00343 | AV136: 0.10865 | AW136: 0.09151 | AX136: 0.10943 | AY136: 0.11299 | AZ136: 0.01585 | BA136: 0.05665 | BB136: 0.07695
C137: 1 | D137: 6 | E137: 7 | H137: 0.04603903285 | I137: 0.003735771848 | J137: 0.7704120511 | K137: 0.03927450245 | L137: 0.007287691415 | M137: 0.007156550439 | N137: 0.09750229961 | O137: 0.01304484427 | P137: 0.07245826313 | Q137: 0.007695810656 | R137: 0.1024059761 | S137: 0.01015973827 | T137: 0.1004033529 | U137: 0.0108324111 | V137: 0.07781348148 | W137: 0.01503148648 | X137: 0.7691479585 | Y137: 0.03957652729 | Z137: 0.06038171388 | AA137: 0.005741047025 | AC137: =IF('Courbes de Production PV'!$C$4="Saisie Manuelle",G137*Données!$G$35,HLOOKUP('Courbes de Production PV'!$C$4&'Courbes de Production PV'!$C$5,'Courbes de Production PV'!$H$7:$AA$8768,'Compensation PV'!A181+1,FALSE)*Données!$G$35) -> 2.415268555 | AD137: 2.415268555 | AH137: 0.138961 | AI137: 0.148324 | AJ137: 0.138343 | AK137: 0.151907 | AL137: 0.148126 | AM137: 0.149069 | AN137: 0.151249 | AO137: 0.151765 | AP137: 0.147182 | AQ137: 0.139728 | AS137: 0.36502 | AT137: 0.359 | AU137: 0.33105 | AV137: 0.38068 | AW137: 0.37834 | AX137: 0.40774 | AY137: 0.40027 | AZ137: 0.38779 | BA137: 0.347 | BB137: 0.36749
C138: 1 | D138: 6 | E138: 8 | H138: 0.3157985373 | I138: 0.08013520959 | J138: 0.3587420072 | K138: 0.101592372 | L138: 0.3172487569 | M138: 0.08346186441 | N138: 0.3392099026 | O138: 0.1156894848 | P138: 0.3416449752 | Q138: 0.1042316674 | R138: 0.3845670218 | S138: 0.1157525237 | T138: 0.3549738637 | U138: 0.1114039141 | V138: 0.219411057 | W138: 0.1168467007 | X138: 0.3447642008 | Y138: 0.09384311512 | Z138: 0.05940472869 | AA138: 0.05404641813 | AC138: =IF('Courbes de Production PV'!$C$4="Saisie Manuelle",G138*Données!$G$35,HLOOKUP('Courbes de Production PV'!$C$4&'Courbes de Production PV'!$C$5,'Courbes de Production PV'!$H$7:$AA$8768,'Compensation PV'!A182+1,FALSE)*Données!$G$35) -> 2.376189148 | AD138: =AC138*$AD$6 -> 2.376189148 | AH138: 0.252157 | AI138: 0.28912 | AJ138: 0.248397 | AK138: 0.301561 | AL138: 0.289878 | AM138: 0.292625 | AN138: 0.299139 | AO138: 0.298884 | AP138: 0.287724 | AQ138: 0.254516 | AS138: 0.44918 | AT138: 0.51166 | AU138: 0.39317 | AV138: 0.48985 | AW138: 0.50602 | AX138: 0.51324 | AY138: 0.52627 | AZ138: 0.55774 | BA138: 0.52124 | BB138: 0.41862
C139: 1 | D139: 6 | E139: 9 | H139: 0.4766206119 | I139: 0.2487772419 | J139: 0.5608705161 | K139: 0.3038953051 | L139: 0.5060074583 | M139: 0.2705063659 | N139: 0.4590132601 | O139: 0.2706629379 | P139: 0.4969434932 | Q139: 0.2761178435 | R139: 0.485222631 | S139: 0.2750263981 | T139: 0.4664308778 | U139: 0.2687393753 | V139: 0.5611754953 | W139: 0.3298559985 | X139: 0.5465502234 | Y139: 0.2936393628 | Z139: 0.2228231287 | AA139: 0.1621090384 | AC139: =IF('Courbes de Production PV'!$C$4="Saisie Manuelle",G139*Données!$G$35,HLOOKUP('Courbes de Production PV'!$C$4&'Courbes de Production PV'!$C$5,'Courbes de Production PV'!$H$7:$AA$8768,'Compensation PV'!A183+1,FALSE)*Données!$G$35) -> 8.912925146 | AD139: 8.912925146 | AH139: 0.339848 | AI139: 0.404577 | AJ139: 0.334084 | AK139: 0.420756 | AL139: 0.404369 | AM139: 0.40749 | AN139: 0.417551 | AO139: 0.415882 | AP139: 0.403536 | AQ139: 0.342919 | AS139: 0.5588 | AT139: 0.62118 | AU139: 0.45349 | AV139: 0.63053 | AW139: 0.62414 | AX139: 0.65401 | AY139: 0.65678 | AZ139: 0.65532 | BA139: 0.64473 | BB139: 0.57579
C140: 1 | D140: 6 | E140: 10 | H140: 0.6317616034 | I140: 0.4320333039 | J140: 0.6934813146 | K140: 0.479617937 | L140: 0.6280716059 | M140: 0.4338237179 | N140: 0.5690417747 | O140: 0.4142265475 | P140: 0.6436050567 | Q140: 0.4518666302 | R140: 0.6188307996 | S140: 0.4366975141 | T140: 0.5819765962 | U140: 0.4163044265 | V140: 0.6850077024 | W140: 0.495134246 | X140: 0.6794938432 | Y140: 0.4702152232 | Z140: 0.3703076051 | AA140: 0.2951502492 | AC140: =IF('Courbes de Production PV'!$C$4="Saisie Manuelle",G140*Données!$G$35,HLOOKUP('Courbes de Production PV'!$C$4&'Courbes de Production PV'!$C$5,'Courbes de Production PV'!$H$7:$AA$8768,'Compensation PV'!A184+1,FALSE)*Données!$G$35) -> 14.8123042 | AD140: 14.8123042 | AH140: 0.374159 | AI140: 0.459962 | AJ140: 0.368076 | AK140: 0.475918 | AL140: 0.457165 | AM140: 0.459494 | AN140: 0.472059 | AO140: 0.470063 | AP140: 0.46022 | AQ140: 0.377362 | AS140: 0.58589 | AT140: 0.63835 | AU140: 0.57044 | AV140: 0.68879 | AW140: 0.65242 | AX140: 0.69449 | AY140: 0.73189 | AZ140: 0.72081 | BA140: 0.7169 | BB140: 0.63249
C141: 1 | D141: 6 | E141: 11 | H141: 0.2329340851 | I141: 0.2195201478 | J141: 0.7535510507 | K141: 0.5944180926 | L141: 0.6991687497 | M141: 0.551813128 | N141: 0.6321123661 | O141: 0.5186380436 | P141: 0.7021716464 | Q141: 0.558333514 | R141: 0.6573864355 | S141: 0.5283920058 | T141: 0.6484844143 | U141: 0.525186088 | V141: 0.7411155228 | W141: 0.6031858245 | X141: 0.7352265809 | Y141: 0.5825946623 | Z141: 0.2012589503 | AA141: 0.1964143123 | AC141: =IF('Courbes de Production PV'!$C$4="Saisie Manuelle",G141*Données!$G$35,HLOOKUP('Courbes de Production PV'!$C$4&'Courbes de Production PV'!$C$5,'Courbes de Production PV'!$H$7:$AA$8768,'Compensation PV'!A185+1,FALSE)*Données!$G$35) -> 8.050358011 | AD141: 8.050358011 | AH141: 0.342836 | AI141: 0.429137 | AJ141: 0.339177 | AK141: 0.439765 | AL141: 0.422643 | AM141: 0.42306 | AN141: 0.435621 | AO141: 0.435407 | AP141: 0.431155 | AQ141: 0.345406 | AS141: 0.73268 | AT141: 0.76912 | AU141: 0.71504 | AV141: 0.76368 | AW141: 0.73009 | AX141: 0.76255 | AY141: 0.77469 | AZ141: 0.76652 | BA141: 0.7565 | BB141: 0.71956
C142: 1 | D142: 6 | E142: 12 | H142: 0.1226513902 | I142: 0.1245386325 | J142: 0.7552856019 | K142: 0.6527629678 | L142: 0.7056883297 | M142: 0.6101240265 | N142: 0.6774001274 | O142: 0.6058292904 | P142: 0.703044165 | Q142: 0.6098415257 | R142: 0.7217980346 | S142: 0.636296417 | T142: 0.6864155532 | U142: 0.6081903231 | V142: 0.7346553888 | W142: 0.6516076421 | X142: 0.7380255944 | Y142: 0.6423545521 | Z142: 0.175676039 | AA142: 0.1760889915 | AC142: =IF('Courbes de Production PV'!$C$4="Saisie Manuelle",G142*Données!$G$35,HLOOKUP('Courbes de Production PV'!$C$4&'Courbes de Production PV'!$C$5,'Courbes de Production PV'!$H$7:$AA$8768,'Compensation PV'!A186+1,FALSE)*Données!$G$35) -> 7.027041558 | AD142: 7.027041558 | AH142: 0.262369 | AI142: 0.327613 | AJ142: 0.262814 | AK142: 0.329958 | AL142: 0.317935 | AM142: 0.316274 | AN142: 0.326319 | AO142: 0.329082 | AP142: 0.330506 | AQ142: 0.263801 | AS142: 0.66721 | AT142: 0.71056 | AU142: 0.6567 | AV142: 0.69729 | AW142: 0.65856 | AX142: 0.68966 | AY142: 0.70932 | AZ142: 0.70469 | BA142: 0.70116 | BB142: 0.65265
C143: 1 | D143: 6 | E143: 13 | H143: 0.6333681789 | I143: 0.6060951088 | J143: 0.6937041899 | K143: 0.6481504183 | L143: 0.651733185 | M143: 0.6094308528 | N143: 0.6196388931 | O143: 0.6002825945 | P143: 0.6434678066 | Q143: 0.6020476792 | R143: 0.6525348751 | S143: 0.6247668264 | T143: 0.6285630439 | U143: 0.6048892697 | V143: 0.6653840725 | W143: 0.6368388418 | X143: 0.6793415159 | Y143: 0.6405171045 | Z143: 0.4987660503 | AA143: 0.4776148244 | AC143: =IF('Courbes de Production PV'!$C$4="Saisie Manuelle",G143*Données!$G$35,HLOOKUP('Courbes de Production PV'!$C$4&'Courbes de Production PV'!$C$5,'Courbes de Production PV'!$H$7:$AA$8768,'Compensation PV'!A187+1,FALSE)*Données!$G$35) -> 19.95064201 | AD143: 19.95064201 | AH143: 0.149791 | AI143: 0.18478 | AJ143: 0.152711 | AK143: 0.181805 | AL143: 0.175544 | AM143: 0.173066 | AN143: 0.179057 | AO143: 0.183497 | AP143: 0.187809 | AQ143: 0.150271 | AS143: 0.53802 | AT143: 0.58973 | AU143: 0.53945 | AV143: 0.55691 | AW143: 0.53676 | AX143: 0.55013 | AY143: 0.5716 | AZ143: 0.56888 | BA143: 0.58923 | BB143: 0.52325
C144: 1 | D144: 6 | E144: 14 | H144: 0.1627093169 | I144: 0.168041986 | J144: 0.577334217 | K144: 0.5857744074 | L144: 0.5293224505 | M144: 0.5388208041 | N144: 0.4967589214 | O144: 0.5262065146 | P144: 0.5218347839 | Q144: 0.5303344882 | R144: 0.5199921473 | S144: 0.5452012357 | T144: 0.506645319 | U144: 0.5346201977 | V144: 0.5371153878 | W144: 0.5586556539 | X144: 0.5680378881 | Y144: 0.5826613055 | Z144: 0.4393713936 | AA144: 0.4567959749 | AC144: =IF('Courbes de Production PV'!$C$4="Saisie Manuelle",G144*Données!$G$35,HLOOKUP('Courbes de Production PV'!$C$4&'Courbes de Production PV'!$C$5,'Courbes de Production PV'!$H$7:$AA$8768,'Compensation PV'!A188+1,FALSE)*Données!$G$35) -> 17.57485574 | AD144: 17.57485574 | AH144: 0.0392819 | AI144: 0.0422775 | AJ144: 0.0400766 | AK144: 0.0409926 | AL144: 0.0406207 | AM144: 0.0401553 | AN144: 0.040803 | AO144: 0.0416307 | AP144: 0.0425013 | AQ144: 0.0392405 | AS144: 0.34428 | AT144: 0.39879 | AU144: 0.3574 | AV144: 0.35644 | AW144: 0.35145 | AX144: 0.35177 | AY144: 0.36773 | AZ144: 0.37103 | BA144: 0.40486 | BB144: 0.33298
C145: 1 | D145: 6 | E145: 15 | H145: 0.3231345867 | I145: 0.3930302973 | J145: 0.3898767164 | K145: 0.4428725846 | L145: 0.04864393512 | M145: 0.05018015799 | N145: 0.3190888457 | O145: 0.384770164 | P145: 0.3369000423 | Q145: 0.3854963906 | R145: 0.3316850134 | S145: 0.3969813088 | T145: 0.3261228341 | U145: 0.3929227025 | V145: 0.3458506676 | W145: 0.4046339953 | X145: 0.3879489802 | Y145: 0.4461189542 | Z145: 0.3361131233 | AA145: 0.4005034981 | AC145: =IF('Courbes de Production PV'!$C$4="Saisie Manuelle",G145*Données!$G$35,HLOOKUP('Courbes de Production PV'!$C$4&'Courbes de Production PV'!$C$5,'Courbes de Production PV'!$H$7:$AA$8768,'Compensation PV'!A189+1,FALSE)*Données!$G$35) -> 13.44452493 | AD145: 13.44452493 | AH145: 0 | AI145: 0 | AJ145: 0 | AK145: 0 | AL145: 0 | AM145: 0 | AN145: 0 | AO145: 0 | AP145: 0 | AQ145: 0 | AS145: 0.06288 | AT145: 0.12639 | AU145: 0.09225 | AV145: 0.07892 | AW145: 0.08061 | AX145: 0.0671 | AY145: 0.08063 | AZ145: 0.09548 | BA145: 0.14674 | BB145: 0.00524
C146: 1 | D146: 6 | E146: 16 | H146: 0.05885292385 | I146: 0.1005464604 | J146: 0.1416517831 | K146: 0.2071674286 | L146: 0.1058214009 | M146: 0.1605821259 | N146: 0.07114011096 | O146: 0.115856501 | P146: 0.07502680121 | Q146: 0.1137313368 | R146: 0.06269928365 | S146: 0.104156343 | T146: 0.0716496734 | U146: 0.1178732708 | V146: 0.0730364848 | W146: 0.1098806526 | X146: 0.1603625272 | Y146: 0.2294715029 | Z146: 0.06157021134 | AA146: 0.1017676125 | AC146: =IF('Courbes de Production PV'!$C$4="Saisie Manuelle",G146*Données!$G$35,HLOOKUP('Courbes de Production PV'!$C$4&'Courbes de Production PV'!$C$5,'Courbes de Production PV'!$H$7:$AA$8768,'Compensation PV'!A190+1,FALSE)*Données!$G$35) -> 2.462808454 | AD146: 2.462808454 | AH146: 0 | AI146: 0 | AJ146: 0 | AK146: 0 | AL146: 0 | AM146: 0 | AN146: 0 | AO146: 0 | AP146: 0 | AQ146: 0 | AS146: 0 | AT146: 0 | AU146: 0 | AV146: 0 | AW146: 0 | AX146: 0 | AY146: 0 | AZ146: 0 | BA146: 0 | BB146: 0
C147: 1 | D147: 6 | E147: 17 | H147: 0 | I147: 0 | J147: 0 | K147: 0 | L147: 0 | M147: 0 | N147: 0 | O147: 0 | P147: 0 | Q147: 0 | R147: 0 | S147: 0 | T147: 0 | U147: 0 | V147: 0 | W147: 0 | X147: 0 | Y147: 0 | Z147: 0 | AA147: 0 | AC147: =IF('Courbes de Production PV'!$C$4="Saisie Manuelle",G147*Données!$G$35,HLOOKUP('Courbes de Production PV'!$C$4&'Courbes de Production PV'!$C$5,'Courbes de Production PV'!$H$7:$AA$8768,'Compensation PV'!A191+1,FALSE)*Données!$G$35) -> 0 | AD147: 0 | AH147: 0 | AI147: 0 | AJ147: 0 | AK147: 0 | AL147: 0 | AM147: 0 | AN147: 0 | AO147: 0 | AP147: 0 | AQ147: 0 | AS147: 0 | AT147: 0 | AU147: 0 | AV147: 0 | AW147: 0 | AX147: 0 | AY147: 0 | AZ147: 0 | BA147: 0 | BB147: 0
C148: 1 | D148: 6 | E148: 18 | H148: 0 | I148: 0 | J148: 0 | K148: 0 | L148: 0 | M148: 0 | N148: 0 | O148: 0 | P148: 0 | Q148: 0 | R148: 0 | S148: 0 | T148: 0 | U148: 0 | V148: 0 | W148: 0 | X148: 0 | Y148: 0 | Z148: 0 | AA148: 0 | AC148: =IF('Courbes de Production PV'!$C$4="Saisie Manuelle",G148*Données!$G$35,HLOOKUP('Courbes de Production PV'!$C$4&'Courbes de Production PV'!$C$5,'Courbes de Production PV'!$H$7:$AA$8768,'Compensation PV'!A192+1,FALSE)*Données!$G$35) -> 0 | AD148: 0 | AH148: 0 | AI148: 0 | AJ148: 0 | AK148: 0 | AL148: 0 | AM148: 0 | AN148: 0 | AO148: 0 | AP148: 0 | AQ148: 0 | AS148: 0 | AT148: 0 | AU148: 0 | AV148: 0 | AW148: 0 | AX148: 0 | AY148: 0 | AZ148: 0 | BA148: 0 | BB148: 0
C149: 1 | D149: 6 | E149: 19 | H149: 0 | I149: 0 | J149: 0 | K149: 0 | L149: 0 | M149: 0 | N149: 0 | O149: 0 | P149: 0 | Q149: 0 | R149: 0 | S149: 0 | T149: 0 | U149: 0 | V149: 0 | W149: 0 | X149: 0 | Y149: 0 | Z149: 0 | AA149: 0 | AC149: =IF('Courbes de Production PV'!$C$4="Saisie Manuelle",G149*Données!$G$35,HLOOKUP('Courbes de Production PV'!$C$4&'Courbes de Production PV'!$C$5,'Courbes de Production PV'!$H$7:$AA$8768,'Compensation PV'!A193+1,FALSE)*Données!$G$35) -> 0 | AD149: 0 | AH149: 0 | AI149: 0 | AJ149: 0 | AK149: 0 | AL149: 0 | AM149: 0 | AN149: 0 | AO149: 0 | AP149: 0 | AQ149: 0 | AS149: 0 | AT149: 0 | AU149: 0 | AV149: 0 | AW149: 0 | AX149: 0 | AY149: 0 | AZ149: 0 | BA149: 0 | BB149: 0
C150: 1 | D150: 6 | E150: 20 | H150: 0 | I150: 0 | J150: 0 | K150: 0 | L150: 0 | M150: 0 | N150: 0 | O150: 0 | P150: 0 | Q150: 0 | R150: 0 | S150: 0 | T150: 0 | U150: 0 | V150: 0 | W150: 0 | X150: 0 | Y150: 0 | Z150: 0 | AA150: 0 | AC150: =IF('Courbes de Production PV'!$C$4="Saisie Manuelle",G150*Données!$G$35,HLOOKUP('Courbes de Production PV'!$C$4&'Courbes de Production PV'!$C$5,'Courbes de Production PV'!$H$7:$AA$8768,'Compensation PV'!A194+1,FALSE)*Données!$G$35) -> 0 | AD150: 0 | AH150: 0 | AI150: 0 | AJ150: 0 | AK150: 0 | AL150: 0 | AM150: 0 | AN150: 0 | AO150: 0 | AP150: 0 | AQ150: 0 | AS150: 0 | AT150: 0 | AU150: 0 | AV150: 0 | AW150: 0 | AX150: 0 | AY150: 0 | AZ150: 0 | BA150: 0 | BB150: 0
C151: 1 | D151: 6 | E151: 21 | H151: 0 | I151: 0 | J151: 0 | K151: 0 | L151: 0 | M151: 0 | N151: 0 | O151: 0 | P151: 0 | Q151: 0 | R151: 0 | S151: 0 | T151: 0 | U151: 0 | V151: 0 | W151: 0 | X151: 0 | Y151: 0 | Z151: 0 | AA151: 0 | AC151: =IF('Courbes de Production PV'!$C$4="Saisie Manuelle",G151*Données!$G$35,HLOOKUP('Courbes de Production PV'!$C$4&'Courbes de Production PV'!$C$5,'Courbes de Production PV'!$H$7:$AA$8768,'Compensation PV'!A195+1,FALSE)*Données!$G$35) -> 0 | AD151: 0 | AH151: 0 | AI151: 0 | AJ151: 0 | AK151: 0 | AL151: 0 | AM151: 0 | AN151: 0 | AO151: 0 | AP151: 0 | AQ151: 0 | AS151: 0 | AT151: 0 | AU151: 0 | AV151: 0 | AW151: 0 | AX151: 0 | AY151: 0 | AZ151: 0 | BA151: 0 | BB151: 0
C152: 1 | D152: 6 | E152: 22 | H152: 0 | I152: 0 | J152: 0 | K152: 0 | L152: 0 | M152: 0 | N152: 0 | O152: 0 | P152: 0 | Q152: 0 | R152: 0 | S152: 0 | T152: 0 | U152: 0 | V152: 0 | W152: 0 | X152: 0 | Y152: 0 | Z152: 0 | AA152: 0 | AC152: =IF('Courbes de Production PV'!$C$4="Saisie Manuelle",G152*Données!$G$35,HLOOKUP('Courbes de Production PV'!$C$4&'Courbes de Production PV'!$C$5,'Courbes de Production PV'!$H$7:$AA$8768,'Compensation PV'!A196+1,FALSE)*Données!$G$35) -> 0 | AD152: 0 | AH152: 0 | AI152: 0 | AJ152: 0 | AK152: 0 | AL152: 0 | AM152: 0 | AN152: 0 | AO152: 0 | AP152: 0 | AQ152: 0 | AS152: 0 | AT152: 0 | AU152: 0 | AV152: 0 | AW152: 0 | AX152: 0 | AY152: 0 | AZ152: 0 | BA152: 0 | BB152: 0
C153: 1 | D153: 6 | E153: 23 | H153: 0 | I153: 0 | J153: 0 | K153: 0 | L153: 0 | M153: 0 | N153: 0 | O153: 0 | P153: 0 | Q153: 0 | R153: 0 | S153: 0 | T153: 0 | U153: 0 | V153: 0 | W153: 0 | X153: 0 | Y153: 0 | Z153: 0 | AA153: 0 | AC153: =IF('Courbes de Production PV'!$C$4="Saisie Manuelle",G153*Données!$G$35,HLOOKUP('Courbes de Production PV'!$C$4&'Courbes de Production PV'!$C$5,'Courbes de Production PV'!$H$7:$AA$8768,'Compensation PV'!A197+1,FALSE)*Données!$G$35) -> 0 | AD153: 0 | AH153: 0 | AI153: 0 | AJ153: 0 | AK153: 0 | AL153: 0 | AM153: 0 | AN153: 0 | AO153: 0 | AP153: 0 | AQ153: 0 | AS153: 0 | AT153: 0 | AU153: 0 | AV153: 0 | AW153: 0 | AX153: 0 | AY153: 0 | AZ153: 0 | BA153: 0 | BB153: 0
C154: 1 | D154: 7 | E154: 0 | H154: 0 | I154: 0 | J154: 0 | K154: 0 | L154: 0 | M154: 0 | N154: 0 | O154: 0 | P154: 0 | Q154: 0 | R154: 0 | S154: 0 | T154: 0 | U154: 0 | V154: 0 | W154: 0 | X154: 0 | Y154: 0 | Z154: 0 | AA154: 0 | AC154: =IF('Courbes de Production PV'!$C$4="Saisie Manuelle",G154*Données!$G$35,HLOOKUP('Courbes de Production PV'!$C$4&'Courbes de Production PV'!$C$5,'Courbes de Production PV'!$H$7:$AA$8768,'Compensation PV'!A198+1,FALSE)*Données!$G$35) -> 0 | AD154: 0 | AH154: 0 | AI154: 0 | AJ154: 0 | AK154: 0 | AL154: 0 | AM154: 0 | AN154: 0 | AO154: 0 | AP154: 0 | AQ154: 0 | AS154: 0 | AT154: 0 | AU154: 0 | AV154: 0 | AW154: 0 | AX154: 0 | AY154: 0 | AZ154: 0 | BA154: 0 | BB154: 0
C155: 1 | D155: 7 | E155: 1 | H155: 0 | I155: 0 | J155: 0 | K155: 0 | L155: 0 | M155: 0 | N155: 0 | O155: 0 | P155: 0 | Q155: 0 | R155: 0 | S155: 0 | T155: 0 | U155: 0 | V155: 0 | W155: 0 | X155: 0 | Y155: 0 | Z155: 0 | AA155: 0 | AC155: =IF('Courbes de Production PV'!$C$4="Saisie Manuelle",G155*Données!$G$35,HLOOKUP('Courbes de Production PV'!$C$4&'Courbes de Production PV'!$C$5,'Courbes de Production PV'!$H$7:$AA$8768,'Compensation PV'!A199+1,FALSE)*Données!$G$35) -> 0 | AD155: 0 | AH155: 0 | AI155: 0 | AJ155: 0 | AK155: 0 | AL155: 0 | AM155: 0 | AN155: 0 | AO155: 0 | AP155: 0 | AQ155: 0 | AS155: 0 | AT155: 0 | AU155: 0 | AV155: 0 | AW155: 0 | AX155: 0 | AY155: 0 | AZ155: 0 | BA155: 0 | BB155: 0
C156: 1 | D156: 7 | E156: 2 | H156: 0 | I156: 0 | J156: 0 | K156: 0 | L156: 0 | M156: 0 | N156: 0 | O156: 0 | P156: 0 | Q156: 0 | R156: 0 | S156: 0 | T156: 0 | U156: 0 | V156: 0 | W156: 0 | X156: 0 | Y156: 0 | Z156: 0 | AA156: 0 | AC156: =IF('Courbes de Production PV'!$C$4="Saisie Manuelle",G156*Données!$G$35,HLOOKUP('Courbes de Production PV'!$C$4&'Courbes de Production PV'!$C$5,'Courbes de Production PV'!$H$7:$AA$8768,'Compensation PV'!A200+1,FALSE)*Données!$G$35) -> 0 | AD156: 0 | AH156: 0 | AI156: 0 | AJ156: 0 | AK156: 0 | AL156: 0 | AM156: 0 | AN156: 0 | AO156: 0 | AP156: 0 | AQ156: 0 | AS156: 0 | AT156: 0 | AU156: 0 | AV156: 0 | AW156: 0 | AX156: 0 | AY156: 0 | AZ156: 0 | BA156: 0 | BB156: 0
C157: 1 | D157: 7 | E157: 3 | H157: 0 | I157: 0 | J157: 0 | K157: 0 | L157: 0 | M157: 0 | N157: 0 | O157: 0 | P157: 0 | Q157: 0 | R157: 0 | S157: 0 | T157: 0 | U157: 0 | V157: 0 | W157: 0 | X157: 0 | Y157: 0 | Z157: 0 | AA157: 0 | AC157: =IF('Courbes de Production PV'!$C$4="Saisie Manuelle",G157*Données!$G$35,HLOOKUP('Courbes de Production PV'!$C$4&'Courbes de Production PV'!$C$5,'Courbes de Production PV'!$H$7:$AA$8768,'Compensation PV'!A201+1,FALSE)*Données!$G$35) -> 0 | AD157: 0 | AH157: 0 | AI157: 0 | AJ157: 0 | AK157: 0 | AL157: 0 | AM157: 0 | AN157: 0 | AO157: 0 | AP157: 0 | AQ157: 0 | AS157: 0 | AT157: 0 | AU157: 0 | AV157: 0 | AW157: 0 | AX157: 0 | AY157: 0 | AZ157: 0 | BA157: 0 | BB157: 0
C158: 1 | D158: 7 | E158: 4 | H158: 0 | I158: 0 | J158: 0 | K158: 0 | L158: 0 | M158: 0 | N158: 0 | O158: 0 | P158: 0 | Q158: 0 | R158: 0 | S158: 0 | T158: 0 | U158: 0 | V158: 0 | W158: 0 | X158: 0 | Y158: 0 | Z158: 0 | AA158: 0 | AC158: =IF('Courbes de Production PV'!$C$4="Saisie Manuelle",G158*Données!$G$35,HLOOKUP('Courbes de Production PV'!$C$4&'Courbes de Production PV'!$C$5,'Courbes de Production PV'!$H$7:$AA$8768,'Compensation PV'!A202+1,FALSE)*Données!$G$35) -> 0 | AD158: 0 | AH158: 0 | AI158: 0 | AJ158: 0 | AK158: 0 | AL158: 0 | AM158: 0 | AN158: 0 | AO158: 0 | AP158: 0 | AQ158: 0 | AS158: 0 | AT158: 0 | AU158: 0 | AV158: 0 | AW158: 0 | AX158: 0 | AY158: 0 | AZ158: 0 | BA158: 0 | BB158: 0
C159: 1 | D159: 7 | E159: 5 | H159: 0 | I159: 0 | J159: 0 | K159: 0 | L159: 0 | M159: 0 | N159: 0 | O159: 0 | P159: 0 | Q159: 0 | R159: 0 | S159: 0 | T159: 0 | U159: 0 | V159: 0 | W159: 0 | X159: 0 | Y159: 0 | Z159: 0 | AA159: 0 | AC159: =IF('Courbes de Production PV'!$C$4="Saisie Manuelle",G159*Données!$G$35,HLOOKUP('Courbes de Production PV'!$C$4&'Courbes de Production PV'!$C$5,'Courbes de Production PV'!$H$7:$AA$8768,'Compensation PV'!A203+1,FALSE)*Données!$G$35) -> 0 | AD159: 0 | AH159: 0 | AI159: 0 | AJ159: 0 | AK159: 0 | AL159: 0 | AM159: 0 | AN159: 0 | AO159: 0 | AP159: 0 | AQ159: 0 | AS159: 0 | AT159: 0 | AU159: 0 | AV159: 0 | AW159: 0 | AX159: 0 | AY159: 0 | AZ159: 0 | BA159: 0 | BB159: 0
C160: 1 | D160: 7 | E160: 6 | H160: 0 | I160: 0 | J160: 0 | K160: 0 | L160: 0 | M160: 0 | N160: 0 | O160: 0 | P160: 0 | Q160: 0 | R160: 0 | S160: 0 | T160: 0 | U160: 0 | V160: 0 | W160: 0 | X160: 0 | Y160: 0 | Z160: 0 | AA160: 0 | AC160: =IF('Courbes de Production PV'!$C$4="Saisie Manuelle",G160*Données!$G$35,HLOOKUP('Courbes de Production PV'!$C$4&'Courbes de Production PV'!$C$5,'Courbes de Production PV'!$H$7:$AA$8768,'Compensation PV'!A204+1,FALSE)*Données!$G$35) -> 0 | AD160: 0 | AH160: 0.0339925 | AI160: 0.0342298 | AJ160: 0.0341879 | AK160: 0.0338249 | AL160: 0.0339227 | AM160: 0.0338668 | AN160: 0.0339646 | AO160: 0.0339925 | AP160: 0.0339786 | AQ160: 0.0339506 | AS160: 0 | AT160: 0.07076 | AU160: 0.00333 | AV160: 0.10768 | AW160: 0.0802 | AX160: 0.09952 | AY160: 0.10544 | AZ160: 0.01602 | BA160: 0.0579 | BB160: 0.0654
C161: 1 | D161: 7 | E161: 7 | H161: 0.04788756245 | I161: 0.003851909833 | J161: 0.08759967978 | K161: 0.008004130033 | L161: 0.009629494569 | M161: 0.009470251955 | N161: 0.09657052502 | O161: 0.01303605394 | P161: 0.07496797972 | Q161: 0.007950703747 | R161: 0.09314044701 | S161: 0.009674582229 | T161: 0.09369504599 | U161: 0.01053151079 | V161: 0.644476199 | W161: 0.0510292211 | X161: 0.06793795977 | Y161: 0.008320876799 | Z161: 0.06234575629 | AA161: 0.005861911173 | AC161: =IF('Courbes de Production PV'!$C$4="Saisie Manuelle",G161*Données!$G$35,HLOOKUP('Courbes de Production PV'!$C$4&'Courbes de Production PV'!$C$5,'Courbes de Production PV'!$H$7:$AA$8768,'Compensation PV'!A205+1,FALSE)*Données!$G$35) -> 2.493830252 | AD161: 2.493830252 | AH161: 0.107483 | AI161: 0.109265 | AJ161: 0.107897 | AK161: 0.108701 | AL161: 0.108469 | AM161: 0.108448 | AN161: 0.10897 | AO161: 0.109103 | AP161: 0.108488 | AQ161: 0.107475 | AS161: 0.0279 | AT161: 0.35885 | AU161: 0.32196 | AV161: 0.37797 | AW161: 0.3611 | AX161: 0.38557 | AY161: 0.38201 | AZ161: 0.38992 | BA161: 0.35086 | BB161: 0.3478
C162: 1 | D162: 7 | E162: 8 | H162: 0.0377158106 | I162: 0.03758031628 | J162: 0.3424818012 | K162: 0.09744495353 | L162: 0.0003746885046 | M162: 0.0004308917803 | N162: 0.3368716758 | O162: 0.1141687583 | P162: 0.3505270191 | Q162: 0.1065649195 | R162: 0.3636672606 | S162: 0.1098925997 | T162: 0.338760647 | U162: 0.1069523596 | V162: 0.3671574349 | W162: 0.1312457946 | X162: 0.328474704 | Y162: 0.08985404489 | Z162: 0.1759379113 | AA162: 0.08657901794 | AC162: =IF('Courbes de Production PV'!$C$4="Saisie Manuelle",G162*Données!$G$35,HLOOKUP('Courbes de Production PV'!$C$4&'Courbes de Production PV'!$C$5,'Courbes de Production PV'!$H$7:$AA$8768,'Compensation PV'!A206+1,FALSE)*Données!$G$35) -> 7.037516451 | AD162: 7.037516451 | AH162: 0.190119 | AI162: 0.201167 | AJ162: 0.18978 | AK162: 0.203182 | AL162: 0.200299 | AM162: 0.200865 | AN162: 0.203012 | AO162: 0.203022 | AP162: 0.199882 | AQ162: 0.190616 | AS162: 0.0503 | AT162: 0.55257 | AU162: 0.513 | AV162: 0.57462 | AW162: 0.54641 | AX162: 0.57736 | AY162: 0.56858 | AZ162: 0.58623 | BA162: 0.17792 | BB162: 0.51972
C163: 1 | D163: 7 | E163: 9 | H163: 0.5189335511 | I163: 0.2694014123 | J163: 0.5424687692 | K163: 0.2940597215 | L163: 0.07631468118 | M163: 0.07741064506 | N163: 0.5107882822 | O163: 0.2959790777 | P163: 0.5366185833 | Q163: 0.299028811 | R163: 0.545810059 | S163: 0.3037171945 | T163: 0.5039283663 | U163: 0.2869084439 | V163: 0.5552796501 | W163: 0.32774478 | X163: 0.5272617836 | Y163: 0.2834810384 | Z163: 0.07938760114 | AA163: 0.08066674671 | AC163: =IF('Courbes de Production PV'!$C$4="Saisie Manuelle",G163*Données!$G$35,HLOOKUP('Courbes de Production PV'!$C$4&'Courbes de Production PV'!$C$5,'Courbes de Production PV'!$H$7:$AA$8768,'Compensation PV'!A207+1,FALSE)*Données!$G$35) -> 3.175504046 | AD163: 3.175504046 | AH163: 0.256483 | AI163: 0.276501 | AJ163: 0.255785 | AK163: 0.279246 | AL163: 0.274943 | AM163: 0.275586 | AN163: 0.279005 | AO163: 0.278627 | AP163: 0.274946 | AQ163: 0.25716 | AS163: 0.10588 | AT163: 0.67237 | AU163: 0.53584 | AV163: 0.70516 | AW163: 0.65675 | AX163: 0.69468 | AY163: 0.68209 | AZ163: 0.70854 | BA163: 0.67563 | BB163: 0.66203
C164: 1 | D164: 7 | E164: 10 | H164: 0.2648913873 | I164: 0.2263142199 | J164: 0.6758644763 | K164: 0.4671272305 | L164: 0.02338056269 | M164: 0.02404563479 | N164: 0.626451396 | O164: 0.4515502731 | P164: 0.6529184582 | Q164: 0.459023244 | R164: 0.6573769227 | S164: 0.4642848184 | T164: 0.6043759692 | U164: 0.4342256948 | V164: 0.67345924 | W164: 0.4891800261 | X164: 0.6596722579 | Y164: 0.456391524 | Z164: 0.1086467969 | AA164: 0.1106410554 | AC164: =IF('Courbes de Production PV'!$C$4="Saisie Manuelle",G164*Données!$G$35,HLOOKUP('Courbes de Production PV'!$C$4&'Courbes de Production PV'!$C$5,'Courbes de Production PV'!$H$7:$AA$8768,'Compensation PV'!A208+1,FALSE)*Données!$G$35) -> 4.345871878 | AD164: 4.345871878 | AH164: 0.29023 | AI164: 0.318939 | AJ164: 0.289472 | AK164: 0.321642 | AL164: 0.316241 | AM164: 0.31666 | AN164: 0.321252 | AO164: 0.320743 | AP164: 0.31751 | AQ164: 0.290987 | AS164: 0.18743 | AT164: 0.59738 | AU164: 0.67914 | AV164: 0.76194 | AW164: 0.71075 | AX164: 0.74591 | AY164: 0.73553 | AZ164: 0.76241 | BA164: 0.74358 | BB164: 0.71332
C165: 1 | D165: 7 | E165: 11 | H165: 0.1973281145 | I165: 0.1910469852 | J165: 0.7358954516 | K165: 0.5803866395 | L165: 0.1364053501 | M165: 0.138250691 | N165: 0.6763452882 | O165: 0.5526478161 | P165: 0.7049264525 | Q165: 0.5616961421 | R165: 0.7061398612 | S165: 0.5687645987 | T165: 0.6516704176 | U165: 0.5315226945 | V165: 0.7315420712 | W165: 0.5973386249 | X165: 0.7173376478 | Y165: 0.5683996654 | Z165: 0.2442765149 | AA165: 0.232069236 | AC165: =IF('Courbes de Production PV'!$C$4="Saisie Manuelle",G165*Données!$G$35,HLOOKUP('Courbes de Production PV'!$C$4&'Courbes de Production PV'!$C$5,'Courbes de Production PV'!$H$7:$AA$8768,'Compensation PV'!A209+1,FALSE)*Données!$G$35) -> 9.771060596 | AD165: 9.771060596 | AH165: 0.268119 | AI165: 0.287598 | AJ165: 0.268839 | AK165: 0.286748 | AL165: 0.283965 | AM165: 0.283635 | AN165: 0.286957 | AO165: 0.287094 | AP165: 0.28611 | AQ165: 0.268323 | AS165: 0.09304 | AT165: 0.36003 | AU165: 0.6841 | AV165: 0.75548 | AW165: 0.70973 | AX165: 0.73749 | AY165: 0.73056 | AZ165: 0.75533 | BA165: 0.74873 | BB165: 0.70762
C166: 1 | D166: 7 | E166: 12 | H166: 0.105375865 | I166: 0.1073502107 | J166: 0.737135801 | K166: 0.6371713877 | L166: 0.1873910884 | M166: 0.1864262655 | N166: 0.6706579471 | O166: 0.5999134008 | P166: 0.7005344484 | Q166: 0.6088415605 | R166: 0.6981680816 | S166: 0.6170233555 | T166: 0.6472631131 | U166: 0.5772418414 | V166: 0.7270180316 | W166: 0.6459258376 | X166: 0.7204508363 | Y166: 0.6271123052 | Z166: 0.4179180074 | AA166: 0.3834314372 | AC166: =IF('Courbes de Production PV'!$C$4="Saisie Manuelle",G166*Données!$G$35,HLOOKUP('Courbes de Production PV'!$C$4&'Courbes de Production PV'!$C$5,'Courbes de Production PV'!$H$7:$AA$8768,'Compensation PV'!A210+1,FALSE)*Données!$G$35) -> 16.71672029 | AD166: 16.71672029 | AH166: 0.20831 | AI166: 0.222978 | AJ166: 0.209605 | AK166: 0.220932 | AL166: 0.219116 | AM166: 0.218436 | AN166: 0.22108 | AO166: 0.221786 | AP166: 0.221983 | AQ166: 0.208334 | AS166: 0.03772 | AT166: 0.68952 | AU166: 0.6268 | AV166: 0.6858 | AW166: 0.56599 | AX166: 0.66898 | AY166: 0.65595 | AZ166: 0.68648 | BA166: 0.69451 | BB166: 0.57567
C167: 1 | D167: 7 | E167: 13 | H167: 0.1417560888 | I167: 0.1433723424 | J167: 0.6761648735 | K167: 0.6319095927 | L167: 0.0755840386 | M167: 0.07744811391 | N167: 0.6092487274 | O167: 0.5903495258 | P167: 0.6379974087 | Q167: 0.5975674429 | R167: 0.6330620434 | S167: 0.6066257956 | T167: 0.5812154954 | U167: 0.5606480744 | V167: 0.6611129899 | W167: 0.6330347569 | X167: 0.6629568146 | Y167: 0.6251320508 | Z167: 0.286075366 | AA167: 0.2813818083 | AC167: =IF('Courbes de Production PV'!$C$4="Saisie Manuelle",G167*Données!$G$35,HLOOKUP('Courbes de Production PV'!$C$4&'Courbes de Production PV'!$C$5,'Courbes de Production PV'!$H$7:$AA$8768,'Compensation PV'!A211+1,FALSE)*Données!$G$35) -> 11.44301464 | AD167: 11.44301464 | AH167: 0.121793 | AI167: 0.130188 | AJ167: 0.123037 | AK167: 0.128252 | AL167: 0.127205 | AM167: 0.126491 | AN167: 0.128107 | AO167: 0.129146 | AP167: 0.130039 | AQ167: 0.121763 | AS167: 0.07085 | AT167: 0.5766 | AU167: 0.4243 | AV167: 0.54975 | AW167: 0.44931 | AX167: 0.54084 | AY167: 0.54745 | AZ167: 0.5554 | BA167: 0.58691 | BB167: 0.51657
C168: 1 | D168: 7 | E168: 14 | H168: 0.1789492784 | I168: 0.1851045916 | J168: 0.5535931534 | K168: 0.5617232564 | L168: 0.05547263311 | M168: 0.05688708222 | N168: 0.4895156925 | O168: 0.5179611885 | P168: 0.5228053384 | Q168: 0.5312658283 | R168: 0.5112498257 | S168: 0.5357835008 | T168: 0.4852105971 | U168: 0.5109375734 | V168: 0.5384093605 | W168: 0.5597842315 | X168: 0.5477498007 | Y168: 0.5618591135 | Z168: 0.207604318 | AA168: 0.2140705499 | AC168: =IF('Courbes de Production PV'!$C$4="Saisie Manuelle",G168*Données!$G$35,HLOOKUP('Courbes de Production PV'!$C$4&'Courbes de Production PV'!$C$5,'Courbes de Production PV'!$H$7:$AA$8768,'Compensation PV'!A212+1,FALSE)*Données!$G$35) -> 8.304172721 | AD168: 8.304172721 | AH168: 0.0360156 | AI168: 0.0369343 | AJ168: 0.0363919 | AK168: 0.0362348 | AL168: 0.0362505 | AM168: 0.0360891 | AN168: 0.0363342 | AO168: 0.0365475 | AP168: 0.0367292 | AQ168: 0.0359637 | AS168: 0.0338 | AT168: 0.07845 | AU168: 0.17686 | AV168: 0.35279 | AW168: 0.34553 | AX168: 0.18433 | AY168: 0.26063 | AZ168: 0.36242 | BA168: 0.40755 | BB168: 0.28342
C169: 1 | D169: 7 | E169: 15 | H169: 0.3292511872 | I169: 0.4003953812 | J169: 0.3707966534 | K169: 0.4211373986 | L169: 0.03889266678 | M169: 0.03996989623 | N169: 0.3152650537 | O169: 0.378819113 | P169: 0.3416743859 | Q169: 0.3907707169 | R169: 0.1743327374 | S169: 0.2010068068 | T169: 0.2310648867 | U169: 0.2724917792 | V169: 0.3502482287 | W169: 0.4093623464 | X169: 0.371545238 | Y169: 0.4272018121 | Z169: 0.0207584174 | AA169: 0.02132245009 | AC169: =IF('Courbes de Production PV'!$C$4="Saisie Manuelle",G169*Données!$G$35,HLOOKUP('Courbes de Production PV'!$C$4&'Courbes de Production PV'!$C$5,'Courbes de Production PV'!$H$7:$AA$8768,'Compensation PV'!A213+1,FALSE)*Données!$G$35) -> 0.830336696 | AD169: 0.830336696 | AH169: 0 | AI169: 0 | AJ169: 0 | AK169: 0 | AL169: 0 | AM169: 0 | AN169: 0 | AO169: 0 | AP169: 0 | AQ169: 0 | AS169: 0.00019 | AT169: 0.12828 | AU169: 0.03487 | AV169: 0.08134 | AW169: 0.10019 | AX169: 0.03271 | AY169: 0.08077 | AZ169: 0.096 | BA169: 0.00125 | BB169: 0.00309
C170: 1 | D170: 7 | E170: 16 | H170: 0.06404042051 | I170: 0.1088212919 | J170: 0.1311281932 | K170: 0.191895626 | L170: 0.01305789439 | M170: 0.01378853697 | N170: 0.07316188602 | O170: 0.1183705343 | P170: 0.08066385997 | Q170: 0.1219075229 | R170: 0.03066947208 | S170: 0.0483063211 | T170: 0.07177357353 | U170: 0.1173599702 | V170: 0.08175377405 | W170: 0.1233749386 | X170: 0.1478050484 | Y170: 0.2116587334 | Z170: 0.0670997461 | AA170: 0.110359039 | AC170: =IF('Courbes de Production PV'!$C$4="Saisie Manuelle",G170*Données!$G$35,HLOOKUP('Courbes de Production PV'!$C$4&'Courbes de Production PV'!$C$5,'Courbes de Production PV'!$H$7:$AA$8768,'Compensation PV'!A214+1,FALSE)*Données!$G$35) -> 2.683989844 | AD170: 2.683989844 | AH170: 0 | AI170: 0 | AJ170: 0 | AK170: 0 | AL170: 0 | AM170: 0 | AN170: 0 | AO170: 0 | AP170: 0 | AQ170: 0 | AS170: 0 | AT170: 0 | AU170: 0 | AV170: 0 | AW170: 0 | AX170: 0 | AY170: 0 | AZ170: 0 | BA170: 0 | BB170: 0
C171: 1 | D171: 7 | E171: 17 | H171: 0 | I171: 0 | J171: 0 | K171: 0 | L171: 0 | M171: 0 | N171: 0 | O171: 0 | P171: 0 | Q171: 0 | R171: 0 | S171: 0 | T171: 0 | U171: 0 | V171: 0 | W171: 0 | X171: 0 | Y171: 0 | Z171: 0 | AA171: 0 | AC171: =IF('Courbes de Production PV'!$C$4="Saisie Manuelle",G171*Données!$G$35,HLOOKUP('Courbes de Production PV'!$C$4&'Courbes de Production PV'!$C$5,'Courbes de Production PV'!$H$7:$AA$8768,'Compensation PV'!A215+1,FALSE)*Données!$G$35) -> 0 | AD171: 0 | AH171: 0 | AI171: 0 | AJ171: 0 | AK171: 0 | AL171: 0 | AM171: 0 | AN171: 0 | AO171: 0 | AP171: 0 | AQ171: 0 | AS171: 0 | AT171: 0 | AU171: 0 | AV171: 0 | AW171: 0 | AX171: 0 | AY171: 0 | AZ171: 0 | BA171: 0 | BB171: 0
